Workbook

Sheet Data1 (hidden)
A1: All inclusive rows | F1: Options in this RFA | I1: Macro: | O1: Macro:
I2: Sub InsertHeaderandFooterForAllSheets() | O2: Private Sub Worksheet_SelectionChange(ByVal Target As Range)
A3: Program the Print Header and Footer for All Tabs: | B3: (Start by putting cursor in blank cell; Select Developer, Macros, InsertHeaderandFooterForAllSheets, Run) | I3: Dim HeaderText As Range | O3: Dim xChkBox As CheckBox
A4: Exhibit A to RFA 2023-104 SAIL Funding for Farmworker and Commercial Fishing Worker Housing | I4: Set HeaderText = Application.Selection | O4: Dim xCell As Range
A5: Exhibit A to RFA 2023-104 SAIL Funding for Farmworker and Commercial Fishing Worker Housing | I5: HeaderText = Range("Data1!$A$4").Value | O5: Dim xHide As Boolean
A6: Print Left Footer for All Tabs: | I6: Dim FooterText As Range | O6: If Target.EntireRow.AddressLocal = Application.Intersect(Target, Target.EntireRow).AddressLocal Then
A7: RFA 2023-104 | B7: ® ® ® ® ® ® ® ® ® ® ® | F7: =DS_TabLeftFooter -> RFA 2023-104 | I7: Set FooterText = Application.Selection | O7: xHide = (MsgBox("Hide Rows ???", vbYesNo + vbQuestion, "Kutools VBA to help hide rows with checkboxes") = vbYes)
A8: Application Issue Date | E8: 2023-02-22 | I8: LeftFooterText = Range("Data1!$A$7").Value | O8: Target.EntireRow.Hidden = xHide
A9: Application Deadline | E9: 2023-03-22 | I9: For Each mysheet In Application.ActiveWorkbook.Worksheets | O9: For Each xChkBox In ActiveSheet.CheckBoxes
I10: mysheet.PageSetup.LeftHeader = "" | O10: Set xCell = xChkBox.TopLeftCell
A11: All Inclusive List - Demographics (Demo) | B11: In RFA? | C11: Sequence | D11: Sort | E11: 4.A.2. | F11: <select one> | I11: mysheet.PageSetup.CenterHeader = "&B&14&K7030A0" & HeaderText & "" | O11: If Not Intersect(xCell, Target) Is Nothing Then
A12: Family | C12: =IF(B12<>1,"",SUM(B$12:B12)) ->  | D12: 1 | F12: =IF(COUNTA($A$12:$A12)<=MAX(DS_Demo_Sequence)=TRUE,LOOKUP(COUNTA($A$12:$A12),DS_Demo_Sequence,DS_Demo_DataNames),"") -> Farmworker | I12: mysheet.PageSetup.RightHeader = "" | O12: xChkBox.Visible = Not xHide
A13: Elderly Non-ALF | C13: =IF(B13<>1,"",SUM(B$12:B13)) ->  | D13: 2 | F13: =IF(COUNTA($A$12:$A13)<=MAX(DS_Demo_Sequence)=TRUE,LOOKUP(COUNTA($A$12:$A13),DS_Demo_Sequence,DS_Demo_DataNames),"") -> Unaccompanied Farmworker | I13: mysheet.PageSetup.LeftFooter = LeftFooterText | O13: End If
A14: Elderly ALF | C14: =IF(B14<>1,"",SUM(B$12:B14)) ->  | D14: 3 | F14: =IF(COUNTA($A$12:$A14)<=MAX(DS_Demo_Sequence)=TRUE,LOOKUP(COUNTA($A$12:$A14),DS_Demo_Sequence,DS_Demo_DataNames),"") -> Commercial Fishing Worker | I14: mysheet.PageSetup.CenterFooter = "" | O14: Next
A15: Elderly (Elderly Transformative Preservation) | C15: =IF(B15<>1,"",SUM(B$12:B15)) ->  | D15: 4 | F15: =IF(COUNTA($A$12:$A15)<=MAX(DS_Demo_Sequence)=TRUE,LOOKUP(COUNTA($A$12:$A15),DS_Demo_Sequence,DS_Demo_DataNames),"") -> Unaccompanied Commercial Fishing Worker | I15: mysheet.PageSetup.RightFooter = "&K000000'&A' worksheet tab: Page &P of &N" | O15: End If
A16: Farmworker/Commercial Fish Worker | C16: =IF(B16<>1,"",SUM(B$12:B16)) ->  | D16: 5 | F16: =IF(COUNTA($A$12:$A16)<=MAX(DS_Demo_Sequence)=TRUE,LOOKUP(COUNTA($A$12:$A16),DS_Demo_Sequence,DS_Demo_DataNames),"") ->  | I16: mysheet.PageSetup.LeftMargin = Application.InchesToPoints(0.7) | O16: End Sub
A17: Homeless | C17: =IF(B17<>1,"",SUM(B$12:B17)) ->  | D17: 6 | F17: =IF(COUNTA($A$12:$A17)<=MAX(DS_Demo_Sequence)=TRUE,LOOKUP(COUNTA($A$12:$A17),DS_Demo_Sequence,DS_Demo_DataNames),"") ->  | I17: mysheet.PageSetup.RightMargin = Application.InchesToPoints(0.7)
A18: Persons with a Disabling Condition | C18: =IF(B18<>1,"",SUM(B$12:B18)) ->  | D18: 7 | F18: =IF(COUNTA($A$12:$A18)<=MAX(DS_Demo_Sequence)=TRUE,LOOKUP(COUNTA($A$12:$A18),DS_Demo_Sequence,DS_Demo_DataNames),"") ->  | I18: mysheet.PageSetup.TopMargin = Application.InchesToPoints(0.75)
A19: Persons with Developmental Disabilities | C19: =IF(B19<>1,"",SUM(B$12:B19)) ->  | D19: 8 | F19: =IF(COUNTA($A$12:$A19)<=MAX(DS_Demo_Sequence)=TRUE,LOOKUP(COUNTA($A$12:$A19),DS_Demo_Sequence,DS_Demo_DataNames),"") ->  | I19: mysheet.PageSetup.BottomMargin = Application.InchesToPoints(0.75)
A20: Persons with Special Needs | C20: =IF(B20<>1,"",SUM(B$12:B20)) ->  | D20: 9 | F20: =IF(COUNTA($A$12:$A20)<=MAX(DS_Demo_Sequence)=TRUE,LOOKUP(COUNTA($A$12:$A20),DS_Demo_Sequence,DS_Demo_DataNames),"") ->  | I20: mysheet.PageSetup.HeaderMargin = Application.InchesToPoints(0.3)
A21: Workforce | C21: =IF(B21<>1,"",SUM(B$12:B21)) ->  | D21: 10 | F21: =IF(COUNTA($A$12:$A21)<=MAX(DS_Demo_Sequence)=TRUE,LOOKUP(COUNTA($A$12:$A21),DS_Demo_Sequence,DS_Demo_DataNames),"") ->  | I21: mysheet.PageSetup.FooterMargin = Application.InchesToPoints(0.3)
A22: Farmworker | B22: 1 | C22: =IF(B22<>1,"",SUM(B$12:B22)) -> 1 | D22: 11 | F22: =IF(COUNTA($A$12:$A22)<=MAX(DS_Demo_Sequence)=TRUE,LOOKUP(COUNTA($A$12:$A22),DS_Demo_Sequence,DS_Demo_DataNames),"") ->  | I22: mysheet.PageSetup.PrintHeadings = False
A23: Unaccompanied Farmworker | B23: 1 | C23: =IF(B23<>1,"",SUM(B$12:B23)) -> 2 | D23: 12 | F23: =IF(COUNTA($A$12:$A23)<=MAX(DS_Demo_Sequence)=TRUE,LOOKUP(COUNTA($A$12:$A23),DS_Demo_Sequence,DS_Demo_DataNames),"") ->  | I23: mysheet.PageSetup.PrintGridlines = False
A24: Commercial Fishing Worker | B24: 1 | C24: =IF(B24<>1,"",SUM(B$12:B24)) -> 3 | D24: 13 | F24: =IF(COUNTA($A$12:$A24)<=MAX(DS_Demo_Sequence)=TRUE,LOOKUP(COUNTA($A$12:$A24),DS_Demo_Sequence,DS_Demo_DataNames),"") ->  | I24: mysheet.PageSetup.PrintComments = xlPrintSheetEnd
A25: Unaccompanied Commercial Fishing Worker | B25: 1 | C25: =IF(B25<>1,"",SUM(B$12:B25)) -> 4 | D25: 14 | F25: =IF(COUNTA($A$12:$A25)<=MAX(DS_Demo_Sequence)=TRUE,LOOKUP(COUNTA($A$12:$A25),DS_Demo_Sequence,DS_Demo_DataNames),"") ->  | I25: mysheet.PageSetup.PrintQuality = 600
I26: mysheet.PageSetup.CenterHorizontally = False
A27: Check Box Reference Cells | E27: 4.A.2.a.&b. | I27: mysheet.PageSetup.CenterVertically = False
A28: (a) Select the Minimum Set-Aside Commitment for … | I28: mysheet.PageSetup.Orientation = xlPortrait
A29: (1) Less than 80% PSN | B29: FALSE | I29: mysheet.PageSetup.Draft = False
A30: (2) At least 80% PSN | B30: FALSE | I30: mysheet.PageSetup.PaperSize = xlPaperLetter
A31: (b) Select at least one box from options (1) through (5) below that … | I31: mysheet.PageSetup.FirstPageNumber = xlAutomatic
A32: (1) DC that does or will impair | B32: FALSE | I32: mysheet.PageSetup.Order = xlDownThenOver
A33: (2) Receives benefits from SSDI, SSI or Veterans' | B33: FALSE | I33: mysheet.PageSetup.BlackAndWhite = False
A34: (3) DC that does not or will not impair | B34: FALSE | I34: mysheet.PageSetup.Zoom = 80
A35: (4) Aging out of Foster Care | B35: FALSE | I35: Next
A36: (5) Survivors of domestic violence | B36: FALSE | I36: End Sub
A38: All Inclusive List - Dev. Exp. Programs (DevExpProgs) | B38: In RFA? | C38: Sequence | D38: Sort | E38: 4.A.3.b.(3)(a) | F38: <select one>
A39: Housing Credits | B39: 1 | C39: =IF(B39<>1,"",SUM(B$39:B39)) -> 1 | D39: 1 | F39: =IF(COUNTA($A39:$A$39)<=MAX(DS_DevExpProgs_Sequence)=TRUE,LOOKUP(COUNTA($A39:$A$39),DS_DevExpProgs_Sequence,DS_DevExpProgs_DataNames),"") -> Housing Credits
A40: Tax-Exempt Bonds | B40: 1 | C40: =IF(B40<>1,"",SUM(B$39:B40)) -> 2 | D40: 2 | F40: =IF(COUNTA($A$39:$A40)<=MAX(DS_DevExpProgs_Sequence)=TRUE,LOOKUP(COUNTA($A$39:$A40),DS_DevExpProgs_Sequence,DS_DevExpProgs_DataNames),"") -> Tax-Exempt Bonds
A41: HOME | B41: 1 | C41: =IF(B41<>1,"",SUM(B$39:B41)) -> 3 | D41: 3 | F41: =IF(COUNTA($A$39:$A41)<=MAX(DS_DevExpProgs_Sequence)=TRUE,LOOKUP(COUNTA($A$39:$A41),DS_DevExpProgs_Sequence,DS_DevExpProgs_DataNames),"") -> HOME
A42: CDBG-DR | B42: 1 | C42: =IF(B42<>1,"",SUM(B$39:B42)) -> 4 | D42: 4 | F42: =IF(COUNTA($A$39:$A42)<=MAX(DS_DevExpProgs_Sequence)=TRUE,LOOKUP(COUNTA($A$39:$A42),DS_DevExpProgs_Sequence,DS_DevExpProgs_DataNames),"") -> CDBG-DR
A43: NHTF | B43: 1 | C43: =IF(B43<>1,"",SUM(B$39:B43)) -> 5 | D43: 5 | F43: =IF(COUNTA($A$39:$A43)<=MAX(DS_DevExpProgs_Sequence)=TRUE,LOOKUP(COUNTA($A$39:$A43),DS_DevExpProgs_Sequence,DS_DevExpProgs_DataNames),"") -> NHTF
A44: HUD First Mortgage | B44: 1 | C44: =IF(B44<>1,"",SUM(B$39:B44)) -> 6 | D44: 6 | F44: =IF(COUNTA($A$39:$A44)<=MAX(DS_DevExpProgs_Sequence)=TRUE,LOOKUP(COUNTA($A$39:$A44),DS_DevExpProgs_Sequence,DS_DevExpProgs_DataNames),"") -> HUD First Mortgage
A45: Exchange | C45: =IF(B45<>1,"",SUM(B$39:B45)) ->  | D45: 7 | F45: =IF(COUNTA($A$39:$A45)<=MAX(DS_DevExpProgs_Sequence)=TRUE,LOOKUP(COUNTA($A$39:$A45),DS_DevExpProgs_Sequence,DS_DevExpProgs_DataNames),"") -> USDA RD 514/516
A46: TCAP | C46: =IF(B46<>1,"",SUM(B$39:B46)) ->  | D46: 8 | F46: =IF(COUNTA($A$39:$A46)<=MAX(DS_DevExpProgs_Sequence)=TRUE,LOOKUP(COUNTA($A$39:$A46),DS_DevExpProgs_Sequence,DS_DevExpProgs_DataNames),"") -> USDA RD 515
A47: FDIC | C47: =IF(B47<>1,"",SUM(B$39:B47)) ->  | D47: 9 | F47: =IF(COUNTA($A$39:$A47)<=MAX(DS_DevExpProgs_Sequence)=TRUE,LOOKUP(COUNTA($A$39:$A47),DS_DevExpProgs_Sequence,DS_DevExpProgs_DataNames),"") -> USDA RD 538
A48: FHLB | C48: =IF(B48<>1,"",SUM(B$39:B48)) ->  | D48: 10 | F48: =IF(COUNTA($A$39:$A48)<=MAX(DS_DevExpProgs_Sequence)=TRUE,LOOKUP(COUNTA($A$39:$A48),DS_DevExpProgs_Sequence,DS_DevExpProgs_DataNames),"") -> Grant
A49: AHP | C49: =IF(B49<>1,"",SUM(B$39:B49)) ->  | D49: 11 | F49: =IF(COUNTA($A$39:$A49)<=MAX(DS_DevExpProgs_Sequence)=TRUE,LOOKUP(COUNTA($A$39:$A49),DS_DevExpProgs_Sequence,DS_DevExpProgs_DataNames),"") -> RRLP
A50: USDA RD 514/516 | B50: 1 | C50: =IF(B50<>1,"",SUM(B$39:B50)) -> 7 | D50: 12 | F50: =IF(COUNTA($A$39:$A50)<=MAX(DS_DevExpProgs_Sequence)=TRUE,LOOKUP(COUNTA($A$39:$A50),DS_DevExpProgs_Sequence,DS_DevExpProgs_DataNames),"") -> SAIL
A51: USDA RD 515 | B51: 1 | C51: =IF(B51<>1,"",SUM(B$39:B51)) -> 8 | D51: 13 | F51: =IF(COUNTA($A$39:$A51)<=MAX(DS_DevExpProgs_Sequence)=TRUE,LOOKUP(COUNTA($A$39:$A51),DS_DevExpProgs_Sequence,DS_DevExpProgs_DataNames),"") -> Workforce
A52: USDA RD 538 | B52: 1 | C52: =IF(B52<>1,"",SUM(B$39:B52)) -> 9 | D52: 14 | F52: =IF(COUNTA($A$39:$A52)<=MAX(DS_DevExpProgs_Sequence)=TRUE,LOOKUP(COUNTA($A$39:$A52),DS_DevExpProgs_Sequence,DS_DevExpProgs_DataNames),"") -> Other
A53: CWHIP | C53: =IF(B53<>1,"",SUM(B$39:B53)) ->  | D53: 15 | F53: =IF(COUNTA($A$39:$A53)<=MAX(DS_DevExpProgs_Sequence)=TRUE,LOOKUP(COUNTA($A$39:$A53),DS_DevExpProgs_Sequence,DS_DevExpProgs_DataNames),"") -> 
A54: CWHLP | C54: =IF(B54<>1,"",SUM(B$39:B54)) ->  | D54: 16 | F54: =IF(COUNTA($A$39:$A54)<=MAX(DS_DevExpProgs_Sequence)=TRUE,LOOKUP(COUNTA($A$39:$A54),DS_DevExpProgs_Sequence,DS_DevExpProgs_DataNames),"") -> 
A55: EHCL | C55: =IF(B55<>1,"",SUM(B$39:B55)) ->  | D55: 17 | F55: =IF(COUNTA($A$39:$A55)<=MAX(DS_DevExpProgs_Sequence)=TRUE,LOOKUP(COUNTA($A$39:$A55),DS_DevExpProgs_Sequence,DS_DevExpProgs_DataNames),"") -> 
A56: ELI | C56: =IF(B56<>1,"",SUM(B$39:B56)) ->  | D56: 18 | F56: =IF(COUNTA($A$39:$A56)<=MAX(DS_DevExpProgs_Sequence)=TRUE,LOOKUP(COUNTA($A$39:$A56),DS_DevExpProgs_Sequence,DS_DevExpProgs_DataNames),"") -> 
A57: FAF | C57: =IF(B57<>1,"",SUM(B$39:B57)) ->  | D57: 19 | F57: =IF(COUNTA($A$39:$A57)<=MAX(DS_DevExpProgs_Sequence)=TRUE,LOOKUP(COUNTA($A$39:$A57),DS_DevExpProgs_Sequence,DS_DevExpProgs_DataNames),"") -> 
A58: Grant | B58: 1 | C58: =IF(B58<>1,"",SUM(B$39:B58)) -> 10 | D58: 20 | F58: =IF(COUNTA($A$39:$A58)<=MAX(DS_DevExpProgs_Sequence)=TRUE,LOOKUP(COUNTA($A$39:$A58),DS_DevExpProgs_Sequence,DS_DevExpProgs_DataNames),"") -> 
A59: HHRP | C59: =IF(B59<>1,"",SUM(B$39:B59)) ->  | D59: 21 | F59: =IF(COUNTA($A$39:$A59)<=MAX(DS_DevExpProgs_Sequence)=TRUE,LOOKUP(COUNTA($A$39:$A59),DS_DevExpProgs_Sequence,DS_DevExpProgs_DataNames),"") -> 
A60: Legislative Appropriation | C60: =IF(B60<>1,"",SUM(B$39:B60)) ->  | D60: 22 | F60: =IF(COUNTA($A$39:$A60)<=MAX(DS_DevExpProgs_Sequence)=TRUE,LOOKUP(COUNTA($A$39:$A60),DS_DevExpProgs_Sequence,DS_DevExpProgs_DataNames),"") -> 
A61: PLP | C61: =IF(B61<>1,"",SUM(B$39:B61)) ->  | D61: 23 | F61: =IF(COUNTA($A$39:$A61)<=MAX(DS_DevExpProgs_Sequence)=TRUE,LOOKUP(COUNTA($A$39:$A61),DS_DevExpProgs_Sequence,DS_DevExpProgs_DataNames),"") -> 
A62: RRLP | B62: 1 | C62: =IF(B62<>1,"",SUM(B$39:B62)) -> 11 | D62: 24 | F62: =IF(COUNTA($A$39:$A62)<=MAX(DS_DevExpProgs_Sequence)=TRUE,LOOKUP(COUNTA($A$39:$A62),DS_DevExpProgs_Sequence,DS_DevExpProgs_DataNames),"") -> 
A63: SAIL | B63: 1 | C63: =IF(B63<>1,"",SUM(B$39:B63)) -> 12 | D63: 25 | F63: =IF(COUNTA($A$39:$A63)<=MAX(DS_DevExpProgs_Sequence)=TRUE,LOOKUP(COUNTA($A$39:$A63),DS_DevExpProgs_Sequence,DS_DevExpProgs_DataNames),"") -> 
A64: SB 1852 NMS | C64: =IF(B64<>1,"",SUM(B$39:B64)) ->  | D64: 26 | F64: =IF(COUNTA($A$39:$A64)<=MAX(DS_DevExpProgs_Sequence)=TRUE,LOOKUP(COUNTA($A$39:$A64),DS_DevExpProgs_Sequence,DS_DevExpProgs_DataNames),"") -> 
A65: SHADP | C65: =IF(B65<>1,"",SUM(B$39:B65)) ->  | D65: 27 | F65: =IF(COUNTA($A$39:$A65)<=MAX(DS_DevExpProgs_Sequence)=TRUE,LOOKUP(COUNTA($A$39:$A65),DS_DevExpProgs_Sequence,DS_DevExpProgs_DataNames),"") -> 
A66: SHIP | C66: =IF(B66<>1,"",SUM(B$39:B66)) ->  | D66: 28 | F66: =IF(COUNTA($A$39:$A66)<=MAX(DS_DevExpProgs_Sequence)=TRUE,LOOKUP(COUNTA($A$39:$A66),DS_DevExpProgs_Sequence,DS_DevExpProgs_DataNames),"") -> 
A67: Surtax | C67: =IF(B67<>1,"",SUM(B$39:B67)) ->  | D67: 29 | F67: =IF(COUNTA($A$39:$A67)<=MAX(DS_DevExpProgs_Sequence)=TRUE,LOOKUP(COUNTA($A$39:$A67),DS_DevExpProgs_Sequence,DS_DevExpProgs_DataNames),"") -> 
A68: Workforce | B68: 1 | C68: =IF(B68<>1,"",SUM(B$39:B68)) -> 13 | D68: 30 | F68: =IF(COUNTA($A$39:$A68)<=MAX(DS_DevExpProgs_Sequence)=TRUE,LOOKUP(COUNTA($A$39:$A68),DS_DevExpProgs_Sequence,DS_DevExpProgs_DataNames),"") -> 
A69: Other | B69: 1 | C69: =IF(B69<>1,"",SUM(B$39:B69)) -> 14 | D69: 31 | F69: =IF(COUNTA($A$39:$A69)<=MAX(DS_DevExpProgs_Sequence)=TRUE,LOOKUP(COUNTA($A$39:$A69),DS_DevExpProgs_Sequence,DS_DevExpProgs_DataNames),"") -> 
A70: Required Davis-Bacon | C70: =IF(B70<>1,"",SUM(B$39:B70)) ->  | D70: 32 | F70: =IF(COUNTA($A$39:$A70)<=MAX(DS_DevExpProgs_Sequence)=TRUE,LOOKUP(COUNTA($A$39:$A70),DS_DevExpProgs_Sequence,DS_DevExpProgs_DataNames),"") -> 
A72: Developer Experience Variables | E72: 4.A.3.b.(3)(a) | F72: <select one> | G72: Score | H72: Count
A73: # of affordable housing developments to list (1,2 or 3) | E73: 1 | F73: Percentage | G73: =IF(DevExp_MinDevs_List_Count>=DS_DevExp_MinDevs_List,"Yes","No, "&TEXT(DS_DevExp_MinDevs_List-DevExp_MinDevs_List_Count,"0")&" shy") -> No, 1 shy | H73: =IF(AND('General Information'!M85>0,IF('General Information'!K86>0,DevExp_first_Dev_name<>"",TRUE),IF('General Information'!K87>0,DevExp_first_Dev_location<>"",TRUE),IF('General Information'!K88>0,OR(AND(DevExp_first_Dev_program<>"<select one>",DevExp_first_Dev_program<>""),CELL("protect",DevExp_first_Dev_program)=1),TRUE),IF(AND('General Information'!K89>0,DevExp_first_Dev_program="Other"),DevExp_first_Other_program<>"",TRUE),IF('General Information'!K90>0,DevExp_first_Dev_units<>"",TRUE),IF('General Information'!K91>0,DevExp_first_Dev_year<>"",TRUE)),1,0)+IF(AND('General Information'!M94>0,IF('General Information'!K95>0,DevExp_second_Dev_name<>"",TRUE),IF('General Information'!K96>0,DevExp_second_Dev_location<>"",TRUE),IF('General Information'!K97>0,OR(AND(DevExp_second_Dev_program<>"<select one>",DevExp_second_Dev_program<>""),CELL("protect",DevExp_second_Dev_program)=1),TRUE),IF(AND('General Information'!K98>0,DevExp_second_Dev_program="Other"),DevExp_second_Other_program<>"",TRUE),IF('General Information'!K99>0,DevExp_second_Dev_units<>"",TRUE),IF('General Information'!K100>0,DevExp_second_Dev_year<>"",TRUE)),1,0)+IF(AND('General Information'!M94>0,IF('General Information'!K104>0,DevExp_third_Dev_name<>"",TRUE),IF('General Information'!K105>0,DevExp_third_Dev_location<>"",TRUE),IF('General Information'!K106>0,OR(AND(DevExp_third_Dev_program<>"<select one>",DevExp_third_Dev_program<>""),CELL("protect",DevExp_third_Dev_program)=1),TRUE),IF(AND('General Information'!K107>0,DevExp_third_Dev_program="Other"),DevExp_third_Other_program<>"",TRUE),IF('General Information'!K108>0,DevExp_third_Dev_units<>"",TRUE),IF('General Information'!K109>0,DevExp_third_Dev_year<>"",TRUE)),1,0) -> 0 | I73: # of complete housing developments listed
A74: Initial Date for Developer Experience | E74: 2003-01-01 | F74: Number
A75: ="# of Developments to meet Initial Date Requirement ("&TEXT(DS_DevExp_MinDevs_List,"0")&" or less)" -> # of Developments to meet Initial Date Requirement (1 or less) | E75: 1 | G75: =IF(DevExp_DevsWithSinceDate_Count>=DS_DevExp_DevsWithSinceDate,"Yes","No, "&TEXT(DS_DevExp_DevsWithSinceDate-DevExp_DevsWithSinceDate_Count,"0")&" shy") -> No, 1 shy | H75: =IF(AND('General Information'!K91>0,YEAR(DS_DevExp_SinceDate<=DevExp_first_Dev_year),DevExp_first_Dev_year<>""),1,0)+IF(AND('General Information'!K100>0,YEAR(DS_DevExp_SinceDate<=DevExp_second_Dev_year),DevExp_second_Dev_year<>""),1,0)+IF(AND('General Information'!K109>0,YEAR(DS_DevExp_SinceDate<=DevExp_third_Dev_year),DevExp_third_Dev_year<>""),1,0) -> 0 | I75: # of developments meeting the minimum date requirement
A76: Funding Program Requirement | E76: <select one> | F76: FYI-Year Completed program requirement comment does not check other developments
A77: Initial Date for Funding Program Requirement | E77: 2013-01-01 | F77: FYI-Year Completed lists general even when required program is listed
A78: ="# of Developments to meet minimum Program Requirement ("&TEXT(DS_DevExp_MinDevs_List,"0")&" or less)" -> # of Developments to meet minimum Program Requirement (1 or less) | E78: 0 | G78: =IF(DevExp_PrgmMinDevs_Count>=DS_DevExp_PrgmMinDevs,"Yes","No, "&TEXT(DS_DevExp_PrgmMinDevs-DevExp_PrgmMinDevs_Count,"0")&" shy") -> Yes | H78: =IF(AND('General Information'!K88=1,DS_DevExp_PrgmReq=DevExp_first_Dev_program,YEAR(DS_DevExp_PrgmSinceDate)<=DevExp_first_Dev_year),1,0)+IF(AND('General Information'!K97=1,DS_DevExp_PrgmReq=DevExp_second_Dev_program,YEAR(DS_DevExp_PrgmSinceDate)<=DevExp_second_Dev_year),1,0)+IF(AND('General Information'!K106=1,DS_DevExp_PrgmReq=DevExp_third_Dev_program,YEAR(DS_DevExp_PrgmSinceDate)<=DevExp_third_Dev_year),1,0) -> 0 | I78: # of developments meeting the minimum date requirement of the required Program
A79: Minimum total number of units %, or | B79: =IF(DS_DevExp_MinUnits_Criteria="Percentage",ROUNDUP(Total_Units*DS_DevExp_MinUnits_Percent,0),DS_DevExp_MinUnits_Number) -> 0 | E79: 0.5
A80: Minimum total number of units # | E80: 12
A81: Is minimum % or minimum # used in RFA? | E81: Percentage
A82: ="# of Developments to meet minimum units ("&TEXT(DS_DevExp_MinDevs_List,"0")&" or less)" -> # of Developments to meet minimum units (1 or less) | E82: 1 | G82: =IF(DevExp_MinUnits_Count>=DS_DevExp_MinUnits_Devs,"Yes","No, "&TEXT(DS_DevExp_MinUnits_Devs-DevExp_MinUnits_Count,"0")&" shy") -> No, 1 shy | H82: =IF(AND('General Information'!K90>0,OR(AND(DS_DevExp_MinUnits_Criteria="Percentage",Total_Units>0),DS_DevExp_MinUnits_Criteria="Number"),DS_DevExp_MinUnits<=DevExp_first_Dev_units),1,0)+IF(AND('General Information'!K99>0,OR(AND(DS_DevExp_MinUnits_Criteria="Percentage",Total_Units>0),DS_DevExp_MinUnits_Criteria="Number"),DS_DevExp_MinUnits<=DevExp_second_Dev_units),1,0)+IF(AND('General Information'!K108>0,OR(AND(DS_DevExp_MinUnits_Criteria="Percentage",Total_Units>0),DS_DevExp_MinUnits_Criteria="Number"),DS_DevExp_MinUnits<=DevExp_third_Dev_units),1,0) -> 0 | I82: # of developments meeting the minimum unit requirement
A84: All Inclusive List - Priority (Priority) | B84: In RFA? | C84: Sequence | D84: Sort | E84: 4.A.3.c.(3) | F84: <select one>
A85: Priority I | C85: =IF(B85<>1,"",SUM(B$85:B85)) ->  | D85: 1 | F85: =IF(COUNTA($A$85:$A85)<=MAX(DS_Priority_Sequence)=TRUE,LOOKUP(COUNTA($A$85:$A85),DS_Priority_Sequence,DS_Priority_DataNames),"") -> 
A86: Priority II | C86: =IF(B86<>1,"",SUM(B$85:B86)) ->  | D86: 2 | F86: =IF(COUNTA($A$85:$A86)<=MAX(DS_Priority_Sequence)=TRUE,LOOKUP(COUNTA($A$85:$A86),DS_Priority_Sequence,DS_Priority_DataNames),"") -> 
A88: All Inclusive List - States (States, District of Columbia, Puerto Rico) | B88: In RFA? | C88: Sequence | D88: Sort | E88: 4.A.3.d. & e. | F88: <select one>
A89: AK | B89: 1 | C89: =IF(B89<>1,"",SUM(B$89:B89)) -> 1 | D89: 1 | F89: =IF(COUNTA($A$89:$A89)<=MAX(DS_States_Sequence)=TRUE,LOOKUP(COUNTA($A$89:$A89),DS_States_Sequence,DS_States_DataNames),"") -> AK
A90: AL | B90: 1 | C90: =IF(B90<>1,"",SUM(B$89:B90)) -> 2 | D90: 2 | F90: =IF(COUNTA($A$89:$A90)<=MAX(DS_States_Sequence)=TRUE,LOOKUP(COUNTA($A$89:$A90),DS_States_Sequence,DS_States_DataNames),"") -> AL
A91: AR | B91: 1 | C91: =IF(B91<>1,"",SUM(B$89:B91)) -> 3 | D91: 3 | F91: =IF(COUNTA($A$89:$A91)<=MAX(DS_States_Sequence)=TRUE,LOOKUP(COUNTA($A$89:$A91),DS_States_Sequence,DS_States_DataNames),"") -> AR
A92: AZ | B92: 1 | C92: =IF(B92<>1,"",SUM(B$89:B92)) -> 4 | D92: 4 | F92: =IF(COUNTA($A$89:$A92)<=MAX(DS_States_Sequence)=TRUE,LOOKUP(COUNTA($A$89:$A92),DS_States_Sequence,DS_States_DataNames),"") -> AZ
A93: CA | B93: 1 | C93: =IF(B93<>1,"",SUM(B$89:B93)) -> 5 | D93: 5 | F93: =IF(COUNTA($A$89:$A93)<=MAX(DS_States_Sequence)=TRUE,LOOKUP(COUNTA($A$89:$A93),DS_States_Sequence,DS_States_DataNames),"") -> CA
A94: CO | B94: 1 | C94: =IF(B94<>1,"",SUM(B$89:B94)) -> 6 | D94: 6 | F94: =IF(COUNTA($A$89:$A94)<=MAX(DS_States_Sequence)=TRUE,LOOKUP(COUNTA($A$89:$A94),DS_States_Sequence,DS_States_DataNames),"") -> CO
A95: CT | B95: 1 | C95: =IF(B95<>1,"",SUM(B$89:B95)) -> 7 | D95: 7 | F95: =IF(COUNTA($A$89:$A95)<=MAX(DS_States_Sequence)=TRUE,LOOKUP(COUNTA($A$89:$A95),DS_States_Sequence,DS_States_DataNames),"") -> CT
A96: DC | B96: 1 | C96: =IF(B96<>1,"",SUM(B$89:B96)) -> 8 | D96: 8 | F96: =IF(COUNTA($A$89:$A96)<=MAX(DS_States_Sequence)=TRUE,LOOKUP(COUNTA($A$89:$A96),DS_States_Sequence,DS_States_DataNames),"") -> DC
A97: DE | B97: 1 | C97: =IF(B97<>1,"",SUM(B$89:B97)) -> 9 | D97: 9 | F97: =IF(COUNTA($A$89:$A97)<=MAX(DS_States_Sequence)=TRUE,LOOKUP(COUNTA($A$89:$A97),DS_States_Sequence,DS_States_DataNames),"") -> DE
A98: FL | B98: 1 | C98: =IF(B98<>1,"",SUM(B$89:B98)) -> 10 | D98: 10 | F98: =IF(COUNTA($A$89:$A98)<=MAX(DS_States_Sequence)=TRUE,LOOKUP(COUNTA($A$89:$A98),DS_States_Sequence,DS_States_DataNames),"") -> FL
A99: GA | B99: 1 | C99: =IF(B99<>1,"",SUM(B$89:B99)) -> 11 | D99: 11 | F99: =IF(COUNTA($A$89:$A99)<=MAX(DS_States_Sequence)=TRUE,LOOKUP(COUNTA($A$89:$A99),DS_States_Sequence,DS_States_DataNames),"") -> GA
A100: HI | B100: 1 | C100: =IF(B100<>1,"",SUM(B$89:B100)) -> 12 | D100: 12 | F100: =IF(COUNTA($A$89:$A100)<=MAX(DS_States_Sequence)=TRUE,LOOKUP(COUNTA($A$89:$A100),DS_States_Sequence,DS_States_DataNames),"") -> HI
A101: IA | B101: 1 | C101: =IF(B101<>1,"",SUM(B$89:B101)) -> 13 | D101: 13 | F101: =IF(COUNTA($A$89:$A101)<=MAX(DS_States_Sequence)=TRUE,LOOKUP(COUNTA($A$89:$A101),DS_States_Sequence,DS_States_DataNames),"") -> IA
A102: ID | B102: 1 | C102: =IF(B102<>1,"",SUM(B$89:B102)) -> 14 | D102: 14 | F102: =IF(COUNTA($A$89:$A102)<=MAX(DS_States_Sequence)=TRUE,LOOKUP(COUNTA($A$89:$A102),DS_States_Sequence,DS_States_DataNames),"") -> ID
A103: IL | B103: 1 | C103: =IF(B103<>1,"",SUM(B$89:B103)) -> 15 | D103: 15 | F103: =IF(COUNTA($A$89:$A103)<=MAX(DS_States_Sequence)=TRUE,LOOKUP(COUNTA($A$89:$A103),DS_States_Sequence,DS_States_DataNames),"") -> IL
A104: IN | B104: 1 | C104: =IF(B104<>1,"",SUM(B$89:B104)) -> 16 | D104: 16 | F104: =IF(COUNTA($A$89:$A104)<=MAX(DS_States_Sequence)=TRUE,LOOKUP(COUNTA($A$89:$A104),DS_States_Sequence,DS_States_DataNames),"") -> IN
A105: KS | B105: 1 | C105: =IF(B105<>1,"",SUM(B$89:B105)) -> 17 | D105: 17 | F105: =IF(COUNTA($A$89:$A105)<=MAX(DS_States_Sequence)=TRUE,LOOKUP(COUNTA($A$89:$A105),DS_States_Sequence,DS_States_DataNames),"") -> KS
A106: KY | B106: 1 | C106: =IF(B106<>1,"",SUM(B$89:B106)) -> 18 | D106: 18 | F106: =IF(COUNTA($A$89:$A106)<=MAX(DS_States_Sequence)=TRUE,LOOKUP(COUNTA($A$89:$A106),DS_States_Sequence,DS_States_DataNames),"") -> KY
A107: LA | B107: 1 | C107: =IF(B107<>1,"",SUM(B$89:B107)) -> 19 | D107: 19 | F107: =IF(COUNTA($A$89:$A107)<=MAX(DS_States_Sequence)=TRUE,LOOKUP(COUNTA($A$89:$A107),DS_States_Sequence,DS_States_DataNames),"") -> LA
A108: MA | B108: 1 | C108: =IF(B108<>1,"",SUM(B$89:B108)) -> 20 | D108: 20 | F108: =IF(COUNTA($A$89:$A108)<=MAX(DS_States_Sequence)=TRUE,LOOKUP(COUNTA($A$89:$A108),DS_States_Sequence,DS_States_DataNames),"") -> MA
A109: MD | B109: 1 | C109: =IF(B109<>1,"",SUM(B$89:B109)) -> 21 | D109: 21 | F109: =IF(COUNTA($A$89:$A109)<=MAX(DS_States_Sequence)=TRUE,LOOKUP(COUNTA($A$89:$A109),DS_States_Sequence,DS_States_DataNames),"") -> MD
A110: ME | B110: 1 | C110: =IF(B110<>1,"",SUM(B$89:B110)) -> 22 | D110: 22 | F110: =IF(COUNTA($A$89:$A110)<=MAX(DS_States_Sequence)=TRUE,LOOKUP(COUNTA($A$89:$A110),DS_States_Sequence,DS_States_DataNames),"") -> ME
A111: MI | B111: 1 | C111: =IF(B111<>1,"",SUM(B$89:B111)) -> 23 | D111: 23 | F111: =IF(COUNTA($A$89:$A111)<=MAX(DS_States_Sequence)=TRUE,LOOKUP(COUNTA($A$89:$A111),DS_States_Sequence,DS_States_DataNames),"") -> MI
A112: MN | B112: 1 | C112: =IF(B112<>1,"",SUM(B$89:B112)) -> 24 | D112: 24 | F112: =IF(COUNTA($A$89:$A112)<=MAX(DS_States_Sequence)=TRUE,LOOKUP(COUNTA($A$89:$A112),DS_States_Sequence,DS_States_DataNames),"") -> MN
A113: MO | B113: 1 | C113: =IF(B113<>1,"",SUM(B$89:B113)) -> 25 | D113: 25 | F113: =IF(COUNTA($A$89:$A113)<=MAX(DS_States_Sequence)=TRUE,LOOKUP(COUNTA($A$89:$A113),DS_States_Sequence,DS_States_DataNames),"") -> MO
A114: MS | B114: 1 | C114: =IF(B114<>1,"",SUM(B$89:B114)) -> 26 | D114: 26 | F114: =IF(COUNTA($A$89:$A114)<=MAX(DS_States_Sequence)=TRUE,LOOKUP(COUNTA($A$89:$A114),DS_States_Sequence,DS_States_DataNames),"") -> MS
A115: MT | B115: 1 | C115: =IF(B115<>1,"",SUM(B$89:B115)) -> 27 | D115: 27 | F115: =IF(COUNTA($A$89:$A115)<=MAX(DS_States_Sequence)=TRUE,LOOKUP(COUNTA($A$89:$A115),DS_States_Sequence,DS_States_DataNames),"") -> MT
A116: NC | B116: 1 | C116: =IF(B116<>1,"",SUM(B$89:B116)) -> 28 | D116: 28 | F116: =IF(COUNTA($A$89:$A116)<=MAX(DS_States_Sequence)=TRUE,LOOKUP(COUNTA($A$89:$A116),DS_States_Sequence,DS_States_DataNames),"") -> NC
A117: ND | B117: 1 | C117: =IF(B117<>1,"",SUM(B$89:B117)) -> 29 | D117: 29 | F117: =IF(COUNTA($A$89:$A117)<=MAX(DS_States_Sequence)=TRUE,LOOKUP(COUNTA($A$89:$A117),DS_States_Sequence,DS_States_DataNames),"") -> ND
A118: NE | B118: 1 | C118: =IF(B118<>1,"",SUM(B$89:B118)) -> 30 | D118: 30 | F118: =IF(COUNTA($A$89:$A118)<=MAX(DS_States_Sequence)=TRUE,LOOKUP(COUNTA($A$89:$A118),DS_States_Sequence,DS_States_DataNames),"") -> NE
A119: NH | B119: 1 | C119: =IF(B119<>1,"",SUM(B$89:B119)) -> 31 | D119: 31 | F119: =IF(COUNTA($A$89:$A119)<=MAX(DS_States_Sequence)=TRUE,LOOKUP(COUNTA($A$89:$A119),DS_States_Sequence,DS_States_DataNames),"") -> NH
A120: NJ | B120: 1 | C120: =IF(B120<>1,"",SUM(B$89:B120)) -> 32 | D120: 32 | F120: =IF(COUNTA($A$89:$A120)<=MAX(DS_States_Sequence)=TRUE,LOOKUP(COUNTA($A$89:$A120),DS_States_Sequence,DS_States_DataNames),"") -> NJ
A121: NM | B121: 1 | C121: =IF(B121<>1,"",SUM(B$89:B121)) -> 33 | D121: 33 | F121: =IF(COUNTA($A$89:$A121)<=MAX(DS_States_Sequence)=TRUE,LOOKUP(COUNTA($A$89:$A121),DS_States_Sequence,DS_States_DataNames),"") -> NM
A122: NV | B122: 1 | C122: =IF(B122<>1,"",SUM(B$89:B122)) -> 34 | D122: 34 | F122: =IF(COUNTA($A$89:$A122)<=MAX(DS_States_Sequence)=TRUE,LOOKUP(COUNTA($A$89:$A122),DS_States_Sequence,DS_States_DataNames),"") -> NV
A123: NY | B123: 1 | C123: =IF(B123<>1,"",SUM(B$89:B123)) -> 35 | D123: 35 | F123: =IF(COUNTA($A$89:$A123)<=MAX(DS_States_Sequence)=TRUE,LOOKUP(COUNTA($A$89:$A123),DS_States_Sequence,DS_States_DataNames),"") -> NY
A124: OH | B124: 1 | C124: =IF(B124<>1,"",SUM(B$89:B124)) -> 36 | D124: 36 | F124: =IF(COUNTA($A$89:$A124)<=MAX(DS_States_Sequence)=TRUE,LOOKUP(COUNTA($A$89:$A124),DS_States_Sequence,DS_States_DataNames),"") -> OH
A125: OK | B125: 1 | C125: =IF(B125<>1,"",SUM(B$89:B125)) -> 37 | D125: 37 | F125: =IF(COUNTA($A$89:$A125)<=MAX(DS_States_Sequence)=TRUE,LOOKUP(COUNTA($A$89:$A125),DS_States_Sequence,DS_States_DataNames),"") -> OK
A126: OR | B126: 1 | C126: =IF(B126<>1,"",SUM(B$89:B126)) -> 38 | D126: 38 | F126: =IF(COUNTA($A$89:$A126)<=MAX(DS_States_Sequence)=TRUE,LOOKUP(COUNTA($A$89:$A126),DS_States_Sequence,DS_States_DataNames),"") -> OR
A127: PA | B127: 1 | C127: =IF(B127<>1,"",SUM(B$89:B127)) -> 39 | D127: 39 | F127: =IF(COUNTA($A$89:$A127)<=MAX(DS_States_Sequence)=TRUE,LOOKUP(COUNTA($A$89:$A127),DS_States_Sequence,DS_States_DataNames),"") -> PA
A128: PR | B128: 1 | C128: =IF(B128<>1,"",SUM(B$89:B128)) -> 40 | D128: 40 | F128: =IF(COUNTA($A$89:$A128)<=MAX(DS_States_Sequence)=TRUE,LOOKUP(COUNTA($A$89:$A128),DS_States_Sequence,DS_States_DataNames),"") -> PR
A129: RI | B129: 1 | C129: =IF(B129<>1,"",SUM(B$89:B129)) -> 41 | D129: 41 | F129: =IF(COUNTA($A$89:$A129)<=MAX(DS_States_Sequence)=TRUE,LOOKUP(COUNTA($A$89:$A129),DS_States_Sequence,DS_States_DataNames),"") -> RI
A130: SC | B130: 1 | C130: =IF(B130<>1,"",SUM(B$89:B130)) -> 42 | D130: 42 | F130: =IF(COUNTA($A$89:$A130)<=MAX(DS_States_Sequence)=TRUE,LOOKUP(COUNTA($A$89:$A130),DS_States_Sequence,DS_States_DataNames),"") -> SC
A131: SD | B131: 1 | C131: =IF(B131<>1,"",SUM(B$89:B131)) -> 43 | D131: 43 | F131: =IF(COUNTA($A$89:$A131)<=MAX(DS_States_Sequence)=TRUE,LOOKUP(COUNTA($A$89:$A131),DS_States_Sequence,DS_States_DataNames),"") -> SD
A132: TN | B132: 1 | C132: =IF(B132<>1,"",SUM(B$89:B132)) -> 44 | D132: 44 | F132: =IF(COUNTA($A$89:$A132)<=MAX(DS_States_Sequence)=TRUE,LOOKUP(COUNTA($A$89:$A132),DS_States_Sequence,DS_States_DataNames),"") -> TN
A133: TX | B133: 1 | C133: =IF(B133<>1,"",SUM(B$89:B133)) -> 45 | D133: 45 | F133: =IF(COUNTA($A$89:$A133)<=MAX(DS_States_Sequence)=TRUE,LOOKUP(COUNTA($A$89:$A133),DS_States_Sequence,DS_States_DataNames),"") -> TX
A134: UT | B134: 1 | C134: =IF(B134<>1,"",SUM(B$89:B134)) -> 46 | D134: 46 | F134: =IF(COUNTA($A$89:$A134)<=MAX(DS_States_Sequence)=TRUE,LOOKUP(COUNTA($A$89:$A134),DS_States_Sequence,DS_States_DataNames),"") -> UT
A135: VA | B135: 1 | C135: =IF(B135<>1,"",SUM(B$89:B135)) -> 47 | D135: 47 | F135: =IF(COUNTA($A$89:$A135)<=MAX(DS_States_Sequence)=TRUE,LOOKUP(COUNTA($A$89:$A135),DS_States_Sequence,DS_States_DataNames),"") -> VA
A136: VT | B136: 1 | C136: =IF(B136<>1,"",SUM(B$89:B136)) -> 48 | D136: 48 | F136: =IF(COUNTA($A$89:$A136)<=MAX(DS_States_Sequence)=TRUE,LOOKUP(COUNTA($A$89:$A136),DS_States_Sequence,DS_States_DataNames),"") -> VT
A137: WA | B137: 1 | C137: =IF(B137<>1,"",SUM(B$89:B137)) -> 49 | D137: 49 | F137: =IF(COUNTA($A$89:$A137)<=MAX(DS_States_Sequence)=TRUE,LOOKUP(COUNTA($A$89:$A137),DS_States_Sequence,DS_States_DataNames),"") -> WA
A138: WI | B138: 1 | C138: =IF(B138<>1,"",SUM(B$89:B138)) -> 50 | D138: 50 | F138: =IF(COUNTA($A$89:$A138)<=MAX(DS_States_Sequence)=TRUE,LOOKUP(COUNTA($A$89:$A138),DS_States_Sequence,DS_States_DataNames),"") -> WI
A139: WV | B139: 1 | C139: =IF(B139<>1,"",SUM(B$89:B139)) -> 51 | D139: 51 | F139: =IF(COUNTA($A$89:$A139)<=MAX(DS_States_Sequence)=TRUE,LOOKUP(COUNTA($A$89:$A139),DS_States_Sequence,DS_States_DataNames),"") -> WV
A140: WY | B140: 1 | C140: =IF(B140<>1,"",SUM(B$89:B140)) -> 52 | D140: 52 | F140: =IF(COUNTA($A$89:$A140)<=MAX(DS_States_Sequence)=TRUE,LOOKUP(COUNTA($A$89:$A140),DS_States_Sequence,DS_States_DataNames),"") -> WY
A142: General Contractor Experience Variables | E142: 4.A.3.b.(4) | G142: Score | H142: Count
A143: # of housing developments to list (1 or 2) | E143: 2 | G143: =IF(GCExp_MinDevs_List_Count>=DS_GCExp_MinDevs_List,"Yes","No, "&TEXT(DS_GCExp_MinDevs_List-GCExp_MinDevs_List_Count,"0")&" shy") -> Yes | H143: =IF(AND(IF('General Information'!K125=1,GCExp_Name_of_Development_1<>"",TRUE),IF('General Information'!K126=1,GCExp_Location_of_Development_1<>"",TRUE),IF('General Information'!K127=1,GCExp_Selected_Program_1<>"<select one>",TRUE),IF('General Information'!K128=1,GCExp_Other_Program_1<>"",TRUE),IF('General Information'!K129=1,GCExp_Development_Total_Units_1<>"",TRUE),IF('General Information'!K131=1,GCExp_Davis_Bacon_1<>"<select one>",TRUE)),1,0)+IF(AND(IF('General Information'!K135=1,GCExp_Name_of_Development_2<>"",TRUE),IF('General Information'!K136=1,GCExp_Location_of_Development_2<>"",TRUE),IF('General Information'!K137=1,GCExp_Selected_Program_2<>"<select one>",TRUE),IF('General Information'!K138=1,GCExp_Other_Program_2<>"",TRUE),IF('General Information'!K139=1,GCExp_Development_Total_Units_2<>"",TRUE),IF('General Information'!K141=1,GCExp_Davis_Bacon_2<>"<select one>",TRUE)),1,0) -> 2 | I143: # of complete housing developments listed
A144: Minimum total # of units (%) for each listed development | B144: =ROUNDUP(DS_GCExp_MinUnits_Percent*Total_Units,0) -> 0 | E144: 0.5 | G144: =IF(GCExp_MinUnits_Percent_Count>=DS_GCExp_MinDevs_List,"Yes","No, "&TEXT(DS_GCExp_MinDevs_List-GCExp_MinUnits_Percent_Count,"0")&" shy") -> No, 2 shy | H144: =IF(N(Total_Units)=0,0,IF('General Information'!K129=1,IF(GCExp_Development_Total_Units_1>=DS_GCExp_MinUnits_Percent_ActualUnits,IF(AND(IF('General Information'!K125=1,GCExp_Name_of_Development_1<>"",TRUE),IF('General Information'!K126=1,GCExp_Location_of_Development_1<>"",TRUE),IF('General Information'!K127=1,GCExp_Selected_Program_1<>"<select one>",TRUE),IF('General Information'!K128=1,GCExp_Other_Program_1<>"",TRUE),IF('General Information'!K129=1,GCExp_Development_Total_Units_1<>"",TRUE),IF('General Information'!K131=1,GCExp_Davis_Bacon_1<>"<select one>",TRUE)),1,0),0),0)+IF('General Information'!K139=1,IF(GCExp_Development_Total_Units_2>=DS_GCExp_MinUnits_Percent_ActualUnits,IF(AND(IF('General Information'!K135=1,GCExp_Name_of_Development_2<>"",TRUE),IF('General Information'!K136=1,GCExp_Location_of_Development_2<>"",TRUE),IF('General Information'!K137=1,GCExp_Selected_Program_2<>"<select one>",TRUE),IF('General Information'!K138=1,GCExp_Other_Program_2<>"",TRUE),IF('General Information'!K139=1,GCExp_Development_Total_Units_2<>"",TRUE),IF('General Information'!K141=1,GCExp_Davis_Bacon_2<>"<select one>",TRUE)),1,0),0),0)) -> 0 | I144: # of developments meeting the minimum % of units
A145: Minimum # of Developments completed subject to Davis-Bacon Requirements | E145: 1 | G145: =IF(GCExp_MinDevs_DB_Count>=DS_GCExp_MinDevs_DB,"Yes","No, "&TEXT(DS_GCExp_MinDevs_DB-GCExp_MinDevs_DB_Count,"0")&" shy") -> No, 1 shy | H145: =IF(AND('General Information'!K131=1,GCExp_Davis_Bacon_1="Yes",IF('General Information'!K125=1,GCExp_Name_of_Development_1<>"",TRUE),IF('General Information'!K126=1,GCExp_Location_of_Development_1<>"",TRUE),IF('General Information'!K127=1,GCExp_Selected_Program_1<>"<select one>",TRUE),IF('General Information'!K128=1,GCExp_Other_Program_1<>"",TRUE),IF('General Information'!K129=1,GCExp_Development_Total_Units_1<>"",TRUE),IF('General Information'!K131=1,GCExp_Davis_Bacon_1<>"<select one>",TRUE)),1,0)+IF(AND('General Information'!K141=1,GCExp_Davis_Bacon_2="Yes",IF('General Information'!K135=1,GCExp_Name_of_Development_2<>"",TRUE),IF('General Information'!K136=1,GCExp_Location_of_Development_2<>"",TRUE),IF('General Information'!K137=1,GCExp_Selected_Program_2<>"<select one>",TRUE),IF('General Information'!K138=1,GCExp_Other_Program_2<>"",TRUE),IF('General Information'!K139=1,GCExp_Development_Total_Units_2<>"",TRUE),IF('General Information'!K141=1,GCExp_Davis_Bacon_2<>"<select one>",TRUE)),1,0) -> 0 | I145: # of developments meeting the minimum Davis-Bacon requirements
A147: Management Experience Variables | E147: 4.A.3.d.(2) | F147: <select one>
A148: # of affordable housing developments to list (1 or 2) | E148: 2 | F148: Currently Managing | G148: =IF(Mgmt_Co_Exp_MinDevs_List_Count>=DS_MgmtExp_MinDevs_List,"Yes","No, "&TEXT(DS_MgmtExp_MinDevs_List-Mgmt_Co_Exp_MinDevs_List_Count,"0")&" shy") -> No, 2 shy | H148: =IF(AND(IF('General Information'!K171=1,Mgmt_Co_Exp_first_Dev_name<>"",TRUE),IF('General Information'!K172=1,Mgmt_Co_Exp_first_location<>"",TRUE),IF('General Information'!K173=1,Mgmt_Co_Exp_first_currently_or_formerly_managed<>"<select one>",TRUE),IF('General Information'!K174=1,Mgmt_Co_Exp_first_time<>"",TRUE),IF('General Information'!K175=1,Mgmt_Co_Exp_first_units<>"",TRUE)),1,0)+IF(AND(IF('General Information'!K179=1,Mgmt_Co_Exp_second_Dev_name<>"",TRUE),IF('General Information'!K180=1,Mgmt_Co_Exp_second_location<>"",TRUE),IF('General Information'!K181=1,Mgmt_Co_Exp_second_currently_or_formerly_managed<>"<select one>",TRUE),IF('General Information'!K182=1,Mgmt_Co_Exp_second_time<>"",TRUE),IF('General Information'!K183=1,Mgmt_Co_Exp_second_units<>"",TRUE)),1,0) -> 0 | I148: # of complete housing developments listed
A149: Minimum total # of units (%) | B149: =ROUNDUP(N(Total_Units)*DS_MgmtExp_MinUnits_Percent,0) -> 0 | E149: 0.5 | F149: Formerly Managed
A150: ="# of developments needed with min. total # of units (%) criteria (1"&IF(DS_MgmtExp_MinDevs_List=2," or 2"&")") -> # of developments needed with min. total # of units (%) criteria (1 or 2) | E150: 1 | G150: =IF(Mgmt_Co_Exp_MinUnits_Percent_Count>=DS_MgmtExp_MinDevs_MinUnits,"Yes","No, "&TEXT(DS_MgmtExp_MinDevs_MinUnits-Mgmt_Co_Exp_MinUnits_Percent_Count,"0")&" shy") -> No, 1 shy | H150: =IF(N(Total_Units)=0,0,IF('General Information'!K175=1,IF(Mgmt_Co_Exp_first_units>=DS_Mgmt_Co_Exp_MinUnits,IF(AND(IF('General Information'!K171=1,Mgmt_Co_Exp_first_Dev_name<>"",TRUE),IF('General Information'!K172=1,Mgmt_Co_Exp_first_location<>"",TRUE),IF('General Information'!K173=1,Mgmt_Co_Exp_first_currently_or_formerly_managed<>"<select one>",TRUE),IF('General Information'!K174=1,Mgmt_Co_Exp_first_time<>"",TRUE),IF('General Information'!K175=1,Mgmt_Co_Exp_first_units<>"",TRUE)),1,0),0),0)+IF('General Information'!K183=1,IF(Mgmt_Co_Exp_second_units>=DS_Mgmt_Co_Exp_MinUnits,IF(AND(IF('General Information'!K179=1,Mgmt_Co_Exp_second_Dev_name<>"",TRUE),IF('General Information'!K180=1,Mgmt_Co_Exp_second_location<>"",TRUE),IF('General Information'!K181=1,Mgmt_Co_Exp_second_currently_or_formerly_managed<>"<select one>",TRUE),IF('General Information'!K182=1,Mgmt_Co_Exp_second_time<>"",TRUE),IF('General Information'!K183=1,Mgmt_Co_Exp_second_units<>"",TRUE)),1,0),0),0)) -> 0 | I150: # of developments meeting the minimum unit requirement
A151: Min # of Years for each development listed | E151: 2 | G151: =IF(Mgmt_Co_Exp_MinDevs_time_Count>=DS_MgmtExp_MinDevs_List,"Yes","No, "&TEXT(DS_MgmtExp_MinDevs_List-Mgmt_Co_Exp_MinDevs_time_Count,"0")&" shy") -> No, 2 shy | H151: =IF(AND('General Information'!K174=1,Mgmt_Co_Exp_first_time>=DS_MgmtExp_Yrs,IF('General Information'!K171=1,Mgmt_Co_Exp_first_Dev_name<>"",TRUE),IF('General Information'!K172=1,Mgmt_Co_Exp_first_location<>"",TRUE),IF('General Information'!K173=1,Mgmt_Co_Exp_first_currently_or_formerly_managed<>"<select one>",TRUE),IF('General Information'!K174=1,Mgmt_Co_Exp_first_time<>"",TRUE),IF('General Information'!K175=1,Mgmt_Co_Exp_first_units<>"",TRUE)),1,0)+IF(AND('General Information'!K182=1,Mgmt_Co_Exp_second_time>=DS_MgmtExp_Yrs,IF('General Information'!K179=1,Mgmt_Co_Exp_second_Dev_name<>"",TRUE),IF('General Information'!K180=1,Mgmt_Co_Exp_second_location<>"",TRUE),IF('General Information'!K181=1,Mgmt_Co_Exp_second_currently_or_formerly_managed<>"<select one>",TRUE),IF('General Information'!K182=1,Mgmt_Co_Exp_second_time<>"",TRUE),IF('General Information'!K183=1,Mgmt_Co_Exp_second_units<>"",TRUE)),1,0) -> 0 | I151: # of developments meeting the minimum years of experience requirement
A153: Contact Names | E153: 4.A.3.e.
A154: Authorized Principal Representative contact information | F154: =IF(Authorized_Contact_Middle_Initial<>"",CONCATENATE(Authorized_Contact_First_Name," ",Authorized_Contact_Middle_Initial," ",Authorized_Contact_Last_Name),CONCATENATE(Authorized_Contact_First_Name," ",Authorized_Contact_Last_Name)) -> 
A155: Operational Contact Person Information | F155: =IF(Operational_Contact_Middle_Initial<>"",CONCATENATE(Operational_Contact_First_Name," ",Operational_Contact_Middle_Initial," ",Operational_Contact_Last_Name),CONCATENATE(Operational_Contact_First_Name," ",Operational_Contact_Last_Name)) -> 
A157: All Inclusive List - Development Category (DevCat) | B157: In RFA? | C157: Sequence | D157: Sort | E157: 4.A.4.b.(1) | F157: <select one> | G157: Individual notes used to create an all-inclusive note below, as needed:
A158: New Construction | B158: 1 | C158: =IF(B158<>1,"",SUM(B$158:B158)) -> 1 | D158: 1 | F158: =IF(COUNTA($A$158:$A158)<=MAX(DS_DevCat_Sequence)=TRUE,LOOKUP(COUNTA($A$158:$A158),DS_DevCat_Sequence,DS_DevCat_DataNames),"") -> New Construction | G158: Note (1): | H158: Applicant still needs to select a Development Category at Section 4.A.4.b.(1) above.
A159: Rehabilitation | B159: 1 | C159: =IF(B159<>1,"",SUM(B$158:B159)) -> 2 | D159: 2 | F159: =IF(COUNTA($A$158:$A159)<=MAX(DS_DevCat_Sequence)=TRUE,LOOKUP(COUNTA($A$158:$A159),DS_DevCat_Sequence,DS_DevCat_DataNames),"") -> Rehabilitation | G159: Note (2): | H159: ="Applicant still needs to enter Total Units in Section 4.A.6.a. in the '"&MID(CELL("filename",'Units, Set-Asides, Bldgs'!$A$1),FIND("]",CELL("filename",'Units, Set-Asides, Bldgs'!$A$1))+1,255)&"' worksheet tab. " -> Applicant still needs to enter Total Units in Section 4.A.6.a. in the 'Units, Set-Asides, Bldgs' worksheet tab.
A160: Acquisition and Rehabilitation | B160: 1 | C160: =IF(B160<>1,"",SUM(B$158:B160)) -> 3 | D160: 3 | F160: =IF(COUNTA($A$158:$A160)<=MAX(DS_DevCat_Sequence)=TRUE,LOOKUP(COUNTA($A$158:$A160),DS_DevCat_Sequence,DS_DevCat_DataNames),"") -> Acquisition and Rehabilitation | G160: Note (3): | H160: ="Applicant still needs to complete the Unit Characteristics chart in Section 4.A.4."&'Proposed Development Info'!A69&". below. " -> Applicant still needs to complete the Unit Characteristics chart in Section 4.A.4.d. below.
A161: Redevelopment | C161: =IF(B161<>1,"",SUM(B$158:B161)) ->  | D161: 4 | F161: =IF(COUNTA($A$158:$A161)<=MAX(DS_DevCat_Sequence)=TRUE,LOOKUP(COUNTA($A$158:$A161),DS_DevCat_Sequence,DS_DevCat_DataNames),"") ->  | G161: Note (4): | H161: ="Applicant still needs to enter Development Costs in the '"&MID(CELL("filename",'Pro Forma'!$A$1),FIND("]",CELL("filename",'Pro Forma'!$A$1))+1,255)&"' worksheet tab. This calculation uses the Pro Forma amounts in column 1 ('HC ELIGIBLE COSTS')"&" for 'B. TOTAL ACQUISITION COSTS OF EXISTING DEVELOPMENT (excluding land)' [cell H"&TEXT(ROW('Pro Forma'!H182),"0")&"], 'C. DEVELOPMENT COSTS' [cell H"&TEXT(ROW('Pro Forma'!H184),"0")&"], and 'Developer Fee on Non-Acquisition Costs' [cell H"&TEXT(ROW('Pro Forma'!H190),"0")&"]. " -> Applicant still needs to enter Development Costs in the 'Pro Forma' worksheet tab. This calculation uses the Pro Forma amounts in column 1 ('HC ELIGIBLE COSTS') for 'B. TOTAL ACQUISITION COSTS OF EXISTING DEVELOPMENT (excluding land)' [cell H182], 'C. DEVELOPMENT COSTS' [cell H184], and 'Developer Fee on Non-Acquisition Costs' [cell H190].
A162: Acquisition and Redevelopment | C162: =IF(B162<>1,"",SUM(B$158:B162)) ->  | D162: 5 | E162: Menu Tracking | F162: =IF(COUNTA($A$158:$A162)<=MAX(DS_DevCat_Sequence)=TRUE,LOOKUP(COUNTA($A$158:$A162),DS_DevCat_Sequence,DS_DevCat_DataNames),"") ->  | G162: Note (5): | H162: ="Applicant still needs to enter Development Costs in the '"&MID(CELL("filename",'Pro Forma'!$A$1),FIND("]",CELL("filename",'Pro Forma'!$A$1))+1,255)&"' worksheet tab. This calculation uses the Pro Forma amounts in column 1 ('HC ELIGIBLE COSTS')"&" for 'B. TOTAL ACQUISITION COSTS OF EXISTING DEVELOPMENT (excluding land)' [cell H"&TEXT(ROW('Pro Forma'!H182),"0")&"] and 'Developer Fee on Acquisition Costs' [cell H"&TEXT(ROW('Pro Forma'!H188),"0")&"]. " -> Applicant still needs to enter Development Costs in the 'Pro Forma' worksheet tab. This calculation uses the Pro Forma amounts in column 1 ('HC ELIGIBLE COSTS') for 'B. TOTAL ACQUISITION COSTS OF EXISTING DEVELOPMENT (excluding land)' [cell H182] and 'Developer Fee on Acquisition Costs' [cell H188].
A163: Preservation | C163: =IF(B163<>1,"",SUM(B$158:B163)) ->  | D163: 6 | E163: =IF(OR(IFERROR(MATCH("Rehabilitation",DS_DevCat_DDMenu,0),0)>0,IFERROR(MATCH("Acquisition and Rehabilitation",DS_DevCat_DDMenu,0),0)>0),2,0) -> 2 | F163: =IF(COUNTA($A$158:$A163)<=MAX(DS_DevCat_Sequence)=TRUE,LOOKUP(COUNTA($A$158:$A163),DS_DevCat_Sequence,DS_DevCat_DataNames),"") ->  | G163: Note (6): | H163: ="Applicant still needs to select a Housing Credit Set-Aside Commitment at Section 4.A.6.d.(1) in the '"&MID(CELL("filename",'Units, Set-Asides, Bldgs'!$A$1),FIND("]",CELL("filename",'Units, Set-Asides, Bldgs'!$A$1))+1,255)&"' worksheet tab. " -> Applicant still needs to select a Housing Credit Set-Aside Commitment at Section 4.A.6.d.(1) in the 'Units, Set-Asides, Bldgs' worksheet tab.
A164: Acquisition and Preservation | C164: =IF(B164<>1,"",SUM(B$158:B164)) ->  | D164: 7 | E164: =IF(OR(IFERROR(MATCH("Preservation",DS_DevCat_DDMenu,0),0)>0,IFERROR(MATCH("Acquisition and Preservation",DS_DevCat_DDMenu,0),0)>0),1,0) -> 0 | F164: =IF(COUNTA($A$158:$A164)<=MAX(DS_DevCat_Sequence)=TRUE,LOOKUP(COUNTA($A$158:$A164),DS_DevCat_Sequence,DS_DevCat_DataNames),"") ->  | G164: Note (7): | H164: ="Existing Development was not built at least "&TEXT(DS_Redev_MinAge,"0")&" years ago. " -> Existing Development was not built at least 30 years ago.
G165: Note (8): | H165: Applicant did not (1) identify one of the HUD/RD financing programs, and/or (2) indicate it currently has PBRA.
A166: Development Category Qualifying Criteria and Verification | E166: 4.A.4.b.(2) | G166: Note (9): | H166: The new construction of replacement structures on the same site did not maintain at least the same number of PBRA units.
A167: Does the proposed funding include Housing Credits? | B167: No | G167: Note (10): | H167: Applicant did not (1) indicate the Development is part of a public housing site with a Declaration of Trust, and/or (2) indicate the existing development is currently/previously assited through ACC.
A168: New Construction: | G168: Note (11): | H168: The proposed Development is not providing PBRA and/or ACC on at least 25% of total new units.
A169: Require the Applicant to be Non-Profit to qualify? | B169: Yes | D169: Usually tied only to RFA 104 (Farm/Fish) | G169: Note (12): | H169: ="The Applicant did not indicate it or the General Partner or managing member of the Applicant meets the Rule definition of a Non-Profit at Section 4.A.3.a.("&'General Information'!B38&"). " -> The Applicant did not indicate it or the General Partner or managing member of the Applicant meets the Rule definition of a Non-Profit at Section 4.A.3.a.(3).
A170: (a) Minimum Unit Requirement | B170: 0.5 | D170: Units must be classified as New Construction or Redevelopment | G170: Note (13): | H170: ="The Development did not demonsrate the requirement to have the number of new construction units be "&IF(OR(Development_Category="New Construction",Development_Category="Redevelopment",Development_Category="Acquisition and Redevelopment"),"at least ","less than ")&TEXT(IF(Development_Category="New Construction",B170,IF(OR(Development_Category="Redevelopment",Development_Category="Acquisition and Redevelopment"),B177,IF(OR(Development_Category="Preservation",Development_Category="Acquisition and Preservation"),B191,B214)))*100,"0")&" percent of total units." -> The Development did not demonsrate the requirement to have the number of new construction units be less than 50 percent of total units.
A171: (a) Number of new construction units | B171: =SUM('Proposed Development Info'!H$74:H$82) -> 0
A172: (a) Qualifying Unit Measure | B172: =IF(AND(Development_Category="<select one>",Total_Units=0,total_units_in_unit_desc_chart<Total_Units),"(1) (2) (3)",IF(AND(Development_Category="<select one>",Total_Units=0),"(1) (2)",IF(AND(Development_Category="<select one>",total_units_in_unit_desc_chart<Total_Units),"(1) (3)",IF(AND(Total_Units=0,total_units_in_unit_desc_chart<Total_Units),"(2) (3)",IF(Development_Category="<select one>","(1)",IF(Total_Units=0,"(2)",IF(total_units_in_unit_desc_chart<Total_Units,"(3)",SUM('Proposed Development Info'!$H$74:$H$82)/Total_Units))))))) -> (1) (2) | D172: of the Units are New Construction | G172: =IF($B172="(1) (2) (3)",$H$158&" "&$H$159&" "&$H$160,IF($B172="(1) (2)",$H$158&" "&$H$159,IF($B172="(1) (3)",$H$158&" "&$H$160,IF($B172="(2) (3)",$H$159&" "&$H$160,IF($B172="(1)",$H$158,IF($B172="(2)",$H$159,IF($B172="(3)",$H$160,""))))))) -> Applicant still needs to select a Development Category at Section 4.A.4.b.(1) above. Applicant still needs to enter Total Units in Section 4.A.6.a. in the 'Units, Set-Asides, Bldgs' worksheet tab.
A173: (a) Meets the Minimum Unit Requirement | B173: =IF(Development_Category="New Construction",IF(LEFT(Data1!B172,1)="(","TBD",IF(Data1!B172>=B170,"Yes","No")),"NA") -> NA | D173: 1,2,3,13
A174: Codes for the Notes | B174: =IF(Development_Category="<select one>","(1)","")&IF(Total_Units=0,"(2)","")&IF(OR(total_units_in_unit_desc_chart=0,total_units_in_unit_desc_chart<Total_Units),"(3)","")&IF(AND(DS_NC_NP_Req="Yes",NonProfit_Applicant<>"Yes"),"(12)","")&IF(B173="No","(13)","") -> (1)(2)(3)(12) | D174: 1,2,3,12,13 | G174: =IF(IFERROR(FIND("(1)",$B174)>0,0)>0,DS_DevCat_Note_01,"")&IF(IFERROR(FIND("(2)",$B174)>0,0)>0,DS_DevCat_Note_02,"")&IF(IFERROR(FIND("(3)",$B174)>0,0)>0,DS_DevCat_Note_03,"")&IF(IFERROR(FIND("(4)",$B174)>0,0)>0,DS_DevCat_Note_04,"")&IF(IFERROR(FIND("(5)",$B174)>0,0)>0,DS_DevCat_Note_05,"")&IF(IFERROR(FIND("(6)",$B174)>0,0)>0,DS_DevCat_Note_06,"")&IF(IFERROR(FIND("(7)",$B174)>0,0)>0,DS_DevCat_Note_07,"")&IF(IFERROR(FIND("(8)",$B174)>0,0)>0,DS_DevCat_Note_08,"")&IF(IFERROR(FIND("(9)",$B174)>0,0)>0,DS_DevCat_Note_09,"")&IF(IFERROR(FIND("(10)",$B174)>0,0)>0,DS_DevCat_Note_10,"")&IF(IFERROR(FIND("(11)",$B174)>0,0)>0,DS_DevCat_Note_11,"")&IF(IFERROR(FIND("(12)",$B174)>0,0)>0,DS_DevCat_Note_12,"")&IF(AND(IFERROR(FIND("(1)",$B174)>0,0)=0,IFERROR(FIND("(2)",$B174)>0,0)=0,IFERROR(FIND("(3)",$B174)>0,0)=0,IFERROR(FIND("(4)",$B174)>0,0)=0,IFERROR(FIND("(5)",$B174)>0,0)=0,IFERROR(FIND("(6)",$B174)>0,0)=0,IFERROR(FIND("(7)",$B174)>0,0)=0,IFERROR(FIND("(8)",$B174)>0,0)=0,IFERROR(FIND("(9)",$B174)>0,0)=0,IFERROR(FIND("(10)",$B174)>0,0)=0,IFERROR(FIND("(11)",$B174)>0,0)=0,IFERROR(FIND("(12)",$B174)>0,0)=0),"This area intentionally left blank.","") -> Applicant still needs to select a Development Category at Section 4.A.4.b.(1) above. Applicant still needs to enter Total Units in Section 4.A.6.a. in the 'Units, Set-Asides, Bldgs' worksheet tab. Applicant still needs to complete the Unit Characteristics chart in Section 4.A.4.d. below. The Applicant did not indicate it or the General Partner or managing member of the Applicant meets the Rule definition of a Non-Profit at Section 4.A.3.a.(3).
A176: Redevelopment (w/ or w/o Acquisition): | G176: ="If the Development Category is "&IF(OR(Development_Category="Preservation",Development_Category="Acquisition and Preservation"),"Preservation","Redevelopment")&" (with or without Acquisition), provide the Qualification Letter from HUD or RD, dated within "&IF(OR(Development_Category="Preservation",Development_Category="Acquisition and Preservation"),"six","twelve")&" months of Application Deadline which includes the criteria lised in 4.A.4.b.(2)"&IF(OR(Development_Category="Preservation",Development_Category="Acquisition and Preservation"),"(e)","(c)(iii)")&" as Attachment 6?" -> If the Development Category is Redevelopment (with or without Acquisition), provide the Qualification Letter from HUD or RD, dated within twelve months of Application Deadline which includes the criteria lised in 4.A.4.b.(2)(c)(iii) as Attachment 6? | O176: <select one> | Q176: =IF(OR(Development_Category="Redevelopment",Development_Category="Acquisition and Redevelopment",Development_Category="Preservation",Development_Category="Acquisition and Preservation"),T176,0) -> 0 | R176: =IF(AND(Q176<>0,AND(Data1!K176<>"<select one>",Data1!K176<>"")),Q176,0) -> 0 | S176: =CHOOSE(Q176+1,"Not to be included in this RFA","A REQUIRED input field for this RFA","An OPTIONAL input field for this RFA") -> Not to be included in this RFA | T176: 1
A177: (i) Minimum Unit Requirement | B177: 0.5 | D177: Units must be classified as New Construction or Redevelopment
A178: (i) Number of new construction units | B178: =SUM(All_NC_Units) -> 0
A179: (i) Qualifying Unit Measure | B179: =IF(AND(Development_Category="<select one>",Total_Units=0,total_units_in_unit_desc_chart<Total_Units),"(1) (2) (3)",IF(AND(Development_Category="<select one>",Total_Units=0),"(1) (2)",IF(AND(Development_Category="<select one>",total_units_in_unit_desc_chart<Total_Units),"(1) (3)",IF(AND(Total_Units=0,total_units_in_unit_desc_chart<Total_Units),"(2) (3)",IF(Development_Category="<select one>","(1)",IF(Total_Units=0,"(2)",IF(total_units_in_unit_desc_chart<Total_Units,"(3)",SUM('Proposed Development Info'!$H$74:$H$82)/Total_Units))))))) -> (1) (2) | D179: of the Units are New Construction | G179: =IF($B179="(1) (2) (3)",$H$158&" "&$H$159&" "&$H$160,IF($B179="(1) (2)",$H$158&" "&$H$159,IF($B179="(1) (3)",$H$158&" "&$H$160,IF($B179="(2) (3)",$H$159&" "&$H$160,IF($B179="(1)",$H$158,IF($B179="(2)",$H$159,IF($B179="(3)",$H$160,""))))))) -> Applicant still needs to select a Development Category at Section 4.A.4.b.(1) above. Applicant still needs to enter Total Units in Section 4.A.6.a. in the 'Units, Set-Asides, Bldgs' worksheet tab.
A180: (i) Meets the Minimum Unit Requirement | B180: =IF(OR(Development_Category="Redevelopment",Development_Category="Acquisition and Redevelopment"),IF(LEFT(Data1!B179,1)="(","TBD",IF(Data1!B179>=B177,"Yes","No")),"NA") -> NA | D180: 1,2,3,13
A181: (ii) Minimum Age Requirement | B181: =IF(OR(Development_Category="Redevelopment",Development_Category="Acquisition and Redevelopment"),IF(N(Age_of_Development)>=DS_Redev_MinAge,"Yes","No"),"NA") -> NA | D181: 7 | E181: 30 | F181: Minimum Age for Redevelopment
A182: (ii) Meets one of the identified HUD/RD financing programs, or has PBRA, AND… | B182: =IF(OR(Development_Category="Redevelopment",Development_Category="Acquisition and Redevelopment"),IF(OR(AND(DevCat_Redev_FinProgram<>"<select one>",DevCat_Redev_FinProgram<>""),N(PBRA_Units_Currently)>0),"Yes","No"),"NA") -> NA | D182: ="8 Rule Chapter 67-"&IF(Funding!L$189=1,"21","48")&".002(99)(a): Definition of Redevelopment" -> 8 Rule Chapter 67-48.002(99)(a): Definition of Redevelopment
A183: (ii) Future PBRA units will be at least same # | B183: =IF(OR(Development_Category="Redevelopment",Development_Category="Acquisition and Redevelopment"),IF(N(PBRA_Units_Currently)+N(ACC_Units_Currently)<=N(PBRA_Units_Future)+N(ACC_Units_Future),"Yes","No"),"NA") -> NA | D183: ="9 Rule Chapter 67-"&IF(Funding!L$189=1,"21","48")&".002(99)(a): Definition of Redevelopment" -> 9 Rule Chapter 67-48.002(99)(a): Definition of Redevelopment | G183: can be zero before and after
A184: (ii) Existing/Demolished PHA development is assisted through ACC | B184: =IF(OR(Development_Category="Redevelopment",Development_Category="Acquisition and Redevelopment"),IF(AND(DevCat_PHA_DOT="Yes",N(ACC_Units_Currently)>0),"Yes","No"),"NA") -> NA | D184: ="10 Rule Chapter 67-"&IF(Funding!L$189=1,"21","48")&".002(99)(b): Definition of Redevelopment" -> 10 Rule Chapter 67-48.002(99)(b): Definition of Redevelopment
A185: (ii) Provides new PBRA/ACC at least 25% of total units | B185: =IF(OR(Development_Category="Redevelopment",Development_Category="Acquisition and Redevelopment"),IF(N(PBRA_Units_Future)+N(ACC_Units_Future)>=ROUNDUP(25%*B178,0),"Yes","No"),"NA") -> NA | D185: ="11 Rule Chapter 67-"&IF(Funding!L$189=1,"21","48")&".002(99)(b): Definition of Redevelopment" -> 11 Rule Chapter 67-48.002(99)(b): Definition of Redevelopment
A186: =" (ii) Meets the Rule Definition (67-"&IF(Funding!L$189=1,"21","48")&".002) for Redevelopment?" -> (ii) Meets the Rule Definition (67-48.002) for Redevelopment? | B186: =IF(OR(Development_Category="Redevelopment",Development_Category="Acquisition and Redevelopment"),IF(AND(N(Age_of_Development)>=DS_Redev_MinAge,OR(AND(Data1!B182="Yes",Data1!B183="Yes"),Data1!B185="Yes")),"Yes","No"),"Not a Redevelopment development") -> Not a Redevelopment development | F186: 8,9,10,11
A187: (iii) Provided the Qualification Letter | B187: =IF(OR(Development_Category="Redevelopment",Development_Category="Acquisition and Redevelopment"),IF(DS_DevCat_Qual_Letter="Yes","Yes",IF(DS_DevCat_Qual_Letter="No","No","Need Response at 4.A.4.b.(2)")),"NA") -> NA
A188: Codes for the Notes | B188: =IF(Development_Category="<select one>","(1)","")&IF(Total_Units=0,"(2)","")&IF(total_units_in_unit_desc_chart<Total_Units,"(3)","")&IF(N(Age_of_Development)<DS_Redev_MinAge,"(7)","")&IF(OR(AND(DevCat_Redev_FinProgram<>"<select one>",DevCat_Redev_FinProgram<>""),N(PBRA_Units_Currently)>0),"","(8)")&IF(N(PBRA_Units_Currently)+N(ACC_Units_Currently)<=N(PBRA_Units_Future)+N(ACC_Units_Future),"","(9)")&IF(AND(DevCat_PHA_DOT="Yes",N(ACC_Units_Currently)>0),"","(10)")&IF(N(PBRA_Units_Future)+N(ACC_Units_Future)>=ROUNDUP(25%*B178,0),"","(11)")&IF(B180="No","(13)","") -> (1)(2)(7)(8)(10) | D188: 1,2,3,7,8,9,10,11,13 | G188: =IF(IFERROR(FIND("(1)",$B188)>0,0)>0,DS_DevCat_Note_01,"")&IF(IFERROR(FIND("(2)",$B188)>0,0)>0,DS_DevCat_Note_02,"")&IF(IFERROR(FIND("(3)",$B188)>0,0)>0,DS_DevCat_Note_03,"")&IF(IFERROR(FIND("(4)",$B188)>0,0)>0,DS_DevCat_Note_04,"")&IF(IFERROR(FIND("(5)",$B188)>0,0)>0,DS_DevCat_Note_05,"")&IF(IFERROR(FIND("(6)",$B188)>0,0)>0,DS_DevCat_Note_06,"")&IF(IFERROR(FIND("(7)",$B188)>0,0)>0,DS_DevCat_Note_07,"")&IF(IFERROR(FIND("(8)",$B188)>0,0)>0,DS_DevCat_Note_08,"")&IF(IFERROR(FIND("(9)",$B188)>0,0)>0,DS_DevCat_Note_09,"")&IF(IFERROR(FIND("(10)",$B188)>0,0)>0,DS_DevCat_Note_10,"")&IF(IFERROR(FIND("(11)",$B188)>0,0)>0,DS_DevCat_Note_11,"")&IF(AND(IFERROR(FIND("(1)",$B188)>0,0)=0,IFERROR(FIND("(2)",$B188)>0,0)=0,IFERROR(FIND("(3)",$B188)>0,0)=0,IFERROR(FIND("(4)",$B188)>0,0)=0,IFERROR(FIND("(5)",$B188)>0,0)=0,IFERROR(FIND("(6)",$B188)>0,0)=0,IFERROR(FIND("(7)",$B188)>0,0)=0,IFERROR(FIND("(8)",$B188)>0,0)=0,IFERROR(FIND("(9)",$B188)>0,0)=0,IFERROR(FIND("(10)",$B188)>0,0)=0,IFERROR(FIND("(11)",$B188)>0,0)=0),"This area intentionally left blank.","") -> Applicant still needs to select a Development Category at Section 4.A.4.b.(1) above. Applicant still needs to enter Total Units in Section 4.A.6.a. in the 'Units, Set-Asides, Bldgs' worksheet tab. Existing Development was not built at least 30 years ago. Applicant did not (1) identify one of the HUD/RD financing programs, and/or (2) indicate it currently has PBRA. Applicant did not (1) indicate the Development is part of a public housing site with a Declaration of Trust, and/or (2) indicate the existing development is currently/previously assited through ACC.
A190: Preservation (w/ or w/o Acquisition): | G190: If the Development Category is Preservation (with or without Acquisition), is the existing affordable housing development at least 75 percent occupied as of the Application Deadline? | O190: <select one> | Q190: =IF(OR(Development_Category="Preservation",Development_Category="Acquisition and Preservation"),T190,0) -> 0 | R190: =IF(AND(Q190<>0,AND(Data1!K190<>"<select one>",Data1!K190<>"")),Q190,0) -> 0 | S190: =CHOOSE(Q190+1,"Not to be included in this RFA","A REQUIRED input field for this RFA","An OPTIONAL input field for this RFA") -> Not to be included in this RFA | T190: 1
A191: (a) Minimum Unit Requirement | B191: 0.5 | D191: Units must be classified as New Construction or Redevelopment
A192: (a) Number of new construction units | B192: =SUM('Proposed Development Info'!H$74:H$82) -> 0
A193: (a) Qualifying Unit Measure | B193: =IF(AND(Development_Category="<select one>",Total_Units=0,total_units_in_unit_desc_chart<Total_Units),"(1) (2) (3)",IF(AND(Development_Category="<select one>",Total_Units=0),"(1) (2)",IF(AND(Development_Category="<select one>",total_units_in_unit_desc_chart<Total_Units),"(1) (3)",IF(AND(Total_Units=0,total_units_in_unit_desc_chart<Total_Units),"(2) (3)",IF(Development_Category="<select one>","(1)",IF(Total_Units=0,"(2)",IF(total_units_in_unit_desc_chart<Total_Units,"(3)",SUM('Proposed Development Info'!$H$74:$H$82)/Total_Units))))))) -> (1) (2) | D193: of the Units are New Construction | G193: =IF($B193="(1) (2) (3)",$H$158&" "&$H$159&" "&$H$160,IF($B193="(1) (2)",$H$158&" "&$H$159,IF($B193="(1) (3)",$H$158&" "&$H$160,IF($B193="(2) (3)",$H$159&" "&$H$160,IF($B193="(1)",$H$158,IF($B193="(2)",$H$159,IF($B193="(3)",$H$160,""))))))) -> Applicant still needs to select a Development Category at Section 4.A.4.b.(1) above. Applicant still needs to enter Total Units in Section 4.A.6.a. in the 'Units, Set-Asides, Bldgs' worksheet tab.
A194: (a) Meets the Minimum Unit Requirement | B194: =IF(OR(Development_Category="Preservation",Development_Category="Acquisition and Preservation"),IF(LEFT(Data1!B193,1)="(","TBD",IF(Data1!B193<B191,"Yes","No")),"NA") -> NA | D194: 1,2,3,13
A195: =" (b) Meets the Rule Definition (67-"&IF(Funding!L$189=1,"21","48")&".002) for Preservation & Rehab?" -> (b) Meets the Rule Definition (67-48.002) for Preservation & Rehab? | B195: =IF(OR(Development_Category="Preservation",Development_Category="Acquisition and Preservation"),IF(Data1!O$213="Yes","Yes",IF(Data1!O$213="No","No","Need Response at 4.A.4.b.(2)")),"Not a Preservation development") -> Not a Preservation development
A196: (c)(i) Minimuim Rehabilitation Expenditures | B196: 0.2 | D196: of adjusted basis of acquired building
A197: (c)(i) Rehabilitation Expenditures | B197: =IF(AND(Development_Category="<select one>",N(Development_Cost_eligible)-N(Acquisition_eligible)+N(Developer_fee_non_acq_eligible)=0),"(1) (4)",IF(Development_Category="<select one>","(1)",IF(N(Development_Cost_eligible)-N(Acquisition_eligible)+N(Developer_fee_non_acq_eligible)=0,"(4)",N(Development_Cost_eligible)-N(Acquisition_eligible)+N(Developer_fee_non_acq_eligible)))) -> (1) (4) | D197: 1,4
A198: (c)(i) Adjusted Basis of Acquired Building | B198: =IF(N('Pro Forma'!H$182)=0,"(5)",'Pro Forma'!H$182+'Pro Forma'!H$188) -> (5) | D198: 5
A199: =" (c)(i) "&TEXT(B196,"0%")&" of adjusted basis of acquired building" -> (c)(i) 20% of adjusted basis of acquired building | B199: =ROUND(IF(LEFT(B198,1)="(",0,B198)*B196,2) -> 0
A200: (c)(i) Ratio of Rehab Exp to 20% of Adj Basis | B200: =IF(OR(LEFT(B197,1)="(",LEFT(B198,1)="("),IF(IFERROR(FIND("(1)",B197)>0,0)>0,"(1)","")&IF(IFERROR(FIND("(4)",B197)>0,0)>0,"(4)","")&IF(IFERROR(FIND("(5)",B198)>0,0)>0,"(5)",""),B197/B199) -> (1)(4)(5) | D200: 1,4,5 | G200: =IF($B200="(1) (4) (5)",$H$158&" "&$H$161&" "&$H$162,IF($B200="(1) (4)",$H$158&" "&$H$161,IF($B200="(1) (5)",$H$158&" "&$H$162,IF($B200="(4) (5)",$H$161&" "&$H$162,IF($B200="(1)",$H$158,IF($B200="(4)",$H$161,IF($B200="(5)",$H$162,""))))))) -> 
A201: (c)(i) Meets the Rehab Expenditure requirement? | B201: =IF(AND(DS_HC_Funding="Yes",OR(Development_Category="Preservation",Development_Category="Acquisition and Preservation")),IF(AND(IF(LEFT(Data1!B197,1)="(",0,Data1!B197)>0,IF(LEFT(Data1!B197,1)="(",0,Data1!B197)>=B199),"Yes","No"),"NA") -> NA
A202: (c)(ii) Minimum Qualified Basis of Rehabilitatin Expenditures | B202: 25000 | D202: per low-income unit
A203: (c)(ii) Qualifying Basis Boost Factor | B203: =IF(Name_of_proposed_Development="",1,IF(Development_Category="<select one>","(1)",IF(OR(AND(Multiphase_subsequent<>"Yes",App_number_first_phase<>""),AND(Small_Area_DDA="Yes",SADDA_ZCTA_1<>""),AND(DDA_nonmetro="Yes",DDA_nonmetro_name=County),AND(QCT="Yes",QCT_number<>""),AND(Geo_Area_of_Opp_boost="Yes",GAO_Number1<>""),LGAO_Number="Yes",PHA_Area_of_Opp_boost="Yes"),1.3,1))) -> 1 | D203: 1,
A204: (c)(ii) Total Set-Aside Percentage | B204: =IF(Name_of_proposed_Development="","",IF(AND(Development_Category="<select one>",Minimum_SetAside_per_Sec_42="<select one>"),"(1) (6)",IF(Development_Category="<select one>","(1)",IF(Minimum_SetAside_per_Sec_42="<select one>","(6)",IF(Minimum_SetAside_per_Sec_42="Average Income Test",AIT_HC_SA_Percent,NonAIT_HC_SA_Percent))))) ->  | D204: 1,6
A205: (c)(ii) Number of HC Set-Aside Units | B205: =IF(Name_of_proposed_Development="","",IF(AND(Development_Category="<select one>",Minimum_SetAside_per_Sec_42="<select one>"),"(1) (6)",IF(Development_Category="<select one>","(1)",IF(Minimum_SetAside_per_Sec_42="<select one>","(6)",IF(Minimum_SetAside_per_Sec_42="Average Income Test",total_HC_units_avg_inc,total_HC_units_NonAIT))))) ->  | D205: 1,6
A206: (c)(ii) Qualified Basis of Rehabilitatin Expenditures | B206: =IF(AND(Development_Category="<select one>",N(Development_Cost_eligible)-N(Acquisition_eligible)+N(Developer_fee_non_acq_eligible)=0,Minimum_SetAside_per_Sec_42="<select one>"),"(1) (4) (6)",IF(AND(Development_Category="<select one>",N(Development_Cost_eligible)-N(Acquisition_eligible)+N(Developer_fee_non_acq_eligible)=0),"(1) (4)",IF(AND(Development_Category="<select one>",Minimum_SetAside_per_Sec_42="<select one>"),"(1) (6)",IF(AND(N(Development_Cost_eligible)-N(Acquisition_eligible)+N(Developer_fee_non_acq_eligible)=0,Minimum_SetAside_per_Sec_42="<select one>"),"(4) (6)",IF(Development_Category="<select one>","(1)",IF(N(Development_Cost_eligible)-N(Acquisition_eligible)+N(Developer_fee_non_acq_eligible)=0,"(4)",IF(Minimum_SetAside_per_Sec_42="<select one>","(6)",IF(OR(AND(Funding!$L$199<>0,Multiphase_subsequent="Yes"),AND(Funding!$L$204<>0,Small_Area_DDA="Yes"),AND(Funding!$L$212<>0,DDA_nonmetro="Yes"),AND(Funding!$L$217<>0,QCT="Yes"),AND(Funding!$L$226<>0,Geo_Area_of_Opp_boost="Yes"),AND(Funding!$L$242<>0,Funding!E$242="Yes"),AND(Funding!$L$245<>0,Funding!E$245="Yes")),1.3,1)*B197*MAX(N(B204),0)))))))) -> (1) (4) (6) | D206: 1,4,6
A207: (c)(ii) Qualified Basis of Rehabilitatin Expenditures Per HC Unit | B207: =IF(LEFT(B206,1)="(",B206,IF(MAX('Units, Set-Asides, Bldgs'!F$33,total_HC_units_avg_inc)=0,0,B206/MAX('Units, Set-Asides, Bldgs'!F$33,total_HC_units_avg_inc))) -> (1) (4) (6) | G207: =IF($B206="(1) (4) (6)",$H$158&" "&$H$161&" "&$H$163,IF($B206="(1) (4)",$H$158&" "&$H$161,IF($B206="(1) (6)",$H$158&" "&$H$163,IF($B206="(4) (6)",$H$161&" "&$H$163,IF($B206="(1)",$H$158,IF($B206="(4)",$H$161,IF($B206="(6)",$H$163,""))))))) -> Applicant still needs to select a Development Category at Section 4.A.4.b.(1) above. Applicant still needs to enter Development Costs in the 'Pro Forma' worksheet tab. This calculation uses the Pro Forma amounts in column 1 ('HC ELIGIBLE COSTS') for 'B. TOTAL ACQUISITION COSTS OF EXISTING DEVELOPMENT (excluding land)' [cell H182], 'C. DEVELOPMENT COSTS' [cell H184], and 'Developer Fee on Non-Acquisition Costs' [cell H190]. Applicant still needs to select a Housing Credit Set-Aside Commitment at Section 4.A.6.d.(1) in the 'Units, Set-Asides, Bldgs' worksheet tab.
A208: (c)(ii) Meets the Qualified Basis requirement? | B208: =IF(AND(DS_HC_Funding="Yes",OR(Development_Category="Preservation",Development_Category="Acquisition and Preservation")),IF(IF(LEFT(Data1!B207,1)="(",0,Data1!B207)>=B202,"Yes","No"),"NA") -> NA
A209: (d) Meets the minimum occupancy rate for existing development? | B209: =IF(OR(Development_Category="Preservation",Development_Category="Acquisition and Preservation"),IF(Data1!O$190="Yes","Yes",IF(Data1!O$190="No","No","Need Response at 4.A.4.b.(2)")),"NA") -> NA
A210: (e) Provided the Qualification Letter | B210: =IF(OR(Development_Category="Preservation",Development_Category="Acquisition and Preservation"),IF(Data1!O$176="Yes","Yes",IF(Data1!O$176="No","No","Need Response at 4.A.4.b.(2)")),"NA") -> NA
... 486 more rows

Sheet Data2 (hidden)
A1: Development Finance Data Tab:
A3: Automating Funding Tab to Pro Forma Tab
B4: FHFC Sources | D4: Original Request Amounts | F4: Source Label | G4: Max Rqst Amts | I4: Adjusted Request Amounts | Q4: Adjusted Sources
A5: =IF(B5="Workforce",1,IF(B5="SAIL",2,IF(B5="ELI",3,IF(B5="HOME",4,IF(B5="HOME-ARP",5,IF(B5="Grant",6,IF(B5="NHTF",7,IF(B5="TBD",8,"")))))))) ->  | B5: =IF(N(Workforce_Request_Amount)>0,"Workforce",IF(N(SAIL_Request_Amount)>0,"SAIL",IF(N(ELI_Request_Amount)>0,"ELI",IF(N(HOME_Request_Amount)>0,"HOME",IF(N(HOME_ARP_Request_Amount)>0,"HOME-ARP",IF(N(Grant_Request_Amount)>0,"Grant",IF(OR(N(NHTF_Request_Amount)>0,N(NHTF_Funding_Combined_Units)>0),"NHTF",IF(N(TBD_Request_Amount)>0,"TBD","")))))))) ->  | D5: =CHOOSE(N(A5)+1,"",N(Workforce_Request_Amount),N(SAIL_Request_Amount),N(ELI_Request_Amount),N(HOME_Request_Amount),N(HOME_ARP_Request_Amount),N(Grant_Request_Amount),N(NHTF_Request_Amount)+N(NHTF_Funding_Combined_Units),N(TBD_Request_Amount),"") ->  | F5: =CHOOSE(N(A5)+1,"Enter request on Funding Tab","FHFC - Workforce","FHFC - SAIL","FHFC - SAIL ELI","FHFC - HOME","FHFC - HOME-ARP","FHFC - Grant","FHFC - NHTF","FHFC - TBD","") -> Enter request on Funding Tab | G5: =CHOOSE(N(A5)+1,"",N(Max_Workforce),N(Max_SAIL),N(Max_ELI),N(Max_HOME),N(Max_ARP),N(Max_Grant),IF(Funding!N140>0,N(Max_NHTF),N(NHTF_Funding_Combined_Units)),N(Max_TBD),"") ->  | I5: =IF(N(DS_FHFC_Source_1_Amt)>N(DS_FHFC_Source_1_Max_Amt),"The "&TEXT(DS_FHFC_Source_1_Name,"0")&" request amount has been adjusted to the Maximum of "&TEXT(N(DS_FHFC_Source_1_Max_Amt),"$#,##0")&".","") ->  | Q5: =IF(N(DS_FHFC_Source_1_Amt)>N(DS_FHFC_Source_1_Max_Amt),DS_FHFC_Source_1_Label,"") -> 
A6: =IF(B6="Workforce",1,IF(B6="SAIL",2,IF(B6="ELI",3,IF(B6="HOME",4,IF(B6="HOME-ARP",5,IF(B6="Grant",6,IF(B6="NHTF",7,IF(B6="TBD",8,"")))))))) ->  | B6: =CHOOSE(N(A5)+1,"",IF(N(SAIL_Request_Amount)>0,"SAIL",IF(N(ELI_Request_Amount)>0,"ELI",IF(N(HOME_Request_Amount)>0,"HOME",IF(N(HOME_ARP_Request_Amount)>0,"HOME-ARP",IF(N(Grant_Request_Amount)>0,"Grant",IF(OR(N(NHTF_Request_Amount)>0,N(NHTF_Funding_Combined_Units)>0),"NHTF",IF(N(TBD_Request_Amount)>0,"TBD",""))))))),IF(N(ELI_Request_Amount)>0,"ELI",IF(N(HOME_Request_Amount)>0,"HOME",IF(N(HOME_ARP_Request_Amount)>0,"HOME-ARP",IF(N(Grant_Request_Amount)>0,"Grant",IF(OR(N(NHTF_Request_Amount)>0,N(NHTF_Funding_Combined_Units)>0),"NHTF",IF(N(TBD_Request_Amount)>0,"TBD","")))))),IF(N(HOME_Request_Amount)>0,"HOME",IF(N(HOME_ARP_Request_Amount)>0,"HOME-ARP",IF(N(Grant_Request_Amount)>0,"Grant",IF(OR(N(NHTF_Request_Amount)>0,N(NHTF_Funding_Combined_Units)>0),"NHTF",IF(N(TBD_Request_Amount)>0,"TBD",""))))),IF(N(HOME_ARP_Request_Amount)>0,"HOME-ARP",IF(N(Grant_Request_Amount)>0,"Grant",IF(OR(N(NHTF_Request_Amount)>0,N(NHTF_Funding_Combined_Units)>0),"NHTF",IF(N(TBD_Request_Amount)>0,"TBD","")))),IF(N(Grant_Request_Amount)>0,"Grant",IF(OR(N(NHTF_Request_Amount)>0,N(NHTF_Funding_Combined_Units)>0)>0,"NHTF",IF(N(TBD_Request_Amount)>0,"TBD",""))),IF(OR(N(NHTF_Request_Amount)>0,N(NHTF_Funding_Combined_Units)>0),"NHTF",IF(N(TBD_Request_Amount)>0,"TBD","")),IF(N(TBD_Request_Amount)>0,"TBD",""),"") ->  | D6: =CHOOSE(N(A6)+1,"",N(Workforce_Request_Amount),N(SAIL_Request_Amount),N(ELI_Request_Amount),N(HOME_Request_Amount),N(HOME_ARP_Request_Amount),N(Grant_Request_Amount),N(NHTF_Request_Amount)+N(NHTF_Funding_Combined_Units),N(TBD_Request_Amount),"") ->  | F6: =CHOOSE(N(A6)+1,"Enter request on Funding Tab","FHFC - Workforce","FHFC - SAIL","FHFC - SAIL ELI","FHFC - HOME","FHFC - HOME-ARP","FHFC - Grant","FHFC - NHTF","FHFC - TBD","") -> Enter request on Funding Tab | G6: =CHOOSE(N(A6)+1,"",N(Max_Workforce),N(Max_SAIL),N(Max_ELI),N(Max_HOME),N(Max_ARP),N(Max_Grant),IF(Funding!N141>0,N(Max_NHTF),N(NHTF_Funding_Combined_Units)),N(Max_TBD),"") ->  | I6: =IF(N(DS_FHFC_Source_2_Amt)>N(DS_FHFC_Source_2_Max_Amt),"The "&TEXT(DS_FHFC_Source_2_Name,"0")&" request amount has been adjusted to the Maximum of "&TEXT(N(DS_FHFC_Source_2_Max_Amt),"$#,##0")&".","") ->  | Q6: =IF(N(DS_FHFC_Source_2_Amt)>N(DS_FHFC_Source_2_Max_Amt),DS_FHFC_Source_2_Label,"") -> 
B7: =CHOOSE(N(A6)+1,"",IF(N(SAIL_Request_Amount)>0,"SAIL",IF(N(ELI_Request_Amount)>0,"ELI",IF(N(HOME_Request_Amount)>0,"HOME",IF(N(HOME_ARP_Request_Amount)>0,"HOME-ARP",IF(N(Grant_Request_Amount)>0,"Grant",IF(OR(N(NHTF_Request_Amount)>0,N(NHTF_Funding_Combined_Units)>0),"NHTF",IF(N(TBD_Request_Amount)>0,"TBD",""))))))),IF(N(ELI_Request_Amount)>0,"ELI",IF(N(HOME_Request_Amount)>0,"HOME",IF(N(HOME_ARP_Request_Amount)>0,"HOME-ARP",IF(N(Grant_Request_Amount)>0,"Grant",IF(OR(N(NHTF_Request_Amount)>0,N(NHTF_Funding_Combined_Units)>0),"NHTF",IF(N(TBD_Request_Amount)>0,"TBD","")))))),IF(N(HOME_Request_Amount)>0,"HOME",IF(N(HOME_ARP_Request_Amount)>0,"HOME-ARP",IF(N(Grant_Request_Amount)>0,"Grant",IF(OR(N(NHTF_Request_Amount)>0,N(NHTF_Funding_Combined_Units)>0),"NHTF",IF(N(TBD_Request_Amount)>0,"TBD",""))))),IF(N(HOME_ARP_Request_Amount)>0,"HOME-ARP",IF(N(Grant_Request_Amount)>0,"Grant",IF(OR(N(NHTF_Request_Amount)>0,N(NHTF_Funding_Combined_Units)>0),"NHTF",IF(N(TBD_Request_Amount)>0,"TBD","")))),IF(N(Grant_Request_Amount)>0,"Grant",IF(OR(N(NHTF_Request_Amount)>0,N(NHTF_Funding_Combined_Units)>0),"NHTF",IF(N(TBD_Request_Amount)>0,"TBD",""))),IF(OR(N(NHTF_Request_Amount)>0,N(NHTF_Funding_Combined_Units)>0),"NHTF",IF(N(TBD_Request_Amount)>0,"TBD","")),IF(N(TBD_Request_Amount)>0,"TBD",""),"") ->  | D7: =CHOOSE(N(A7)+1,"",N(Workforce_Request_Amount),N(SAIL_Request_Amount),N(ELI_Request_Amount),N(HOME_Request_Amount),N(HOME_ARP_Request_Amount),N(Grant_Request_Amount),N(NHTF_Request_Amount)+N(NHTF_Funding_Combined_Units),N(TBD_Request_Amount),"") ->  | F7: =CHOOSE(N(A7)+1,"Enter request on Funding Tab","FHFC - Workforce","FHFC - SAIL","FHFC - SAIL ELI","FHFC - HOME","FHFC - HOME-ARP","FHFC - Grant","FHFC - NHTF","FHFC - TBD","") -> Enter request on Funding Tab | G7: =CHOOSE(N(A7)+1,"",N(Max_Workforce),N(Max_SAIL),N(Max_ELI),N(Max_HOME),N(Max_ARP),N(Max_Grant),IF(Funding!N142>0,N(Max_NHTF),N(NHTF_Funding_Combined_Units)),N(Max_TBD),"") ->  | I7: =IF(N(DS_FHFC_Source_3_Amt)>N(DS_FHFC_Source_3_Max_Amt),"The "&TEXT(DS_FHFC_Source_3_Name,"0")&" request amount has been adjusted to the Maximum of "&TEXT(N(DS_FHFC_Source_3_Max_Amt),"$#,##0")&".","") ->  | Q7: =IF(N(DS_FHFC_Source_3_Amt)>N(DS_FHFC_Source_3_Max_Amt),DS_FHFC_Source_3_Label,"") -> 
B8: =CHOOSE(N(A7)+1,"",IF(N(SAIL_Request_Amount)>0,"SAIL",IF(N(ELI_Request_Amount)>0,"ELI",IF(N(HOME_Request_Amount)>0,"HOME",IF(N(HOME_ARP_Request_Amount)>0,"HOME-ARP",IF(N(Grant_Request_Amount)>0,"Grant",IF(OR(N(NHTF_Request_Amount)>0,N(NHTF_Funding_Combined_Units)>0),"NHTF",IF(N(TBD_Request_Amount)>0,"TBD",""))))))),IF(N(ELI_Request_Amount)>0,"ELI",IF(N(HOME_Request_Amount)>0,"HOME",IF(N(HOME_ARP_Request_Amount)>0,"HOME-ARP",IF(N(Grant_Request_Amount)>0,"Grant",IF(OR(N(NHTF_Request_Amount)>0,N(NHTF_Funding_Combined_Units)>0),"NHTF",IF(N(TBD_Request_Amount)>0,"TBD","")))))),IF(N(HOME_Request_Amount)>0,"HOME",IF(N(HOME_ARP_Request_Amount)>0,"HOME-ARP",IF(N(Grant_Request_Amount)>0,"Grant",IF(OR(N(NHTF_Request_Amount)>0,N(NHTF_Funding_Combined_Units)>0),"NHTF",IF(N(TBD_Request_Amount)>0,"TBD",""))))),IF(N(HOME_ARP_Request_Amount)>0,"HOME-ARP",IF(N(Grant_Request_Amount)>0,"Grant",IF(OR(N(NHTF_Request_Amount)>0,N(NHTF_Funding_Combined_Units)>0),"NHTF",IF(N(TBD_Request_Amount)>0,"TBD","")))),IF(N(Grant_Request_Amount)>0,"Grant",IF(OR(N(NHTF_Request_Amount)>0,N(NHTF_Funding_Combined_Units)>0),"NHTF",IF(N(TBD_Request_Amount)>0,"TBD",""))),IF(OR(N(NHTF_Request_Amount)>0,N(NHTF_Funding_Combined_Units)>0),"NHTF",IF(N(TBD_Request_Amount)>0,"TBD","")),IF(N(TBD_Request_Amount)>0,"TBD",""),"") ->  | D8: =CHOOSE(N(A8)+1,"",N(Workforce_Request_Amount),N(SAIL_Request_Amount),N(ELI_Request_Amount),N(HOME_Request_Amount),N(HOME_ARP_Request_Amount),N(Grant_Request_Amount),N(NHTF_Request_Amount)+N(NHTF_Funding_Combined_Units),N(TBD_Request_Amount),"") ->  | F8: =CHOOSE(N(A8)+1,"Enter request on Funding Tab","FHFC - Workforce","FHFC - SAIL","FHFC - SAIL ELI","FHFC - HOME","FHFC - HOME-ARP","FHFC - Grant","FHFC - NHTF","FHFC - TBD","") -> Enter request on Funding Tab | G8: =CHOOSE(N(A8)+1,"",N(Max_Workforce),N(Max_SAIL),N(Max_ELI),N(Max_HOME),N(Max_ARP),N(Max_Grant),IF(Funding!N143>0,N(Max_NHTF),N(NHTF_Funding_Combined_Units)),N(Max_TBD),"") ->  | I8: =IF(N(DS_FHFC_Source_4_Amt)>N(DS_FHFC_Source_4_Max_Amt),"The "&TEXT(DS_FHFC_Source_4_Name,"0")&" request amount has been adjusted to the Maximum of "&TEXT(N(DS_FHFC_Source_4_Max_Amt),"$#,##0")&".","") ->  | Q8: =IF(N(DS_FHFC_Source_4_Amt)>N(DS_FHFC_Source_4_Max_Amt),DS_FHFC_Source_4_Label,"") -> 
A10: **9% HC | B10: =IF(N(Competitive_HC_Request_Amount)>0,"Competitive HC","") ->  | D10: =IF(B10="Competitive HC",N(Competitive_HC_Request_Amount),"") ->  | F10: =IF(B10="Competitive HC","FHFC - 9% HC","Enter Request on Funding Tab") -> Enter Request on Funding Tab | G10: =IF(B10="Competitive HC",N(Max_Competitive_HC),"") ->  | I10: =IF(N(DS_FHFC_9HC_Amt)>N(DS_FHFC_9HC_Max_Amt),"The Competitve HC request amount has been adjusted to the Maximum of "&TEXT(N(DS_FHFC_9HC_Max_Amt),"$#,##0")&".","") ->  | Q10: =IF(N(DS_FHFC_9HC_Amt)>N(DS_FHFC_9HC_Max_Amt),DS_FHFC_9HC_Label,"") -> 
A13: 7.82 | B13: 13.55 | D13: 31.82 | F13: 16.18 | G13: 14.55 | I13: 13.82 | J13: 16.91 | L13: 8.09 | M13: 12.82 | O13: 21 | Q13: 21 | S13: 8.09 | T13: 12.82 | V13: 8.09 | W13: 12.82 | Y13: 8.09 | Z13: 12.82 | AB13: 8.09 | AC13: 12.82 | AE13: 7.82 | AF13: 15 | AH13: 31.82 | AJ13: 16.18 | AK13: 14.55 | AM13: 13.82 | AN13: 16.91 | AP13: 8.09 | AQ13: 12.82 | AS13: 19.91 | AU13: 19.91 | AW13: 8.09 | AX13: 12.82 | AZ13: 8.09 | BA13: 12.82 | BC13: 8.09 | BD13: 12.82 | BF13: 8.09 | BG13: 12.82
A17: EXCEPT FOR GAO'S, THIS 2022 DATA IS NOT BEING REFERENCED GOING FORWARD. IT WILL BE PLACE HOLDER FOR 2024 DATA FOR THE MOMENT.
A19: DS_ZCTAs_2022 | D19: DS_NonMetro_DDAs_2022 | F19: DS_Metro_QCTs_2022 | I19: DS_NonMetro_QCTs_2022 | L19: DS_GAOs_effective2.1.22 | O19: DS_2022_County_QCTs | Q19: DS_2022_County_GAOs | S19: DS_2022_ZCTAs_Sorted | V19: DS_2022_Metro_QCTs_Sorted | Y19: DS_2022_NonMetro_QCTs_Sorted | AE19: DS_ZCTAs_2023 | AH19: DS_NonMetro_DDAs_2023 | AJ19: DS_Metro_QCTs_2023 | AM19: DS_NonMetro_QCTs_2023 | AP19: DS_GAOs_effective2.1.23 | AS19: DS_2023_County_QCTs | AU19: DS_2023_County_GAOs | AW19: DS_2023_ZCTAs_Sorted | AZ19: DS_2023_Metro_QCTs_Sorted | BC19: DS_2023_NonMetro_QCTs_Sorted | BI19: Proximity List (Section 4.A.5.f.) | BP19: DS_Proximity_DDMenu
G20: DS_2022_Metro_QCT_Counties | J20: DS_2022_NonMetro_QCT_Counties | M20: DS_2022_GAO_Counties | Q20: Geo_Area_of_Opp_boost | AB20: DS_2022_GAO_QCTs_Sorted | AK20: DS_2023_Metro_QCT_Counties | AN20: DS_2023_NonMetro_QCT_Counties | AQ20: DS_2023_GAO_Counties | AU20: Geo_Area_of_Opp_boost | BF20: DS_2023_GAO_QCTs
G21: ↓ | J21: ↓ | M21: ↓ | O21: =IF(NOT(ISNA(VLOOKUP(County,DS_2022_Metro_QCT_Counties,1,FALSE))),"Metro",IF(NOT(ISNA(VLOOKUP(County,DS_2022_NonMetro_QCT_Counties,1,FALSE))),"Non-Metro",IF(AND(ISNA(VLOOKUP(County,DS_2022_NonMetro_QCT_Counties,1,FALSE)),ISNA(VLOOKUP(County,DS_2022_Metro_QCT_Counties,1,FALSE))),"Neither",""))) -> Neither | Q21: =Geo_Area_of_Opp_boost -> <select from menu> | AB21: ↓ | AK21: ↓ | AN21: ↓ | AQ21: ↓ | AS21: =IF(NOT(ISNA(VLOOKUP(County,DS_2023_Metro_QCT_Counties,1,FALSE))),"Metro",IF(NOT(ISNA(VLOOKUP(County,DS_2023_NonMetro_QCT_Counties,1,FALSE))),"Non-Metro",IF(AND(ISNA(VLOOKUP(County,DS_2023_NonMetro_QCT_Counties,1,FALSE)),ISNA(VLOOKUP(County,DS_2023_Metro_QCT_Counties,1,FALSE))),"Neither",""))) -> Neither | AU21: =Geo_Area_of_Opp_boost -> <select from menu> | BF21: ↓
A22: 2022 ZCTAs | D22: 2022 Non-Metro DDA's | F22: 2022 Metro QCT's | I22: 2022 Non-Metro QCT's | L22: GAO's effective 2/1/22 | O22: ="2022 QCTs in "&County -> 2022 QCTs in <select one> | Q22: ="2022 GAOs in "&County -> 2022 GAOs in <select one> | S22: 2022 ZCTAs sorted by ZCTA | V22: 2022 Metro QCT's sorted by QCT | Y22: 2022 Non-Metro QCT's sorted by QCT | AB22: All 2022 GAOs sorted by QCT | AE22: 2023 ZCTAs | AH22: 2023 Non-Metro DDA's | AJ22: 2023 Metro QCT's | AM22: 2023 Non-Metro QCT's | AP22: GAO's effective 2/1/23 | AS22: ="2023 QCTs in "&County -> 2023 QCTs in <select one> | AU22: ="2023 GAOs in "&County -> 2023 GAOs in <select one> | AW22: 2023 ZCTAs sorted by ZCTA | AZ22: 2023 Metro QCT's sorted by QCT | BC22: 2023 Non-Metro QCT's sorted by QCT | BF22: All 2023 GAOs sorted by QCT | BI22: County | BJ22: File # | BK22: Development | BL22: Latitude Coordinates (Decimal Degrees) | BM22: Longitude Coordinates (Decimal Degrees) | BN22: Demo | BO22: 30 units or less? | BP22: <select one> | BQ22: Demographic | BR22: Latitude, Longitude Coordinates | BS22: Less than 31 units?
A23: 32605 | B23: Alachua | D23: Bradford | F23: 2 | G23: Alachua | I23: 1103 | J23: Columbia | L23: 5 | M23: Alachua | O23: =IFERROR(IF($O$21="Metro",INDEX($F$23:$F$748,SMALL(IF((County=$G$23:$G$748),MATCH(ROW($G$23:$G$748),ROW($G$23:$G$748)),""),ROWS($A$23:A23))),INDEX($I$23:$I$52,SMALL(IF((County=$J$23:$J$52),MATCH(ROW($J$23:$J$52),ROW($J$23:$J$52)),""),ROWS($A$23:A23)))),"") ->  | Q23: =IFERROR(IF($Q$21="Yes",INDEX($L$23:$L$2323,SMALL(IF((County=$M$23:$M$2323),MATCH(ROW($M$23:$M$2323),ROW($M$23:$M$2323)),""),ROWS($A$23:A23))),""),"") ->  | S23: 32003 | T23: Clay | V23: 1 | W23: Duval | Y23: 2 | Z23: Hendry | AB23: 1 | AC23: Escambia | AE23: 32403 | AF23: Bay | AH23: Bradford | AJ23: 2.01 | AK23: Alachua | AM23: 400 | AN23: Columbia | AS23: =IFERROR(IF($O$21="Metro",INDEX($AJ$23:$AJ$748,SMALL(IF((County=$AK$23:$AK$748),MATCH(ROW($AK$23:$AK$748),ROW($AK$23:$AK$748)),""),ROWS($A$23:$A23))),INDEX($AM$23:$AM$58,SMALL(IF((County=$AN$23:$AN$58),MATCH(ROW($AN$23:$AN$58),ROW($AN$23:$AN$58)),""),ROWS($A$23:$A23)))),"") ->  | AU23: =IFERROR(IF($Q$21="Yes",INDEX($AP$23:$AP$2323,SMALL(IF((County=$AQ$23:$AQ$2323),MATCH(ROW($AQ$23:$AQ$2323),ROW($AQ$23:$AQ$2323)),""),ROWS($A$23:$A23))),""),"") ->  | AW23: 32003 | AX23: Clay | AZ23: 1.01 | BA23: Duval | BC23: 0 | BD23: Liberty | BI23: Alachua | BJ23: 2020-304C | BK23: Arbours at Merrillwood I | BL23: 29.794628 | BM23: -82.486897 | BN23: E | BO23: N | BP23: =BI23&" - "&BK23 -> Alachua - Arbours at Merrillwood I | BQ23: =IF(BN23="F","Family",IF(BN23="E","Elderly, Non-ALF",IF(BN23="ALF","Elderly, Assisted Living Facility",IF(BN23="W","Workforce","")))) -> Elderly, Non-ALF | BR23: ="("&BL23&", "&BM23&")" -> (29.794628, -82.486897) | BS23: =IF(BO23="N",">30",IF(BO23="Y","<31","")) -> >30
A24: 32606 | B24: Alachua | D24: Calhoun | F24: 8.06 | G24: Alachua | I24: 1104 | J24: Columbia | L24: 10 | M24: Alachua | O24: =IFERROR(IF($O$21="Metro",INDEX($F$23:$F$748,SMALL(IF((County=$G$23:$G$748),MATCH(ROW($G$23:$G$748),ROW($G$23:$G$748)),""),ROWS($A$23:A24))),INDEX($I$23:$I$52,SMALL(IF((County=$J$23:$J$52),MATCH(ROW($J$23:$J$52),ROW($J$23:$J$52)),""),ROWS($A$23:A24)))),"") ->  | Q24: =IFERROR(IF($Q$21="Yes",INDEX($L$23:$L$2323,SMALL(IF((County=$M$23:$M$2323),MATCH(ROW($M$23:$M$2323),ROW($M$23:$M$2323)),""),ROWS($A$23:A24))),""),"") ->  | S24: 32081 | T24: St. Johns | V24: 1.01 | W24: Hillsborough | Y24: 3 | Z24: Hendry | AB24: 1 | AC24: Glades | AE24: 32407 | AF24: Bay | AH24: Calhoun | AJ24: 2.02 | AK24: Alachua | AM24: 200 | AN24: DeSoto | AS24: =IFERROR(IF($O$21="Metro",INDEX($AJ$23:$AJ$748,SMALL(IF((County=$AK$23:$AK$748),MATCH(ROW($AK$23:$AK$748),ROW($AK$23:$AK$748)),""),ROWS($A$23:$A24))),INDEX($AM$23:$AM$58,SMALL(IF((County=$AN$23:$AN$58),MATCH(ROW($AN$23:$AN$58),ROW($AN$23:$AN$58)),""),ROWS($A$23:$A24)))),"") ->  | AU24: =IFERROR(IF($Q$21="Yes",INDEX($AP$23:$AP$2323,SMALL(IF((County=$AQ$23:$AQ$2323),MATCH(ROW($AQ$23:$AQ$2323),ROW($AQ$23:$AQ$2323)),""),ROWS($A$23:$A24))),""),"") ->  | AW24: 32079 | AX24: Clay | AZ24: 1.01 | BA24: Hillsborough | BC24: 103 | BD24: Washington | BI24: Alachua | BJ24: 2022-068C | BK24: Dogwood Village | BL24: 29.643354 | BM24: -82.305537 | BN24: F | BO24: N | BP24: Alachua - Dogwood Village | BQ24: Family | BR24: (29.643354, -82.305537) | BS24: >30
A25: 32403 | B25: Bay | D25: Columbia | F25: 9.01 | G25: Alachua | I25: 102 | J25: DeSoto | L25: 11 | M25: Alachua | O25: =IFERROR(IF($O$21="Metro",INDEX($F$23:$F$748,SMALL(IF((County=$G$23:$G$748),MATCH(ROW($G$23:$G$748),ROW($G$23:$G$748)),""),ROWS($A$23:A25))),INDEX($I$23:$I$52,SMALL(IF((County=$J$23:$J$52),MATCH(ROW($J$23:$J$52),ROW($J$23:$J$52)),""),ROWS($A$23:A25)))),"") ->  | Q25: =IFERROR(IF($Q$21="Yes",INDEX($L$23:$L$2323,SMALL(IF((County=$M$23:$M$2323),MATCH(ROW($M$23:$M$2323),ROW($M$23:$M$2323)),""),ROWS($A$23:A25))),""),"") ->  | S25: 32082 | T25: St. Johns | V25: 1.02 | W25: Hillsborough | Y25: 6 | Z25: Hendry | AB25: 1 | AC25: Hendry | AE25: 32410 | AF25: Bay | AH25: Columbia | AJ25: 3.01 | AK25: Alachua | AM25: 301 | AN25: DeSoto | AS25: =IFERROR(IF($O$21="Metro",INDEX($AJ$23:$AJ$748,SMALL(IF((County=$AK$23:$AK$748),MATCH(ROW($AK$23:$AK$748),ROW($AK$23:$AK$748)),""),ROWS($A$23:$A25))),INDEX($AM$23:$AM$58,SMALL(IF((County=$AN$23:$AN$58),MATCH(ROW($AN$23:$AN$58),ROW($AN$23:$AN$58)),""),ROWS($A$23:$A25)))),"") ->  | AU25: =IFERROR(IF($Q$21="Yes",INDEX($AP$23:$AP$2323,SMALL(IF((County=$AQ$23:$AQ$2323),MATCH(ROW($AQ$23:$AQ$2323),ROW($AQ$23:$AQ$2323)),""),ROWS($A$23:$A25))),""),"") ->  | AW25: 32081 | AX25: St. Johns | AZ25: 1.02 | BA25: Duval | BC25: 104 | BD25: Washington | BI25: Alachua | BJ25: 2020-411BS | BK25: Royal Park Apartments | BL25: 29.655552 | BM25: -82.381442 | BN25: F | BO25: N | BP25: Alachua - Royal Park Apartments | BQ25: Family | BR25: (29.655552, -82.381442) | BS25: >30
A26: 32407 | B26: Bay | D26: DeSoto | F26: 15.14 | G26: Alachua | I26: 103.01 | J26: DeSoto | L26: 12.01 | M26: Alachua | O26: =IFERROR(IF($O$21="Metro",INDEX($F$23:$F$748,SMALL(IF((County=$G$23:$G$748),MATCH(ROW($G$23:$G$748),ROW($G$23:$G$748)),""),ROWS($A$23:A26))),INDEX($I$23:$I$52,SMALL(IF((County=$J$23:$J$52),MATCH(ROW($J$23:$J$52),ROW($J$23:$J$52)),""),ROWS($A$23:A26)))),"") ->  | Q26: =IFERROR(IF($Q$21="Yes",INDEX($L$23:$L$2323,SMALL(IF((County=$M$23:$M$2323),MATCH(ROW($M$23:$M$2323),ROW($M$23:$M$2323)),""),ROWS($A$23:A26))),""),"") ->  | S26: 32092 | T26: St. Johns | V26: 1.03 | W26: Manatee | Y26: 102 | Z26: DeSoto | AB26: 1 | AC26: Marion | AE26: 32903 | AF26: Brevard | AH26: DeSoto | AJ26: 6 | AK26: Alachua | AM26: 302 | AN26: DeSoto | AS26: =IFERROR(IF($O$21="Metro",INDEX($AJ$23:$AJ$748,SMALL(IF((County=$AK$23:$AK$748),MATCH(ROW($AK$23:$AK$748),ROW($AK$23:$AK$748)),""),ROWS($A$23:$A26))),INDEX($AM$23:$AM$58,SMALL(IF((County=$AN$23:$AN$58),MATCH(ROW($AN$23:$AN$58),ROW($AN$23:$AN$58)),""),ROWS($A$23:$A26)))),"") ->  | AU26: =IFERROR(IF($Q$21="Yes",INDEX($AP$23:$AP$2323,SMALL(IF((County=$AQ$23:$AQ$2323),MATCH(ROW($AQ$23:$AQ$2323),ROW($AQ$23:$AQ$2323)),""),ROWS($A$23:$A26))),""),"") ->  | AW26: 32082 | AX26: St. Johns | AZ26: 1.02 | BA26: Hillsborough | BC26: 200 | BD26: DeSoto | BI26: Baker | BJ26: 2022-244H | BK26: Sandcastle Manor | BL26: 30.25507 | BM26: -82.1274 | BN26: F | BO26: Y | BP26: Baker - Sandcastle Manor | BQ26: Family | BR26: (30.25507, -82.1274) | BS26: <31
A27: 32410 | B27: Bay | D27: Dixie | F27: 15.15 | G27: Alachua | I27: 103.02 | J27: DeSoto | L27: 12.02 | M27: Alachua | O27: =IFERROR(IF($O$21="Metro",INDEX($F$23:$F$748,SMALL(IF((County=$G$23:$G$748),MATCH(ROW($G$23:$G$748),ROW($G$23:$G$748)),""),ROWS($A$23:A27))),INDEX($I$23:$I$52,SMALL(IF((County=$J$23:$J$52),MATCH(ROW($J$23:$J$52),ROW($J$23:$J$52)),""),ROWS($A$23:A27)))),"") ->  | Q27: =IFERROR(IF($Q$21="Yes",INDEX($L$23:$L$2323,SMALL(IF((County=$M$23:$M$2323),MATCH(ROW($M$23:$M$2323),ROW($M$23:$M$2323)),""),ROWS($A$23:A27))),""),"") ->  | S27: 32124 | T27: Volusia | V27: 1.05 | W27: Manatee | Y27: 103.01 | Z27: DeSoto | AB27: 1 | AC27: Martin | AE27: 32904 | AF27: Brevard | AH27: Dixie | AJ27: 8.06 | AK27: Alachua | AM27: 202 | AN27: Dixie | AS27: =IFERROR(IF($O$21="Metro",INDEX($AJ$23:$AJ$748,SMALL(IF((County=$AK$23:$AK$748),MATCH(ROW($AK$23:$AK$748),ROW($AK$23:$AK$748)),""),ROWS($A$23:$A27))),INDEX($AM$23:$AM$58,SMALL(IF((County=$AN$23:$AN$58),MATCH(ROW($AN$23:$AN$58),ROW($AN$23:$AN$58)),""),ROWS($A$23:$A27)))),"") ->  | AU27: =IFERROR(IF($Q$21="Yes",INDEX($AP$23:$AP$2323,SMALL(IF((County=$AQ$23:$AQ$2323),MATCH(ROW($AQ$23:$AQ$2323),ROW($AQ$23:$AQ$2323)),""),ROWS($A$23:$A27))),""),"") ->  | AW27: 32092 | AX27: St. Johns | AZ27: 1.03 | BA27: Manatee | BC27: 200 | BD27: Hendry | BI27: Bay | BJ27: 2021-127C | BK27: Fletcher Black II | BL27: 30.167531 | BM27: -85.671896 | BN27: F | BO27: N | BP27: Bay - Fletcher Black II | BQ27: Family | BR27: (30.167531, -85.671896) | BS27: >30
A28: 32903 | B28: Brevard | D28: Franklin | F28: 15.16 | G28: Alachua | I28: 9602 | J28: Hamilton | L28: 12.03 | M28: Alachua | O28: =IFERROR(IF($O$21="Metro",INDEX($F$23:$F$748,SMALL(IF((County=$G$23:$G$748),MATCH(ROW($G$23:$G$748),ROW($G$23:$G$748)),""),ROWS($A$23:A28))),INDEX($I$23:$I$52,SMALL(IF((County=$J$23:$J$52),MATCH(ROW($J$23:$J$52),ROW($J$23:$J$52)),""),ROWS($A$23:A28)))),"") ->  | Q28: =IFERROR(IF($Q$21="Yes",INDEX($L$23:$L$2323,SMALL(IF((County=$M$23:$M$2323),MATCH(ROW($M$23:$M$2323),ROW($M$23:$M$2323)),""),ROWS($A$23:A28))),""),"") ->  | S28: 32128 | T28: Volusia | V28: 1.06 | W28: Manatee | Y28: 103.02 | Z28: DeSoto | AB28: 1.01 | AC28: Collier | AE28: 32908 | AF28: Brevard | AH28: Franklin | AJ28: 8.08 | AK28: Alachua | AM28: 201 | AN28: Hamilton | AS28: =IFERROR(IF($O$21="Metro",INDEX($AJ$23:$AJ$748,SMALL(IF((County=$AK$23:$AK$748),MATCH(ROW($AK$23:$AK$748),ROW($AK$23:$AK$748)),""),ROWS($A$23:$A28))),INDEX($AM$23:$AM$58,SMALL(IF((County=$AN$23:$AN$58),MATCH(ROW($AN$23:$AN$58),ROW($AN$23:$AN$58)),""),ROWS($A$23:$A28)))),"") ->  | AU28: =IFERROR(IF($Q$21="Yes",INDEX($AP$23:$AP$2323,SMALL(IF((County=$AQ$23:$AQ$2323),MATCH(ROW($AQ$23:$AQ$2323),ROW($AQ$23:$AQ$2323)),""),ROWS($A$23:$A28))),""),"") ->  | AW28: 32102 | AX28: Lake | AZ28: 1.05 | BA28: Manatee | BC28: 200 | BD28: Madison | BI28: Bay | BJ28: 2021-099C | BK28: Southview Estates | BL28: 30.163023 | BM28: -85.610294 | BN28: E | BO28: N | BP28: Bay - Southview Estates | BQ28: Elderly, Non-ALF | BR28: (30.163023, -85.610294) | BS28: >30
A29: 32904 | B29: Brevard | D29: Glades | F29: 15.17 | G29: Alachua | I29: 9603 | J29: Hamilton | L29: 15.14 | M29: Alachua | O29: =IFERROR(IF($O$21="Metro",INDEX($F$23:$F$748,SMALL(IF((County=$G$23:$G$748),MATCH(ROW($G$23:$G$748),ROW($G$23:$G$748)),""),ROWS($A$23:A29))),INDEX($I$23:$I$52,SMALL(IF((County=$J$23:$J$52),MATCH(ROW($J$23:$J$52),ROW($J$23:$J$52)),""),ROWS($A$23:A29)))),"") ->  | Q29: =IFERROR(IF($Q$21="Yes",INDEX($L$23:$L$2323,SMALL(IF((County=$M$23:$M$2323),MATCH(ROW($M$23:$M$2323),ROW($M$23:$M$2323)),""),ROWS($A$23:A29))),""),"") ->  | S29: 32129 | T29: Volusia | V29: 1.09 | W29: Miami-Dade | Y29: 1102 | Z29: Madison | AB29: 1.01 | AC29: Manatee | AE29: 32925 | AF29: Brevard | AH29: Glades | AJ29: 9.01 | AK29: Alachua | AM29: 202 | AN29: Hamilton | AS29: =IFERROR(IF($O$21="Metro",INDEX($AJ$23:$AJ$748,SMALL(IF((County=$AK$23:$AK$748),MATCH(ROW($AK$23:$AK$748),ROW($AK$23:$AK$748)),""),ROWS($A$23:$A29))),INDEX($AM$23:$AM$58,SMALL(IF((County=$AN$23:$AN$58),MATCH(ROW($AN$23:$AN$58),ROW($AN$23:$AN$58)),""),ROWS($A$23:$A29)))),"") ->  | AU29: =IFERROR(IF($Q$21="Yes",INDEX($AP$23:$AP$2323,SMALL(IF((County=$AQ$23:$AQ$2323),MATCH(ROW($AQ$23:$AQ$2323),ROW($AQ$23:$AQ$2323)),""),ROWS($A$23:$A29))),""),"") ->  | AW29: 32124 | AX29: Volusia | AZ29: 1.06 | BA29: Manatee | BC29: 200 | BD29: Washington | BI29: Bradford | BJ29: 2021-284H | BK29: Sandcastle Pines | BL29: 29.949075 | BM29: -82.120084 | BN29: F | BO29: Y | BP29: Bradford - Sandcastle Pines | BQ29: Family | BR29: (29.949075, -82.120084) | BS29: <31
A30: 32908 | B30: Brevard | D30: Hamilton | F30: 15.19 | G30: Alachua | I30: 9701.02 | J30: Hardee | L30: 15.17 | M30: Alachua | O30: =IFERROR(IF($O$21="Metro",INDEX($F$23:$F$748,SMALL(IF((County=$G$23:$G$748),MATCH(ROW($G$23:$G$748),ROW($G$23:$G$748)),""),ROWS($A$23:A30))),INDEX($I$23:$I$52,SMALL(IF((County=$J$23:$J$52),MATCH(ROW($J$23:$J$52),ROW($J$23:$J$52)),""),ROWS($A$23:A30)))),"") ->  | Q30: =IFERROR(IF($Q$21="Yes",INDEX($L$23:$L$2323,SMALL(IF((County=$M$23:$M$2323),MATCH(ROW($M$23:$M$2323),ROW($M$23:$M$2323)),""),ROWS($A$23:A30))),""),"") ->  | S30: 32133 | T30: Marion | V30: 1.26 | W30: Miami-Dade | Y30: 1103 | Z30: Columbia | AB30: 1.01 | AC30: Palm Beach | AE30: 32934 | AF30: Brevard | AH30: Gulf | AJ30: 15.14 | AK30: Alachua | AM30: 201 | AN30: Hardee | AS30: =IFERROR(IF($O$21="Metro",INDEX($AJ$23:$AJ$748,SMALL(IF((County=$AK$23:$AK$748),MATCH(ROW($AK$23:$AK$748),ROW($AK$23:$AK$748)),""),ROWS($A$23:$A30))),INDEX($AM$23:$AM$58,SMALL(IF((County=$AN$23:$AN$58),MATCH(ROW($AN$23:$AN$58),ROW($AN$23:$AN$58)),""),ROWS($A$23:$A30)))),"") ->  | AU30: =IFERROR(IF($Q$21="Yes",INDEX($AP$23:$AP$2323,SMALL(IF((County=$AQ$23:$AQ$2323),MATCH(ROW($AQ$23:$AQ$2323),ROW($AQ$23:$AQ$2323)),""),ROWS($A$23:$A30))),""),"") ->  | AW30: 32128 | AX30: Volusia | AZ30: 1.09 | BA30: Miami-Dade | BC30: 201 | BD30: Hamilton | BI30: Bradford | BJ30: 2020-335C | BK30: Weldon Crossings | BL30: 29.953864 | BM30: -82.11935 | BN30: F | BO30: N | BP30: Bradford - Weldon Crossings | BQ30: Family | BR30: (29.953864, -82.11935) | BS30: >30
A31: 32925 | B31: Brevard | D31: Hardee | F31: 15.21 | G31: Alachua | I31: 9702.01 | J31: Hardee | L31: 16.03 | M31: Alachua | O31: =IFERROR(IF($O$21="Metro",INDEX($F$23:$F$748,SMALL(IF((County=$G$23:$G$748),MATCH(ROW($G$23:$G$748),ROW($G$23:$G$748)),""),ROWS($A$23:A31))),INDEX($I$23:$I$52,SMALL(IF((County=$J$23:$J$52),MATCH(ROW($J$23:$J$52),ROW($J$23:$J$52)),""),ROWS($A$23:A31)))),"") ->  | Q31: =IFERROR(IF($Q$21="Yes",INDEX($L$23:$L$2323,SMALL(IF((County=$M$23:$M$2323),MATCH(ROW($M$23:$M$2323),ROW($M$23:$M$2323)),""),ROWS($A$23:A31))),""),"") ->  | S31: 32162 | T31: Sumter | V31: 2 | W31: Alachua | Y31: 1103.02 | Z31: Madison | AB31: 1.02 | AC31: Collier | AE31: 32937 | AF31: Brevard | AH31: Hamilton | AJ31: 15.15 | AK31: Alachua | AM31: 301 | AN31: Hardee | AS31: =IFERROR(IF($O$21="Metro",INDEX($AJ$23:$AJ$748,SMALL(IF((County=$AK$23:$AK$748),MATCH(ROW($AK$23:$AK$748),ROW($AK$23:$AK$748)),""),ROWS($A$23:$A31))),INDEX($AM$23:$AM$58,SMALL(IF((County=$AN$23:$AN$58),MATCH(ROW($AN$23:$AN$58),ROW($AN$23:$AN$58)),""),ROWS($A$23:$A31)))),"") ->  | AU31: =IFERROR(IF($Q$21="Yes",INDEX($AP$23:$AP$2323,SMALL(IF((County=$AQ$23:$AQ$2323),MATCH(ROW($AQ$23:$AQ$2323),ROW($AQ$23:$AQ$2323)),""),ROWS($A$23:$A31))),""),"") ->  | AW31: 32129 | AX31: Volusia | AZ31: 1.24 | BA31: Miami-Dade | BC31: 201 | BD31: Hardee | BI31: Charlotte | BJ31: 2022-070C | BK31: The Verandas of Punta Gorda III | BL31: 26.917735 | BM31: -82.042009 | BN31: F | BO31: N | BP31: Charlotte - The Verandas of Punta Gorda III | BQ31: Family | BR31: (26.917735, -82.042009) | BS31: >30
A32: 32934 | B32: Brevard | D32: Hendry | F32: 16.03 | G32: Alachua | I32: 2 | J32: Hendry | L32: 16.04 | M32: Alachua | O32: =IFERROR(IF($O$21="Metro",INDEX($F$23:$F$748,SMALL(IF((County=$G$23:$G$748),MATCH(ROW($G$23:$G$748),ROW($G$23:$G$748)),""),ROWS($A$23:A32))),INDEX($I$23:$I$52,SMALL(IF((County=$J$23:$J$52),MATCH(ROW($J$23:$J$52),ROW($J$23:$J$52)),""),ROWS($A$23:A32)))),"") ->  | Q32: =IFERROR(IF($Q$21="Yes",INDEX($L$23:$L$2323,SMALL(IF((County=$M$23:$M$2323),MATCH(ROW($M$23:$M$2323),ROW($M$23:$M$2323)),""),ROWS($A$23:A32))),""),"") ->  | S32: 32169 | T32: Volusia | V32: 2 | W32: Duval | Y32: 1104 | Z32: Columbia | AB32: 1.02 | AC32: Palm Beach | AE32: 32940 | AF32: Brevard | AH32: Hardee | AJ32: 15.16 | AK32: Alachua | AM32: 302 | AN32: Hardee | AS32: =IFERROR(IF($O$21="Metro",INDEX($AJ$23:$AJ$748,SMALL(IF((County=$AK$23:$AK$748),MATCH(ROW($AK$23:$AK$748),ROW($AK$23:$AK$748)),""),ROWS($A$23:$A32))),INDEX($AM$23:$AM$58,SMALL(IF((County=$AN$23:$AN$58),MATCH(ROW($AN$23:$AN$58),ROW($AN$23:$AN$58)),""),ROWS($A$23:$A32)))),"") ->  | AU32: =IFERROR(IF($Q$21="Yes",INDEX($AP$23:$AP$2323,SMALL(IF((County=$AQ$23:$AQ$2323),MATCH(ROW($AQ$23:$AQ$2323),ROW($AQ$23:$AQ$2323)),""),ROWS($A$23:$A32))),""),"") ->  | AW32: 32133 | AX32: Marion | AZ32: 1.26 | BA32: Miami-Dade | BC32: 201 | BD32: Putnam | BI32: Clay | BJ32: 2020-239C | BK32: Bryce Landing | BL32: 30.095058 | BM32: -81.826986 | BN32: F | BO32: N | BP32: Clay - Bryce Landing | BQ32: Family | BR32: (30.095058, -81.826986) | BS32: >30
A33: 32937 | B33: Brevard | D33: Holmes | F33: 16.04 | G33: Alachua | I33: 3 | J33: Hendry | L33: 17.01 | M33: Alachua | O33: =IFERROR(IF($O$21="Metro",INDEX($F$23:$F$748,SMALL(IF((County=$G$23:$G$748),MATCH(ROW($G$23:$G$748),ROW($G$23:$G$748)),""),ROWS($A$23:A33))),INDEX($I$23:$I$52,SMALL(IF((County=$J$23:$J$52),MATCH(ROW($J$23:$J$52),ROW($J$23:$J$52)),""),ROWS($A$23:A33)))),"") ->  | Q33: =IFERROR(IF($Q$21="Yes",INDEX($L$23:$L$2323,SMALL(IF((County=$M$23:$M$2323),MATCH(ROW($M$23:$M$2323),ROW($M$23:$M$2323)),""),ROWS($A$23:A33))),""),"") ->  | S33: 32176 | T33: Volusia | V33: 2 | W33: Marion | Y33: 2102 | Z33: Jackson | AB33: 1.07 | AC33: Miami-Dade | AE33: 32951 | AF33: Brevard | AH33: Hendry | AJ33: 15.17 | AK33: Alachua | AM33: 401 | AN33: Hardee | AS33: =IFERROR(IF($O$21="Metro",INDEX($AJ$23:$AJ$748,SMALL(IF((County=$AK$23:$AK$748),MATCH(ROW($AK$23:$AK$748),ROW($AK$23:$AK$748)),""),ROWS($A$23:$A33))),INDEX($AM$23:$AM$58,SMALL(IF((County=$AN$23:$AN$58),MATCH(ROW($AN$23:$AN$58),ROW($AN$23:$AN$58)),""),ROWS($A$23:$A33)))),"") ->  | AU33: =IFERROR(IF($Q$21="Yes",INDEX($AP$23:$AP$2323,SMALL(IF((County=$AQ$23:$AQ$2323),MATCH(ROW($AQ$23:$AQ$2323),ROW($AQ$23:$AQ$2323)),""),ROWS($A$23:$A33))),""),"") ->  | AW33: 32162 | AX33: Sumter | AZ33: 2 | BA33: Duval | BC33: 202 | BD33: Dixie | BI33: Clay | BJ33: 2021-059C | BK33: Molly Crossing | BL33: 30.115016 | BM33: -81.828085 | BN33: E | BO33: N | BP33: Clay - Molly Crossing | BQ33: Elderly, Non-ALF | BR33: (30.115016, -81.828085) | BS33: >30
A34: 32940 | B34: Brevard | D34: Jackson | F34: 18.02 | G34: Alachua | I34: 6 | J34: Hendry | L34: 17.02 | M34: Alachua | O34: =IFERROR(IF($O$21="Metro",INDEX($F$23:$F$748,SMALL(IF((County=$G$23:$G$748),MATCH(ROW($G$23:$G$748),ROW($G$23:$G$748)),""),ROWS($A$23:A34))),INDEX($I$23:$I$52,SMALL(IF((County=$J$23:$J$52),MATCH(ROW($J$23:$J$52),ROW($J$23:$J$52)),""),ROWS($A$23:A34)))),"") ->  | Q34: =IFERROR(IF($Q$21="Yes",INDEX($L$23:$L$2323,SMALL(IF((County=$M$23:$M$2323),MATCH(ROW($M$23:$M$2323),ROW($M$23:$M$2323)),""),ROWS($A$23:A34))),""),"") ->  | S34: 32195 | T34: Marion | V34: 2 | W34: Sarasota | Y34: 2106 | Z34: Jackson | AB34: 1.13 | AC34: Miami-Dade | AE34: 32955 | AF34: Brevard | AH34: Holmes | AJ34: 15.19 | AK34: Alachua | AM34: 200 | AN34: Hendry | AS34: =IFERROR(IF($O$21="Metro",INDEX($AJ$23:$AJ$748,SMALL(IF((County=$AK$23:$AK$748),MATCH(ROW($AK$23:$AK$748),ROW($AK$23:$AK$748)),""),ROWS($A$23:$A34))),INDEX($AM$23:$AM$58,SMALL(IF((County=$AN$23:$AN$58),MATCH(ROW($AN$23:$AN$58),ROW($AN$23:$AN$58)),""),ROWS($A$23:$A34)))),"") ->  | AU34: =IFERROR(IF($Q$21="Yes",INDEX($AP$23:$AP$2323,SMALL(IF((County=$AQ$23:$AQ$2323),MATCH(ROW($AQ$23:$AQ$2323),ROW($AQ$23:$AQ$2323)),""),ROWS($A$23:$A34))),""),"") ->  | AW34: 32169 | AX34: Volusia | AZ34: 2 | BA34: Sarasota | BC34: 202 | BD34: Hamilton | BI34: Clay | BJ34: 2021-258S | BK34: Nathan Ridge | BL34: 30.110381 | BM34: -81.837506 | BN34: F | BO34: N | BP34: Clay - Nathan Ridge | BQ34: Family | BR34: (30.110381, -81.837506) | BS34: >30
A35: 32951 | B35: Brevard | D35: Lafayette | F35: 19.02 | G35: Alachua | I35: 9604 | J35: Holmes | L35: 18.01 | M35: Alachua | O35: =IFERROR(IF($O$21="Metro",INDEX($F$23:$F$748,SMALL(IF((County=$G$23:$G$748),MATCH(ROW($G$23:$G$748),ROW($G$23:$G$748)),""),ROWS($A$23:A35))),INDEX($I$23:$I$52,SMALL(IF((County=$J$23:$J$52),MATCH(ROW($J$23:$J$52),ROW($J$23:$J$52)),""),ROWS($A$23:A35)))),"") ->  | Q35: =IFERROR(IF($Q$21="Yes",INDEX($L$23:$L$2323,SMALL(IF((County=$M$23:$M$2323),MATCH(ROW($M$23:$M$2323),ROW($M$23:$M$2323)),""),ROWS($A$23:A35))),""),"") ->  | S35: 32212 | T35: Duval | V35: 2.01 | W35: Hillsborough | Y35: 9502.01 | Z35: Putnam | AB35: 1.15 | AC35: Miami-Dade | AE35: 33019 | AF35: Broward | AH35: Jackson | AJ35: 16.05 | AK35: Alachua | AM35: 300 | AN35: Hendry | AS35: =IFERROR(IF($O$21="Metro",INDEX($AJ$23:$AJ$748,SMALL(IF((County=$AK$23:$AK$748),MATCH(ROW($AK$23:$AK$748),ROW($AK$23:$AK$748)),""),ROWS($A$23:$A35))),INDEX($AM$23:$AM$58,SMALL(IF((County=$AN$23:$AN$58),MATCH(ROW($AN$23:$AN$58),ROW($AN$23:$AN$58)),""),ROWS($A$23:$A35)))),"") ->  | AU35: =IFERROR(IF($Q$21="Yes",INDEX($AP$23:$AP$2323,SMALL(IF((County=$AQ$23:$AQ$2323),MATCH(ROW($AQ$23:$AQ$2323),ROW($AQ$23:$AQ$2323)),""),ROWS($A$23:$A35))),""),"") ->  | AW35: 32176 | AX35: Volusia | AZ35: 2.01 | BA35: Alachua | BC35: 202 | BD35: Putnam | BI35: Collier | BJ35: 2020-385BSN | BK35: Allegro at Hacienda Lakes, f/k/a Villa Verde | BL35: 26.107664 | BM35: -81.680556 | BN35: E | BO35: N | BP35: Collier - Allegro at Hacienda Lakes, f/k/a Villa Verde | BQ35: Elderly, Non-ALF | BR35: (26.107664, -81.680556) | BS35: >30
A36: 32955 | B36: Brevard | D36: Levy | F36: 22.18 | G36: Alachua | I36: 2102 | J36: Jackson | L36: 18.05 | M36: Alachua | O36: =IFERROR(IF($O$21="Metro",INDEX($F$23:$F$748,SMALL(IF((County=$G$23:$G$748),MATCH(ROW($G$23:$G$748),ROW($G$23:$G$748)),""),ROWS($A$23:A36))),INDEX($I$23:$I$52,SMALL(IF((County=$J$23:$J$52),MATCH(ROW($J$23:$J$52),ROW($J$23:$J$52)),""),ROWS($A$23:A36)))),"") ->  | Q36: =IFERROR(IF($Q$21="Yes",INDEX($L$23:$L$2323,SMALL(IF((County=$M$23:$M$2323),MATCH(ROW($M$23:$M$2323),ROW($M$23:$M$2323)),""),ROWS($A$23:A36))),""),"") ->  | S36: 32222 | T36: Duval | V36: 2.01 | W36: Manatee | Y36: 9503 | Z36: Taylor | AB36: 1.18 | AC36: Miami-Dade | AE36: 33021 | AF36: Broward | AH36: Lafayette | AJ36: 18.02 | AK36: Alachua | AM36: 601 | AN36: Hendry | AS36: =IFERROR(IF($O$21="Metro",INDEX($AJ$23:$AJ$748,SMALL(IF((County=$AK$23:$AK$748),MATCH(ROW($AK$23:$AK$748),ROW($AK$23:$AK$748)),""),ROWS($A$23:$A36))),INDEX($AM$23:$AM$58,SMALL(IF((County=$AN$23:$AN$58),MATCH(ROW($AN$23:$AN$58),ROW($AN$23:$AN$58)),""),ROWS($A$23:$A36)))),"") ->  | AU36: =IFERROR(IF($Q$21="Yes",INDEX($AP$23:$AP$2323,SMALL(IF((County=$AQ$23:$AQ$2323),MATCH(ROW($AQ$23:$AQ$2323),ROW($AQ$23:$AQ$2323)),""),ROWS($A$23:$A36))),""),"") ->  | AW36: 32195 | AX36: Marion | AZ36: 2.01 | BA36: Hillsborough | BC36: 300 | BD36: Hendry | BI36: Collier | BJ36: 2021-246BS | BK36: Cadenza at Hacienda Lakes | BL36: 26.109164 | BM36: -81.680756 | BN36: E | BO36: N | BP36: Collier - Cadenza at Hacienda Lakes | BQ36: Elderly, Non-ALF | BR36: (26.109164, -81.680756) | BS36: >30
A37: 33019 | B37: Broward | D37: Liberty | F37: 8.03 | G37: Bay | I37: 2106 | J37: Jackson | L37: 18.06 | M37: Alachua | O37: =IFERROR(IF($O$21="Metro",INDEX($F$23:$F$748,SMALL(IF((County=$G$23:$G$748),MATCH(ROW($G$23:$G$748),ROW($G$23:$G$748)),""),ROWS($A$23:A37))),INDEX($I$23:$I$52,SMALL(IF((County=$J$23:$J$52),MATCH(ROW($J$23:$J$52),ROW($J$23:$J$52)),""),ROWS($A$23:A37)))),"") ->  | Q37: =IFERROR(IF($Q$21="Yes",INDEX($L$23:$L$2323,SMALL(IF((County=$M$23:$M$2323),MATCH(ROW($M$23:$M$2323),ROW($M$23:$M$2323)),""),ROWS($A$23:A37))),""),"") ->  | S37: 32224 | T37: Duval | V37: 2.02 | W37: Hillsborough | Y37: 9507 | Z37: Putnam | AB37: 1.19 | AC37: Miami-Dade | AE37: 33025 | AF37: Broward | AH37: Liberty | AJ37: 19.02 | AK37: Alachua | AM37: 602 | AN37: Hendry | AS37: =IFERROR(IF($O$21="Metro",INDEX($AJ$23:$AJ$748,SMALL(IF((County=$AK$23:$AK$748),MATCH(ROW($AK$23:$AK$748),ROW($AK$23:$AK$748)),""),ROWS($A$23:$A37))),INDEX($AM$23:$AM$58,SMALL(IF((County=$AN$23:$AN$58),MATCH(ROW($AN$23:$AN$58),ROW($AN$23:$AN$58)),""),ROWS($A$23:$A37)))),"") ->  | AU37: =IFERROR(IF($Q$21="Yes",INDEX($AP$23:$AP$2323,SMALL(IF((County=$AQ$23:$AQ$2323),MATCH(ROW($AQ$23:$AQ$2323),ROW($AQ$23:$AQ$2323)),""),ROWS($A$23:$A37))),""),"") ->  | AW37: 32212 | AX37: Duval | AZ37: 2.01 | BA37: Manatee | BC37: 301 | BD37: DeSoto | BI37: DeSoto | BJ37: 2022-046C | BK37: Arcadia Landings | BL37: 27.224609 | BM37: -81.844 | BN37: E | BO37: N | BP37: DeSoto - Arcadia Landings | BQ37: Elderly, Non-ALF | BR37: (27.224609, -81.844) | BS37: >30
A38: 33025 | B38: Broward | D38: Madison | F38: 10 | G38: Bay | I38: 9702 | J38: Levy | L38: 18.11 | M38: Alachua | O38: =IFERROR(IF($O$21="Metro",INDEX($F$23:$F$748,SMALL(IF((County=$G$23:$G$748),MATCH(ROW($G$23:$G$748),ROW($G$23:$G$748)),""),ROWS($A$23:A38))),INDEX($I$23:$I$52,SMALL(IF((County=$J$23:$J$52),MATCH(ROW($J$23:$J$52),ROW($J$23:$J$52)),""),ROWS($A$23:A38)))),"") ->  | Q38: =IFERROR(IF($Q$21="Yes",INDEX($L$23:$L$2323,SMALL(IF((County=$M$23:$M$2323),MATCH(ROW($M$23:$M$2323),ROW($M$23:$M$2323)),""),ROWS($A$23:A38))),""),"") ->  | S38: 32226 | T38: Duval | V38: 2.02 | W38: Manatee | Y38: 9508 | Z38: Putnam | AB38: 1.2 | AC38: Miami-Dade | AE38: 33026 | AF38: Broward | AH38: Madison | AJ38: 22.18 | AK38: Alachua | AM38: 401 | AN38: Holmes | AS38: =IFERROR(IF($O$21="Metro",INDEX($AJ$23:$AJ$748,SMALL(IF((County=$AK$23:$AK$748),MATCH(ROW($AK$23:$AK$748),ROW($AK$23:$AK$748)),""),ROWS($A$23:$A38))),INDEX($AM$23:$AM$58,SMALL(IF((County=$AN$23:$AN$58),MATCH(ROW($AN$23:$AN$58),ROW($AN$23:$AN$58)),""),ROWS($A$23:$A38)))),"") ->  | AU38: =IFERROR(IF($Q$21="Yes",INDEX($AP$23:$AP$2323,SMALL(IF((County=$AQ$23:$AQ$2323),MATCH(ROW($AQ$23:$AQ$2323),ROW($AQ$23:$AQ$2323)),""),ROWS($A$23:$A38))),""),"") ->  | AW38: 32224 | AX38: Duval | AZ38: 2.01 | BA38: Marion | BC38: 301 | BD38: Hardee | BI38: DeSoto | BJ38: 2021-077C | BK38: Cypress Garden Apartments | BL38: 27.214896 | BM38: -81.846673 | BN38: F | BO38: N | BP38: DeSoto - Cypress Garden Apartments | BQ38: Family | BR38: (27.214896, -81.846673) | BS38: >30
A39: 33026 | B39: Broward | D39: Monroe | F39: 11 | G39: Bay | I39: 9703.01 | J39: Levy | L39: 18.13 | M39: Alachua | O39: =IFERROR(IF($O$21="Metro",INDEX($F$23:$F$748,SMALL(IF((County=$G$23:$G$748),MATCH(ROW($G$23:$G$748),ROW($G$23:$G$748)),""),ROWS($A$23:A39))),INDEX($I$23:$I$52,SMALL(IF((County=$J$23:$J$52),MATCH(ROW($J$23:$J$52),ROW($J$23:$J$52)),""),ROWS($A$23:A39)))),"") ->  | Q39: =IFERROR(IF($Q$21="Yes",INDEX($L$23:$L$2323,SMALL(IF((County=$M$23:$M$2323),MATCH(ROW($M$23:$M$2323),ROW($M$23:$M$2323)),""),ROWS($A$23:A39))),""),"") ->  | S39: 32227 | T39: Duval | V39: 2.06 | W39: Miami-Dade | Y39: 9509 | Z39: Putnam | AB39: 1.21 | AC39: Miami-Dade | AE39: 33027 | AF39: Broward | AH39: Monroe | AJ39: 8.03 | AK39: Bay | AM39: 402 | AN39: Holmes | AS39: =IFERROR(IF($O$21="Metro",INDEX($AJ$23:$AJ$748,SMALL(IF((County=$AK$23:$AK$748),MATCH(ROW($AK$23:$AK$748),ROW($AK$23:$AK$748)),""),ROWS($A$23:$A39))),INDEX($AM$23:$AM$58,SMALL(IF((County=$AN$23:$AN$58),MATCH(ROW($AN$23:$AN$58),ROW($AN$23:$AN$58)),""),ROWS($A$23:$A39)))),"") ->  | AU39: =IFERROR(IF($Q$21="Yes",INDEX($AP$23:$AP$2323,SMALL(IF((County=$AQ$23:$AQ$2323),MATCH(ROW($AQ$23:$AQ$2323),ROW($AQ$23:$AQ$2323)),""),ROWS($A$23:$A39))),""),"") ->  | AW39: 32225 | AX39: Duval | AZ39: 2.02 | BA39: Alachua | BC39: 301 | BD39: Taylor | BI39: DeSoto | BJ39: 2021-285H | BK39: Hermosa Arcadia | BL39: 27.223428 | BM39: -81.8415 | BN39: F | BO39: Y | BP39: DeSoto - Hermosa Arcadia | BQ39: Family | BR39: (27.223428, -81.8415) | BS39: <31
A40: 33027 | B40: Broward | D40: Okeechobee | F40: 16 | G40: Bay | I40: 1102 | J40: Madison | L40: 18.14 | M40: Alachua | O40: =IFERROR(IF($O$21="Metro",INDEX($F$23:$F$748,SMALL(IF((County=$G$23:$G$748),MATCH(ROW($G$23:$G$748),ROW($G$23:$G$748)),""),ROWS($A$23:A40))),INDEX($I$23:$I$52,SMALL(IF((County=$J$23:$J$52),MATCH(ROW($J$23:$J$52),ROW($J$23:$J$52)),""),ROWS($A$23:A40)))),"") ->  | Q40: =IFERROR(IF($Q$21="Yes",INDEX($L$23:$L$2323,SMALL(IF((County=$M$23:$M$2323),MATCH(ROW($M$23:$M$2323),ROW($M$23:$M$2323)),""),ROWS($A$23:A40))),""),"") ->  | S40: 32228 | T40: Duval | V40: 2.09 | W40: Miami-Dade | Y40: 9512 | Z40: Putnam | AB40: 1.22 | AC40: Miami-Dade | AE40: 33028 | AF40: Broward | AH40: Okeechobee | AJ40: 10 | AK40: Bay | AM40: 403 | AN40: Holmes | AS40: =IFERROR(IF($O$21="Metro",INDEX($AJ$23:$AJ$748,SMALL(IF((County=$AK$23:$AK$748),MATCH(ROW($AK$23:$AK$748),ROW($AK$23:$AK$748)),""),ROWS($A$23:$A40))),INDEX($AM$23:$AM$58,SMALL(IF((County=$AN$23:$AN$58),MATCH(ROW($AN$23:$AN$58),ROW($AN$23:$AN$58)),""),ROWS($A$23:$A40)))),"") ->  | AU40: =IFERROR(IF($Q$21="Yes",INDEX($AP$23:$AP$2323,SMALL(IF((County=$AQ$23:$AQ$2323),MATCH(ROW($AQ$23:$AQ$2323),ROW($AQ$23:$AQ$2323)),""),ROWS($A$23:$A40))),""),"") ->  | AW40: 32226 | AX40: Duval | AZ40: 2.02 | BA40: Hillsborough | BC40: 302 | BD40: DeSoto | BI40: DeSoto | BJ40: 2021-280H | BK40: Meadow Park | BL40: 27.212144 | BM40: -81.8403 | BN40: F | BO40: Y | BP40: DeSoto - Meadow Park | BQ40: Family | BR40: (27.212144, -81.8403) | BS40: <31
A41: 33028 | B41: Broward | D41: Putnam | F41: 18 | G41: Bay | I41: 1103.02 | J41: Madison | L41: 21.01 | M41: Alachua | O41: =IFERROR(IF($O$21="Metro",INDEX($F$23:$F$748,SMALL(IF((County=$G$23:$G$748),MATCH(ROW($G$23:$G$748),ROW($G$23:$G$748)),""),ROWS($A$23:A41))),INDEX($I$23:$I$52,SMALL(IF((County=$J$23:$J$52),MATCH(ROW($J$23:$J$52),ROW($J$23:$J$52)),""),ROWS($A$23:A41)))),"") ->  | Q41: =IFERROR(IF($Q$21="Yes",INDEX($L$23:$L$2323,SMALL(IF((County=$M$23:$M$2323),MATCH(ROW($M$23:$M$2323),ROW($M$23:$M$2323)),""),ROWS($A$23:A41))),""),"") ->  | S41: 32256 | T41: Duval | V41: 2.12 | W41: Miami-Dade | Y41: 9514.01 | Z41: Putnam | AB41: 1.23 | AC41: Miami-Dade | AE41: 33029 | AF41: Broward | AH41: Putnam | AJ41: 11 | AK41: Bay | AM41: 600 | AN41: Jackson | AS41: =IFERROR(IF($O$21="Metro",INDEX($AJ$23:$AJ$748,SMALL(IF((County=$AK$23:$AK$748),MATCH(ROW($AK$23:$AK$748),ROW($AK$23:$AK$748)),""),ROWS($A$23:$A41))),INDEX($AM$23:$AM$58,SMALL(IF((County=$AN$23:$AN$58),MATCH(ROW($AN$23:$AN$58),ROW($AN$23:$AN$58)),""),ROWS($A$23:$A41)))),"") ->  | AU41: =IFERROR(IF($Q$21="Yes",INDEX($AP$23:$AP$2323,SMALL(IF((County=$AQ$23:$AQ$2323),MATCH(ROW($AQ$23:$AQ$2323),ROW($AQ$23:$AQ$2323)),""),ROWS($A$23:$A41))),""),"") ->  | AW41: 32227 | AX41: Duval | AZ41: 2.02 | BA41: Marion | BC41: 302 | BD41: Hardee | BI41: Escambia | BJ41: 2021-054C | BK41: Tranquility at Ferry Pass | BL41: 30.51326 | BM41: -87.209091 | BN41: F | BO41: N | BP41: Escambia - Tranquility at Ferry Pass | BQ41: Family | BR41: (30.51326, -87.209091) | BS41: >30
A42: 33029 | B42: Broward | D42: Suwannee | F42: 20 | G42: Bay | I42: 9704 | J42: Monroe | L42: 21.02 | M42: Alachua | O42: =IFERROR(IF($O$21="Metro",INDEX($F$23:$F$748,SMALL(IF((County=$G$23:$G$748),MATCH(ROW($G$23:$G$748),ROW($G$23:$G$748)),""),ROWS($A$23:A42))),INDEX($I$23:$I$52,SMALL(IF((County=$J$23:$J$52),MATCH(ROW($J$23:$J$52),ROW($J$23:$J$52)),""),ROWS($A$23:A42)))),"") ->  | Q42: =IFERROR(IF($Q$21="Yes",INDEX($L$23:$L$2323,SMALL(IF((County=$M$23:$M$2323),MATCH(ROW($M$23:$M$2323),ROW($M$23:$M$2323)),""),ROWS($A$23:A42))),""),"") ->  | S42: 32258 | T42: Duval | V42: 2.17 | W42: Miami-Dade | Y42: 9602 | Z42: Hamilton | AB42: 1.25 | AC42: Miami-Dade | AE42: 33062 | AF42: Broward | AH42: Suwannee | AJ42: 16 | AK42: Bay | AM42: 0 | AN42: Liberty | AS42: =IFERROR(IF($O$21="Metro",INDEX($AJ$23:$AJ$748,SMALL(IF((County=$AK$23:$AK$748),MATCH(ROW($AK$23:$AK$748),ROW($AK$23:$AK$748)),""),ROWS($A$23:$A42))),INDEX($AM$23:$AM$58,SMALL(IF((County=$AN$23:$AN$58),MATCH(ROW($AN$23:$AN$58),ROW($AN$23:$AN$58)),""),ROWS($A$23:$A42)))),"") ->  | AU42: =IFERROR(IF($Q$21="Yes",INDEX($AP$23:$AP$2323,SMALL(IF((County=$AQ$23:$AQ$2323),MATCH(ROW($AQ$23:$AQ$2323),ROW($AQ$23:$AQ$2323)),""),ROWS($A$23:$A42))),""),"") ->  | AW42: 32228 | AX42: Duval | AZ42: 2.03 | BA42: Manatee | BC42: 302 | BD42: Madison | BI42: Gadsden | BJ42: 2020-419BS | BK42: Arbours at Quincy | BL42: 30.558774 | BM42: -84.593762 | BN42: F | BO42: N | BP42: Gadsden - Arbours at Quincy | BQ42: Family | BR42: (30.558774, -84.593762) | BS42: >30
A43: 33062 | B43: Broward | D43: Taylor | F43: 22 | G43: Bay | I43: 9502.01 | J43: Putnam | L43: 22.01 | M43: Alachua | O43: =IFERROR(IF($O$21="Metro",INDEX($F$23:$F$748,SMALL(IF((County=$G$23:$G$748),MATCH(ROW($G$23:$G$748),ROW($G$23:$G$748)),""),ROWS($A$23:A43))),INDEX($I$23:$I$52,SMALL(IF((County=$J$23:$J$52),MATCH(ROW($J$23:$J$52),ROW($J$23:$J$52)),""),ROWS($A$23:A43)))),"") ->  | Q43: =IFERROR(IF($Q$21="Yes",INDEX($L$23:$L$2323,SMALL(IF((County=$M$23:$M$2323),MATCH(ROW($M$23:$M$2323),ROW($M$23:$M$2323)),""),ROWS($A$23:A43))),""),"") ->  | S43: 32259 | T43: St. Johns | V43: 2.18 | W43: Miami-Dade | Y43: 9603 | Z43: Hamilton | AB43: 1.26 | AC43: Miami-Dade | AE43: 33063 | AF43: Broward | AH43: Taylor | AJ43: 18 | AK43: Bay | AM43: 200 | AN43: Madison | AS43: =IFERROR(IF($O$21="Metro",INDEX($AJ$23:$AJ$748,SMALL(IF((County=$AK$23:$AK$748),MATCH(ROW($AK$23:$AK$748),ROW($AK$23:$AK$748)),""),ROWS($A$23:$A43))),INDEX($AM$23:$AM$58,SMALL(IF((County=$AN$23:$AN$58),MATCH(ROW($AN$23:$AN$58),ROW($AN$23:$AN$58)),""),ROWS($A$23:$A43)))),"") ->  | AU43: =IFERROR(IF($Q$21="Yes",INDEX($AP$23:$AP$2323,SMALL(IF((County=$AQ$23:$AQ$2323),MATCH(ROW($AQ$23:$AQ$2323),ROW($AQ$23:$AQ$2323)),""),ROWS($A$23:$A43))),""),"") ->  | AW43: 32250 | AX43: Duval | AZ43: 2.03 | BA43: Marion | BC43: 302 | BD43: Taylor | BI43: Gadsden | BJ43: 2022-247H | BK43: Cross Creek Gardens at Quincy | BL43: 30.558462 | BM43: -84.598144 | BN43: F | BO43: N | BP43: Gadsden - Cross Creek Gardens at Quincy | BQ43: Family | BR43: (30.558462, -84.598144) | BS43: >30
A44: 33063 | B44: Broward | D44: Union | F44: 24 | G44: Bay | I44: 9507 | J44: Putnam | L44: 22.02 | M44: Alachua | O44: =IFERROR(IF($O$21="Metro",INDEX($F$23:$F$748,SMALL(IF((County=$G$23:$G$748),MATCH(ROW($G$23:$G$748),ROW($G$23:$G$748)),""),ROWS($A$23:A44))),INDEX($I$23:$I$52,SMALL(IF((County=$J$23:$J$52),MATCH(ROW($J$23:$J$52),ROW($J$23:$J$52)),""),ROWS($A$23:A44)))),"") ->  | Q44: =IFERROR(IF($Q$21="Yes",INDEX($L$23:$L$2323,SMALL(IF((County=$M$23:$M$2323),MATCH(ROW($M$23:$M$2323),ROW($M$23:$M$2323)),""),ROWS($A$23:A44))),""),"") ->  | S44: 32266 | T44: Duval | V44: 2.19 | W44: Miami-Dade | Y44: 9604 | Z44: Holmes | AB44: 1.27 | AC44: Miami-Dade | AE44: 33067 | AF44: Broward | AH44: Union | AJ44: 20 | AK44: Bay | AM44: 302 | AN44: Madison | AS44: =IFERROR(IF($O$21="Metro",INDEX($AJ$23:$AJ$748,SMALL(IF((County=$AK$23:$AK$748),MATCH(ROW($AK$23:$AK$748),ROW($AK$23:$AK$748)),""),ROWS($A$23:$A44))),INDEX($AM$23:$AM$58,SMALL(IF((County=$AN$23:$AN$58),MATCH(ROW($AN$23:$AN$58),ROW($AN$23:$AN$58)),""),ROWS($A$23:$A44)))),"") ->  | AU44: =IFERROR(IF($Q$21="Yes",INDEX($AP$23:$AP$2323,SMALL(IF((County=$AQ$23:$AQ$2323),MATCH(ROW($AQ$23:$AQ$2323),ROW($AQ$23:$AQ$2323)),""),ROWS($A$23:$A44))),""),"") ->  | AW44: 32256 | AX44: Duval | AZ44: 2.03 | BA44: Pasco | BC44: 302 | BD44: Washington | BI44: Hardee | BJ44: 2021-282H | BK44: Casa San Alfonso | BL44: 27.497457 | BM44: -81.786286 | BN44: F | BO44: Y | BP44: Hardee - Casa San Alfonso | BQ44: Family | BR44: (27.497457, -81.786286) | BS44: <31
A45: 33067 | B45: Broward | D45: Washington | F45: 604 | G45: Brevard | I45: 9508 | J45: Putnam | L45: 22.04 | M45: Alachua | O45: =IFERROR(IF($O$21="Metro",INDEX($F$23:$F$748,SMALL(IF((County=$G$23:$G$748),MATCH(ROW($G$23:$G$748),ROW($G$23:$G$748)),""),ROWS($A$23:A45))),INDEX($I$23:$I$52,SMALL(IF((County=$J$23:$J$52),MATCH(ROW($J$23:$J$52),ROW($J$23:$J$52)),""),ROWS($A$23:A45)))),"") ->  | Q45: =IFERROR(IF($Q$21="Yes",INDEX($L$23:$L$2323,SMALL(IF((County=$M$23:$M$2323),MATCH(ROW($M$23:$M$2323),ROW($M$23:$M$2323)),""),ROWS($A$23:A45))),""),"") ->  | S45: 32317 | T45: Leon | V45: 2.2 | W45: Miami-Dade | Y45: 9701.02 | Z45: Hardee | AB45: 1.28 | AC45: Miami-Dade | AE45: 33068 | AF45: Broward | AH45: Washington | AJ45: 22 | AK45: Bay | AM45: 402 | AN45: Okeechobee | AS45: =IFERROR(IF($O$21="Metro",INDEX($AJ$23:$AJ$748,SMALL(IF((County=$AK$23:$AK$748),MATCH(ROW($AK$23:$AK$748),ROW($AK$23:$AK$748)),""),ROWS($A$23:$A45))),INDEX($AM$23:$AM$58,SMALL(IF((County=$AN$23:$AN$58),MATCH(ROW($AN$23:$AN$58),ROW($AN$23:$AN$58)),""),ROWS($A$23:$A45)))),"") ->  | AU45: =IFERROR(IF($Q$21="Yes",INDEX($AP$23:$AP$2323,SMALL(IF((County=$AQ$23:$AQ$2323),MATCH(ROW($AQ$23:$AQ$2323),ROW($AQ$23:$AQ$2323)),""),ROWS($A$23:$A45))),""),"") ->  | AW45: 32258 | AX45: Duval | AZ45: 2.04 | BA45: Manatee | BC45: 400 | BD45: Columbia | BI45: Hendry | BJ45: 2022-242H | BK45: Pollywog Creek Mews | BL45: 26.749832 | BM45: -81.441801 | BN45: F | BO45: Y | BP45: Hendry - Pollywog Creek Mews | BQ45: Family | BR45: (26.749832, -81.441801) | BS45: <31
A46: 33071 | B46: Broward | F46: 607 | G46: Brevard | I46: 9509 | J46: Putnam | L46: 22.05 | M46: Alachua | O46: =IFERROR(IF($O$21="Metro",INDEX($F$23:$F$748,SMALL(IF((County=$G$23:$G$748),MATCH(ROW($G$23:$G$748),ROW($G$23:$G$748)),""),ROWS($A$23:A46))),INDEX($I$23:$I$52,SMALL(IF((County=$J$23:$J$52),MATCH(ROW($J$23:$J$52),ROW($J$23:$J$52)),""),ROWS($A$23:A46)))),"") ->  | Q46: =IFERROR(IF($Q$21="Yes",INDEX($L$23:$L$2323,SMALL(IF((County=$M$23:$M$2323),MATCH(ROW($M$23:$M$2323),ROW($M$23:$M$2323)),""),ROWS($A$23:A46))),""),"") ->  | S46: 32403 | T46: Bay | V46: 3 | W46: Duval | Y46: 9701.03 | Z46: Washington | AB46: 1.29 | AC46: Miami-Dade | AE46: 33071 | AF46: Broward | AJ46: 24 | AK46: Bay | AM46: 201 | AN46: Putnam | AS46: =IFERROR(IF($O$21="Metro",INDEX($AJ$23:$AJ$748,SMALL(IF((County=$AK$23:$AK$748),MATCH(ROW($AK$23:$AK$748),ROW($AK$23:$AK$748)),""),ROWS($A$23:$A46))),INDEX($AM$23:$AM$58,SMALL(IF((County=$AN$23:$AN$58),MATCH(ROW($AN$23:$AN$58),ROW($AN$23:$AN$58)),""),ROWS($A$23:$A46)))),"") ->  | AU46: =IFERROR(IF($Q$21="Yes",INDEX($AP$23:$AP$2323,SMALL(IF((County=$AQ$23:$AQ$2323),MATCH(ROW($AQ$23:$AQ$2323),ROW($AQ$23:$AQ$2323)),""),ROWS($A$23:$A46))),""),"") ->  | AW46: 32259 | AX46: St. Johns | AZ46: 2.06 | BA46: Miami-Dade | BC46: 401 | BD46: Hardee | BI46: Hernando | BJ46: 2020-301C | BK46: Rochester Park | BL46: 28.544394 | BM46: -82.411113 | BN46: E | BO46: N | BP46: Hernando - Rochester Park | BQ46: Elderly, Non-ALF | BR46: (28.544394, -82.411113) | BS46: >30
A47: 33073 | B47: Broward | D47: Yes/No Dropdown | F47: 610.02 | G47: Brevard | I47: 9512 | J47: Putnam | L47: 22.07 | M47: Alachua | O47: =IFERROR(IF($O$21="Metro",INDEX($F$23:$F$748,SMALL(IF((County=$G$23:$G$748),MATCH(ROW($G$23:$G$748),ROW($G$23:$G$748)),""),ROWS($A$23:A47))),INDEX($I$23:$I$52,SMALL(IF((County=$J$23:$J$52),MATCH(ROW($J$23:$J$52),ROW($J$23:$J$52)),""),ROWS($A$23:A47)))),"") ->  | Q47: =IFERROR(IF($Q$21="Yes",INDEX($L$23:$L$2323,SMALL(IF((County=$M$23:$M$2323),MATCH(ROW($M$23:$M$2323),ROW($M$23:$M$2323)),""),ROWS($A$23:A47))),""),"") ->  | S47: 32407 | T47: Bay | V47: 3 | W47: Escambia | Y47: 9702 | Z47: Levy | AB47: 1.3 | AC47: Miami-Dade | AE47: 33073 | AF47: Broward | AJ47: 607 | AK47: Brevard | AM47: 202 | AN47: Putnam | AS47: =IFERROR(IF($O$21="Metro",INDEX($AJ$23:$AJ$748,SMALL(IF((County=$AK$23:$AK$748),MATCH(ROW($AK$23:$AK$748),ROW($AK$23:$AK$748)),""),ROWS($A$23:$A47))),INDEX($AM$23:$AM$58,SMALL(IF((County=$AN$23:$AN$58),MATCH(ROW($AN$23:$AN$58),ROW($AN$23:$AN$58)),""),ROWS($A$23:$A47)))),"") ->  | AU47: =IFERROR(IF($Q$21="Yes",INDEX($AP$23:$AP$2323,SMALL(IF((County=$AQ$23:$AQ$2323),MATCH(ROW($AQ$23:$AQ$2323),ROW($AQ$23:$AQ$2323)),""),ROWS($A$23:$A47))),""),"") ->  | AW47: 32266 | AX47: Duval | AZ47: 2.12 | BA47: Miami-Dade | BC47: 401 | BD47: Holmes | BI47: Indian River | BJ47: 2020-404S | BK47: Orange Blossom Village | BL47: 27.6504889 | BM47: -80.3978278 | BN47: E | BO47: N | BP47: Indian River - Orange Blossom Village | BQ47: Elderly, Non-ALF | BR47: (27.6504889, -80.3978278) | BS47: >30
A48: 33076 | B48: Broward | D48: <select from menu> | F48: 623.01 | G48: Brevard | I48: 9514.01 | J48: Putnam | L48: 22.08 | M48: Alachua | O48: =IFERROR(IF($O$21="Metro",INDEX($F$23:$F$748,SMALL(IF((County=$G$23:$G$748),MATCH(ROW($G$23:$G$748),ROW($G$23:$G$748)),""),ROWS($A$23:A48))),INDEX($I$23:$I$52,SMALL(IF((County=$J$23:$J$52),MATCH(ROW($J$23:$J$52),ROW($J$23:$J$52)),""),ROWS($A$23:A48)))),"") ->  | Q48: =IFERROR(IF($Q$21="Yes",INDEX($L$23:$L$2323,SMALL(IF((County=$M$23:$M$2323),MATCH(ROW($M$23:$M$2323),ROW($M$23:$M$2323)),""),ROWS($A$23:A48))),""),"") ->  | S48: 32410 | T48: Bay | V48: 3 | W48: Hillsborough | Y48: 9702 | Z48: Washington | AB48: 1.31 | AC48: Miami-Dade | AE48: 33076 | AF48: Broward | AJ48: 623.02 | AK48: Brevard | AM48: 700 | AN48: Putnam | AS48: =IFERROR(IF($O$21="Metro",INDEX($AJ$23:$AJ$748,SMALL(IF((County=$AK$23:$AK$748),MATCH(ROW($AK$23:$AK$748),ROW($AK$23:$AK$748)),""),ROWS($A$23:$A48))),INDEX($AM$23:$AM$58,SMALL(IF((County=$AN$23:$AN$58),MATCH(ROW($AN$23:$AN$58),ROW($AN$23:$AN$58)),""),ROWS($A$23:$A48)))),"") ->  | AU48: =IFERROR(IF($Q$21="Yes",INDEX($AP$23:$AP$2323,SMALL(IF((County=$AQ$23:$AQ$2323),MATCH(ROW($AQ$23:$AQ$2323),ROW($AQ$23:$AQ$2323)),""),ROWS($A$23:$A48))),""),"") ->  | AW48: 32312 | AX48: Leon | AZ48: 2.18 | BA48: Miami-Dade | BC48: 402 | BD48: Holmes | BI48: Jackson | BJ48: 2021-281H | BK48: Thomas Pines | BL48: 30.761482 | BM48: -85.229333 | BN48: F | BO48: N | BP48: Jackson - Thomas Pines | BQ48: Family | BR48: (30.761482, -85.229333) | BS48: >30
A49: 33301 | B49: Broward | D49: Yes | F49: 623.02 | G49: Brevard | I49: 9503 | J49: Taylor | L49: 22.09 | M49: Alachua | O49: =IFERROR(IF($O$21="Metro",INDEX($F$23:$F$748,SMALL(IF((County=$G$23:$G$748),MATCH(ROW($G$23:$G$748),ROW($G$23:$G$748)),""),ROWS($A$23:A49))),INDEX($I$23:$I$52,SMALL(IF((County=$J$23:$J$52),MATCH(ROW($J$23:$J$52),ROW($J$23:$J$52)),""),ROWS($A$23:A49)))),"") ->  | Q49: =IFERROR(IF($Q$21="Yes",INDEX($L$23:$L$2323,SMALL(IF((County=$M$23:$M$2323),MATCH(ROW($M$23:$M$2323),ROW($M$23:$M$2323)),""),ROWS($A$23:A49))),""),"") ->  | S49: 32456 | T49: Gulf | V49: 3 | W49: Sarasota | Y49: 9702.01 | Z49: Hardee | AB49: 1.33 | AC49: Miami-Dade | AE49: 33301 | AF49: Broward | AJ49: 624.01 | AK49: Brevard | AM49: 800 | AN49: Putnam | AS49: =IFERROR(IF($O$21="Metro",INDEX($AJ$23:$AJ$748,SMALL(IF((County=$AK$23:$AK$748),MATCH(ROW($AK$23:$AK$748),ROW($AK$23:$AK$748)),""),ROWS($A$23:$A49))),INDEX($AM$23:$AM$58,SMALL(IF((County=$AN$23:$AN$58),MATCH(ROW($AN$23:$AN$58),ROW($AN$23:$AN$58)),""),ROWS($A$23:$A49)))),"") ->  | AU49: =IFERROR(IF($Q$21="Yes",INDEX($AP$23:$AP$2323,SMALL(IF((County=$AQ$23:$AQ$2323),MATCH(ROW($AQ$23:$AQ$2323),ROW($AQ$23:$AQ$2323)),""),ROWS($A$23:$A49))),""),"") ->  | AW49: 32317 | AX49: Leon | AZ49: 2.19 | BA49: Miami-Dade | BC49: 402 | BD49: Okeechobee | BI49: Jackson | BJ49: 2022-241H | BK49: Tranquility at Hope School Phase II | BL49: 30.709994 | BM49: -85.190461 | BN49: F | BO49: N | BP49: Jackson - Tranquility at Hope School Phase II | BQ49: Family | BR49: (30.709994, -85.190461) | BS49: >30
A50: 33308 | B50: Broward | D50: No | F50: 624 | G50: Brevard | I50: 9701.03 | J50: Washington | L50: 22.1 | M50: Alachua | O50: =IFERROR(IF($O$21="Metro",INDEX($F$23:$F$748,SMALL(IF((County=$G$23:$G$748),MATCH(ROW($G$23:$G$748),ROW($G$23:$G$748)),""),ROWS($A$23:A50))),INDEX($I$23:$I$52,SMALL(IF((County=$J$23:$J$52),MATCH(ROW($J$23:$J$52),ROW($J$23:$J$52)),""),ROWS($A$23:A50)))),"") ->  | Q50: =IFERROR(IF($Q$21="Yes",INDEX($L$23:$L$2323,SMALL(IF((County=$M$23:$M$2323),MATCH(ROW($M$23:$M$2323),ROW($M$23:$M$2323)),""),ROWS($A$23:A50))),""),"") ->  | S50: 32459 | T50: Walton | V50: 3.01 | W50: Lee | Y50: 9703.01 | Z50: Levy | AB50: 1.34 | AC50: Miami-Dade | AE50: 33304 | AF50: Broward | AJ50: 624.02 | AK50: Brevard | AM50: 900 | AN50: Putnam | AS50: =IFERROR(IF($O$21="Metro",INDEX($AJ$23:$AJ$748,SMALL(IF((County=$AK$23:$AK$748),MATCH(ROW($AK$23:$AK$748),ROW($AK$23:$AK$748)),""),ROWS($A$23:$A50))),INDEX($AM$23:$AM$58,SMALL(IF((County=$AN$23:$AN$58),MATCH(ROW($AN$23:$AN$58),ROW($AN$23:$AN$58)),""),ROWS($A$23:$A50)))),"") ->  | AU50: =IFERROR(IF($Q$21="Yes",INDEX($AP$23:$AP$2323,SMALL(IF((County=$AQ$23:$AQ$2323),MATCH(ROW($AQ$23:$AQ$2323),ROW($AQ$23:$AQ$2323)),""),ROWS($A$23:$A50))),""),"") ->  | AW50: 32346 | AX50: Wakulla | AZ50: 2.2 | BA50: Miami-Dade | BC50: 403 | BD50: Holmes | BI50: Lee | BJ50: 2022-023C | BK50: Hibiscus Apartments Phase Two | BL50: 26.649678 | BM50: -81.813449 | BN50: F | BO50: N | BP50: Lee - Hibiscus Apartments Phase Two | BQ50: Family | BR50: (26.649678, -81.813449) | BS50: >30
A51: 33321 | B51: Broward | F51: 625 | G51: Brevard | I51: 9702 | J51: Washington | L51: 22.19 | M51: Alachua | O51: =IFERROR(IF($O$21="Metro",INDEX($F$23:$F$748,SMALL(IF((County=$G$23:$G$748),MATCH(ROW($G$23:$G$748),ROW($G$23:$G$748)),""),ROWS($A$23:A51))),INDEX($I$23:$I$52,SMALL(IF((County=$J$23:$J$52),MATCH(ROW($J$23:$J$52),ROW($J$23:$J$52)),""),ROWS($A$23:A51)))),"") ->  | Q51: =IFERROR(IF($Q$21="Yes",INDEX($L$23:$L$2323,SMALL(IF((County=$M$23:$M$2323),MATCH(ROW($M$23:$M$2323),ROW($M$23:$M$2323)),""),ROWS($A$23:A51))),""),"") ->  | S51: 32508 | T51: Escambia | V51: 3.02 | W51: Lee | Y51: 9703.02 | Z51: Washington | AB51: 1.4 | AC51: Miami-Dade | AE51: 33308 | AF51: Broward | AJ51: 625 | AK51: Brevard | AM51: 1200 | AN51: Putnam | AS51: =IFERROR(IF($O$21="Metro",INDEX($AJ$23:$AJ$748,SMALL(IF((County=$AK$23:$AK$748),MATCH(ROW($AK$23:$AK$748),ROW($AK$23:$AK$748)),""),ROWS($A$23:$A51))),INDEX($AM$23:$AM$58,SMALL(IF((County=$AN$23:$AN$58),MATCH(ROW($AN$23:$AN$58),ROW($AN$23:$AN$58)),""),ROWS($A$23:$A51)))),"") ->  | AU51: =IFERROR(IF($Q$21="Yes",INDEX($AP$23:$AP$2323,SMALL(IF((County=$AQ$23:$AQ$2323),MATCH(ROW($AQ$23:$AQ$2323),ROW($AQ$23:$AQ$2323)),""),ROWS($A$23:$A51))),""),"") ->  | AW51: 32403 | AX51: Bay | AZ51: 2.22 | BA51: Miami-Dade | BC51: 600 | BD51: Jackson | BI51: Lee | BJ51: 2020-227C | BK51: Madison Square | BL51: 26.561 | BM51: -81.956917 | BN51: E | BO51: N | BP51: Lee - Madison Square | BQ51: Elderly, Non-ALF | BR51: (26.561, -81.956917) | BS51: >30
A52: 33322 | B52: Broward | D52: Yes/No/N/A Dropdown | F52: 626 | G52: Brevard | I52: 9703.02 | J52: Washington | L52: 401.01 | M52: Baker | O52: =IFERROR(IF($O$21="Metro",INDEX($F$23:$F$748,SMALL(IF((County=$G$23:$G$748),MATCH(ROW($G$23:$G$748),ROW($G$23:$G$748)),""),ROWS($A$23:A52))),INDEX($I$23:$I$52,SMALL(IF((County=$J$23:$J$52),MATCH(ROW($J$23:$J$52),ROW($J$23:$J$52)),""),ROWS($A$23:A52)))),"") ->  | Q52: =IFERROR(IF($Q$21="Yes",INDEX($L$23:$L$2323,SMALL(IF((County=$M$23:$M$2323),MATCH(ROW($M$23:$M$2323),ROW($M$23:$M$2323)),""),ROWS($A$23:A52))),""),"") ->  | S52: 32541 | T52: Okaloosa | V52: 3.02 | W52: Marion | Y52: 9704 | Z52: Monroe | AB52: 2 | AC52: Bradford | AE52: 33315 | AF52: Broward | AJ52: 626 | AK52: Brevard | AM52: 1401 | AN52: Putnam | AS52: =IFERROR(IF($O$21="Metro",INDEX($AJ$23:$AJ$748,SMALL(IF((County=$AK$23:$AK$748),MATCH(ROW($AK$23:$AK$748),ROW($AK$23:$AK$748)),""),ROWS($A$23:$A58))),INDEX($AM$23:$AM$58,SMALL(IF((County=$AN$23:$AN$58),MATCH(ROW($AN$23:$AN$58),ROW($AN$23:$AN$58)),""),ROWS($A$23:$A58)))),"") ->  | AU52: =IFERROR(IF($Q$21="Yes",INDEX($AP$23:$AP$2323,SMALL(IF((County=$AQ$23:$AQ$2323),MATCH(ROW($AQ$23:$AQ$2323),ROW($AQ$23:$AQ$2323)),""),ROWS($A$23:$A52))),""),"") ->  | AW52: 32407 | AX52: Bay | AZ52: 2.23 | BA52: Miami-Dade | BC52: 601 | BD52: Hendry | BI52: Lee | BJ52: 2021-222BS | BK52: St. Peter Claver Place Phase I | BL52: 26.651801 | BM52: -81.832418 | BN52: F | BO52: N | BP52: Lee - St. Peter Claver Place Phase I | BQ52: Family | BR52: (26.651801, -81.832418) | BS52: >30
A53: 33323 | B53: Broward | D53: <select from menu> | F53: 645 | G53: Brevard | L53: 401.02 | M53: Baker | O53: =IFERROR(IF($O$21="Metro",INDEX($F$23:$F$748,SMALL(IF((County=$G$23:$G$748),MATCH(ROW($G$23:$G$748),ROW($G$23:$G$748)),""),ROWS($A$23:A53))),INDEX($I$23:$I$52,SMALL(IF((County=$J$23:$J$52),MATCH(ROW($J$23:$J$52),ROW($J$23:$J$52)),""),ROWS($A$23:A53)))),"") ->  | Q53: =IFERROR(IF($Q$21="Yes",INDEX($L$23:$L$2323,SMALL(IF((County=$M$23:$M$2323),MATCH(ROW($M$23:$M$2323),ROW($M$23:$M$2323)),""),ROWS($A$23:A53))),""),"") ->  | S53: 32542 | T53: Okaloosa | V53: 3.05 | W53: Manatee | AB53: 2 | AC53: Collier | AE53: 33321 | AF53: Broward | AJ53: 642.02 | AK53: Brevard | AM53: 301 | AN53: Taylor | AS53: =IFERROR(IF($O$21="Metro",INDEX($AJ$23:$AJ$748,SMALL(IF((County=$AK$23:$AK$748),MATCH(ROW($AK$23:$AK$748),ROW($AK$23:$AK$748)),""),ROWS($A$23:$A53))),INDEX($AM$23:$AM$58,SMALL(IF((County=$AN$23:$AN$58),MATCH(ROW($AN$23:$AN$58),ROW($AN$23:$AN$58)),""),ROWS($A$23:$A53)))),"") ->  | AU53: =IFERROR(IF($Q$21="Yes",INDEX($AP$23:$AP$2323,SMALL(IF((County=$AQ$23:$AQ$2323),MATCH(ROW($AQ$23:$AQ$2323),ROW($AQ$23:$AQ$2323)),""),ROWS($A$23:$A53))),""),"") ->  | AW53: 32410 | AX53: Bay | AZ53: 2.24 | BA53: Miami-Dade | BC53: 602 | BD53: Hendry | BI53: Leon | BJ53: 2022-006C | BK53: Emery Cove | BL53: 30.422655 | BM53: -84.229338 | BN53: F | BO53: N | BP53: Leon - Emery Cove | BQ53: Family | BR53: (30.422655, -84.229338) | BS53: >30
A54: 33324 | B54: Broward | D54: Yes | F54: 647 | G54: Brevard | L54: 2.01 | M54: Bay | O54: =IFERROR(IF($O$21="Metro",INDEX($F$23:$F$748,SMALL(IF((County=$G$23:$G$748),MATCH(ROW($G$23:$G$748),ROW($G$23:$G$748)),""),ROWS($A$23:A54))),INDEX($I$23:$I$52,SMALL(IF((County=$J$23:$J$52),MATCH(ROW($J$23:$J$52),ROW($J$23:$J$52)),""),ROWS($A$23:A54)))),"") ->  | Q54: =IFERROR(IF($Q$21="Yes",INDEX($L$23:$L$2323,SMALL(IF((County=$M$23:$M$2323),MATCH(ROW($M$23:$M$2323),ROW($M$23:$M$2323)),""),ROWS($A$23:A54))),""),"") ->  | S54: 32544 | T54: Okaloosa | V54: 3.05 | W54: Miami-Dade | AB54: 2 | AC54: Leon | AE54: 33322 | AF54: Broward | AJ54: 645 | AK54: Brevard | AM54: 302 | AN54: Taylor | AS54: =IFERROR(IF($O$21="Metro",INDEX($AJ$23:$AJ$748,SMALL(IF((County=$AK$23:$AK$748),MATCH(ROW($AK$23:$AK$748),ROW($AK$23:$AK$748)),""),ROWS($A$23:$A54))),INDEX($AM$23:$AM$58,SMALL(IF((County=$AN$23:$AN$58),MATCH(ROW($AN$23:$AN$58),ROW($AN$23:$AN$58)),""),ROWS($A$23:$A54)))),"") ->  | AU54: =IFERROR(IF($Q$21="Yes",INDEX($AP$23:$AP$2323,SMALL(IF((County=$AQ$23:$AQ$2323),MATCH(ROW($AQ$23:$AQ$2323),ROW($AQ$23:$AQ$2323)),""),ROWS($A$23:$A54))),""),"") ->  | AW54: 32456 | AX54: Gulf | AZ54: 2.27 | BA54: Miami-Dade | BC54: 700 | BD54: Putnam | BI54: Leon | BJ54: 2020-390S | BK54: Magnolia Family - sites 1-3 | BL54: 30.413135 | BM54: -84.269935 | BN54: F | BO54: N | BP54: Leon - Magnolia Family - sites 1-3 | BQ54: Family | BR54: (30.413135, -84.269935) | BS54: >30
A55: 33325 | B55: Broward | D55: No | F55: 649.02 | G55: Brevard | L55: 5 | M55: Bay | O55: =IFERROR(IF($O$21="Metro",INDEX($F$23:$F$748,SMALL(IF((County=$G$23:$G$748),MATCH(ROW($G$23:$G$748),ROW($G$23:$G$748)),""),ROWS($A$23:A55))),INDEX($I$23:$I$52,SMALL(IF((County=$J$23:$J$52),MATCH(ROW($J$23:$J$52),ROW($J$23:$J$52)),""),ROWS($A$23:A55)))),"") ->  | Q55: =IFERROR(IF($Q$21="Yes",INDEX($L$23:$L$2323,SMALL(IF((County=$M$23:$M$2323),MATCH(ROW($M$23:$M$2323),ROW($M$23:$M$2323)),""),ROWS($A$23:A55))),""),"") ->  | S55: 32550 | T55: Walton | V55: 3.06 | W55: Manatee | AB55: 2 | AC55: Martin | AE55: 33323 | AF55: Broward | AJ55: 648 | AK55: Brevard | AM55: 103 | AN55: Washington | AS55: =IFERROR(IF($O$21="Metro",INDEX($AJ$23:$AJ$748,SMALL(IF((County=$AK$23:$AK$748),MATCH(ROW($AK$23:$AK$748),ROW($AK$23:$AK$748)),""),ROWS($A$23:$A55))),INDEX($AM$23:$AM$58,SMALL(IF((County=$AN$23:$AN$58),MATCH(ROW($AN$23:$AN$58),ROW($AN$23:$AN$58)),""),ROWS($A$23:$A55)))),"") ->  | AU55: =IFERROR(IF($Q$21="Yes",INDEX($AP$23:$AP$2323,SMALL(IF((County=$AQ$23:$AQ$2323),MATCH(ROW($AQ$23:$AQ$2323),ROW($AQ$23:$AQ$2323)),""),ROWS($A$23:$A55))),""),"") ->  | AW55: 32459 | AX55: Walton | AZ55: 2.28 | BA55: Miami-Dade | BC55: 800 | BD55: Putnam | BI55: Leon | BJ55: 2021-104C | BK55: Magnolia Family II | BL55: 30.414907 | BM55: -84.270418 | BN55: F | BO55: N | BP55: =BI55&" - "&BK55 -> Leon - Magnolia Family II | BQ55: =IF(BN55="F","Family",IF(BN55="E","Elderly, Non-ALF",IF(BN55="ALF","Elderly, Assisted Living Facility",IF(BN55="W","Workforce","")))) -> Family | BR55: ="("&BL55&", "&BM55&")" -> (30.414907, -84.270418) | BS55: =IF(BO55="N",">30",IF(BO55="Y","<31","")) -> >30
A56: 33326 | B56: Broward | D56: N/A | F56: 651.24 | G56: Brevard | L56: 6 | M56: Bay | O56: =IFERROR(IF($O$21="Metro",INDEX($F$23:$F$748,SMALL(IF((County=$G$23:$G$748),MATCH(ROW($G$23:$G$748),ROW($G$23:$G$748)),""),ROWS($A$23:A56))),INDEX($I$23:$I$52,SMALL(IF((County=$J$23:$J$52),MATCH(ROW($J$23:$J$52),ROW($J$23:$J$52)),""),ROWS($A$23:A56)))),"") ->  | Q56: =IFERROR(IF($Q$21="Yes",INDEX($L$23:$L$2323,SMALL(IF((County=$M$23:$M$2323),MATCH(ROW($M$23:$M$2323),ROW($M$23:$M$2323)),""),ROWS($A$23:A56))),""),"") ->  | S56: 32561 | T56: Santa Rosa | V56: 3.06 | W56: Miami-Dade | AB56: 2.01 | AC56: Bay | AE56: 33324 | AF56: Broward | AJ56: 649.02 | AK56: Brevard | AM56: 104 | AN56: Washington | AS56: =IFERROR(IF($O$21="Metro",INDEX($AJ$23:$AJ$748,SMALL(IF((County=$AK$23:$AK$748),MATCH(ROW($AK$23:$AK$748),ROW($AK$23:$AK$748)),""),ROWS($A$23:$A56))),INDEX($AM$23:$AM$58,SMALL(IF((County=$AN$23:$AN$58),MATCH(ROW($AN$23:$AN$58),ROW($AN$23:$AN$58)),""),ROWS($A$23:$A56)))),"") ->  | AU56: =IFERROR(IF($Q$21="Yes",INDEX($AP$23:$AP$2323,SMALL(IF((County=$AQ$23:$AQ$2323),MATCH(ROW($AQ$23:$AQ$2323),ROW($AQ$23:$AQ$2323)),""),ROWS($A$23:$A56))),""),"") ->  | AW56: 32541 | AX56: Okaloosa | AZ56: 3 | BA56: Duval | BC56: 900 | BD56: Putnam | BI56: Leon | BJ56: 2022-190S | BK56: Ridge Road | BL56: 30.396963 | BM56: -84.292727 | BN56: F | BO56: N | BP56: Leon - Ridge Road | BQ56: Family | BR56: (30.396963, -84.292727) | BS56: >30
A57: 33327 | B57: Broward | F57: 699.02 | G57: Brevard | L57: 7 | M57: Bay | O57: =IFERROR(IF($O$21="Metro",INDEX($F$23:$F$748,SMALL(IF((County=$G$23:$G$748),MATCH(ROW($G$23:$G$748),ROW($G$23:$G$748)),""),ROWS($A$23:A57))),INDEX($I$23:$I$52,SMALL(IF((County=$J$23:$J$52),MATCH(ROW($J$23:$J$52),ROW($J$23:$J$52)),""),ROWS($A$23:A57)))),"") ->  | Q57: =IFERROR(IF($Q$21="Yes",INDEX($L$23:$L$2323,SMALL(IF((County=$M$23:$M$2323),MATCH(ROW($M$23:$M$2323),ROW($M$23:$M$2323)),""),ROWS($A$23:A57))),""),"") ->  | S57: 32566 | T57: Santa Rosa | V57: 3.09 | W57: Manatee | AB57: 2.02 | AC57: Palm Beach | AE57: 33325 | AF57: Broward | AJ57: 651.24 | AK57: Brevard | AM57: 200 | AN57: Washington | AS57: =IFERROR(IF($O$21="Metro",INDEX($AJ$23:$AJ$748,SMALL(IF((County=$AK$23:$AK$748),MATCH(ROW($AK$23:$AK$748),ROW($AK$23:$AK$748)),""),ROWS($A$23:$A57))),INDEX($AM$23:$AM$58,SMALL(IF((County=$AN$23:$AN$58),MATCH(ROW($AN$23:$AN$58),ROW($AN$23:$AN$58)),""),ROWS($A$23:$A57)))),"") ->  | AU57: =IFERROR(IF($Q$21="Yes",INDEX($AP$23:$AP$2323,SMALL(IF((County=$AQ$23:$AQ$2323),MATCH(ROW($AQ$23:$AQ$2323),ROW($AQ$23:$AQ$2323)),""),ROWS($A$23:$A57))),""),"") ->  | AW57: 32542 | AX57: Okaloosa | AZ57: 3 | BA57: Escambia | BC57: 1200 | BD57: Putnam | BI57: Liberty | BJ57: 2021-287H | BK57: Liberty Crossings | BL57: 30.431117 | BM57: -84.981925 | BN57: F | BO57: N | BP57: Liberty - Liberty Crossings | BQ57: Family | BR57: (30.431117, -84.981925) | BS57: >30
A58: 33328 | B58: Broward | D58: Geographic Areas of Opportunity/SADDA Goal - Family Demographic | F58: 103.07 | G58: Broward | L58: 8.04 | M58: Bay | O58: =IFERROR(IF($O$21="Metro",INDEX($F$23:$F$748,SMALL(IF((County=$G$23:$G$748),MATCH(ROW($G$23:$G$748),ROW($G$23:$G$748)),""),ROWS($A$23:A58))),INDEX($I$23:$I$52,SMALL(IF((County=$J$23:$J$52),MATCH(ROW($J$23:$J$52),ROW($J$23:$J$52)),""),ROWS($A$23:A58)))),"") ->  | Q58: =IFERROR(IF($Q$21="Yes",INDEX($L$23:$L$2323,SMALL(IF((County=$M$23:$M$2323),MATCH(ROW($M$23:$M$2323),ROW($M$23:$M$2323)),""),ROWS($A$23:A58))),""),"") ->  | S58: 32605 | T58: Alachua | V58: 3.1 | W58: Manatee | AB58: 2.04 | AC58: Palm Beach | AE58: 33326 | AF58: Broward | AJ58: 699.06 | AK58: Brevard | AM58: 302 | AN58: Washington | AS58: =IFERROR(IF($O$21="Metro",INDEX($AJ$23:$AJ$748,SMALL(IF((County=$AK$23:$AK$748),MATCH(ROW($AK$23:$AK$748),ROW($AK$23:$AK$748)),""),ROWS($A$23:$A58))),INDEX($AM$23:$AM$58,SMALL(IF((County=$AN$23:$AN$58),MATCH(ROW($AN$23:$AN$58),ROW($AN$23:$AN$58)),""),ROWS($A$23:$A58)))),"") ->  | AU58: =IFERROR(IF($Q$21="Yes",INDEX($AP$23:$AP$2323,SMALL(IF((County=$AQ$23:$AQ$2323),MATCH(ROW($AQ$23:$AQ$2323),ROW($AQ$23:$AQ$2323)),""),ROWS($A$23:$A58))),""),"") ->  | AW58: 32544 | AX58: Okaloosa | AZ58: 3 | BA58: Sarasota | BC58: 1401 | BD58: Putnam | BI58: Manatee | BJ58: 2022-137BSN | BK58: Astoria on 9th | BL58: 27.479706 | BM58: -82.571603 | BN58: E | BO58: N | BP58: Manatee - Astoria on 9th | BQ58: Elderly, Non-ALF | BR58: (27.479706, -82.571603) | BS58: >30
A59: 33330 | B59: Broward | D59: <select from menu> | F59: 204.05 | G59: Broward | L59: 13.01 | M59: Bay | O59: =IFERROR(IF($O$21="Metro",INDEX($F$23:$F$748,SMALL(IF((County=$G$23:$G$748),MATCH(ROW($G$23:$G$748),ROW($G$23:$G$748)),""),ROWS($A$23:A59))),INDEX($I$23:$I$52,SMALL(IF((County=$J$23:$J$52),MATCH(ROW($J$23:$J$52),ROW($J$23:$J$52)),""),ROWS($A$23:A59)))),"") ->  | Q59: =IFERROR(IF($Q$21="Yes",INDEX($L$23:$L$2323,SMALL(IF((County=$M$23:$M$2323),MATCH(ROW($M$23:$M$2323),ROW($M$23:$M$2323)),""),ROWS($A$23:A59))),""),"") ->  | S59: 32606 | T59: Alachua | V59: 4 | W59: Escambia | AB59: 2.05 | AC59: Palm Beach | AE59: 33327 | AF59: Broward | AJ59: 699.07 | AK59: Brevard | AS59: =IFERROR(IF($O$21="Metro",INDEX($AJ$23:$AJ$748,SMALL(IF((County=$AK$23:$AK$748),MATCH(ROW($AK$23:$AK$748),ROW($AK$23:$AK$748)),""),ROWS($A$23:$A59))),INDEX($AM$23:$AM$58,SMALL(IF((County=$AN$23:$AN$58),MATCH(ROW($AN$23:$AN$58),ROW($AN$23:$AN$58)),""),ROWS($A$23:$A59)))),"") ->  | AU59: =IFERROR(IF($Q$21="Yes",INDEX($AP$23:$AP$2323,SMALL(IF((County=$AQ$23:$AQ$2323),MATCH(ROW($AQ$23:$AQ$2323),ROW($AQ$23:$AQ$2323)),""),ROWS($A$23:$A59))),""),"") ->  | AW59: 32561 | AX59: Santa Rosa | AZ59: 3.01 | BA59: Alachua | BI59: Manatee | BJ59: 2020-384BS | BK59: Parrish Oaks II | BL59: 27.55845 | BM59: -82.440642 | BN59: F | BO59: N | BP59: Manatee - Parrish Oaks II | BQ59: Family | BR59: (27.55845, -82.440642) | BS59: >30
A60: 33331 | B60: Broward | D60: Located entirely in a GAO | F60: 204.12 | G60: Broward | L60: 14.02 | M60: Bay | O60: =IFERROR(IF($O$21="Metro",INDEX($F$23:$F$748,SMALL(IF((County=$G$23:$G$748),MATCH(ROW($G$23:$G$748),ROW($G$23:$G$748)),""),ROWS($A$23:A60))),INDEX($I$23:$I$52,SMALL(IF((County=$J$23:$J$52),MATCH(ROW($J$23:$J$52),ROW($J$23:$J$52)),""),ROWS($A$23:A60)))),"") ->  | Q60: =IFERROR(IF($Q$21="Yes",INDEX($L$23:$L$2323,SMALL(IF((County=$M$23:$M$2323),MATCH(ROW($M$23:$M$2323),ROW($M$23:$M$2323)),""),ROWS($A$23:A60))),""),"") ->  | S60: 32701 | T60: Seminole | V60: 4 | W60: Leon | AB60: 2.06 | AC60: Palm Beach | AE60: 33328 | AF60: Broward | AJ60: 103.07 | AK60: Broward | AS60: =IFERROR(IF($O$21="Metro",INDEX($AJ$23:$AJ$748,SMALL(IF((County=$AK$23:$AK$748),MATCH(ROW($AK$23:$AK$748),ROW($AK$23:$AK$748)),""),ROWS($A$23:$A60))),INDEX($AM$23:$AM$58,SMALL(IF((County=$AN$23:$AN$58),MATCH(ROW($AN$23:$AN$58),ROW($AN$23:$AN$58)),""),ROWS($A$23:$A60)))),"") ->  | AU60: =IFERROR(IF($Q$21="Yes",INDEX($AP$23:$AP$2323,SMALL(IF((County=$AQ$23:$AQ$2323),MATCH(ROW($AQ$23:$AQ$2323),ROW($AQ$23:$AQ$2323)),""),ROWS($A$23:$A60))),""),"") ->  | AW60: 32566 | AX60: Santa Rosa | AZ60: 3.01 | BA60: Hillsborough | BI60: Manatee | BJ60: 2021-111C | BK60: RIVERVIEW6 | BL60: 27.493717 | BM60: -82.570206 | BN60: F | BO60: N | BP60: Manatee - RIVERVIEW6 | BQ60: Family | BR60: (27.493717, -82.570206) | BS60: >30
A61: 33332 | B61: Broward | D61: Located entirely in a SADDA | F61: 302.02 | G61: Broward | L61: 14.04 | M61: Bay | O61: =IFERROR(IF($O$21="Metro",INDEX($F$23:$F$748,SMALL(IF((County=$G$23:$G$748),MATCH(ROW($G$23:$G$748),ROW($G$23:$G$748)),""),ROWS($A$23:A61))),INDEX($I$23:$I$52,SMALL(IF((County=$J$23:$J$52),MATCH(ROW($J$23:$J$52),ROW($J$23:$J$52)),""),ROWS($A$23:A61)))),"") ->  | Q61: =IFERROR(IF($Q$21="Yes",INDEX($L$23:$L$2323,SMALL(IF((County=$M$23:$M$2323),MATCH(ROW($M$23:$M$2323),ROW($M$23:$M$2323)),""),ROWS($A$23:A61))),""),"") ->  | S61: 32707 | T61: Seminole | V61: 4.01 | W61: Lee | AB61: 2.08 | AC61: Palm Beach | AE61: 33330 | AF61: Broward | AJ61: 204.05 | AK61: Broward | AS61: =IFERROR(IF($O$21="Metro",INDEX($AJ$23:$AJ$748,SMALL(IF((County=$AK$23:$AK$748),MATCH(ROW($AK$23:$AK$748),ROW($AK$23:$AK$748)),""),ROWS($A$23:$A61))),INDEX($AM$23:$AM$58,SMALL(IF((County=$AN$23:$AN$58),MATCH(ROW($AN$23:$AN$58),ROW($AN$23:$AN$58)),""),ROWS($A$23:$A61)))),"") ->  | AU61: =IFERROR(IF($Q$21="Yes",INDEX($AP$23:$AP$2323,SMALL(IF((County=$AQ$23:$AQ$2323),MATCH(ROW($AQ$23:$AQ$2323),ROW($AQ$23:$AQ$2323)),""),ROWS($A$23:$A61))),""),"") ->  | AW61: 32701 | AX61: Seminole | AZ61: 3.02 | BA61: Hillsborough | BI61: Marion | BJ61: 2022-032C | BK61: Madison Oaks West | BL61: 29.221194 | BM61: -82.162833 | BN61: F | BO61: N | BP61: Marion - Madison Oaks West | BQ61: Family | BR61: (29.221194, -82.162833) | BS61: >30
A62: 33351 | B62: Broward | D62: Located entirely in a GAO & SADDA | F62: 303.01 | G62: Broward | L62: 15.01 | M62: Bay | O62: =IFERROR(IF($O$21="Metro",INDEX($F$23:$F$748,SMALL(IF((County=$G$23:$G$748),MATCH(ROW($G$23:$G$748),ROW($G$23:$G$748)),""),ROWS($A$23:A62))),INDEX($I$23:$I$52,SMALL(IF((County=$J$23:$J$52),MATCH(ROW($J$23:$J$52),ROW($J$23:$J$52)),""),ROWS($A$23:A62)))),"") ->  | Q62: =IFERROR(IF($Q$21="Yes",INDEX($L$23:$L$2323,SMALL(IF((County=$M$23:$M$2323),MATCH(ROW($M$23:$M$2323),ROW($M$23:$M$2323)),""),ROWS($A$23:A62))),""),"") ->  | S62: 32708 | T62: Seminole | V62: 4.01 | W62: Marion | AB62: 2.09 | AC62: Palm Beach | AE62: 33331 | AF62: Broward | AJ62: 204.12 | AK62: Broward | AS62: =IFERROR(IF($O$21="Metro",INDEX($AJ$23:$AJ$748,SMALL(IF((County=$AK$23:$AK$748),MATCH(ROW($AK$23:$AK$748),ROW($AK$23:$AK$748)),""),ROWS($A$23:$A62))),INDEX($AM$23:$AM$58,SMALL(IF((County=$AN$23:$AN$58),MATCH(ROW($AN$23:$AN$58),ROW($AN$23:$AN$58)),""),ROWS($A$23:$A62)))),"") ->  | AU62: =IFERROR(IF($Q$21="Yes",INDEX($AP$23:$AP$2323,SMALL(IF((County=$AQ$23:$AQ$2323),MATCH(ROW($AQ$23:$AQ$2323),ROW($AQ$23:$AQ$2323)),""),ROWS($A$23:$A62))),""),"") ->  | AW62: 32707 | AX62: Seminole | AZ62: 3.02 | BA62: Marion | BI62: Monroe | BJ62: 2021-320CS | BK62: Coco Vista - sites 1-2 | BL62: 24.726161 | BM62: -81.013914 | BN62: W | BO62: N | BP62: Monroe - Coco Vista - sites 1-2 | BQ62: Workforce | BR62: (24.726161, -81.013914) | BS62: >30
A63: 33442 | B63: Broward | F63: 303.02 | G63: Broward | L63: 19 | M63: Bay | O63: =IFERROR(IF($O$21="Metro",INDEX($F$23:$F$748,SMALL(IF((County=$G$23:$G$748),MATCH(ROW($G$23:$G$748),ROW($G$23:$G$748)),""),ROWS($A$23:A63))),INDEX($I$23:$I$52,SMALL(IF((County=$J$23:$J$52),MATCH(ROW($J$23:$J$52),ROW($J$23:$J$52)),""),ROWS($A$23:A63)))),"") ->  | Q63: =IFERROR(IF($Q$21="Yes",INDEX($L$23:$L$2323,SMALL(IF((County=$M$23:$M$2323),MATCH(ROW($M$23:$M$2323),ROW($M$23:$M$2323)),""),ROWS($A$23:A63))),""),"") ->  | S63: 32712 | T63: Orange | V63: 4.02 | W63: Hillsborough | AB63: 2.1 | AC63: Palm Beach | AE63: 33332 | AF63: Broward | AJ63: 302.02 | AK63: Broward | AS63: =IFERROR(IF($O$21="Metro",INDEX($AJ$23:$AJ$748,SMALL(IF((County=$AK$23:$AK$748),MATCH(ROW($AK$23:$AK$748),ROW($AK$23:$AK$748)),""),ROWS($A$23:$A63))),INDEX($AM$23:$AM$58,SMALL(IF((County=$AN$23:$AN$58),MATCH(ROW($AN$23:$AN$58),ROW($AN$23:$AN$58)),""),ROWS($A$23:$A63)))),"") ->  | AU63: =IFERROR(IF($Q$21="Yes",INDEX($AP$23:$AP$2323,SMALL(IF((County=$AQ$23:$AQ$2323),MATCH(ROW($AQ$23:$AQ$2323),ROW($AQ$23:$AQ$2323)),""),ROWS($A$23:$A63))),""),"") ->  | AW63: 32708 | AX63: Seminole | AZ63: 3.05 | BA63: Lee | BI63: Monroe | BJ63: 2022-265CS | BK63: Lofts at Bahama Village | BL63: 24.550029 | BM63: -81.805184 | BN63: W | BO63: N | BP63: Monroe - Lofts at Bahama Village | BQ63: Workforce | BR63: (24.550029, -81.805184) | BS63: >30
A64: 33946 | B64: Charlotte | D64: Metro/Non-Metro QCT Dropdown | F64: 304.02 | G64: Broward | L64: 25 | M64: Bay | O64: =IFERROR(IF($O$21="Metro",INDEX($F$23:$F$748,SMALL(IF((County=$G$23:$G$748),MATCH(ROW($G$23:$G$748),ROW($G$23:$G$748)),""),ROWS($A$23:A64))),INDEX($I$23:$I$52,SMALL(IF((County=$J$23:$J$52),MATCH(ROW($J$23:$J$52),ROW($J$23:$J$52)),""),ROWS($A$23:A64)))),"") ->  | Q64: =IFERROR(IF($Q$21="Yes",INDEX($L$23:$L$2323,SMALL(IF((County=$M$23:$M$2323),MATCH(ROW($M$23:$M$2323),ROW($M$23:$M$2323)),""),ROWS($A$23:A64))),""),"") ->  | S64: 32714 | T64: Seminole | V64: 4.02 | W64: Marion | AB64: 2.11 | AC64: Miami-Dade | AE64: 33351 | AF64: Broward | AJ64: 303.01 | AK64: Broward | AS64: =IFERROR(IF($O$21="Metro",INDEX($AJ$23:$AJ$748,SMALL(IF((County=$AK$23:$AK$748),MATCH(ROW($AK$23:$AK$748),ROW($AK$23:$AK$748)),""),ROWS($A$23:$A64))),INDEX($AM$23:$AM$58,SMALL(IF((County=$AN$23:$AN$58),MATCH(ROW($AN$23:$AN$58),ROW($AN$23:$AN$58)),""),ROWS($A$23:$A64)))),"") ->  | AU64: =IFERROR(IF($Q$21="Yes",INDEX($AP$23:$AP$2323,SMALL(IF((County=$AQ$23:$AQ$2323),MATCH(ROW($AQ$23:$AQ$2323),ROW($AQ$23:$AQ$2323)),""),ROWS($A$23:$A64))),""),"") ->  | AW64: 32712 | AX64: Orange | AZ64: 3.05 | BA64: Manatee | BI64: Okaloosa | BJ64: 2021-130C | BK64: Arbours at Crestview | BL64: 30.739277 | BM64: -86.556075 | BN64: F | BO64: N | BP64: Okaloosa - Arbours at Crestview | BQ64: Family | BR64: (30.739277, -86.556075) | BS64: >30
A65: 33947 | B65: Charlotte | D65: <select from menu> | F65: 305 | G65: Broward | L65: 26.01 | M65: Bay | O65: =IFERROR(IF($O$21="Metro",INDEX($F$23:$F$748,SMALL(IF((County=$G$23:$G$748),MATCH(ROW($G$23:$G$748),ROW($G$23:$G$748)),""),ROWS($A$23:A65))),INDEX($I$23:$I$52,SMALL(IF((County=$J$23:$J$52),MATCH(ROW($J$23:$J$52),ROW($J$23:$J$52)),""),ROWS($A$23:A65)))),"") ->  | Q65: =IFERROR(IF($Q$21="Yes",INDEX($L$23:$L$2323,SMALL(IF((County=$M$23:$M$2323),MATCH(ROW($M$23:$M$2323),ROW($M$23:$M$2323)),""),ROWS($A$23:A65))),""),"") ->  | S65: 32725 | T65: Volusia | V65: 4.02 | W65: Miami-Dade | AB65: 2.11 | AC65: Palm Beach | AE65: 33442 | AF65: Broward | AJ65: 303.02 | AK65: Broward | AS65: =IFERROR(IF($O$21="Metro",INDEX($AJ$23:$AJ$748,SMALL(IF((County=$AK$23:$AK$748),MATCH(ROW($AK$23:$AK$748),ROW($AK$23:$AK$748)),""),ROWS($A$23:$A65))),INDEX($AM$23:$AM$58,SMALL(IF((County=$AN$23:$AN$58),MATCH(ROW($AN$23:$AN$58),ROW($AN$23:$AN$58)),""),ROWS($A$23:$A65)))),"") ->  | AU65: =IFERROR(IF($Q$21="Yes",INDEX($AP$23:$AP$2323,SMALL(IF((County=$AQ$23:$AQ$2323),MATCH(ROW($AQ$23:$AQ$2323),ROW($AQ$23:$AQ$2323)),""),ROWS($A$23:$A65))),""),"") ->  | AW65: 32714 | AX65: Seminole | AZ65: 3.06 | BA65: Lee | BI65: Okaloosa | BJ65: 2022-146BSN | BK65: Princeton Grove | BL65: 30.742883 | BM65: -86.556236 | BN65: E | BO65: N | BP65: Okaloosa - Princeton Grove | BQ65: Elderly, Non-ALF | BR65: (30.742883, -86.556236) | BS65: >30
A66: 33954 | B66: Charlotte | D66: Metro | F66: 308.01 | G66: Broward | L66: 26.04 | M66: Bay | O66: =IFERROR(IF($O$21="Metro",INDEX($F$23:$F$748,SMALL(IF((County=$G$23:$G$748),MATCH(ROW($G$23:$G$748),ROW($G$23:$G$748)),""),ROWS($A$23:A66))),INDEX($I$23:$I$52,SMALL(IF((County=$J$23:$J$52),MATCH(ROW($J$23:$J$52),ROW($J$23:$J$52)),""),ROWS($A$23:A66)))),"") ->  | Q66: =IFERROR(IF($Q$21="Yes",INDEX($L$23:$L$2323,SMALL(IF((County=$M$23:$M$2323),MATCH(ROW($M$23:$M$2323),ROW($M$23:$M$2323)),""),ROWS($A$23:A66))),""),"") ->  | S66: 32732 | T66: Seminole | V66: 4.03 | W66: Miami-Dade | AB66: 2.13 | AC66: Miami-Dade | AE66: 33946 | AF66: Charlotte | AJ66: 304.02 | AK66: Broward | AS66: =IFERROR(IF($O$21="Metro",INDEX($AJ$23:$AJ$748,SMALL(IF((County=$AK$23:$AK$748),MATCH(ROW($AK$23:$AK$748),ROW($AK$23:$AK$748)),""),ROWS($A$23:$A66))),INDEX($AM$23:$AM$58,SMALL(IF((County=$AN$23:$AN$58),MATCH(ROW($AN$23:$AN$58),ROW($AN$23:$AN$58)),""),ROWS($A$23:$A66)))),"") ->  | AU66: =IFERROR(IF($Q$21="Yes",INDEX($AP$23:$AP$2323,SMALL(IF((County=$AQ$23:$AQ$2323),MATCH(ROW($AQ$23:$AQ$2323),ROW($AQ$23:$AQ$2323)),""),ROWS($A$23:$A66))),""),"") ->  | AW66: 32725 | AX66: Volusia | AZ66: 3.06 | BA66: Miami-Dade | BI66: Okaloosa | BJ66: 2020-250C | BK66: Shoreline Villas | BL66: 30.427481 | BM66: -86.652214 | BN66: E | BO66: N | BP66: Okaloosa - Shoreline Villas | BQ66: Elderly, Non-ALF | BR66: (30.427481, -86.652214) | BS66: >30
A67: 33955 | B67: Charlotte | D67: Non-Metro | F67: 408.01 | G67: Broward | L67: 26.06 | M67: Bay | O67: =IFERROR(IF($O$21="Metro",INDEX($F$23:$F$748,SMALL(IF((County=$G$23:$G$748),MATCH(ROW($G$23:$G$748),ROW($G$23:$G$748)),""),ROWS($A$23:A67))),INDEX($I$23:$I$52,SMALL(IF((County=$J$23:$J$52),MATCH(ROW($J$23:$J$52),ROW($J$23:$J$52)),""),ROWS($A$23:A67)))),"") ->  | Q67: =IFERROR(IF($Q$21="Yes",INDEX($L$23:$L$2323,SMALL(IF((County=$M$23:$M$2323),MATCH(ROW($M$23:$M$2323),ROW($M$23:$M$2323)),""),ROWS($A$23:A67))),""),"") ->  | S67: 32735 | T67: Lake | V67: 4.06 | W67: Sarasota | AB67: 2.14 | AC67: Miami-Dade | AE67: 33947 | AF67: Charlotte | AJ67: 305 | AK67: Broward | AS67: =IFERROR(IF($O$21="Metro",INDEX($AJ$23:$AJ$748,SMALL(IF((County=$AK$23:$AK$748),MATCH(ROW($AK$23:$AK$748),ROW($AK$23:$AK$748)),""),ROWS($A$23:$A67))),INDEX($AM$23:$AM$58,SMALL(IF((County=$AN$23:$AN$58),MATCH(ROW($AN$23:$AN$58),ROW($AN$23:$AN$58)),""),ROWS($A$23:$A67)))),"") ->  | AU67: =IFERROR(IF($Q$21="Yes",INDEX($AP$23:$AP$2323,SMALL(IF((County=$AQ$23:$AQ$2323),MATCH(ROW($AQ$23:$AQ$2323),ROW($AQ$23:$AQ$2323)),""),ROWS($A$23:$A67))),""),"") ->  | AW67: 32732 | AX67: Seminole | AZ67: 3.07 | BA67: Manatee | BI67: Osceola | BJ67: 2022-186S | BK67: Falcon Trace II | BL67: 28.265356 | BM67: -81.485287 | BN67: F | BO67: N | BP67: Osceola - Falcon Trace II | BQ67: Family | BR67: (28.265356, -81.485287) | BS67: >30
A68: 33981 | B68: Charlotte | F68: 409.01 | G68: Broward | L68: 26.07 | M68: Bay | O68: =IFERROR(IF($O$21="Metro",INDEX($F$23:$F$748,SMALL(IF((County=$G$23:$G$748),MATCH(ROW($G$23:$G$748),ROW($G$23:$G$748)),""),ROWS($A$23:A68))),INDEX($I$23:$I$52,SMALL(IF((County=$J$23:$J$52),MATCH(ROW($J$23:$J$52),ROW($J$23:$J$52)),""),ROWS($A$23:A68)))),"") ->  | Q68: =IFERROR(IF($Q$21="Yes",INDEX($L$23:$L$2323,SMALL(IF((County=$M$23:$M$2323),MATCH(ROW($M$23:$M$2323),ROW($M$23:$M$2323)),""),ROWS($A$23:A68))),""),"") ->  | S68: 32746 | T68: Seminole | V68: 4.08 | W68: Miami-Dade | AB68: 2.14 | AC68: Palm Beach | AE68: 33953 | AF68: Charlotte | AJ68: 308.03 | AK68: Broward | AS68: =IFERROR(IF($O$21="Metro",INDEX($AJ$23:$AJ$748,SMALL(IF((County=$AK$23:$AK$748),MATCH(ROW($AK$23:$AK$748),ROW($AK$23:$AK$748)),""),ROWS($A$23:$A68))),INDEX($AM$23:$AM$58,SMALL(IF((County=$AN$23:$AN$58),MATCH(ROW($AN$23:$AN$58),ROW($AN$23:$AN$58)),""),ROWS($A$23:$A68)))),"") ->  | AU68: =IFERROR(IF($Q$21="Yes",INDEX($AP$23:$AP$2323,SMALL(IF((County=$AQ$23:$AQ$2323),MATCH(ROW($AQ$23:$AQ$2323),ROW($AQ$23:$AQ$2323)),""),ROWS($A$23:$A68))),""),"") ->  | AW68: 32735 | AX68: Lake | AZ68: 3.09 | BA68: Manatee | BI68: Osceola | BJ68: 2022-060C | BK68: Madison Grove | BL68: 28.229972 | BM68: -81.307528 | BN68: E | BO68: N | BP68: Osceola - Madison Grove | BQ68: Elderly, Non-ALF | BR68: (28.229972, -81.307528) | BS68: >30
A69: 34429 | B69: Citrus | F69: 409.02 | G69: Broward | L69: 26.08 | M69: Bay | O69: =IFERROR(IF($O$21="Metro",INDEX($F$23:$F$748,SMALL(IF((County=$G$23:$G$748),MATCH(ROW($G$23:$G$748),ROW($G$23:$G$748)),""),ROWS($A$23:A69))),INDEX($I$23:$I$52,SMALL(IF((County=$J$23:$J$52),MATCH(ROW($J$23:$J$52),ROW($J$23:$J$52)),""),ROWS($A$23:A69)))),"") ->  | Q69: =IFERROR(IF($Q$21="Yes",INDEX($L$23:$L$2323,SMALL(IF((County=$M$23:$M$2323),MATCH(ROW($M$23:$M$2323),ROW($M$23:$M$2323)),""),ROWS($A$23:A69))),""),"") ->  | S69: 32750 | T69: Seminole | V69: 4.11 | W69: Miami-Dade | AB69: 2.15 | AC69: Palm Beach | AE69: 33954 | AF69: Charlotte | AJ69: 308.04 | AK69: Broward | AS69: =IFERROR(IF($O$21="Metro",INDEX($AJ$23:$AJ$748,SMALL(IF((County=$AK$23:$AK$748),MATCH(ROW($AK$23:$AK$748),ROW($AK$23:$AK$748)),""),ROWS($A$23:$A69))),INDEX($AM$23:$AM$58,SMALL(IF((County=$AN$23:$AN$58),MATCH(ROW($AN$23:$AN$58),ROW($AN$23:$AN$58)),""),ROWS($A$23:$A69)))),"") ->  | AU69: =IFERROR(IF($Q$21="Yes",INDEX($AP$23:$AP$2323,SMALL(IF((County=$AQ$23:$AQ$2323),MATCH(ROW($AQ$23:$AQ$2323),ROW($AQ$23:$AQ$2323)),""),ROWS($A$23:$A69))),""),"") ->  | AW69: 32746 | AX69: Seminole | AZ69: 3.09 | BA69: Miami-Dade | BI69: Osceola | BJ69: 2021-098C | BK69: Pinnacle at the Wesleyan | BL69: 28.308365 | BM69: -81.448998 | BN69: F | BO69: N | BP69: Osceola - Pinnacle at the Wesleyan | BQ69: Family | BR69: (28.308365, -81.448998) | BS69: >30
A70: 34434 | B70: Citrus | F70: 410 | G70: Broward | L70: 27.01 | M70: Bay | O70: =IFERROR(IF($O$21="Metro",INDEX($F$23:$F$748,SMALL(IF((County=$G$23:$G$748),MATCH(ROW($G$23:$G$748),ROW($G$23:$G$748)),""),ROWS($A$23:A70))),INDEX($I$23:$I$52,SMALL(IF((County=$J$23:$J$52),MATCH(ROW($J$23:$J$52),ROW($J$23:$J$52)),""),ROWS($A$23:A70)))),"") ->  | Q70: =IFERROR(IF($Q$21="Yes",INDEX($L$23:$L$2323,SMALL(IF((County=$M$23:$M$2323),MATCH(ROW($M$23:$M$2323),ROW($M$23:$M$2323)),""),ROWS($A$23:A70))),""),"") ->  | S70: 32751 | T70: Orange | V70: 4.12 | W70: Miami-Dade | AB70: 3 | AC70: Bradford | AE70: 33955 | AF70: Charlotte | AJ70: 310.01 | AK70: Broward | AS70: =IFERROR(IF($O$21="Metro",INDEX($AJ$23:$AJ$748,SMALL(IF((County=$AK$23:$AK$748),MATCH(ROW($AK$23:$AK$748),ROW($AK$23:$AK$748)),""),ROWS($A$23:$A70))),INDEX($AM$23:$AM$58,SMALL(IF((County=$AN$23:$AN$58),MATCH(ROW($AN$23:$AN$58),ROW($AN$23:$AN$58)),""),ROWS($A$23:$A70)))),"") ->  | AU70: =IFERROR(IF($Q$21="Yes",INDEX($AP$23:$AP$2323,SMALL(IF((County=$AQ$23:$AQ$2323),MATCH(ROW($AQ$23:$AQ$2323),ROW($AQ$23:$AQ$2323)),""),ROWS($A$23:$A70))),""),"") ->  | AW70: 32750 | AX70: Seminole | AZ70: 3.1 | BA70: Manatee | BI70: Osceola | BJ70: 2021-206BS | BK70: Rosewood Pointe | BL70: 28.310184 | BM70: -81.454539 | BN70: F | BO70: N | BP70: Osceola - Rosewood Pointe | BQ70: Family | BR70: (28.310184, -81.454539) | BS70: >30
A71: 34446 | B71: Citrus | F71: 412 | G71: Broward | L71: 27.02 | M71: Bay | O71: =IFERROR(IF($O$21="Metro",INDEX($F$23:$F$748,SMALL(IF((County=$G$23:$G$748),MATCH(ROW($G$23:$G$748),ROW($G$23:$G$748)),""),ROWS($A$23:A71))),INDEX($I$23:$I$52,SMALL(IF((County=$J$23:$J$52),MATCH(ROW($J$23:$J$52),ROW($J$23:$J$52)),""),ROWS($A$23:A71)))),"") ->  | Q71: =IFERROR(IF($Q$21="Yes",INDEX($L$23:$L$2323,SMALL(IF((County=$M$23:$M$2323),MATCH(ROW($M$23:$M$2323),ROW($M$23:$M$2323)),""),ROWS($A$23:A71))),""),"") ->  | S71: 32765 | T71: Seminole | V71: 4.14 | W71: Miami-Dade | AB71: 3.01 | AC71: Collier | AE71: 33981 | AF71: Charlotte | AJ71: 409.01 | AK71: Broward | AS71: =IFERROR(IF($O$21="Metro",INDEX($AJ$23:$AJ$748,SMALL(IF((County=$AK$23:$AK$748),MATCH(ROW($AK$23:$AK$748),ROW($AK$23:$AK$748)),""),ROWS($A$23:$A71))),INDEX($AM$23:$AM$58,SMALL(IF((County=$AN$23:$AN$58),MATCH(ROW($AN$23:$AN$58),ROW($AN$23:$AN$58)),""),ROWS($A$23:$A71)))),"") ->  | AU71: =IFERROR(IF($Q$21="Yes",INDEX($AP$23:$AP$2323,SMALL(IF((County=$AQ$23:$AQ$2323),MATCH(ROW($AQ$23:$AQ$2323),ROW($AQ$23:$AQ$2323)),""),ROWS($A$23:$A71))),""),"") ->  | AW71: 32751 | AX71: Orange | AZ71: 3.1 | BA71: Miami-Dade | BI71: Osceola | BJ71: 2021-110B | BK71: The Salix on Vine | BL71: 28.310379 | BM71: -81.460538 | BN71: F | BO71: N | BP71: Osceola - The Salix on Vine | BQ71: Family | BR71: (28.310379, -81.460538) | BS71: >30
A72: 34453 | B72: Citrus | F72: 413 | G72: Broward | L72: 27.03 | M72: Bay | O72: =IFERROR(IF($O$21="Metro",INDEX($F$23:$F$748,SMALL(IF((County=$G$23:$G$748),MATCH(ROW($G$23:$G$748),ROW($G$23:$G$748)),""),ROWS($A$23:A72))),INDEX($I$23:$I$52,SMALL(IF((County=$J$23:$J$52),MATCH(ROW($J$23:$J$52),ROW($J$23:$J$52)),""),ROWS($A$23:A72)))),"") ->  | Q72: =IFERROR(IF($Q$21="Yes",INDEX($L$23:$L$2323,SMALL(IF((County=$M$23:$M$2323),MATCH(ROW($M$23:$M$2323),ROW($M$23:$M$2323)),""),ROWS($A$23:A72))),""),"") ->  | S72: 32766 | T72: Seminole | V72: 5 | W72: Leon | AB72: 3.01 | AC72: Leon | AE72: 34429 | AF72: Citrus | AJ72: 409.02 | AK72: Broward | AS72: =IFERROR(IF($O$21="Metro",INDEX($AJ$23:$AJ$748,SMALL(IF((County=$AK$23:$AK$748),MATCH(ROW($AK$23:$AK$748),ROW($AK$23:$AK$748)),""),ROWS($A$23:$A72))),INDEX($AM$23:$AM$58,SMALL(IF((County=$AN$23:$AN$58),MATCH(ROW($AN$23:$AN$58),ROW($AN$23:$AN$58)),""),ROWS($A$23:$A72)))),"") ->  | AU72: =IFERROR(IF($Q$21="Yes",INDEX($AP$23:$AP$2323,SMALL(IF((County=$AQ$23:$AQ$2323),MATCH(ROW($AQ$23:$AQ$2323),ROW($AQ$23:$AQ$2323)),""),ROWS($A$23:$A72))),""),"") ->  | AW72: 32765 | AX72: Seminole | AZ72: 3.11 | BA72: Manatee | BI72: Pasco | BJ72: 2022-030C | BK72: Oaks at Green Key Apartments | BL72: 28.253897 | BM72: -82.730421 | BN72: F | BO72: N | BP72: Pasco - Oaks at Green Key Apartments | BQ72: Family | BR72: (28.253897, -82.730421) | BS72: >30
A73: 32003 | B73: Clay | F73: 414 | G73: Broward | L73: 27.04 | M73: Bay | O73: =IFERROR(IF($O$21="Metro",INDEX($F$23:$F$748,SMALL(IF((County=$G$23:$G$748),MATCH(ROW($G$23:$G$748),ROW($G$23:$G$748)),""),ROWS($A$23:A73))),INDEX($I$23:$I$52,SMALL(IF((County=$J$23:$J$52),MATCH(ROW($J$23:$J$52),ROW($J$23:$J$52)),""),ROWS($A$23:A73)))),"") ->  | Q73: =IFERROR(IF($Q$21="Yes",INDEX($L$23:$L$2323,SMALL(IF((County=$M$23:$M$2323),MATCH(ROW($M$23:$M$2323),ROW($M$23:$M$2323)),""),ROWS($A$23:A73))),""),"") ->  | S73: 32776 | T73: Lake | V73: 5.01 | W73: Miami-Dade | AB73: 3.01 | AC73: Marion | AE73: 34434 | AF73: Citrus | AJ73: 410 | AK73: Broward | AS73: =IFERROR(IF($O$21="Metro",INDEX($AJ$23:$AJ$748,SMALL(IF((County=$AK$23:$AK$748),MATCH(ROW($AK$23:$AK$748),ROW($AK$23:$AK$748)),""),ROWS($A$23:$A73))),INDEX($AM$23:$AM$58,SMALL(IF((County=$AN$23:$AN$58),MATCH(ROW($AN$23:$AN$58),ROW($AN$23:$AN$58)),""),ROWS($A$23:$A73)))),"") ->  | AU73: =IFERROR(IF($Q$21="Yes",INDEX($AP$23:$AP$2323,SMALL(IF((County=$AQ$23:$AQ$2323),MATCH(ROW($AQ$23:$AQ$2323),ROW($AQ$23:$AQ$2323)),""),ROWS($A$23:$A73))),""),"") ->  | AW73: 32766 | AX73: Seminole | AZ73: 3.13 | BA73: Manatee | BI73: Pasco | BJ73: 2021-081C | BK73: Tanager Square | BL73: 28.215907 | BM73: -82.679583 | BN73: F | BO73: N | BP73: Pasco - Tanager Square | BQ73: Family | BR73: (28.215907, -82.679583) | BS73: >30
A74: 34103 | B74: Collier | F74: 415 | G74: Broward | L74: 27.05 | M74: Bay | O74: =IFERROR(IF($O$21="Metro",INDEX($F$23:$F$748,SMALL(IF((County=$G$23:$G$748),MATCH(ROW($G$23:$G$748),ROW($G$23:$G$748)),""),ROWS($A$23:A74))),INDEX($I$23:$I$52,SMALL(IF((County=$J$23:$J$52),MATCH(ROW($J$23:$J$52),ROW($J$23:$J$52)),""),ROWS($A$23:A74)))),"") ->  | Q74: =IFERROR(IF($Q$21="Yes",INDEX($L$23:$L$2323,SMALL(IF((County=$M$23:$M$2323),MATCH(ROW($M$23:$M$2323),ROW($M$23:$M$2323)),""),ROWS($A$23:A74))),""),"") ->  | S74: 32779 | T74: Seminole | V74: 5.02 | W74: Lee | AB74: 3.01 | AC74: Palm Beach | AE74: 34446 | AF74: Citrus | AJ74: 412 | AK74: Broward | AS74: =IFERROR(IF($O$21="Metro",INDEX($AJ$23:$AJ$748,SMALL(IF((County=$AK$23:$AK$748),MATCH(ROW($AK$23:$AK$748),ROW($AK$23:$AK$748)),""),ROWS($A$23:$A74))),INDEX($AM$23:$AM$58,SMALL(IF((County=$AN$23:$AN$58),MATCH(ROW($AN$23:$AN$58),ROW($AN$23:$AN$58)),""),ROWS($A$23:$A74)))),"") ->  | AU74: =IFERROR(IF($Q$21="Yes",INDEX($AP$23:$AP$2323,SMALL(IF((County=$AQ$23:$AQ$2323),MATCH(ROW($AQ$23:$AQ$2323),ROW($AQ$23:$AQ$2323)),""),ROWS($A$23:$A74))),""),"") ->  | AW74: 32776 | AX74: Lake | AZ74: 3.14 | BA74: Manatee | BI74: Polk | BJ74: 2022-029C | BK74: Florence Place | BL74: 28.042382 | BM74: -81.727389 | BN74: F | BO74: N | BP74: Polk - Florence Place | BQ74: Family | BR74: (28.042382, -81.727389) | BS74: >30
A75: 34105 | B75: Collier | F75: 416 | G75: Broward | L75: 2 | M75: Bradford | O75: =IFERROR(IF($O$21="Metro",INDEX($F$23:$F$748,SMALL(IF((County=$G$23:$G$748),MATCH(ROW($G$23:$G$748),ROW($G$23:$G$748)),""),ROWS($A$23:A75))),INDEX($I$23:$I$52,SMALL(IF((County=$J$23:$J$52),MATCH(ROW($J$23:$J$52),ROW($J$23:$J$52)),""),ROWS($A$23:A75)))),"") ->  | Q75: =IFERROR(IF($Q$21="Yes",INDEX($L$23:$L$2323,SMALL(IF((County=$M$23:$M$2323),MATCH(ROW($M$23:$M$2323),ROW($M$23:$M$2323)),""),ROWS($A$23:A75))),""),"") ->  | S75: 32789 | T75: Orange | V75: 5.02 | W75: Marion | AB75: 3.02 | AC75: Collier | AE75: 32003 | AF75: Clay | AJ75: 413 | AK75: Broward | AS75: =IFERROR(IF($O$21="Metro",INDEX($AJ$23:$AJ$748,SMALL(IF((County=$AK$23:$AK$748),MATCH(ROW($AK$23:$AK$748),ROW($AK$23:$AK$748)),""),ROWS($A$23:$A75))),INDEX($AM$23:$AM$58,SMALL(IF((County=$AN$23:$AN$58),MATCH(ROW($AN$23:$AN$58),ROW($AN$23:$AN$58)),""),ROWS($A$23:$A75)))),"") ->  | AU75: =IFERROR(IF($Q$21="Yes",INDEX($AP$23:$AP$2323,SMALL(IF((County=$AQ$23:$AQ$2323),MATCH(ROW($AQ$23:$AQ$2323),ROW($AQ$23:$AQ$2323)),""),ROWS($A$23:$A75))),""),"") ->  | AW75: 32779 | AX75: Seminole | AZ75: 4 | BA75: Escambia | BI75: Polk | BJ75: 2020-308C | BK75: Park Ridge, f/k/a Oak Park Villas | BL75: 27.933172 | BM75: -81.965697 | BN75: F | BO75: N | BP75: Polk - Park Ridge, f/k/a Oak Park Villas | BQ75: Family | BR75: (27.933172, -81.965697) | BS75: >30
A76: 34108 | B76: Collier | F76: 417 | G76: Broward | L76: 3 | M76: Bradford | O76: =IFERROR(IF($O$21="Metro",INDEX($F$23:$F$748,SMALL(IF((County=$G$23:$G$748),MATCH(ROW($G$23:$G$748),ROW($G$23:$G$748)),""),ROWS($A$23:A76))),INDEX($I$23:$I$52,SMALL(IF((County=$J$23:$J$52),MATCH(ROW($J$23:$J$52),ROW($J$23:$J$52)),""),ROWS($A$23:A76)))),"") ->  | Q76: =IFERROR(IF($Q$21="Yes",INDEX($L$23:$L$2323,SMALL(IF((County=$M$23:$M$2323),MATCH(ROW($M$23:$M$2323),ROW($M$23:$M$2323)),""),ROWS($A$23:A76))),""),"") ->  | S76: 32792 | T76: Orange | V76: 5.03 | W76: Miami-Dade | AB76: 3.02 | AC76: Leon | AE76: 32079 | AF76: Clay | AJ76: 414 | AK76: Broward | AS76: =IFERROR(IF($O$21="Metro",INDEX($AJ$23:$AJ$748,SMALL(IF((County=$AK$23:$AK$748),MATCH(ROW($AK$23:$AK$748),ROW($AK$23:$AK$748)),""),ROWS($A$23:$A76))),INDEX($AM$23:$AM$58,SMALL(IF((County=$AN$23:$AN$58),MATCH(ROW($AN$23:$AN$58),ROW($AN$23:$AN$58)),""),ROWS($A$23:$A76)))),"") ->  | AU76: =IFERROR(IF($Q$21="Yes",INDEX($AP$23:$AP$2323,SMALL(IF((County=$AQ$23:$AQ$2323),MATCH(ROW($AQ$23:$AQ$2323),ROW($AQ$23:$AQ$2323)),""),ROWS($A$23:$A76))),""),"") ->  | AW76: 32789 | AX76: Orange | AZ76: 4 | BA76: Leon | BI76: Polk | BJ76: 2021-108C | BK76: Swan Landing | BL76: 28.08027 | BM76: -81.988982 | BN76: F | BO76: N | BP76: Polk - Swan Landing | BQ76: Family | BR76: (28.08027, -81.988982) | BS76: >30
A77: 34110 | B77: Collier | F77: 428 | G77: Broward | L77: 602 | M77: Brevard | O77: =IFERROR(IF($O$21="Metro",INDEX($F$23:$F$748,SMALL(IF((County=$G$23:$G$748),MATCH(ROW($G$23:$G$748),ROW($G$23:$G$748)),""),ROWS($A$23:A77))),INDEX($I$23:$I$52,SMALL(IF((County=$J$23:$J$52),MATCH(ROW($J$23:$J$52),ROW($J$23:$J$52)),""),ROWS($A$23:A77)))),"") ->  | Q77: =IFERROR(IF($Q$21="Yes",INDEX($L$23:$L$2323,SMALL(IF((County=$M$23:$M$2323),MATCH(ROW($M$23:$M$2323),ROW($M$23:$M$2323)),""),ROWS($A$23:A77))),""),"") ->  | S77: 32801 | T77: Orange | V77: 5.04 | W77: Lee | AB77: 3.03 | AC77: Palm Beach | AE77: 34103 | AF77: Collier | AJ77: 415 | AK77: Broward | AS77: =IFERROR(IF($O$21="Metro",INDEX($AJ$23:$AJ$748,SMALL(IF((County=$AK$23:$AK$748),MATCH(ROW($AK$23:$AK$748),ROW($AK$23:$AK$748)),""),ROWS($A$23:$A77))),INDEX($AM$23:$AM$58,SMALL(IF((County=$AN$23:$AN$58),MATCH(ROW($AN$23:$AN$58),ROW($AN$23:$AN$58)),""),ROWS($A$23:$A77)))),"") ->  | AU77: =IFERROR(IF($Q$21="Yes",INDEX($AP$23:$AP$2323,SMALL(IF((County=$AQ$23:$AQ$2323),MATCH(ROW($AQ$23:$AQ$2323),ROW($AQ$23:$AQ$2323)),""),ROWS($A$23:$A77))),""),"") ->  | AW77: 32792 | AX77: Orange | AZ77: 4.01 | BA77: Marion | BI77: Saint Johns | BJ77: 2022-043C | BK77: Villages of New Augustine - sites 1-3 | BL77: 29.89136 | BM77: -81.344566 | BN77: F | BO77: N | BP77: Saint Johns - Villages of New Augustine - sites 1-3 | BQ77: Family | BR77: (29.89136, -81.344566) | BS77: >30
A78: 34117 | B78: Collier | F78: 433.02 | G78: Broward | L78: 611 | M78: Brevard | O78: =IFERROR(IF($O$21="Metro",INDEX($F$23:$F$748,SMALL(IF((County=$G$23:$G$748),MATCH(ROW($G$23:$G$748),ROW($G$23:$G$748)),""),ROWS($A$23:A78))),INDEX($I$23:$I$52,SMALL(IF((County=$J$23:$J$52),MATCH(ROW($J$23:$J$52),ROW($J$23:$J$52)),""),ROWS($A$23:A78)))),"") ->  | Q78: =IFERROR(IF($Q$21="Yes",INDEX($L$23:$L$2323,SMALL(IF((County=$M$23:$M$2323),MATCH(ROW($M$23:$M$2323),ROW($M$23:$M$2323)),""),ROWS($A$23:A78))),""),"") ->  | S78: 32803 | T78: Orange | V78: 5.04 | W78: Miami-Dade | AB78: 3.04 | AC78: Palm Beach | AE78: 34105 | AF78: Collier | AJ78: 416.01 | AK78: Broward | AS78: =IFERROR(IF($O$21="Metro",INDEX($AJ$23:$AJ$748,SMALL(IF((County=$AK$23:$AK$748),MATCH(ROW($AK$23:$AK$748),ROW($AK$23:$AK$748)),""),ROWS($A$23:$A78))),INDEX($AM$23:$AM$58,SMALL(IF((County=$AN$23:$AN$58),MATCH(ROW($AN$23:$AN$58),ROW($AN$23:$AN$58)),""),ROWS($A$23:$A78)))),"") ->  | AU78: =IFERROR(IF($Q$21="Yes",INDEX($AP$23:$AP$2323,SMALL(IF((County=$AQ$23:$AQ$2323),MATCH(ROW($AQ$23:$AQ$2323),ROW($AQ$23:$AQ$2323)),""),ROWS($A$23:$A78))),""),"") ->  | AW78: 32801 | AX78: Orange | AZ78: 4.02 | BA78: Hillsborough | BI78: Saint Lucie | BJ78: 2021-090C | BK78: Blue Sky Landing II | BL78: 27.423637 | BM78: -80.377466 | BN78: F | BO78: N | BP78: Saint Lucie - Blue Sky Landing II | BQ78: Family | BR78: (27.423637, -80.377466) | BS78: >30
A79: 34119 | B79: Collier | F79: 502.08 | G79: Broward | L79: 612.01 | M79: Brevard | O79: =IFERROR(IF($O$21="Metro",INDEX($F$23:$F$748,SMALL(IF((County=$G$23:$G$748),MATCH(ROW($G$23:$G$748),ROW($G$23:$G$748)),""),ROWS($A$23:A79))),INDEX($I$23:$I$52,SMALL(IF((County=$J$23:$J$52),MATCH(ROW($J$23:$J$52),ROW($J$23:$J$52)),""),ROWS($A$23:A79)))),"") ->  | Q79: =IFERROR(IF($Q$21="Yes",INDEX($L$23:$L$2323,SMALL(IF((County=$M$23:$M$2323),MATCH(ROW($M$23:$M$2323),ROW($M$23:$M$2323)),""),ROWS($A$23:A79))),""),"") ->  | S79: 32804 | T79: Orange | V79: 5.05 | W79: Miami-Dade | AB79: 3.07 | AC79: Miami-Dade | AE79: 34108 | AF79: Collier | AJ79: 416.02 | AK79: Broward | AS79: =IFERROR(IF($O$21="Metro",INDEX($AJ$23:$AJ$748,SMALL(IF((County=$AK$23:$AK$748),MATCH(ROW($AK$23:$AK$748),ROW($AK$23:$AK$748)),""),ROWS($A$23:$A79))),INDEX($AM$23:$AM$58,SMALL(IF((County=$AN$23:$AN$58),MATCH(ROW($AN$23:$AN$58),ROW($AN$23:$AN$58)),""),ROWS($A$23:$A79)))),"") ->  | AU79: =IFERROR(IF($Q$21="Yes",INDEX($AP$23:$AP$2323,SMALL(IF((County=$AQ$23:$AQ$2323),MATCH(ROW($AQ$23:$AQ$2323),ROW($AQ$23:$AQ$2323)),""),ROWS($A$23:$A79))),""),"") ->  | AW79: 32803 | AX79: Orange | AZ79: 4.02 | BA79: Marion | BI79: Santa Rosa | BJ79: 2020-173C | BK79: Tranquility at Milton | BL79: 30.615003 | BM79: -87.058692 | BN79: F | BO79: N | BP79: Santa Rosa - Tranquility at Milton | BQ79: Family | BR79: (30.615003, -87.058692) | BS79: >30
A80: 34120 | B80: Collier | F80: 503.07 | G80: Broward | L80: 612.02 | M80: Brevard | O80: =IFERROR(IF($O$21="Metro",INDEX($F$23:$F$748,SMALL(IF((County=$G$23:$G$748),MATCH(ROW($G$23:$G$748),ROW($G$23:$G$748)),""),ROWS($A$23:A80))),INDEX($I$23:$I$52,SMALL(IF((County=$J$23:$J$52),MATCH(ROW($J$23:$J$52),ROW($J$23:$J$52)),""),ROWS($A$23:A80)))),"") ->  | Q80: =IFERROR(IF($Q$21="Yes",INDEX($L$23:$L$2323,SMALL(IF((County=$M$23:$M$2323),MATCH(ROW($M$23:$M$2323),ROW($M$23:$M$2323)),""),ROWS($A$23:A80))),""),"") ->  | S80: 32812 | T80: Orange | V80: 6 | W80: Duval | AB80: 4 | AC80: Martin | AE80: 34109 | AF80: Collier | AJ80: 417 | AK80: Broward | AS80: =IFERROR(IF($O$21="Metro",INDEX($AJ$23:$AJ$748,SMALL(IF((County=$AK$23:$AK$748),MATCH(ROW($AK$23:$AK$748),ROW($AK$23:$AK$748)),""),ROWS($A$23:$A80))),INDEX($AM$23:$AM$58,SMALL(IF((County=$AN$23:$AN$58),MATCH(ROW($AN$23:$AN$58),ROW($AN$23:$AN$58)),""),ROWS($A$23:$A80)))),"") ->  | AU80: =IFERROR(IF($Q$21="Yes",INDEX($AP$23:$AP$2323,SMALL(IF((County=$AQ$23:$AQ$2323),MATCH(ROW($AQ$23:$AQ$2323),ROW($AQ$23:$AQ$2323)),""),ROWS($A$23:$A80))),""),"") ->  | AW80: 32804 | AX80: Orange | AZ80: 4.02 | BA80: Miami-Dade | BI80: Sarasota | BJ80: 2021-253BSN | BK80: Arbor Park | BL80: 27.065444 | BM80: -82.159956 | BN80: E | BO80: N | BP80: Sarasota - Arbor Park | BQ80: Elderly, Non-ALF | BR80: (27.065444, -82.159956) | BS80: >30
A81: 34140 | B81: Collier | F81: 503.08 | G81: Broward | L81: 621.03 | M81: Brevard | O81: =IFERROR(IF($O$21="Metro",INDEX($F$23:$F$748,SMALL(IF((County=$G$23:$G$748),MATCH(ROW($G$23:$G$748),ROW($G$23:$G$748)),""),ROWS($A$23:A81))),INDEX($I$23:$I$52,SMALL(IF((County=$J$23:$J$52),MATCH(ROW($J$23:$J$52),ROW($J$23:$J$52)),""),ROWS($A$23:A81)))),"") ->  | Q81: =IFERROR(IF($Q$21="Yes",INDEX($L$23:$L$2323,SMALL(IF((County=$M$23:$M$2323),MATCH(ROW($M$23:$M$2323),ROW($M$23:$M$2323)),""),ROWS($A$23:A81))),""),"") ->  | S81: 32814 | T81: Orange | V81: 6 | W81: Escambia | AB81: 4.01 | AC81: Collier | AE81: 34110 | AF81: Collier | AJ81: 427 | AK81: Broward | AS81: =IFERROR(IF($O$21="Metro",INDEX($AJ$23:$AJ$748,SMALL(IF((County=$AK$23:$AK$748),MATCH(ROW($AK$23:$AK$748),ROW($AK$23:$AK$748)),""),ROWS($A$23:$A81))),INDEX($AM$23:$AM$58,SMALL(IF((County=$AN$23:$AN$58),MATCH(ROW($AN$23:$AN$58),ROW($AN$23:$AN$58)),""),ROWS($A$23:$A81)))),"") ->  | AU81: =IFERROR(IF($Q$21="Yes",INDEX($AP$23:$AP$2323,SMALL(IF((County=$AQ$23:$AQ$2323),MATCH(ROW($AQ$23:$AQ$2323),ROW($AQ$23:$AQ$2323)),""),ROWS($A$23:$A81))),""),"") ->  | AW81: 32806 | AX81: Orange | AZ81: 4.08 | BA81: Miami-Dade | BI81: Sarasota | BJ81: 2020-313C | BK81: Cypress Square fka Amaryllis Park Place II | BL81: 27.355917 | BM81: -82.537167 | BN81: F | BO81: N | BP81: Sarasota - Cypress Square fka Amaryllis Park Place II | BQ81: Family | BR81: (27.355917, -82.537167) | BS81: >30
A82: 34145 | B82: Collier | F82: 503.09 | G82: Broward | L82: 621.08 | M82: Brevard | O82: =IFERROR(IF($O$21="Metro",INDEX($F$23:$F$748,SMALL(IF((County=$G$23:$G$748),MATCH(ROW($G$23:$G$748),ROW($G$23:$G$748)),""),ROWS($A$23:A82))),INDEX($I$23:$I$52,SMALL(IF((County=$J$23:$J$52),MATCH(ROW($J$23:$J$52),ROW($J$23:$J$52)),""),ROWS($A$23:A82)))),"") ->  | Q82: =IFERROR(IF($Q$21="Yes",INDEX($L$23:$L$2323,SMALL(IF((County=$M$23:$M$2323),MATCH(ROW($M$23:$M$2323),ROW($M$23:$M$2323)),""),ROWS($A$23:A82))),""),"") ->  | S82: 32817 | T82: Orange | V82: 6 | W82: Lee | AB82: 4.01 | AC82: Hendry | AE82: 34117 | AF82: Collier | AJ82: 428.01 | AK82: Broward | AS82: =IFERROR(IF($O$21="Metro",INDEX($AJ$23:$AJ$748,SMALL(IF((County=$AK$23:$AK$748),MATCH(ROW($AK$23:$AK$748),ROW($AK$23:$AK$748)),""),ROWS($A$23:$A82))),INDEX($AM$23:$AM$58,SMALL(IF((County=$AN$23:$AN$58),MATCH(ROW($AN$23:$AN$58),ROW($AN$23:$AN$58)),""),ROWS($A$23:$A82)))),"") ->  | AU82: =IFERROR(IF($Q$21="Yes",INDEX($AP$23:$AP$2323,SMALL(IF((County=$AQ$23:$AQ$2323),MATCH(ROW($AQ$23:$AQ$2323),ROW($AQ$23:$AQ$2323)),""),ROWS($A$23:$A82))),""),"") ->  | AW82: 32811 | AX82: Orange | AZ82: 4.11 | BA82: Miami-Dade | BI82: Seminole | BJ82: 2022-022C | BK82: Banyan East Town Apartments | BL82: 28.668277 | BM82: -81.357022 | BN82: F | BO82: N | BP82: Seminole - Banyan East Town Apartments | BQ82: Family | BR82: (28.668277, -81.357022) | BS82: >30
A83: 32212 | B83: Duval | F83: 503.11 | G83: Broward | L83: 621.09 | M83: Brevard | O83: =IFERROR(IF($O$21="Metro",INDEX($F$23:$F$748,SMALL(IF((County=$G$23:$G$748),MATCH(ROW($G$23:$G$748),ROW($G$23:$G$748)),""),ROWS($A$23:A83))),INDEX($I$23:$I$52,SMALL(IF((County=$J$23:$J$52),MATCH(ROW($J$23:$J$52),ROW($J$23:$J$52)),""),ROWS($A$23:A83)))),"") ->  | Q83: =IFERROR(IF($Q$21="Yes",INDEX($L$23:$L$2323,SMALL(IF((County=$M$23:$M$2323),MATCH(ROW($M$23:$M$2323),ROW($M$23:$M$2323)),""),ROWS($A$23:A83))),""),"") ->  | S83: 32819 | T83: Orange | V83: 6 | W83: Leon | AB83: 4.02 | AC83: Collier | AE83: 34119 | AF83: Collier | AJ83: 428.02 | AK83: Broward | AS83: =IFERROR(IF($O$21="Metro",INDEX($AJ$23:$AJ$748,SMALL(IF((County=$AK$23:$AK$748),MATCH(ROW($AK$23:$AK$748),ROW($AK$23:$AK$748)),""),ROWS($A$23:$A83))),INDEX($AM$23:$AM$58,SMALL(IF((County=$AN$23:$AN$58),MATCH(ROW($AN$23:$AN$58),ROW($AN$23:$AN$58)),""),ROWS($A$23:$A83)))),"") ->  | AU83: =IFERROR(IF($Q$21="Yes",INDEX($AP$23:$AP$2323,SMALL(IF((County=$AQ$23:$AQ$2323),MATCH(ROW($AQ$23:$AQ$2323),ROW($AQ$23:$AQ$2323)),""),ROWS($A$23:$A83))),""),"") ->  | AW83: 32812 | AX83: Orange | AZ83: 4.14 | BA83: Miami-Dade | BI83: Seminole | BJ83: 2021-083C | BK83: Monroe Place | BL83: 28.813414 | BM83: -81.292023 | BN83: E | BO83: N | BP83: Seminole - Monroe Place | BQ83: Elderly, Non-ALF | BR83: (28.813414, -81.292023) | BS83: >30
A84: 32222 | B84: Duval | F84: 507.02 | G84: Broward | L84: 628 | M84: Brevard | O84: =IFERROR(IF($O$21="Metro",INDEX($F$23:$F$748,SMALL(IF((County=$G$23:$G$748),MATCH(ROW($G$23:$G$748),ROW($G$23:$G$748)),""),ROWS($A$23:A84))),INDEX($I$23:$I$52,SMALL(IF((County=$J$23:$J$52),MATCH(ROW($J$23:$J$52),ROW($J$23:$J$52)),""),ROWS($A$23:A84)))),"") ->  | Q84: =IFERROR(IF($Q$21="Yes",INDEX($L$23:$L$2323,SMALL(IF((County=$M$23:$M$2323),MATCH(ROW($M$23:$M$2323),ROW($M$23:$M$2323)),""),ROWS($A$23:A84))),""),"") ->  | S84: 32820 | T84: Orange | V84: 6.01 | W84: Hillsborough | AB84: 4.02 | AC84: Hendry | AE84: 34120 | AF84: Collier | AJ84: 502.08 | AK84: Broward | AS84: =IFERROR(IF($O$21="Metro",INDEX($AJ$23:$AJ$748,SMALL(IF((County=$AK$23:$AK$748),MATCH(ROW($AK$23:$AK$748),ROW($AK$23:$AK$748)),""),ROWS($A$23:$A84))),INDEX($AM$23:$AM$58,SMALL(IF((County=$AN$23:$AN$58),MATCH(ROW($AN$23:$AN$58),ROW($AN$23:$AN$58)),""),ROWS($A$23:$A84)))),"") ->  | AU84: =IFERROR(IF($Q$21="Yes",INDEX($AP$23:$AP$2323,SMALL(IF((County=$AQ$23:$AQ$2323),MATCH(ROW($AQ$23:$AQ$2323),ROW($AQ$23:$AQ$2323)),""),ROWS($A$23:$A84))),""),"") ->  | AW84: 32814 | AX84: Orange | AZ84: 4.15 | BA84: Miami-Dade | BI84: Seminole | BJ84: 2021-255SN | BK84: Somerset Landings | BL84: 28.809565 | BM84: -81.281761 | BN84: F | BO84: N | BP84: Seminole - Somerset Landings | BQ84: Family | BR84: (28.809565, -81.281761) | BS84: >30
A85: 32224 | B85: Duval | F85: 508 | G85: Broward | L85: 630 | M85: Brevard | O85: =IFERROR(IF($O$21="Metro",INDEX($F$23:$F$748,SMALL(IF((County=$G$23:$G$748),MATCH(ROW($G$23:$G$748),ROW($G$23:$G$748)),""),ROWS($A$23:A85))),INDEX($I$23:$I$52,SMALL(IF((County=$J$23:$J$52),MATCH(ROW($J$23:$J$52),ROW($J$23:$J$52)),""),ROWS($A$23:A85)))),"") ->  | Q85: =IFERROR(IF($Q$21="Yes",INDEX($L$23:$L$2323,SMALL(IF((County=$M$23:$M$2323),MATCH(ROW($M$23:$M$2323),ROW($M$23:$M$2323)),""),ROWS($A$23:A85))),""),"") ->  | S85: 32821 | T85: Orange | V85: 6.01 | W85: Miami-Dade | AB85: 4.03 | AC85: Manatee | AE85: 34140 | AF85: Collier | AJ85: 503.08 | AK85: Broward | AS85: =IFERROR(IF($O$21="Metro",INDEX($AJ$23:$AJ$748,SMALL(IF((County=$AK$23:$AK$748),MATCH(ROW($AK$23:$AK$748),ROW($AK$23:$AK$748)),""),ROWS($A$23:$A85))),INDEX($AM$23:$AM$58,SMALL(IF((County=$AN$23:$AN$58),MATCH(ROW($AN$23:$AN$58),ROW($AN$23:$AN$58)),""),ROWS($A$23:$A85)))),"") ->  | AU85: =IFERROR(IF($Q$21="Yes",INDEX($AP$23:$AP$2323,SMALL(IF((County=$AQ$23:$AQ$2323),MATCH(ROW($AQ$23:$AQ$2323),ROW($AQ$23:$AQ$2323)),""),ROWS($A$23:$A85))),""),"") ->  | AW85: 32817 | AX85: Orange | AZ85: 4.16 | BA85: Miami-Dade | BI85: Volusia | BJ85: 2022-075C | BK85: Bristol Manor | BL85: 28.916706 | BM85: -81.275325 | BN85: E | BO85: N | BP85: Volusia - Bristol Manor | BQ85: Elderly, Non-ALF | BR85: (28.916706, -81.275325) | BS85: >30
A86: 32226 | B86: Duval | F86: 602.03 | G86: Broward | L86: 631.02 | M86: Brevard | O86: =IFERROR(IF($O$21="Metro",INDEX($F$23:$F$748,SMALL(IF((County=$G$23:$G$748),MATCH(ROW($G$23:$G$748),ROW($G$23:$G$748)),""),ROWS($A$23:A86))),INDEX($I$23:$I$52,SMALL(IF((County=$J$23:$J$52),MATCH(ROW($J$23:$J$52),ROW($J$23:$J$52)),""),ROWS($A$23:A86)))),"") ->  | Q86: =IFERROR(IF($Q$21="Yes",INDEX($L$23:$L$2323,SMALL(IF((County=$M$23:$M$2323),MATCH(ROW($M$23:$M$2323),ROW($M$23:$M$2323)),""),ROWS($A$23:A86))),""),"") ->  | S86: 32824 | T86: Orange | V86: 6.02 | W86: Hillsborough | AB86: 4.04 | AC86: Sarasota | AE86: 34145 | AF86: Collier | AJ86: 503.09 | AK86: Broward | AS86: =IFERROR(IF($O$21="Metro",INDEX($AJ$23:$AJ$748,SMALL(IF((County=$AK$23:$AK$748),MATCH(ROW($AK$23:$AK$748),ROW($AK$23:$AK$748)),""),ROWS($A$23:$A86))),INDEX($AM$23:$AM$58,SMALL(IF((County=$AN$23:$AN$58),MATCH(ROW($AN$23:$AN$58),ROW($AN$23:$AN$58)),""),ROWS($A$23:$A86)))),"") ->  | AU86: =IFERROR(IF($Q$21="Yes",INDEX($AP$23:$AP$2323,SMALL(IF((County=$AQ$23:$AQ$2323),MATCH(ROW($AQ$23:$AQ$2323),ROW($AQ$23:$AQ$2323)),""),ROWS($A$23:$A86))),""),"") ->  | AW86: 32819 | AX86: Orange | AZ86: 4.17 | BA86: Miami-Dade | BI86: Volusia | BJ86: 2020-311C | BK86: Greenlawn Manor, f/k/a Westside Phase I - sites 1-3 | BL86: 29.0287278 | BM86: -80.9377917 | BN86: E | BO86: N | BP86: Volusia - Greenlawn Manor, f/k/a Westside Phase I - sites 1-3 | BQ86: Elderly, Non-ALF | BR86: (29.0287278, -80.9377917) | BS86: >30
A87: 32227 | B87: Duval | F87: 603.02 | G87: Broward | L87: 631.04 | M87: Brevard | O87: =IFERROR(IF($O$21="Metro",INDEX($F$23:$F$748,SMALL(IF((County=$G$23:$G$748),MATCH(ROW($G$23:$G$748),ROW($G$23:$G$748)),""),ROWS($A$23:A87))),INDEX($I$23:$I$52,SMALL(IF((County=$J$23:$J$52),MATCH(ROW($J$23:$J$52),ROW($J$23:$J$52)),""),ROWS($A$23:A87)))),"") ->  | Q87: =IFERROR(IF($Q$21="Yes",INDEX($L$23:$L$2323,SMALL(IF((County=$M$23:$M$2323),MATCH(ROW($M$23:$M$2323),ROW($M$23:$M$2323)),""),ROWS($A$23:A87))),""),"") ->  | S87: 32827 | T87: Orange | V87: 6.02 | W87: Miami-Dade | AB87: 4.05 | AC87: Manatee | AE87: 32212 | AF87: Duval | AJ87: 503.11 | AK87: Broward | AS87: =IFERROR(IF($O$21="Metro",INDEX($AJ$23:$AJ$748,SMALL(IF((County=$AK$23:$AK$748),MATCH(ROW($AK$23:$AK$748),ROW($AK$23:$AK$748)),""),ROWS($A$23:$A87))),INDEX($AM$23:$AM$58,SMALL(IF((County=$AN$23:$AN$58),MATCH(ROW($AN$23:$AN$58),ROW($AN$23:$AN$58)),""),ROWS($A$23:$A87)))),"") ->  | AU87: =IFERROR(IF($Q$21="Yes",INDEX($AP$23:$AP$2323,SMALL(IF((County=$AQ$23:$AQ$2323),MATCH(ROW($AQ$23:$AQ$2323),ROW($AQ$23:$AQ$2323)),""),ROWS($A$23:$A87))),""),"") ->  | AW87: 32820 | AX87: Orange | AZ87: 4.18 | BA87: Miami-Dade | BI87: Wakulla | BJ87: 2021-288H | BK87: Greyes Place Phase II | BL87: 30.173934 | BM87: -84.379789 | BN87: F | BO87: Y | BP87: Wakulla - Greyes Place Phase II | BQ87: Family | BR87: (30.173934, -84.379789) | BS87: <31
A88: 32228 | B88: Duval | F88: 603.03 | G88: Broward | L88: 631.05 | M88: Brevard | O88: =IFERROR(IF($O$21="Metro",INDEX($F$23:$F$748,SMALL(IF((County=$G$23:$G$748),MATCH(ROW($G$23:$G$748),ROW($G$23:$G$748)),""),ROWS($A$23:A88))),INDEX($I$23:$I$52,SMALL(IF((County=$J$23:$J$52),MATCH(ROW($J$23:$J$52),ROW($J$23:$J$52)),""),ROWS($A$23:A88)))),"") ->  | Q88: =IFERROR(IF($Q$21="Yes",INDEX($L$23:$L$2323,SMALL(IF((County=$M$23:$M$2323),MATCH(ROW($M$23:$M$2323),ROW($M$23:$M$2323)),""),ROWS($A$23:A88))),""),"") ->  | S88: 32828 | T88: Orange | V88: 6.03 | W88: Miami-Dade | AB88: 4.05 | AC88: Palm Beach | AE88: 32224 | AF88: Duval | AJ88: 503.12 | AK88: Broward | AS88: =IFERROR(IF($O$21="Metro",INDEX($AJ$23:$AJ$748,SMALL(IF((County=$AK$23:$AK$748),MATCH(ROW($AK$23:$AK$748),ROW($AK$23:$AK$748)),""),ROWS($A$23:$A88))),INDEX($AM$23:$AM$58,SMALL(IF((County=$AN$23:$AN$58),MATCH(ROW($AN$23:$AN$58),ROW($AN$23:$AN$58)),""),ROWS($A$23:$A88)))),"") ->  | AU88: =IFERROR(IF($Q$21="Yes",INDEX($AP$23:$AP$2323,SMALL(IF((County=$AQ$23:$AQ$2323),MATCH(ROW($AQ$23:$AQ$2323),ROW($AQ$23:$AQ$2323)),""),ROWS($A$23:$A88))),""),"") ->  | AW88: 32821 | AX88: Orange | AZ88: 5.01 | BA88: Leon | BI88: Walton | BJ88: 2021-136C | BK88: Rosemary Place | BL88: 30.506656 | BM88: -86.137402 | BN88: F | BO88: N | BP88: Walton - Rosemary Place | BQ88: Family | BR88: (30.506656, -86.137402) | BS88: >30
A89: 32256 | B89: Duval | F89: 603.04 | G89: Broward | L89: 631.06 | M89: Brevard | O89: =IFERROR(IF($O$21="Metro",INDEX($F$23:$F$748,SMALL(IF((County=$G$23:$G$748),MATCH(ROW($G$23:$G$748),ROW($G$23:$G$748)),""),ROWS($A$23:A89))),INDEX($I$23:$I$52,SMALL(IF((County=$J$23:$J$52),MATCH(ROW($J$23:$J$52),ROW($J$23:$J$52)),""),ROWS($A$23:A89)))),"") ->  | Q89: =IFERROR(IF($Q$21="Yes",INDEX($L$23:$L$2323,SMALL(IF((County=$M$23:$M$2323),MATCH(ROW($M$23:$M$2323),ROW($M$23:$M$2323)),""),ROWS($A$23:A89))),""),"") ->  | S89: 32829 | T89: Orange | V89: 6.04 | W89: Manatee | AB89: 4.05 | AC89: Sarasota | AE89: 32225 | AF89: Duval | AJ89: 503.13 | AK89: Broward | AS89: =IFERROR(IF($O$21="Metro",INDEX($AJ$23:$AJ$748,SMALL(IF((County=$AK$23:$AK$748),MATCH(ROW($AK$23:$AK$748),ROW($AK$23:$AK$748)),""),ROWS($A$23:$A89))),INDEX($AM$23:$AM$58,SMALL(IF((County=$AN$23:$AN$58),MATCH(ROW($AN$23:$AN$58),ROW($AN$23:$AN$58)),""),ROWS($A$23:$A89)))),"") ->  | AU89: =IFERROR(IF($Q$21="Yes",INDEX($AP$23:$AP$2323,SMALL(IF((County=$AQ$23:$AQ$2323),MATCH(ROW($AQ$23:$AQ$2323),ROW($AQ$23:$AQ$2323)),""),ROWS($A$23:$A89))),""),"") ->  | AW89: 32822 | AX89: Orange | AZ89: 5.02 | BA89: Lee
A90: 32258 | B90: Duval | F90: 604.01 | G90: Broward | L90: 631.07 | M90: Brevard | O90: =IFERROR(IF($O$21="Metro",INDEX($F$23:$F$748,SMALL(IF((County=$G$23:$G$748),MATCH(ROW($G$23:$G$748),ROW($G$23:$G$748)),""),ROWS($A$23:A90))),INDEX($I$23:$I$52,SMALL(IF((County=$J$23:$J$52),MATCH(ROW($J$23:$J$52),ROW($J$23:$J$52)),""),ROWS($A$23:A90)))),"") ->  | Q90: =IFERROR(IF($Q$21="Yes",INDEX($L$23:$L$2323,SMALL(IF((County=$M$23:$M$2323),MATCH(ROW($M$23:$M$2323),ROW($M$23:$M$2323)),""),ROWS($A$23:A90))),""),"") ->  | S90: 32831 | T90: Orange | V90: 6.04 | W90: Marion | AB90: 4.06 | AC90: Palm Beach | AE90: 32226 | AF90: Duval | AJ90: 503.14 | AK90: Broward | AS90: =IFERROR(IF($O$21="Metro",INDEX($AJ$23:$AJ$748,SMALL(IF((County=$AK$23:$AK$748),MATCH(ROW($AK$23:$AK$748),ROW($AK$23:$AK$748)),""),ROWS($A$23:$A90))),INDEX($AM$23:$AM$58,SMALL(IF((County=$AN$23:$AN$58),MATCH(ROW($AN$23:$AN$58),ROW($AN$23:$AN$58)),""),ROWS($A$23:$A90)))),"") ->  | AU90: =IFERROR(IF($Q$21="Yes",INDEX($AP$23:$AP$2323,SMALL(IF((County=$AQ$23:$AQ$2323),MATCH(ROW($AQ$23:$AQ$2323),ROW($AQ$23:$AQ$2323)),""),ROWS($A$23:$A90))),""),"") ->  | AW90: 32824 | AX90: Orange | AZ90: 5.02 | BA90: Leon
A91: 32266 | B91: Duval | F91: 611 | G91: Broward | L91: 641.02 | M91: Brevard | O91: =IFERROR(IF($O$21="Metro",INDEX($F$23:$F$748,SMALL(IF((County=$G$23:$G$748),MATCH(ROW($G$23:$G$748),ROW($G$23:$G$748)),""),ROWS($A$23:A91))),INDEX($I$23:$I$52,SMALL(IF((County=$J$23:$J$52),MATCH(ROW($J$23:$J$52),ROW($J$23:$J$52)),""),ROWS($A$23:A91)))),"") ->  | Q91: =IFERROR(IF($Q$21="Yes",INDEX($L$23:$L$2323,SMALL(IF((County=$M$23:$M$2323),MATCH(ROW($M$23:$M$2323),ROW($M$23:$M$2323)),""),ROWS($A$23:A91))),""),"") ->  | S91: 32832 | T91: Orange | V91: 6.05 | W91: Marion | AB91: 4.07 | AC91: Manatee | AE91: 32227 | AF91: Duval | AJ91: 507.02 | AK91: Broward | AS91: =IFERROR(IF($O$21="Metro",INDEX($AJ$23:$AJ$748,SMALL(IF((County=$AK$23:$AK$748),MATCH(ROW($AK$23:$AK$748),ROW($AK$23:$AK$748)),""),ROWS($A$23:$A91))),INDEX($AM$23:$AM$58,SMALL(IF((County=$AN$23:$AN$58),MATCH(ROW($AN$23:$AN$58),ROW($AN$23:$AN$58)),""),ROWS($A$23:$A91)))),"") ->  | AU91: =IFERROR(IF($Q$21="Yes",INDEX($AP$23:$AP$2323,SMALL(IF((County=$AQ$23:$AQ$2323),MATCH(ROW($AQ$23:$AQ$2323),ROW($AQ$23:$AQ$2323)),""),ROWS($A$23:$A91))),""),"") ->  | AW91: 32827 | AX91: Orange | AZ91: 5.03 | BA91: Sarasota | BM91: <select one> | BP91: <select one>
A92: 32508 | B92: Escambia | F92: 805 | G92: Broward | L92: 641.23 | M92: Brevard | O92: =IFERROR(IF($O$21="Metro",INDEX($F$23:$F$748,SMALL(IF((County=$G$23:$G$748),MATCH(ROW($G$23:$G$748),ROW($G$23:$G$748)),""),ROWS($A$23:A92))),INDEX($I$23:$I$52,SMALL(IF((County=$J$23:$J$52),MATCH(ROW($J$23:$J$52),ROW($J$23:$J$52)),""),ROWS($A$23:A92)))),"") ->  | Q92: =IFERROR(IF($Q$21="Yes",INDEX($L$23:$L$2323,SMALL(IF((County=$M$23:$M$2323),MATCH(ROW($M$23:$M$2323),ROW($M$23:$M$2323)),""),ROWS($A$23:A92))),""),"") ->  | S92: 32833 | T92: Orange | V92: 6.05 | W92: Miami-Dade | AB92: 4.07 | AC92: Palm Beach | AE92: 32228 | AF92: Duval | AJ92: 508 | AK92: Broward | AS92: =IFERROR(IF($O$21="Metro",INDEX($AJ$23:$AJ$748,SMALL(IF((County=$AK$23:$AK$748),MATCH(ROW($AK$23:$AK$748),ROW($AK$23:$AK$748)),""),ROWS($A$23:$A92))),INDEX($AM$23:$AM$58,SMALL(IF((County=$AN$23:$AN$58),MATCH(ROW($AN$23:$AN$58),ROW($AN$23:$AN$58)),""),ROWS($A$23:$A92)))),"") ->  | AU92: =IFERROR(IF($Q$21="Yes",INDEX($AP$23:$AP$2323,SMALL(IF((County=$AQ$23:$AQ$2323),MATCH(ROW($AQ$23:$AQ$2323),ROW($AQ$23:$AQ$2323)),""),ROWS($A$23:$A92))),""),"") ->  | AW92: 32828 | AX92: Orange | AZ92: 5.04 | BA92: Lee | BM92: Cutler Ridge | BN92: Tier 1 | BP92: =BM92&" - "&BN92 -> Cutler Ridge - Tier 1
A93: 32456 | B93: Gulf | F93: 903.01 | G93: Broward | L93: 641.25 | M93: Brevard | O93: =IFERROR(IF($O$21="Metro",INDEX($F$23:$F$748,SMALL(IF((County=$G$23:$G$748),MATCH(ROW($G$23:$G$748),ROW($G$23:$G$748)),""),ROWS($A$23:A93))),INDEX($I$23:$I$52,SMALL(IF((County=$J$23:$J$52),MATCH(ROW($J$23:$J$52),ROW($J$23:$J$52)),""),ROWS($A$23:A93)))),"") ->  | Q93: =IFERROR(IF($Q$21="Yes",INDEX($L$23:$L$2323,SMALL(IF((County=$M$23:$M$2323),MATCH(ROW($M$23:$M$2323),ROW($M$23:$M$2323)),""),ROWS($A$23:A93))),""),"") ->  | S93: 32835 | T93: Orange | V93: 6.08 | W93: Miami-Dade | AB93: 4.08 | AC93: Palm Beach | AE93: 32250 | AF93: Duval | AJ93: 602.03 | AK93: Broward | AS93: =IFERROR(IF($O$21="Metro",INDEX($AJ$23:$AJ$748,SMALL(IF((County=$AK$23:$AK$748),MATCH(ROW($AK$23:$AK$748),ROW($AK$23:$AK$748)),""),ROWS($A$23:$A93))),INDEX($AM$23:$AM$58,SMALL(IF((County=$AN$23:$AN$58),MATCH(ROW($AN$23:$AN$58),ROW($AN$23:$AN$58)),""),ROWS($A$23:$A93)))),"") ->  | AU93: =IFERROR(IF($Q$21="Yes",INDEX($AP$23:$AP$2323,SMALL(IF((County=$AQ$23:$AQ$2323),MATCH(ROW($AQ$23:$AQ$2323),ROW($AQ$23:$AQ$2323)),""),ROWS($A$23:$A93))),""),"") ->  | AW93: 32829 | AX93: Orange | AZ93: 5.04 | BA93: Miami-Dade | BM93: Downtown Kendall | BN93: Tier 1 | BP93: Downtown Kendall - Tier 1
A94: 34609 | B94: Hernando | F94: 904.03 | G94: Broward | L94: 641.26 | M94: Brevard | O94: =IFERROR(IF($O$21="Metro",INDEX($F$23:$F$748,SMALL(IF((County=$G$23:$G$748),MATCH(ROW($G$23:$G$748),ROW($G$23:$G$748)),""),ROWS($A$23:A94))),INDEX($I$23:$I$52,SMALL(IF((County=$J$23:$J$52),MATCH(ROW($J$23:$J$52),ROW($J$23:$J$52)),""),ROWS($A$23:A94)))),"") ->  | Q94: =IFERROR(IF($Q$21="Yes",INDEX($L$23:$L$2323,SMALL(IF((County=$M$23:$M$2323),MATCH(ROW($M$23:$M$2323),ROW($M$23:$M$2323)),""),ROWS($A$23:A94))),""),"") ->  | S94: 32836 | T94: Orange | V94: 7 | W94: Collier | AB94: 4.09 | AC94: Miami-Dade | AE94: 32256 | AF94: Duval | AJ94: 603.02 | AK94: Broward | AS94: =IFERROR(IF($O$21="Metro",INDEX($AJ$23:$AJ$748,SMALL(IF((County=$AK$23:$AK$748),MATCH(ROW($AK$23:$AK$748),ROW($AK$23:$AK$748)),""),ROWS($A$23:$A94))),INDEX($AM$23:$AM$58,SMALL(IF((County=$AN$23:$AN$58),MATCH(ROW($AN$23:$AN$58),ROW($AN$23:$AN$58)),""),ROWS($A$23:$A94)))),"") ->  | AU94: =IFERROR(IF($Q$21="Yes",INDEX($AP$23:$AP$2323,SMALL(IF((County=$AQ$23:$AQ$2323),MATCH(ROW($AQ$23:$AQ$2323),ROW($AQ$23:$AQ$2323)),""),ROWS($A$23:$A94))),""),"") ->  | AW94: 32831 | AX94: Orange | AZ94: 5.05 | BA94: Miami-Dade | BM94: Goulds | BN94: Tier 2 | BP94: Goulds - Tier 2
A95: 33872 | B95: Highlands | F95: 1004 | G95: Broward | L95: 641.27 | M95: Brevard | O95: =IFERROR(IF($O$21="Metro",INDEX($F$23:$F$748,SMALL(IF((County=$G$23:$G$748),MATCH(ROW($G$23:$G$748),ROW($G$23:$G$748)),""),ROWS($A$23:A95))),INDEX($I$23:$I$52,SMALL(IF((County=$J$23:$J$52),MATCH(ROW($J$23:$J$52),ROW($J$23:$J$52)),""),ROWS($A$23:A95)))),"") ->  | Q95: =IFERROR(IF($Q$21="Yes",INDEX($L$23:$L$2323,SMALL(IF((County=$M$23:$M$2323),MATCH(ROW($M$23:$M$2323),ROW($M$23:$M$2323)),""),ROWS($A$23:A95))),""),"") ->  | S95: 32837 | T95: Orange | V95: 7 | W95: Hillsborough | AB95: 4.1 | AC95: Miami-Dade | AE95: 32258 | AF95: Duval | AJ95: 603.03 | AK95: Broward | AS95: =IFERROR(IF($O$21="Metro",INDEX($AJ$23:$AJ$748,SMALL(IF((County=$AK$23:$AK$748),MATCH(ROW($AK$23:$AK$748),ROW($AK$23:$AK$748)),""),ROWS($A$23:$A95))),INDEX($AM$23:$AM$58,SMALL(IF((County=$AN$23:$AN$58),MATCH(ROW($AN$23:$AN$58),ROW($AN$23:$AN$58)),""),ROWS($A$23:$A95)))),"") ->  | AU95: =IFERROR(IF($Q$21="Yes",INDEX($AP$23:$AP$2323,SMALL(IF((County=$AQ$23:$AQ$2323),MATCH(ROW($AQ$23:$AQ$2323),ROW($AQ$23:$AQ$2323)),""),ROWS($A$23:$A95))),""),"") ->  | AW95: 32832 | AX95: Orange | AZ95: 5.06 | BA95: Miami-Dade | BM95: Leisure City | BN95: Tier 2 | BP95: Leisure City - Tier 2
A96: 33875 | B96: Highlands | F96: 1005.02 | G96: Broward | L96: 641.28 | M96: Brevard | O96: =IFERROR(IF($O$21="Metro",INDEX($F$23:$F$748,SMALL(IF((County=$G$23:$G$748),MATCH(ROW($G$23:$G$748),ROW($G$23:$G$748)),""),ROWS($A$23:A96))),INDEX($I$23:$I$52,SMALL(IF((County=$J$23:$J$52),MATCH(ROW($J$23:$J$52),ROW($J$23:$J$52)),""),ROWS($A$23:A96)))),"") ->  | Q96: =IFERROR(IF($Q$21="Yes",INDEX($L$23:$L$2323,SMALL(IF((County=$M$23:$M$2323),MATCH(ROW($M$23:$M$2323),ROW($M$23:$M$2323)),""),ROWS($A$23:A96))),""),"") ->  | S96: 32903 | T96: Brevard | V96: 7 | W96: Lee | AB96: 4.1 | AC96: Palm Beach | AE96: 32266 | AF96: Duval | AJ96: 603.04 | AK96: Broward | AS96: =IFERROR(IF($O$21="Metro",INDEX($AJ$23:$AJ$748,SMALL(IF((County=$AK$23:$AK$748),MATCH(ROW($AK$23:$AK$748),ROW($AK$23:$AK$748)),""),ROWS($A$23:$A96))),INDEX($AM$23:$AM$58,SMALL(IF((County=$AN$23:$AN$58),MATCH(ROW($AN$23:$AN$58),ROW($AN$23:$AN$58)),""),ROWS($A$23:$A96)))),"") ->  | AU96: =IFERROR(IF($Q$21="Yes",INDEX($AP$23:$AP$2323,SMALL(IF((County=$AQ$23:$AQ$2323),MATCH(ROW($AQ$23:$AQ$2323),ROW($AQ$23:$AQ$2323)),""),ROWS($A$23:$A96))),""),"") ->  | AW96: 32833 | AX96: Orange | AZ96: 5.07 | BA96: Miami-Dade | BM96: Model City | BN96: Tier 2 | BP96: Model City - Tier 2
A97: 33876 | B97: Highlands | F97: 1007 | G97: Broward | L97: 644 | M97: Brevard | O97: =IFERROR(IF($O$21="Metro",INDEX($F$23:$F$748,SMALL(IF((County=$G$23:$G$748),MATCH(ROW($G$23:$G$748),ROW($G$23:$G$748)),""),ROWS($A$23:A97))),INDEX($I$23:$I$52,SMALL(IF((County=$J$23:$J$52),MATCH(ROW($J$23:$J$52),ROW($J$23:$J$52)),""),ROWS($A$23:A97)))),"") ->  | Q97: =IFERROR(IF($Q$21="Yes",INDEX($L$23:$L$2323,SMALL(IF((County=$M$23:$M$2323),MATCH(ROW($M$23:$M$2323),ROW($M$23:$M$2323)),""),ROWS($A$23:A97))),""),"") ->  | S97: 32904 | T97: Brevard | V97: 7.04 | W97: Manatee | AB97: 5 | AC97: Alachua | AE97: 32456 | AF97: Gulf | AJ97: 604.01 | AK97: Broward | AS97: =IFERROR(IF($O$21="Metro",INDEX($AJ$23:$AJ$748,SMALL(IF((County=$AK$23:$AK$748),MATCH(ROW($AK$23:$AK$748),ROW($AK$23:$AK$748)),""),ROWS($A$23:$A97))),INDEX($AM$23:$AM$58,SMALL(IF((County=$AN$23:$AN$58),MATCH(ROW($AN$23:$AN$58),ROW($AN$23:$AN$58)),""),ROWS($A$23:$A97)))),"") ->  | AU97: =IFERROR(IF($Q$21="Yes",INDEX($AP$23:$AP$2323,SMALL(IF((County=$AQ$23:$AQ$2323),MATCH(ROW($AQ$23:$AQ$2323),ROW($AQ$23:$AQ$2323)),""),ROWS($A$23:$A97))),""),"") ->  | AW97: 32835 | AX97: Orange | AZ97: 5.08 | BA97: Miami-Dade | BM97: Naranja | BN97: ="Tier "&IF(OR(Demographic="Elderly Non-ALF",Demographic="Elderly ALF"),1,2) -> Tier 2 | BP97: Naranja - Tier 2
A98: 33503 | B98: Hillsborough | F98: 1008.01 | G98: Broward | L98: 646.01 | M98: Brevard | O98: =IFERROR(IF($O$21="Metro",INDEX($F$23:$F$748,SMALL(IF((County=$G$23:$G$748),MATCH(ROW($G$23:$G$748),ROW($G$23:$G$748)),""),ROWS($A$23:A98))),INDEX($I$23:$I$52,SMALL(IF((County=$J$23:$J$52),MATCH(ROW($J$23:$J$52),ROW($J$23:$J$52)),""),ROWS($A$23:A98)))),"") ->  | Q98: =IFERROR(IF($Q$21="Yes",INDEX($L$23:$L$2323,SMALL(IF((County=$M$23:$M$2323),MATCH(ROW($M$23:$M$2323),ROW($M$23:$M$2323)),""),ROWS($A$23:A98))),""),"") ->  | S98: 32908 | T98: Brevard | V98: 7.05 | W98: Manatee | AB98: 5 | AC98: Bay | AE98: 33875 | AF98: Highlands | AJ98: 611 | AK98: Broward | AS98: =IFERROR(IF($O$21="Metro",INDEX($AJ$23:$AJ$748,SMALL(IF((County=$AK$23:$AK$748),MATCH(ROW($AK$23:$AK$748),ROW($AK$23:$AK$748)),""),ROWS($A$23:$A98))),INDEX($AM$23:$AM$58,SMALL(IF((County=$AN$23:$AN$58),MATCH(ROW($AN$23:$AN$58),ROW($AN$23:$AN$58)),""),ROWS($A$23:$A98)))),"") ->  | AU98: =IFERROR(IF($Q$21="Yes",INDEX($AP$23:$AP$2323,SMALL(IF((County=$AQ$23:$AQ$2323),MATCH(ROW($AQ$23:$AQ$2323),ROW($AQ$23:$AQ$2323)),""),ROWS($A$23:$A98))),""),"") ->  | AW98: 32836 | AX98: Orange | AZ98: 5.09 | BA98: Miami-Dade | BM98: North Central | BN98: Tier 2 | BP98: North Central - Tier 2
A99: 33510 | B99: Hillsborough | F99: 1103.34 | G99: Broward | L99: 648 | M99: Brevard | O99: =IFERROR(IF($O$21="Metro",INDEX($F$23:$F$748,SMALL(IF((County=$G$23:$G$748),MATCH(ROW($G$23:$G$748),ROW($G$23:$G$748)),""),ROWS($A$23:A99))),INDEX($I$23:$I$52,SMALL(IF((County=$J$23:$J$52),MATCH(ROW($J$23:$J$52),ROW($J$23:$J$52)),""),ROWS($A$23:A99)))),"") ->  | Q99: =IFERROR(IF($Q$21="Yes",INDEX($L$23:$L$2323,SMALL(IF((County=$M$23:$M$2323),MATCH(ROW($M$23:$M$2323),ROW($M$23:$M$2323)),""),ROWS($A$23:A99))),""),"") ->  | S99: 32925 | T99: Brevard | V99: 7.05 | W99: Miami-Dade | AB99: 5 | AC99: Collier | AE99: 33876 | AF99: Highlands | AJ99: 805 | AK99: Broward | AS99: =IFERROR(IF($O$21="Metro",INDEX($AJ$23:$AJ$748,SMALL(IF((County=$AK$23:$AK$748),MATCH(ROW($AK$23:$AK$748),ROW($AK$23:$AK$748)),""),ROWS($A$23:$A99))),INDEX($AM$23:$AM$58,SMALL(IF((County=$AN$23:$AN$58),MATCH(ROW($AN$23:$AN$58),ROW($AN$23:$AN$58)),""),ROWS($A$23:$A99)))),"") ->  | AU99: =IFERROR(IF($Q$21="Yes",INDEX($AP$23:$AP$2323,SMALL(IF((County=$AQ$23:$AQ$2323),MATCH(ROW($AQ$23:$AQ$2323),ROW($AQ$23:$AQ$2323)),""),ROWS($A$23:$A99))),""),"") ->  | AW99: 32837 | AX99: Orange | AZ99: 6 | BA99: Alachua | BM99: Ojus | BN99: Tier 2 | BP99: Ojus - Tier 2
A100: 33511 | B100: Hillsborough | F100: 1103.35 | G100: Broward | L100: 649.01 | M100: Brevard | O100: =IFERROR(IF($O$21="Metro",INDEX($F$23:$F$748,SMALL(IF((County=$G$23:$G$748),MATCH(ROW($G$23:$G$748),ROW($G$23:$G$748)),""),ROWS($A$23:A100))),INDEX($I$23:$I$52,SMALL(IF((County=$J$23:$J$52),MATCH(ROW($J$23:$J$52),ROW($J$23:$J$52)),""),ROWS($A$23:A100)))),"") ->  | Q100: =IFERROR(IF($Q$21="Yes",INDEX($L$23:$L$2323,SMALL(IF((County=$M$23:$M$2323),MATCH(ROW($M$23:$M$2323),ROW($M$23:$M$2323)),""),ROWS($A$23:A100))),""),"") ->  | S100: 32934 | T100: Brevard | V100: 7.06 | W100: Miami-Dade | AB100: 5 | AC100: Escambia | AE100: 33503 | AF100: Hillsborough | AJ100: 903.01 | AK100: Broward | AS100: =IFERROR(IF($O$21="Metro",INDEX($AJ$23:$AJ$748,SMALL(IF((County=$AK$23:$AK$748),MATCH(ROW($AK$23:$AK$748),ROW($AK$23:$AK$748)),""),ROWS($A$23:$A100))),INDEX($AM$23:$AM$58,SMALL(IF((County=$AN$23:$AN$58),MATCH(ROW($AN$23:$AN$58),ROW($AN$23:$AN$58)),""),ROWS($A$23:$A100)))),"") ->  | AU100: =IFERROR(IF($Q$21="Yes",INDEX($AP$23:$AP$2323,SMALL(IF((County=$AQ$23:$AQ$2323),MATCH(ROW($AQ$23:$AQ$2323),ROW($AQ$23:$AQ$2323)),""),ROWS($A$23:$A100))),""),"") ->  | AW100: 32903 | AX100: Brevard | AZ100: 6 | BA100: Duval | BM100: Perrine | BN100: Tier 2 | BP100: Perrine - Tier 2
A101: 33547 | B101: Hillsborough | F101: 103.02 | G101: Charlotte | L101: 650.01 | M101: Brevard | O101: =IFERROR(IF($O$21="Metro",INDEX($F$23:$F$748,SMALL(IF((County=$G$23:$G$748),MATCH(ROW($G$23:$G$748),ROW($G$23:$G$748)),""),ROWS($A$23:A101))),INDEX($I$23:$I$52,SMALL(IF((County=$J$23:$J$52),MATCH(ROW($J$23:$J$52),ROW($J$23:$J$52)),""),ROWS($A$23:A101)))),"") ->  | Q101: =IFERROR(IF($Q$21="Yes",INDEX($L$23:$L$2323,SMALL(IF((County=$M$23:$M$2323),MATCH(ROW($M$23:$M$2323),ROW($M$23:$M$2323)),""),ROWS($A$23:A101))),""),"") ->  | S101: 32937 | T101: Brevard | V101: 7.08 | W101: Miami-Dade | AB101: 5 | AC101: Hillsborough | AE101: 33511 | AF101: Hillsborough | AJ101: 904.03 | AK101: Broward | AS101: =IFERROR(IF($O$21="Metro",INDEX($AJ$23:$AJ$748,SMALL(IF((County=$AK$23:$AK$748),MATCH(ROW($AK$23:$AK$748),ROW($AK$23:$AK$748)),""),ROWS($A$23:$A101))),INDEX($AM$23:$AM$58,SMALL(IF((County=$AN$23:$AN$58),MATCH(ROW($AN$23:$AN$58),ROW($AN$23:$AN$58)),""),ROWS($A$23:$A101)))),"") ->  | AU101: =IFERROR(IF($Q$21="Yes",INDEX($AP$23:$AP$2323,SMALL(IF((County=$AQ$23:$AQ$2323),MATCH(ROW($AQ$23:$AQ$2323),ROW($AQ$23:$AQ$2323)),""),ROWS($A$23:$A101))),""),"") ->  | AW101: 32904 | AX101: Brevard | AZ101: 6 | BA101: Lee | BM101: Princeton | BN101: Tier 1 | BP101: Princeton - Tier 1
A102: 33548 | B102: Hillsborough | F102: 207 | G102: Charlotte | L102: 650.21 | M102: Brevard | O102: =IFERROR(IF($O$21="Metro",INDEX($F$23:$F$748,SMALL(IF((County=$G$23:$G$748),MATCH(ROW($G$23:$G$748),ROW($G$23:$G$748)),""),ROWS($A$23:A102))),INDEX($I$23:$I$52,SMALL(IF((County=$J$23:$J$52),MATCH(ROW($J$23:$J$52),ROW($J$23:$J$52)),""),ROWS($A$23:A102)))),"") ->  | Q102: =IFERROR(IF($Q$21="Yes",INDEX($L$23:$L$2323,SMALL(IF((County=$M$23:$M$2323),MATCH(ROW($M$23:$M$2323),ROW($M$23:$M$2323)),""),ROWS($A$23:A102))),""),"") ->  | S102: 32940 | T102: Brevard | V102: 7.09 | W102: Miami-Dade | AB102: 5.01 | AC102: Manatee | AE102: 33547 | AF102: Hillsborough | AJ102: 1003.02 | AK102: Broward | AS102: =IFERROR(IF($O$21="Metro",INDEX($AJ$23:$AJ$748,SMALL(IF((County=$AK$23:$AK$748),MATCH(ROW($AK$23:$AK$748),ROW($AK$23:$AK$748)),""),ROWS($A$23:$A102))),INDEX($AM$23:$AM$58,SMALL(IF((County=$AN$23:$AN$58),MATCH(ROW($AN$23:$AN$58),ROW($AN$23:$AN$58)),""),ROWS($A$23:$A102)))),"") ->  | AU102: =IFERROR(IF($Q$21="Yes",INDEX($AP$23:$AP$2323,SMALL(IF((County=$AQ$23:$AQ$2323),MATCH(ROW($AQ$23:$AQ$2323),ROW($AQ$23:$AQ$2323)),""),ROWS($A$23:$A102))),""),"") ->  | AW102: 32908 | AX102: Brevard | AZ102: 6 | BA102: Leon
A103: 33549 | B103: Hillsborough | F103: 4502.02 | G103: Citrus | L103: 652.31 | M103: Brevard | O103: =IFERROR(IF($O$21="Metro",INDEX($F$23:$F$748,SMALL(IF((County=$G$23:$G$748),MATCH(ROW($G$23:$G$748),ROW($G$23:$G$748)),""),ROWS($A$23:A103))),INDEX($I$23:$I$52,SMALL(IF((County=$J$23:$J$52),MATCH(ROW($J$23:$J$52),ROW($J$23:$J$52)),""),ROWS($A$23:A103)))),"") ->  | Q103: =IFERROR(IF($Q$21="Yes",INDEX($L$23:$L$2323,SMALL(IF((County=$M$23:$M$2323),MATCH(ROW($M$23:$M$2323),ROW($M$23:$M$2323)),""),ROWS($A$23:A103))),""),"") ->  | S103: 32951 | T103: Brevard | V103: 7.1 | W103: Miami-Dade | AB103: 5.01 | AC103: Sarasota | AE103: 33548 | AF103: Hillsborough | AJ103: 1004 | AK103: Broward | AS103: =IFERROR(IF($O$21="Metro",INDEX($AJ$23:$AJ$748,SMALL(IF((County=$AK$23:$AK$748),MATCH(ROW($AK$23:$AK$748),ROW($AK$23:$AK$748)),""),ROWS($A$23:$A103))),INDEX($AM$23:$AM$58,SMALL(IF((County=$AN$23:$AN$58),MATCH(ROW($AN$23:$AN$58),ROW($AN$23:$AN$58)),""),ROWS($A$23:$A103)))),"") ->  | AU103: =IFERROR(IF($Q$21="Yes",INDEX($AP$23:$AP$2323,SMALL(IF((County=$AQ$23:$AQ$2323),MATCH(ROW($AQ$23:$AQ$2323),ROW($AQ$23:$AQ$2323)),""),ROWS($A$23:$A103))),""),"") ->  | AW103: 32925 | AX103: Brevard | AZ103: 6.01 | BA103: Miami-Dade
A104: 33556 | B104: Hillsborough | F104: 4503.03 | G104: Citrus | L104: 661.01 | M104: Brevard | O104: =IFERROR(IF($O$21="Metro",INDEX($F$23:$F$748,SMALL(IF((County=$G$23:$G$748),MATCH(ROW($G$23:$G$748),ROW($G$23:$G$748)),""),ROWS($A$23:A104))),INDEX($I$23:$I$52,SMALL(IF((County=$J$23:$J$52),MATCH(ROW($J$23:$J$52),ROW($J$23:$J$52)),""),ROWS($A$23:A104)))),"") ->  | Q104: =IFERROR(IF($Q$21="Yes",INDEX($L$23:$L$2323,SMALL(IF((County=$M$23:$M$2323),MATCH(ROW($M$23:$M$2323),ROW($M$23:$M$2323)),""),ROWS($A$23:A104))),""),"") ->  | S104: 32955 | T104: Brevard | V104: 7.11 | W104: Miami-Dade | AB104: 5.02 | AC104: Martin | AE104: 33556 | AF104: Hillsborough | AJ104: 1005.01 | AK104: Broward | AS104: =IFERROR(IF($O$21="Metro",INDEX($AJ$23:$AJ$748,SMALL(IF((County=$AK$23:$AK$748),MATCH(ROW($AK$23:$AK$748),ROW($AK$23:$AK$748)),""),ROWS($A$23:$A104))),INDEX($AM$23:$AM$58,SMALL(IF((County=$AN$23:$AN$58),MATCH(ROW($AN$23:$AN$58),ROW($AN$23:$AN$58)),""),ROWS($A$23:$A104)))),"") ->  | AU104: =IFERROR(IF($Q$21="Yes",INDEX($AP$23:$AP$2323,SMALL(IF((County=$AQ$23:$AQ$2323),MATCH(ROW($AQ$23:$AQ$2323),ROW($AQ$23:$AQ$2323)),""),ROWS($A$23:$A104))),""),"") ->  | AW104: 32934 | AX104: Brevard | AZ104: 6.02 | BA104: Hillsborough
A105: 33559 | B105: Hillsborough | F105: 4508 | G105: Citrus | L105: 661.03 | M105: Brevard | O105: =IFERROR(IF($O$21="Metro",INDEX($F$23:$F$748,SMALL(IF((County=$G$23:$G$748),MATCH(ROW($G$23:$G$748),ROW($G$23:$G$748)),""),ROWS($A$23:A105))),INDEX($I$23:$I$52,SMALL(IF((County=$J$23:$J$52),MATCH(ROW($J$23:$J$52),ROW($J$23:$J$52)),""),ROWS($A$23:A105)))),"") ->  | Q105: =IFERROR(IF($Q$21="Yes",INDEX($L$23:$L$2323,SMALL(IF((County=$M$23:$M$2323),MATCH(ROW($M$23:$M$2323),ROW($M$23:$M$2323)),""),ROWS($A$23:A105))),""),"") ->  | S105: 32963 | T105: Indian River | V105: 7.12 | W105: Miami-Dade | AB105: 5.02 | AC105: Sarasota | AE105: 33559 | AF105: Hillsborough | AJ105: 1005.02 | AK105: Broward | AS105: =IFERROR(IF($O$21="Metro",INDEX($AJ$23:$AJ$748,SMALL(IF((County=$AK$23:$AK$748),MATCH(ROW($AK$23:$AK$748),ROW($AK$23:$AK$748)),""),ROWS($A$23:$A105))),INDEX($AM$23:$AM$58,SMALL(IF((County=$AN$23:$AN$58),MATCH(ROW($AN$23:$AN$58),ROW($AN$23:$AN$58)),""),ROWS($A$23:$A105)))),"") ->  | AU105: =IFERROR(IF($Q$21="Yes",INDEX($AP$23:$AP$2323,SMALL(IF((County=$AQ$23:$AQ$2323),MATCH(ROW($AQ$23:$AQ$2323),ROW($AQ$23:$AQ$2323)),""),ROWS($A$23:$A105))),""),"") ->  | AW105: 32937 | AX105: Brevard | AZ105: 6.03 | BA105: Manatee
A106: 33569 | B106: Hillsborough | F106: 4514 | G106: Citrus | L106: 661.04 | M106: Brevard | O106: =IFERROR(IF($O$21="Metro",INDEX($F$23:$F$748,SMALL(IF((County=$G$23:$G$748),MATCH(ROW($G$23:$G$748),ROW($G$23:$G$748)),""),ROWS($A$23:A106))),INDEX($I$23:$I$52,SMALL(IF((County=$J$23:$J$52),MATCH(ROW($J$23:$J$52),ROW($J$23:$J$52)),""),ROWS($A$23:A106)))),"") ->  | Q106: =IFERROR(IF($Q$21="Yes",INDEX($L$23:$L$2323,SMALL(IF((County=$M$23:$M$2323),MATCH(ROW($M$23:$M$2323),ROW($M$23:$M$2323)),""),ROWS($A$23:A106))),""),"") ->  | S106: 32968 | T106: Indian River | V106: 8 | W106: Hillsborough | AB106: 5.03 | AC106: Manatee | AE106: 33569 | AF106: Hillsborough | AJ106: 1007 | AK106: Broward | AS106: =IFERROR(IF($O$21="Metro",INDEX($AJ$23:$AJ$748,SMALL(IF((County=$AK$23:$AK$748),MATCH(ROW($AK$23:$AK$748),ROW($AK$23:$AK$748)),""),ROWS($A$23:$A106))),INDEX($AM$23:$AM$58,SMALL(IF((County=$AN$23:$AN$58),MATCH(ROW($AN$23:$AN$58),ROW($AN$23:$AN$58)),""),ROWS($A$23:$A106)))),"") ->  | AU106: =IFERROR(IF($Q$21="Yes",INDEX($AP$23:$AP$2323,SMALL(IF((County=$AQ$23:$AQ$2323),MATCH(ROW($AQ$23:$AQ$2323),ROW($AQ$23:$AQ$2323)),""),ROWS($A$23:$A106))),""),"") ->  | AW106: 32940 | AX106: Brevard | AZ106: 6.03 | BA106: Miami-Dade
A107: 33572 | B107: Hillsborough | F107: 304 | G107: Clay | L107: 662 | M107: Brevard | O107: =IFERROR(IF($O$21="Metro",INDEX($F$23:$F$748,SMALL(IF((County=$G$23:$G$748),MATCH(ROW($G$23:$G$748),ROW($G$23:$G$748)),""),ROWS($A$23:A107))),INDEX($I$23:$I$52,SMALL(IF((County=$J$23:$J$52),MATCH(ROW($J$23:$J$52),ROW($J$23:$J$52)),""),ROWS($A$23:A107)))),"") ->  | Q107: =IFERROR(IF($Q$21="Yes",INDEX($L$23:$L$2323,SMALL(IF((County=$M$23:$M$2323),MATCH(ROW($M$23:$M$2323),ROW($M$23:$M$2323)),""),ROWS($A$23:A107))),""),"") ->  | S107: 33014 | T107: Miami-Dade | V107: 8 | W107: Martin | AB107: 5.05 | AC107: Palm Beach | AE107: 33572 | AF107: Hillsborough | AJ107: 1008.01 | AK107: Broward | AS107: =IFERROR(IF($O$21="Metro",INDEX($AJ$23:$AJ$748,SMALL(IF((County=$AK$23:$AK$748),MATCH(ROW($AK$23:$AK$748),ROW($AK$23:$AK$748)),""),ROWS($A$23:$A107))),INDEX($AM$23:$AM$58,SMALL(IF((County=$AN$23:$AN$58),MATCH(ROW($AN$23:$AN$58),ROW($AN$23:$AN$58)),""),ROWS($A$23:$A107)))),"") ->  | AU107: =IFERROR(IF($Q$21="Yes",INDEX($AP$23:$AP$2323,SMALL(IF((County=$AQ$23:$AQ$2323),MATCH(ROW($AQ$23:$AQ$2323),ROW($AQ$23:$AQ$2323)),""),ROWS($A$23:$A107))),""),"") ->  | AW107: 32951 | AX107: Brevard | AZ107: 6.04 | BA107: Manatee
A108: 33573 | B108: Hillsborough | F108: 7 | G108: Collier | L108: 663.01 | M108: Brevard | O108: =IFERROR(IF($O$21="Metro",INDEX($F$23:$F$748,SMALL(IF((County=$G$23:$G$748),MATCH(ROW($G$23:$G$748),ROW($G$23:$G$748)),""),ROWS($A$23:A108))),INDEX($I$23:$I$52,SMALL(IF((County=$J$23:$J$52),MATCH(ROW($J$23:$J$52),ROW($J$23:$J$52)),""),ROWS($A$23:A108)))),"") ->  | Q108: =IFERROR(IF($Q$21="Yes",INDEX($L$23:$L$2323,SMALL(IF((County=$M$23:$M$2323),MATCH(ROW($M$23:$M$2323),ROW($M$23:$M$2323)),""),ROWS($A$23:A108))),""),"") ->  | S108: 33015 | T108: Miami-Dade | V108: 8.03 | W108: Bay | AB108: 5.07 | AC108: Palm Beach | AE108: 33573 | AF108: Hillsborough | AJ108: 1103.34 | AK108: Broward | AS108: =IFERROR(IF($O$21="Metro",INDEX($AJ$23:$AJ$748,SMALL(IF((County=$AK$23:$AK$748),MATCH(ROW($AK$23:$AK$748),ROW($AK$23:$AK$748)),""),ROWS($A$23:$A108))),INDEX($AM$23:$AM$58,SMALL(IF((County=$AN$23:$AN$58),MATCH(ROW($AN$23:$AN$58),ROW($AN$23:$AN$58)),""),ROWS($A$23:$A108)))),"") ->  | AU108: =IFERROR(IF($Q$21="Yes",INDEX($AP$23:$AP$2323,SMALL(IF((County=$AQ$23:$AQ$2323),MATCH(ROW($AQ$23:$AQ$2323),ROW($AQ$23:$AQ$2323)),""),ROWS($A$23:$A108))),""),"") ->  | AW108: 32955 | AX108: Brevard | AZ108: 6.04 | BA108: Marion
A109: 33578 | B109: Hillsborough | F109: 104.1 | G109: Collier | L109: 663.02 | M109: Brevard | O109: =IFERROR(IF($O$21="Metro",INDEX($F$23:$F$748,SMALL(IF((County=$G$23:$G$748),MATCH(ROW($G$23:$G$748),ROW($G$23:$G$748)),""),ROWS($A$23:A109))),INDEX($I$23:$I$52,SMALL(IF((County=$J$23:$J$52),MATCH(ROW($J$23:$J$52),ROW($J$23:$J$52)),""),ROWS($A$23:A109)))),"") ->  | Q109: =IFERROR(IF($Q$21="Yes",INDEX($L$23:$L$2323,SMALL(IF((County=$M$23:$M$2323),MATCH(ROW($M$23:$M$2323),ROW($M$23:$M$2323)),""),ROWS($A$23:A109))),""),"") ->  | S109: 33018 | T109: Miami-Dade | V109: 8.04 | W109: Miami-Dade | AB109: 5.09 | AC109: Palm Beach | AE109: 33578 | AF109: Hillsborough | AJ109: 1103.54 | AK109: Broward | AS109: =IFERROR(IF($O$21="Metro",INDEX($AJ$23:$AJ$748,SMALL(IF((County=$AK$23:$AK$748),MATCH(ROW($AK$23:$AK$748),ROW($AK$23:$AK$748)),""),ROWS($A$23:$A109))),INDEX($AM$23:$AM$58,SMALL(IF((County=$AN$23:$AN$58),MATCH(ROW($AN$23:$AN$58),ROW($AN$23:$AN$58)),""),ROWS($A$23:$A109)))),"") ->  | AU109: =IFERROR(IF($Q$21="Yes",INDEX($AP$23:$AP$2323,SMALL(IF((County=$AQ$23:$AQ$2323),MATCH(ROW($AQ$23:$AQ$2323),ROW($AQ$23:$AQ$2323)),""),ROWS($A$23:$A109))),""),"") ->  | AW109: 32963 | AX109: Indian River | AZ109: 6.07 | BA109: Miami-Dade
A110: 33579 | B110: Hillsborough | F110: 104.2 | G110: Collier | L110: 664 | M110: Brevard | O110: =IFERROR(IF($O$21="Metro",INDEX($F$23:$F$748,SMALL(IF((County=$G$23:$G$748),MATCH(ROW($G$23:$G$748),ROW($G$23:$G$748)),""),ROWS($A$23:A110))),INDEX($I$23:$I$52,SMALL(IF((County=$J$23:$J$52),MATCH(ROW($J$23:$J$52),ROW($J$23:$J$52)),""),ROWS($A$23:A110)))),"") ->  | Q110: =IFERROR(IF($Q$21="Yes",INDEX($L$23:$L$2323,SMALL(IF((County=$M$23:$M$2323),MATCH(ROW($M$23:$M$2323),ROW($M$23:$M$2323)),""),ROWS($A$23:A110))),""),"") ->  | S110: 33019 | T110: Broward | V110: 8.05 | W110: Miami-Dade | AB110: 5.11 | AC110: Palm Beach | AE110: 33579 | AF110: Hillsborough | AJ110: 1103.55 | AK110: Broward | AS110: =IFERROR(IF($O$21="Metro",INDEX($AJ$23:$AJ$748,SMALL(IF((County=$AK$23:$AK$748),MATCH(ROW($AK$23:$AK$748),ROW($AK$23:$AK$748)),""),ROWS($A$23:$A110))),INDEX($AM$23:$AM$58,SMALL(IF((County=$AN$23:$AN$58),MATCH(ROW($AN$23:$AN$58),ROW($AN$23:$AN$58)),""),ROWS($A$23:$A110)))),"") ->  | AU110: =IFERROR(IF($Q$21="Yes",INDEX($AP$23:$AP$2323,SMALL(IF((County=$AQ$23:$AQ$2323),MATCH(ROW($AQ$23:$AQ$2323),ROW($AQ$23:$AQ$2323)),""),ROWS($A$23:$A110))),""),"") ->  | AW110: 32968 | AX110: Indian River | AZ110: 6.09 | BA110: Miami-Dade
A111: 33584 | B111: Hillsborough | F111: 106.01 | G111: Collier | L111: 665 | M111: Brevard | O111: =IFERROR(IF($O$21="Metro",INDEX($F$23:$F$748,SMALL(IF((County=$G$23:$G$748),MATCH(ROW($G$23:$G$748),ROW($G$23:$G$748)),""),ROWS($A$23:A111))),INDEX($I$23:$I$52,SMALL(IF((County=$J$23:$J$52),MATCH(ROW($J$23:$J$52),ROW($J$23:$J$52)),""),ROWS($A$23:A111)))),"") ->  | Q111: =IFERROR(IF($Q$21="Yes",INDEX($L$23:$L$2323,SMALL(IF((County=$M$23:$M$2323),MATCH(ROW($M$23:$M$2323),ROW($M$23:$M$2323)),""),ROWS($A$23:A111))),""),"") ->  | S111: 33025 | T111: Broward | V111: 8.06 | W111: Alachua | AB111: 6 | AC111: Bay | AE111: 33584 | AF111: Hillsborough | AJ111: 207 | AK111: Charlotte | AS111: =IFERROR(IF($O$21="Metro",INDEX($AJ$23:$AJ$748,SMALL(IF((County=$AK$23:$AK$748),MATCH(ROW($AK$23:$AK$748),ROW($AK$23:$AK$748)),""),ROWS($A$23:$A111))),INDEX($AM$23:$AM$58,SMALL(IF((County=$AN$23:$AN$58),MATCH(ROW($AN$23:$AN$58),ROW($AN$23:$AN$58)),""),ROWS($A$23:$A111)))),"") ->  | AU111: =IFERROR(IF($Q$21="Yes",INDEX($AP$23:$AP$2323,SMALL(IF((County=$AQ$23:$AQ$2323),MATCH(ROW($AQ$23:$AQ$2323),ROW($AQ$23:$AQ$2323)),""),ROWS($A$23:$A111))),""),"") ->  | AW111: 33014 | AX111: Miami-Dade | AZ111: 6.1 | BA111: Miami-Dade | BI111: List all cells with pop-ups
A112: 33594 | B112: Hillsborough | F112: 107.01 | G112: Collier | L112: 666 | M112: Brevard | O112: =IFERROR(IF($O$21="Metro",INDEX($F$23:$F$748,SMALL(IF((County=$G$23:$G$748),MATCH(ROW($G$23:$G$748),ROW($G$23:$G$748)),""),ROWS($A$23:A112))),INDEX($I$23:$I$52,SMALL(IF((County=$J$23:$J$52),MATCH(ROW($J$23:$J$52),ROW($J$23:$J$52)),""),ROWS($A$23:A112)))),"") ->  | Q112: =IFERROR(IF($Q$21="Yes",INDEX($L$23:$L$2323,SMALL(IF((County=$M$23:$M$2323),MATCH(ROW($M$23:$M$2323),ROW($M$23:$M$2323)),""),ROWS($A$23:A112))),""),"") ->  | S112: 33026 | T112: Broward | V112: 8.06 | W112: Miami-Dade | AB112: 6 | AC112: Collier | AE112: 33594 | AF112: Hillsborough | AJ112: 4502.02 | AK112: Citrus | AS112: =IFERROR(IF($O$21="Metro",INDEX($AJ$23:$AJ$748,SMALL(IF((County=$AK$23:$AK$748),MATCH(ROW($AK$23:$AK$748),ROW($AK$23:$AK$748)),""),ROWS($A$23:$A112))),INDEX($AM$23:$AM$58,SMALL(IF((County=$AN$23:$AN$58),MATCH(ROW($AN$23:$AN$58),ROW($AN$23:$AN$58)),""),ROWS($A$23:$A112)))),"") ->  | AU112: =IFERROR(IF($Q$21="Yes",INDEX($AP$23:$AP$2323,SMALL(IF((County=$AQ$23:$AQ$2323),MATCH(ROW($AQ$23:$AQ$2323),ROW($AQ$23:$AQ$2323)),""),ROWS($A$23:$A112))),""),"") ->  | AW112: 33015 | AX112: Miami-Dade | AZ112: 6.11 | BA112: Miami-Dade
A113: 33596 | B113: Hillsborough | F113: 111.03 | G113: Collier | L113: 667 | M113: Brevard | O113: =IFERROR(IF($O$21="Metro",INDEX($F$23:$F$748,SMALL(IF((County=$G$23:$G$748),MATCH(ROW($G$23:$G$748),ROW($G$23:$G$748)),""),ROWS($A$23:A113))),INDEX($I$23:$I$52,SMALL(IF((County=$J$23:$J$52),MATCH(ROW($J$23:$J$52),ROW($J$23:$J$52)),""),ROWS($A$23:A113)))),"") ->  | Q113: =IFERROR(IF($Q$21="Yes",INDEX($L$23:$L$2323,SMALL(IF((County=$M$23:$M$2323),MATCH(ROW($M$23:$M$2323),ROW($M$23:$M$2323)),""),ROWS($A$23:A113))),""),"") ->  | S113: 33027 | T113: Broward | V113: 8.07 | W113: Miami-Dade | AB113: 6.01 | AC113: Sarasota | AE113: 33596 | AF113: Hillsborough | AJ113: 4503.05 | AK113: Citrus | AS113: =IFERROR(IF($O$21="Metro",INDEX($AJ$23:$AJ$748,SMALL(IF((County=$AK$23:$AK$748),MATCH(ROW($AK$23:$AK$748),ROW($AK$23:$AK$748)),""),ROWS($A$23:$A113))),INDEX($AM$23:$AM$58,SMALL(IF((County=$AN$23:$AN$58),MATCH(ROW($AN$23:$AN$58),ROW($AN$23:$AN$58)),""),ROWS($A$23:$A113)))),"") ->  | AU113: =IFERROR(IF($Q$21="Yes",INDEX($AP$23:$AP$2323,SMALL(IF((County=$AQ$23:$AQ$2323),MATCH(ROW($AQ$23:$AQ$2323),ROW($AQ$23:$AQ$2323)),""),ROWS($A$23:$A113))),""),"") ->  | AW113: 33016 | AX113: Miami-Dade | AZ113: 7 | BA113: Lee | BI113: Pop-Up Messages
A114: 33602 | B114: Hillsborough | F114: 112.04 | G114: Collier | L114: 668 | M114: Brevard | O114: =IFERROR(IF($O$21="Metro",INDEX($F$23:$F$748,SMALL(IF((County=$G$23:$G$748),MATCH(ROW($G$23:$G$748),ROW($G$23:$G$748)),""),ROWS($A$23:A114))),INDEX($I$23:$I$52,SMALL(IF((County=$J$23:$J$52),MATCH(ROW($J$23:$J$52),ROW($J$23:$J$52)),""),ROWS($A$23:A114)))),"") ->  | Q114: =IFERROR(IF($Q$21="Yes",INDEX($L$23:$L$2323,SMALL(IF((County=$M$23:$M$2323),MATCH(ROW($M$23:$M$2323),ROW($M$23:$M$2323)),""),ROWS($A$23:A114))),""),"") ->  | S114: 33028 | T114: Broward | V114: 8.08 | W114: Miami-Dade | AB114: 6.02 | AC114: Sarasota | AE114: 33602 | AF114: Hillsborough | AJ114: 4503.06 | AK114: Citrus | AS114: =IFERROR(IF($O$21="Metro",INDEX($AJ$23:$AJ$748,SMALL(IF((County=$AK$23:$AK$748),MATCH(ROW($AK$23:$AK$748),ROW($AK$23:$AK$748)),""),ROWS($A$23:$A114))),INDEX($AM$23:$AM$58,SMALL(IF((County=$AN$23:$AN$58),MATCH(ROW($AN$23:$AN$58),ROW($AN$23:$AN$58)),""),ROWS($A$23:$A114)))),"") ->  | AU114: =IFERROR(IF($Q$21="Yes",INDEX($AP$23:$AP$2323,SMALL(IF((County=$AQ$23:$AQ$2323),MATCH(ROW($AQ$23:$AQ$2323),ROW($AQ$23:$AQ$2323)),""),ROWS($A$23:$A114))),""),"") ->  | AW114: 33018 | AX114: Miami-Dade | AZ114: 7.01 | BA114: Hillsborough | BK114: Tab | BL114: Cells | BM114: Data Dependent Cells
A115: 33606 | B115: Hillsborough | F115: 112.05 | G115: Collier | L115: 669 | M115: Brevard | O115: =IFERROR(IF($O$21="Metro",INDEX($F$23:$F$748,SMALL(IF((County=$G$23:$G$748),MATCH(ROW($G$23:$G$748),ROW($G$23:$G$748)),""),ROWS($A$23:A115))),INDEX($I$23:$I$52,SMALL(IF((County=$J$23:$J$52),MATCH(ROW($J$23:$J$52),ROW($J$23:$J$52)),""),ROWS($A$23:A115)))),"") ->  | Q115: =IFERROR(IF($Q$21="Yes",INDEX($L$23:$L$2323,SMALL(IF((County=$M$23:$M$2323),MATCH(ROW($M$23:$M$2323),ROW($M$23:$M$2323)),""),ROWS($A$23:A115))),""),"") ->  | S115: 33029 | T115: Broward | V115: 9.01 | W115: Alachua | AB115: 6.03 | AC115: Martin | AE115: 33606 | AF115: Hillsborough | AJ115: 4508 | AK115: Citrus | AS115: =IFERROR(IF($O$21="Metro",INDEX($AJ$23:$AJ$748,SMALL(IF((County=$AK$23:$AK$748),MATCH(ROW($AK$23:$AK$748),ROW($AK$23:$AK$748)),""),ROWS($A$23:$A115))),INDEX($AM$23:$AM$58,SMALL(IF((County=$AN$23:$AN$58),MATCH(ROW($AN$23:$AN$58),ROW($AN$23:$AN$58)),""),ROWS($A$23:$A115)))),"") ->  | AU115: =IFERROR(IF($Q$21="Yes",INDEX($AP$23:$AP$2323,SMALL(IF((County=$AQ$23:$AQ$2323),MATCH(ROW($AQ$23:$AQ$2323),ROW($AQ$23:$AQ$2323)),""),ROWS($A$23:$A115))),""),"") ->  | AW115: 33019 | AX115: Broward | AZ115: 7.02 | BA115: Hillsborough | BK115: General Information | BL115: G70:H70 | BM115: Total_Units
A116: 33607 | B116: Hillsborough | F116: 113.01 | G116: Collier | L116: 671 | M116: Brevard | O116: =IFERROR(IF($O$21="Metro",INDEX($F$23:$F$748,SMALL(IF((County=$G$23:$G$748),MATCH(ROW($G$23:$G$748),ROW($G$23:$G$748)),""),ROWS($A$23:A116))),INDEX($I$23:$I$52,SMALL(IF((County=$J$23:$J$52),MATCH(ROW($J$23:$J$52),ROW($J$23:$J$52)),""),ROWS($A$23:A116)))),"") ->  | Q116: =IFERROR(IF($Q$21="Yes",INDEX($L$23:$L$2323,SMALL(IF((County=$M$23:$M$2323),MATCH(ROW($M$23:$M$2323),ROW($M$23:$M$2323)),""),ROWS($A$23:A116))),""),"") ->  | S116: 33031 | T116: Miami-Dade | V116: 9.01 | W116: Hillsborough | AB116: 6.04 | AC116: Martin | AE116: 33607 | AF116: Hillsborough | AJ116: 4514 | AK116: Citrus | AS116: =IFERROR(IF($O$21="Metro",INDEX($AJ$23:$AJ$748,SMALL(IF((County=$AK$23:$AK$748),MATCH(ROW($AK$23:$AK$748),ROW($AK$23:$AK$748)),""),ROWS($A$23:$A116))),INDEX($AM$23:$AM$58,SMALL(IF((County=$AN$23:$AN$58),MATCH(ROW($AN$23:$AN$58),ROW($AN$23:$AN$58)),""),ROWS($A$23:$A116)))),"") ->  | AU116: =IFERROR(IF($Q$21="Yes",INDEX($AP$23:$AP$2323,SMALL(IF((County=$AQ$23:$AQ$2323),MATCH(ROW($AQ$23:$AQ$2323),ROW($AQ$23:$AQ$2323)),""),ROWS($A$23:$A116))),""),"") ->  | AW116: 33021 | AX116: Broward | AZ116: 7.04 | BA116: Manatee | BK116: General Information | BL116: G79:H79 | BM116: Total_Units
A117: 33609 | B117: Hillsborough | F117: 113.02 | G117: Collier | L117: 681.02 | M117: Brevard | O117: =IFERROR(IF($O$21="Metro",INDEX($F$23:$F$748,SMALL(IF((County=$G$23:$G$748),MATCH(ROW($G$23:$G$748),ROW($G$23:$G$748)),""),ROWS($A$23:A117))),INDEX($I$23:$I$52,SMALL(IF((County=$J$23:$J$52),MATCH(ROW($J$23:$J$52),ROW($J$23:$J$52)),""),ROWS($A$23:A117)))),"") ->  | Q117: =IFERROR(IF($Q$21="Yes",INDEX($L$23:$L$2323,SMALL(IF((County=$M$23:$M$2323),MATCH(ROW($M$23:$M$2323),ROW($M$23:$M$2323)),""),ROWS($A$23:A117))),""),"") ->  | S117: 33035 | T117: Miami-Dade | V117: 9.02 | W117: Hillsborough | AB117: 6.04 | AC117: Miami-Dade | AE117: 33609 | AF117: Hillsborough | AJ117: 304 | AK117: Clay | AS117: =IFERROR(IF($O$21="Metro",INDEX($AJ$23:$AJ$748,SMALL(IF((County=$AK$23:$AK$748),MATCH(ROW($AK$23:$AK$748),ROW($AK$23:$AK$748)),""),ROWS($A$23:$A117))),INDEX($AM$23:$AM$58,SMALL(IF((County=$AN$23:$AN$58),MATCH(ROW($AN$23:$AN$58),ROW($AN$23:$AN$58)),""),ROWS($A$23:$A117)))),"") ->  | AU117: =IFERROR(IF($Q$21="Yes",INDEX($AP$23:$AP$2323,SMALL(IF((County=$AQ$23:$AQ$2323),MATCH(ROW($AQ$23:$AQ$2323),ROW($AQ$23:$AQ$2323)),""),ROWS($A$23:$A117))),""),"") ->  | AW117: 33025 | AX117: Broward | AZ117: 7.05 | BA117: Manatee | BK117: General Information | BL117: G88:H88 | BM117: Total_Units
A118: 33611 | B118: Hillsborough | F118: 114 | G118: Collier | L118: 682 | M118: Brevard | O118: =IFERROR(IF($O$21="Metro",INDEX($F$23:$F$748,SMALL(IF((County=$G$23:$G$748),MATCH(ROW($G$23:$G$748),ROW($G$23:$G$748)),""),ROWS($A$23:A118))),INDEX($I$23:$I$52,SMALL(IF((County=$J$23:$J$52),MATCH(ROW($J$23:$J$52),ROW($J$23:$J$52)),""),ROWS($A$23:A118)))),"") ->  | Q118: =IFERROR(IF($Q$21="Yes",INDEX($L$23:$L$2323,SMALL(IF((County=$M$23:$M$2323),MATCH(ROW($M$23:$M$2323),ROW($M$23:$M$2323)),""),ROWS($A$23:A118))),""),"") ->  | S118: 33055 | T118: Miami-Dade | V118: 9.02 | W118: Miami-Dade | AB118: 6.06 | AC118: Martin | AE118: 33611 | AF118: Hillsborough | AJ118: 104.2 | AK118: Collier | AS118: =IFERROR(IF($O$21="Metro",INDEX($AJ$23:$AJ$748,SMALL(IF((County=$AK$23:$AK$748),MATCH(ROW($AK$23:$AK$748),ROW($AK$23:$AK$748)),""),ROWS($A$23:$A118))),INDEX($AM$23:$AM$58,SMALL(IF((County=$AN$23:$AN$58),MATCH(ROW($AN$23:$AN$58),ROW($AN$23:$AN$58)),""),ROWS($A$23:$A118)))),"") ->  | AU118: =IFERROR(IF($Q$21="Yes",INDEX($AP$23:$AP$2323,SMALL(IF((County=$AQ$23:$AQ$2323),MATCH(ROW($AQ$23:$AQ$2323),ROW($AQ$23:$AQ$2323)),""),ROWS($A$23:$A118))),""),"") ->  | AW118: 33026 | AX118: Broward | AZ118: 7.05 | BA118: Miami-Dade | BJ118: Not 109 | BK118: Proposed Development Info | BL118: G20:G22 | BM118: Total_Units, Unit Characteristics Table
A119: 33615 | B119: Hillsborough | F119: 1 | G119: Duval | L119: 683 | M119: Brevard | O119: =IFERROR(IF($O$21="Metro",INDEX($F$23:$F$748,SMALL(IF((County=$G$23:$G$748),MATCH(ROW($G$23:$G$748),ROW($G$23:$G$748)),""),ROWS($A$23:A119))),INDEX($I$23:$I$52,SMALL(IF((County=$J$23:$J$52),MATCH(ROW($J$23:$J$52),ROW($J$23:$J$52)),""),ROWS($A$23:A119)))),"") ->  | Q119: =IFERROR(IF($Q$21="Yes",INDEX($L$23:$L$2323,SMALL(IF((County=$M$23:$M$2323),MATCH(ROW($M$23:$M$2323),ROW($M$23:$M$2323)),""),ROWS($A$23:A119))),""),"") ->  | S119: 33062 | T119: Broward | V119: 9.03 | W119: Miami-Dade | AB119: 6.07 | AC119: Martin | AE119: 33615 | AF119: Hillsborough | AJ119: 107.01 | AK119: Collier | AS119: =IFERROR(IF($O$21="Metro",INDEX($AJ$23:$AJ$748,SMALL(IF((County=$AK$23:$AK$748),MATCH(ROW($AK$23:$AK$748),ROW($AK$23:$AK$748)),""),ROWS($A$23:$A119))),INDEX($AM$23:$AM$58,SMALL(IF((County=$AN$23:$AN$58),MATCH(ROW($AN$23:$AN$58),ROW($AN$23:$AN$58)),""),ROWS($A$23:$A119)))),"") ->  | AU119: =IFERROR(IF($Q$21="Yes",INDEX($AP$23:$AP$2323,SMALL(IF((County=$AQ$23:$AQ$2323),MATCH(ROW($AQ$23:$AQ$2323),ROW($AQ$23:$AQ$2323)),""),ROWS($A$23:$A119))),""),"") ->  | AW119: 33027 | AX119: Broward | AZ119: 7.1 | BA119: Miami-Dade | BJ119: Not 109 | BK119: Proposed Development Info | BL119: H20:H22 | BM119: Total_Units, Unit Characteristics Table
A120: 33616 | B120: Hillsborough | F120: 2 | G120: Duval | L120: 684 | M120: Brevard | O120: =IFERROR(IF($O$21="Metro",INDEX($F$23:$F$748,SMALL(IF((County=$G$23:$G$748),MATCH(ROW($G$23:$G$748),ROW($G$23:$G$748)),""),ROWS($A$23:A120))),INDEX($I$23:$I$52,SMALL(IF((County=$J$23:$J$52),MATCH(ROW($J$23:$J$52),ROW($J$23:$J$52)),""),ROWS($A$23:A120)))),"") ->  | Q120: =IFERROR(IF($Q$21="Yes",INDEX($L$23:$L$2323,SMALL(IF((County=$M$23:$M$2323),MATCH(ROW($M$23:$M$2323),ROW($M$23:$M$2323)),""),ROWS($A$23:A120))),""),"") ->  | S120: 33063 | T120: Broward | V120: 10 | W120: Bay | AB120: 6.1 | AC120: Martin | AE120: 33616 | AF120: Hillsborough | AJ120: 111.03 | AK120: Collier | AS120: =IFERROR(IF($O$21="Metro",INDEX($AJ$23:$AJ$748,SMALL(IF((County=$AK$23:$AK$748),MATCH(ROW($AK$23:$AK$748),ROW($AK$23:$AK$748)),""),ROWS($A$23:$A120))),INDEX($AM$23:$AM$58,SMALL(IF((County=$AN$23:$AN$58),MATCH(ROW($AN$23:$AN$58),ROW($AN$23:$AN$58)),""),ROWS($A$23:$A120)))),"") ->  | AU120: =IFERROR(IF($Q$21="Yes",INDEX($AP$23:$AP$2323,SMALL(IF((County=$AQ$23:$AQ$2323),MATCH(ROW($AQ$23:$AQ$2323),ROW($AQ$23:$AQ$2323)),""),ROWS($A$23:$A120))),""),"") ->  | AW120: 33028 | AX120: Broward | AZ120: 7.11 | BA120: Miami-Dade | BJ120: Not 109 | BK120: Proposed Development Info | BL120: G45:I45 | BM120: Total_Units
A121: 33618 | B121: Hillsborough | F121: 3 | G121: Duval | L121: 685.01 | M121: Brevard | O121: =IFERROR(IF($O$21="Metro",INDEX($F$23:$F$748,SMALL(IF((County=$G$23:$G$748),MATCH(ROW($G$23:$G$748),ROW($G$23:$G$748)),""),ROWS($A$23:A121))),INDEX($I$23:$I$52,SMALL(IF((County=$J$23:$J$52),MATCH(ROW($J$23:$J$52),ROW($J$23:$J$52)),""),ROWS($A$23:A121)))),"") ->  | Q121: =IFERROR(IF($Q$21="Yes",INDEX($L$23:$L$2323,SMALL(IF((County=$M$23:$M$2323),MATCH(ROW($M$23:$M$2323),ROW($M$23:$M$2323)),""),ROWS($A$23:A121))),""),"") ->  | S121: 33067 | T121: Broward | V121: 10 | W121: Duval | AB121: 7 | AC121: Bay | AE121: 33621 | AF121: Hillsborough | AJ121: 112.04 | AK121: Collier | AS121: =IFERROR(IF($O$21="Metro",INDEX($AJ$23:$AJ$748,SMALL(IF((County=$AK$23:$AK$748),MATCH(ROW($AK$23:$AK$748),ROW($AK$23:$AK$748)),""),ROWS($A$23:$A121))),INDEX($AM$23:$AM$58,SMALL(IF((County=$AN$23:$AN$58),MATCH(ROW($AN$23:$AN$58),ROW($AN$23:$AN$58)),""),ROWS($A$23:$A121)))),"") ->  | AU121: =IFERROR(IF($Q$21="Yes",INDEX($AP$23:$AP$2323,SMALL(IF((County=$AQ$23:$AQ$2323),MATCH(ROW($AQ$23:$AQ$2323),ROW($AQ$23:$AQ$2323)),""),ROWS($A$23:$A121))),""),"") ->  | AW121: 33029 | AX121: Broward | AZ121: 7.12 | BA121: Miami-Dade | BJ121: Not 109 | BK121: Proposed Development Info | BL121: H26 | BM121: DevCat, EligDevCosts, EligAcq, EligNonAcqDF, EligAcqDF
A122: 33621 | B122: Hillsborough | F122: 6 | G122: Duval | L122: 685.02 | M122: Brevard | O122: =IFERROR(IF($O$21="Metro",INDEX($F$23:$F$748,SMALL(IF((County=$G$23:$G$748),MATCH(ROW($G$23:$G$748),ROW($G$23:$G$748)),""),ROWS($A$23:A122))),INDEX($I$23:$I$52,SMALL(IF((County=$J$23:$J$52),MATCH(ROW($J$23:$J$52),ROW($J$23:$J$52)),""),ROWS($A$23:A122)))),"") ->  | Q122: =IFERROR(IF($Q$21="Yes",INDEX($L$23:$L$2323,SMALL(IF((County=$M$23:$M$2323),MATCH(ROW($M$23:$M$2323),ROW($M$23:$M$2323)),""),ROWS($A$23:A122))),""),"") ->  | S122: 33071 | T122: Broward | V122: 10 | W122: Sarasota | AB122: 7 | AC122: Duval | AE122: 33624 | AF122: Hillsborough | AJ122: 112.05 | AK122: Collier | AS122: =IFERROR(IF($O$21="Metro",INDEX($AJ$23:$AJ$748,SMALL(IF((County=$AK$23:$AK$748),MATCH(ROW($AK$23:$AK$748),ROW($AK$23:$AK$748)),""),ROWS($A$23:$A122))),INDEX($AM$23:$AM$58,SMALL(IF((County=$AN$23:$AN$58),MATCH(ROW($AN$23:$AN$58),ROW($AN$23:$AN$58)),""),ROWS($A$23:$A122)))),"") ->  | AU122: =IFERROR(IF($Q$21="Yes",INDEX($AP$23:$AP$2323,SMALL(IF((County=$AQ$23:$AQ$2323),MATCH(ROW($AQ$23:$AQ$2323),ROW($AQ$23:$AQ$2323)),""),ROWS($A$23:$A122))),""),"") ->  | AW122: 33035 | AX122: Miami-Dade | AZ122: 7.13 | BA122: Miami-Dade | BJ122: Not 109 | BK122: Proposed Development Info | BL122: H27 | BM122: DevCat, EligDevCosts, EligAcq, EligNonAcqDF, EligAcqDF
A123: 33624 | B123: Hillsborough | F123: 10 | G123: Duval | L123: 686.01 | M123: Brevard | O123: =IFERROR(IF($O$21="Metro",INDEX($F$23:$F$748,SMALL(IF((County=$G$23:$G$748),MATCH(ROW($G$23:$G$748),ROW($G$23:$G$748)),""),ROWS($A$23:A123))),INDEX($I$23:$I$52,SMALL(IF((County=$J$23:$J$52),MATCH(ROW($J$23:$J$52),ROW($J$23:$J$52)),""),ROWS($A$23:A123)))),"") ->  | Q123: =IFERROR(IF($Q$21="Yes",INDEX($L$23:$L$2323,SMALL(IF((County=$M$23:$M$2323),MATCH(ROW($M$23:$M$2323),ROW($M$23:$M$2323)),""),ROWS($A$23:A123))),""),"") ->  | S123: 33073 | T123: Broward | V123: 10.01 | W123: Hillsborough | AB123: 7 | AC123: Leon | AE123: 33625 | AF123: Hillsborough | AJ123: 113.03 | AK123: Collier | AS123: =IFERROR(IF($O$21="Metro",INDEX($AJ$23:$AJ$748,SMALL(IF((County=$AK$23:$AK$748),MATCH(ROW($AK$23:$AK$748),ROW($AK$23:$AK$748)),""),ROWS($A$23:$A123))),INDEX($AM$23:$AM$58,SMALL(IF((County=$AN$23:$AN$58),MATCH(ROW($AN$23:$AN$58),ROW($AN$23:$AN$58)),""),ROWS($A$23:$A123)))),"") ->  | AU123: =IFERROR(IF($Q$21="Yes",INDEX($AP$23:$AP$2323,SMALL(IF((County=$AQ$23:$AQ$2323),MATCH(ROW($AQ$23:$AQ$2323),ROW($AQ$23:$AQ$2323)),""),ROWS($A$23:$A123))),""),"") ->  | AW123: 33055 | AX123: Miami-Dade | AZ123: 7.14 | BA123: Miami-Dade | BJ123: Not 109 | BK123: Proposed Development Info | BL123: H35 | BM123: DevCat, EligDevCosts, EligAcq, EligNonAcqDF, EligAcqDF, basis boost, Set-Aside Commitment, SA%, SA#
A124: 33625 | B124: Hillsborough | F124: 12 | G124: Duval | L124: 686.02 | M124: Brevard | O124: =IFERROR(IF($O$21="Metro",INDEX($F$23:$F$748,SMALL(IF((County=$G$23:$G$748),MATCH(ROW($G$23:$G$748),ROW($G$23:$G$748)),""),ROWS($A$23:A124))),INDEX($I$23:$I$52,SMALL(IF((County=$J$23:$J$52),MATCH(ROW($J$23:$J$52),ROW($J$23:$J$52)),""),ROWS($A$23:A124)))),"") ->  | Q124: =IFERROR(IF($Q$21="Yes",INDEX($L$23:$L$2323,SMALL(IF((County=$M$23:$M$2323),MATCH(ROW($M$23:$M$2323),ROW($M$23:$M$2323)),""),ROWS($A$23:A124))),""),"") ->  | S124: 33076 | T124: Broward | V124: 10.01 | W124: Leon | AB124: 7 | AC124: Sarasota | AE124: 33626 | AF124: Hillsborough | AJ124: 113.04 | AK124: Collier | AS124: =IFERROR(IF($O$21="Metro",INDEX($AJ$23:$AJ$748,SMALL(IF((County=$AK$23:$AK$748),MATCH(ROW($AK$23:$AK$748),ROW($AK$23:$AK$748)),""),ROWS($A$23:$A124))),INDEX($AM$23:$AM$58,SMALL(IF((County=$AN$23:$AN$58),MATCH(ROW($AN$23:$AN$58),ROW($AN$23:$AN$58)),""),ROWS($A$23:$A124)))),"") ->  | AU124: =IFERROR(IF($Q$21="Yes",INDEX($AP$23:$AP$2323,SMALL(IF((County=$AQ$23:$AQ$2323),MATCH(ROW($AQ$23:$AQ$2323),ROW($AQ$23:$AQ$2323)),""),ROWS($A$23:$A124))),""),"") ->  | AW124: 33062 | AX124: Broward | AZ124: 7.15 | BA124: Miami-Dade | BJ124: Not 109 | BK124: Proposed Development Info | BL124: I28 | BM124: Details for H35
A125: 33626 | B125: Hillsborough | F125: 13 | G125: Duval | L125: 691 | M125: Brevard | O125: =IFERROR(IF($O$21="Metro",INDEX($F$23:$F$748,SMALL(IF((County=$G$23:$G$748),MATCH(ROW($G$23:$G$748),ROW($G$23:$G$748)),""),ROWS($A$23:A125))),INDEX($I$23:$I$52,SMALL(IF((County=$J$23:$J$52),MATCH(ROW($J$23:$J$52),ROW($J$23:$J$52)),""),ROWS($A$23:A125)))),"") ->  | Q125: =IFERROR(IF($Q$21="Yes",INDEX($L$23:$L$2323,SMALL(IF((County=$M$23:$M$2323),MATCH(ROW($M$23:$M$2323),ROW($M$23:$M$2323)),""),ROWS($A$23:A125))),""),"") ->  | S125: 33109 | T125: Miami-Dade | V125: 10.02 | W125: Hillsborough | AB125: 7.02 | AC125: Marion | AE125: 33629 | AF125: Hillsborough | AJ125: 113.05 | AK125: Collier | AS125: =IFERROR(IF($O$21="Metro",INDEX($AJ$23:$AJ$748,SMALL(IF((County=$AK$23:$AK$748),MATCH(ROW($AK$23:$AK$748),ROW($AK$23:$AK$748)),""),ROWS($A$23:$A125))),INDEX($AM$23:$AM$58,SMALL(IF((County=$AN$23:$AN$58),MATCH(ROW($AN$23:$AN$58),ROW($AN$23:$AN$58)),""),ROWS($A$23:$A125)))),"") ->  | AU125: =IFERROR(IF($Q$21="Yes",INDEX($AP$23:$AP$2323,SMALL(IF((County=$AQ$23:$AQ$2323),MATCH(ROW($AQ$23:$AQ$2323),ROW($AQ$23:$AQ$2323)),""),ROWS($A$23:$A125))),""),"") ->  | AW125: 33063 | AX125: Broward | AZ125: 7.17 | BA125: Miami-Dade | BJ125: Not 109 | BK125: Proposed Development Info | BL125: I18 | BM125: Details for G&H20
A126: 33629 | B126: Hillsborough | F126: 14 | G126: Duval | L126: 692 | M126: Brevard | O126: =IFERROR(IF($O$21="Metro",INDEX($F$23:$F$748,SMALL(IF((County=$G$23:$G$748),MATCH(ROW($G$23:$G$748),ROW($G$23:$G$748)),""),ROWS($A$23:A126))),INDEX($I$23:$I$52,SMALL(IF((County=$J$23:$J$52),MATCH(ROW($J$23:$J$52),ROW($J$23:$J$52)),""),ROWS($A$23:A126)))),"") ->  | Q126: =IFERROR(IF($Q$21="Yes",INDEX($L$23:$L$2323,SMALL(IF((County=$M$23:$M$2323),MATCH(ROW($M$23:$M$2323),ROW($M$23:$M$2323)),""),ROWS($A$23:A126))),""),"") ->  | S126: 33126 | T126: Miami-Dade | V126: 10.02 | W126: Leon | AB126: 7.02 | AC126: Palm Beach | AE126: 33634 | AF126: Hillsborough | AJ126: 113.06 | AK126: Collier | AS126: =IFERROR(IF($O$21="Metro",INDEX($AJ$23:$AJ$748,SMALL(IF((County=$AK$23:$AK$748),MATCH(ROW($AK$23:$AK$748),ROW($AK$23:$AK$748)),""),ROWS($A$23:$A126))),INDEX($AM$23:$AM$58,SMALL(IF((County=$AN$23:$AN$58),MATCH(ROW($AN$23:$AN$58),ROW($AN$23:$AN$58)),""),ROWS($A$23:$A126)))),"") ->  | AU126: =IFERROR(IF($Q$21="Yes",INDEX($AP$23:$AP$2323,SMALL(IF((County=$AQ$23:$AQ$2323),MATCH(ROW($AQ$23:$AQ$2323),ROW($AQ$23:$AQ$2323)),""),ROWS($A$23:$A126))),""),"") ->  | AW126: 33067 | AX126: Broward | AZ126: 7.18 | BA126: Miami-Dade | BK126: Development Location | BL126: H5 | BM126: County
A127: 33634 | B127: Hillsborough | F127: 15 | G127: Duval | L127: 693 | M127: Brevard | O127: =IFERROR(IF($O$21="Metro",INDEX($F$23:$F$748,SMALL(IF((County=$G$23:$G$748),MATCH(ROW($G$23:$G$748),ROW($G$23:$G$748)),""),ROWS($A$23:A127))),INDEX($I$23:$I$52,SMALL(IF((County=$J$23:$J$52),MATCH(ROW($J$23:$J$52),ROW($J$23:$J$52)),""),ROWS($A$23:A127)))),"") ->  | Q127: =IFERROR(IF($Q$21="Yes",INDEX($L$23:$L$2323,SMALL(IF((County=$M$23:$M$2323),MATCH(ROW($M$23:$M$2323),ROW($M$23:$M$2323)),""),ROWS($A$23:A127))),""),"") ->  | S127: 33129 | T127: Miami-Dade | V127: 10.02 | W127: Miami-Dade | AB127: 7.03 | AC127: Palm Beach | AE127: 33635 | AF127: Hillsborough | AJ127: 114 | AK127: Collier | AS127: =IFERROR(IF($O$21="Metro",INDEX($AJ$23:$AJ$748,SMALL(IF((County=$AK$23:$AK$748),MATCH(ROW($AK$23:$AK$748),ROW($AK$23:$AK$748)),""),ROWS($A$23:$A127))),INDEX($AM$23:$AM$58,SMALL(IF((County=$AN$23:$AN$58),MATCH(ROW($AN$23:$AN$58),ROW($AN$23:$AN$58)),""),ROWS($A$23:$A127)))),"") ->  | AU127: =IFERROR(IF($Q$21="Yes",INDEX($AP$23:$AP$2323,SMALL(IF((County=$AQ$23:$AQ$2323),MATCH(ROW($AQ$23:$AQ$2323),ROW($AQ$23:$AQ$2323)),""),ROWS($A$23:$A127))),""),"") ->  | AW127: 33068 | AX127: Broward | AZ127: 7.19 | BA127: Miami-Dade | BJ127: Not 109 | BK127: Development Location | BL127: H7 | BM127: County
A128: 33635 | B128: Hillsborough | F128: 16 | G128: Duval | L128: 694 | M128: Brevard | O128: =IFERROR(IF($O$21="Metro",INDEX($F$23:$F$748,SMALL(IF((County=$G$23:$G$748),MATCH(ROW($G$23:$G$748),ROW($G$23:$G$748)),""),ROWS($A$23:A128))),INDEX($I$23:$I$52,SMALL(IF((County=$J$23:$J$52),MATCH(ROW($J$23:$J$52),ROW($J$23:$J$52)),""),ROWS($A$23:A128)))),"") ->  | Q128: =IFERROR(IF($Q$21="Yes",INDEX($L$23:$L$2323,SMALL(IF((County=$M$23:$M$2323),MATCH(ROW($M$23:$M$2323),ROW($M$23:$M$2323)),""),ROWS($A$23:A128))),""),"") ->  | S128: 33131 | T128: Miami-Dade | V128: 10.03 | W128: Miami-Dade | AB128: 8 | AC128: Duval | AE128: 33647 | AF128: Hillsborough | AJ128: 1.01 | AK128: Duval | AS128: =IFERROR(IF($O$21="Metro",INDEX($AJ$23:$AJ$748,SMALL(IF((County=$AK$23:$AK$748),MATCH(ROW($AK$23:$AK$748),ROW($AK$23:$AK$748)),""),ROWS($A$23:$A128))),INDEX($AM$23:$AM$58,SMALL(IF((County=$AN$23:$AN$58),MATCH(ROW($AN$23:$AN$58),ROW($AN$23:$AN$58)),""),ROWS($A$23:$A128)))),"") ->  | AU128: =IFERROR(IF($Q$21="Yes",INDEX($AP$23:$AP$2323,SMALL(IF((County=$AQ$23:$AQ$2323),MATCH(ROW($AQ$23:$AQ$2323),ROW($AQ$23:$AQ$2323)),""),ROWS($A$23:$A128))),""),"") ->  | AW128: 33071 | AX128: Broward | AZ128: 7.2 | BA128: Miami-Dade | BK128: Units, Set-Asides, Bldgs | BL128: L3 | BM128: Total Units, County
A129: 33637 | B129: Hillsborough | F129: 25.01 | G129: Duval | L129: 698.01 | M129: Brevard | O129: =IFERROR(IF($O$21="Metro",INDEX($F$23:$F$748,SMALL(IF((County=$G$23:$G$748),MATCH(ROW($G$23:$G$748),ROW($G$23:$G$748)),""),ROWS($A$23:A129))),INDEX($I$23:$I$52,SMALL(IF((County=$J$23:$J$52),MATCH(ROW($J$23:$J$52),ROW($J$23:$J$52)),""),ROWS($A$23:A129)))),"") ->  | Q129: =IFERROR(IF($Q$21="Yes",INDEX($L$23:$L$2323,SMALL(IF((County=$M$23:$M$2323),MATCH(ROW($M$23:$M$2323),ROW($M$23:$M$2323)),""),ROWS($A$23:A129))),""),"") ->  | S129: 33132 | T129: Miami-Dade | V129: 10.04 | W129: Miami-Dade | AB129: 8 | AC129: Escambia | AE129: 32963 | AF129: Indian River | AJ129: 1.02 | AK129: Duval | AS129: =IFERROR(IF($O$21="Metro",INDEX($AJ$23:$AJ$748,SMALL(IF((County=$AK$23:$AK$748),MATCH(ROW($AK$23:$AK$748),ROW($AK$23:$AK$748)),""),ROWS($A$23:$A129))),INDEX($AM$23:$AM$58,SMALL(IF((County=$AN$23:$AN$58),MATCH(ROW($AN$23:$AN$58),ROW($AN$23:$AN$58)),""),ROWS($A$23:$A129)))),"") ->  | AU129: =IFERROR(IF($Q$21="Yes",INDEX($AP$23:$AP$2323,SMALL(IF((County=$AQ$23:$AQ$2323),MATCH(ROW($AQ$23:$AQ$2323),ROW($AQ$23:$AQ$2323)),""),ROWS($A$23:$A129))),""),"") ->  | AW129: 33073 | AX129: Broward | AZ129: 8 | BA129: Hillsborough | BJ129: Not 109 | BK129: Units, Set-Asides, Bldgs | BL129: L6 | BM129: DevCat
A130: 33647 | B130: Hillsborough | F130: 26 | G130: Duval | L130: 699.01 | M130: Brevard | O130: =IFERROR(IF($O$21="Metro",INDEX($F$23:$F$748,SMALL(IF((County=$G$23:$G$748),MATCH(ROW($G$23:$G$748),ROW($G$23:$G$748)),""),ROWS($A$23:A130))),INDEX($I$23:$I$52,SMALL(IF((County=$J$23:$J$52),MATCH(ROW($J$23:$J$52),ROW($J$23:$J$52)),""),ROWS($A$23:A130)))),"") ->  | Q130: =IFERROR(IF($Q$21="Yes",INDEX($L$23:$L$2323,SMALL(IF((County=$M$23:$M$2323),MATCH(ROW($M$23:$M$2323),ROW($M$23:$M$2323)),""),ROWS($A$23:A130))),""),"") ->  | S130: 33133 | T130: Miami-Dade | V130: 10.05 | W130: Miami-Dade | AB130: 8 | AC130: Lee | AE130: 32968 | AF130: Indian River | AJ130: 2 | AK130: Duval | AS130: =IFERROR(IF($O$21="Metro",INDEX($AJ$23:$AJ$748,SMALL(IF((County=$AK$23:$AK$748),MATCH(ROW($AK$23:$AK$748),ROW($AK$23:$AK$748)),""),ROWS($A$23:$A130))),INDEX($AM$23:$AM$58,SMALL(IF((County=$AN$23:$AN$58),MATCH(ROW($AN$23:$AN$58),ROW($AN$23:$AN$58)),""),ROWS($A$23:$A130)))),"") ->  | AU130: =IFERROR(IF($Q$21="Yes",INDEX($AP$23:$AP$2323,SMALL(IF((County=$AQ$23:$AQ$2323),MATCH(ROW($AQ$23:$AQ$2323),ROW($AQ$23:$AQ$2323)),""),ROWS($A$23:$A130))),""),"") ->  | AW130: 33076 | AX130: Broward | AZ130: 8.03 | BA130: Bay | BJ130: Not 109 | BK130: Units, Set-Asides, Bldgs | BL130: L12 | BM130: Minimum SA Commitment | BP130: DS_Comment_Total_Units_a, DS_Comment_Min_IRS_and_Loan_SA_a, DS_Comment_Min_IRS_NonProfit_SA_a, DS_Comment_Min_Max_Workforce_SA_a, DS_Comment_Min_ElderlyALF_SA_a, DS_Comment_Min_RFA_SA_a, DS_Comment_Min_ELI_SA_a
A131: 32963 | B131: Indian River | F131: 27.01 | G131: Duval | L131: 712 | M131: Brevard | O131: =IFERROR(IF($O$21="Metro",INDEX($F$23:$F$748,SMALL(IF((County=$G$23:$G$748),MATCH(ROW($G$23:$G$748),ROW($G$23:$G$748)),""),ROWS($A$23:A131))),INDEX($I$23:$I$52,SMALL(IF((County=$J$23:$J$52),MATCH(ROW($J$23:$J$52),ROW($J$23:$J$52)),""),ROWS($A$23:A131)))),"") ->  | Q131: =IFERROR(IF($Q$21="Yes",INDEX($L$23:$L$2323,SMALL(IF((County=$M$23:$M$2323),MATCH(ROW($M$23:$M$2323),ROW($M$23:$M$2323)),""),ROWS($A$23:A131))),""),"") ->  | S131: 33134 | T131: Miami-Dade | V131: 10.06 | W131: Miami-Dade | AB131: 8 | AC131: Leon | AE131: 32102 | AF131: Lake | AJ131: 3 | AK131: Duval | AS131: =IFERROR(IF($O$21="Metro",INDEX($AJ$23:$AJ$748,SMALL(IF((County=$AK$23:$AK$748),MATCH(ROW($AK$23:$AK$748),ROW($AK$23:$AK$748)),""),ROWS($A$23:$A131))),INDEX($AM$23:$AM$58,SMALL(IF((County=$AN$23:$AN$58),MATCH(ROW($AN$23:$AN$58),ROW($AN$23:$AN$58)),""),ROWS($A$23:$A131)))),"") ->  | AU131: =IFERROR(IF($Q$21="Yes",INDEX($AP$23:$AP$2323,SMALL(IF((County=$AQ$23:$AQ$2323),MATCH(ROW($AQ$23:$AQ$2323),ROW($AQ$23:$AQ$2323)),""),ROWS($A$23:$A131))),""),"") ->  | AW131: 33109 | AX131: Miami-Dade | AZ131: 8.04 | BA131: Miami-Dade | BJ131: Not 109 | BK131: Units, Set-Asides, Bldgs | BL131: L20
A132: 32968 | B132: Indian River | F132: 27.02 | G132: Duval | L132: 713.01 | M132: Brevard | O132: =IFERROR(IF($O$21="Metro",INDEX($F$23:$F$748,SMALL(IF((County=$G$23:$G$748),MATCH(ROW($G$23:$G$748),ROW($G$23:$G$748)),""),ROWS($A$23:A132))),INDEX($I$23:$I$52,SMALL(IF((County=$J$23:$J$52),MATCH(ROW($J$23:$J$52),ROW($J$23:$J$52)),""),ROWS($A$23:A132)))),"") ->  | Q132: =IFERROR(IF($Q$21="Yes",INDEX($L$23:$L$2323,SMALL(IF((County=$M$23:$M$2323),MATCH(ROW($M$23:$M$2323),ROW($M$23:$M$2323)),""),ROWS($A$23:A132))),""),"") ->  | S132: 33137 | T132: Miami-Dade | V132: 11 | W132: Bay | AB132: 8.01 | AC132: Marion | AE132: 32735 | AF132: Lake | AJ132: 6 | AK132: Duval | AS132: =IFERROR(IF($O$21="Metro",INDEX($AJ$23:$AJ$748,SMALL(IF((County=$AK$23:$AK$748),MATCH(ROW($AK$23:$AK$748),ROW($AK$23:$AK$748)),""),ROWS($A$23:$A132))),INDEX($AM$23:$AM$58,SMALL(IF((County=$AN$23:$AN$58),MATCH(ROW($AN$23:$AN$58),ROW($AN$23:$AN$58)),""),ROWS($A$23:$A132)))),"") ->  | AU132: =IFERROR(IF($Q$21="Yes",INDEX($AP$23:$AP$2323,SMALL(IF((County=$AQ$23:$AQ$2323),MATCH(ROW($AQ$23:$AQ$2323),ROW($AQ$23:$AQ$2323)),""),ROWS($A$23:$A132))),""),"") ->  | AW132: 33126 | AX132: Miami-Dade | AZ132: 8.05 | BA132: Miami-Dade | BJ132: Not 109 | BK132: Units, Set-Asides, Bldgs | BL132: G21:G30 | BM132: Minimum SA Commitment
A133: 32735 | B133: Lake | F133: 28.01 | G133: Duval | L133: 713.34 | M133: Brevard | O133: =IFERROR(IF($O$21="Metro",INDEX($F$23:$F$748,SMALL(IF((County=$G$23:$G$748),MATCH(ROW($G$23:$G$748),ROW($G$23:$G$748)),""),ROWS($A$23:A133))),INDEX($I$23:$I$52,SMALL(IF((County=$J$23:$J$52),MATCH(ROW($J$23:$J$52),ROW($J$23:$J$52)),""),ROWS($A$23:A133)))),"") ->  | Q133: =IFERROR(IF($Q$21="Yes",INDEX($L$23:$L$2323,SMALL(IF((County=$M$23:$M$2323),MATCH(ROW($M$23:$M$2323),ROW($M$23:$M$2323)),""),ROWS($A$23:A133))),""),"") ->  | S133: 33139 | T133: Miami-Dade | V133: 11.01 | W133: Lee | AB133: 8.01 | AC133: Sarasota | AE133: 32776 | AF133: Lake | AJ133: 10 | AK133: Duval | AS133: =IFERROR(IF($O$21="Metro",INDEX($AJ$23:$AJ$748,SMALL(IF((County=$AK$23:$AK$748),MATCH(ROW($AK$23:$AK$748),ROW($AK$23:$AK$748)),""),ROWS($A$23:$A133))),INDEX($AM$23:$AM$58,SMALL(IF((County=$AN$23:$AN$58),MATCH(ROW($AN$23:$AN$58),ROW($AN$23:$AN$58)),""),ROWS($A$23:$A133)))),"") ->  | AU133: =IFERROR(IF($Q$21="Yes",INDEX($AP$23:$AP$2323,SMALL(IF((County=$AQ$23:$AQ$2323),MATCH(ROW($AQ$23:$AQ$2323),ROW($AQ$23:$AQ$2323)),""),ROWS($A$23:$A133))),""),"") ->  | AW133: 33129 | AX133: Miami-Dade | AZ133: 8.06 | BA133: Alachua | BJ133: Not 109 | BK133: Units, Set-Asides, Bldgs | BL133: L32
A134: 32776 | B134: Lake | F134: 28.02 | G134: Duval | L134: 713.35 | M134: Brevard | O134: =IFERROR(IF($O$21="Metro",INDEX($F$23:$F$748,SMALL(IF((County=$G$23:$G$748),MATCH(ROW($G$23:$G$748),ROW($G$23:$G$748)),""),ROWS($A$23:A134))),INDEX($I$23:$I$52,SMALL(IF((County=$J$23:$J$52),MATCH(ROW($J$23:$J$52),ROW($J$23:$J$52)),""),ROWS($A$23:A134)))),"") ->  | Q134: =IFERROR(IF($Q$21="Yes",INDEX($L$23:$L$2323,SMALL(IF((County=$M$23:$M$2323),MATCH(ROW($M$23:$M$2323),ROW($M$23:$M$2323)),""),ROWS($A$23:A134))),""),"") ->  | S134: 33140 | T134: Miami-Dade | V134: 11.01 | W134: Leon | AB134: 8.02 | AC134: Marion | AE134: 34711 | AF134: Lake | AJ134: 12 | AK134: Duval | AS134: =IFERROR(IF($O$21="Metro",INDEX($AJ$23:$AJ$748,SMALL(IF((County=$AK$23:$AK$748),MATCH(ROW($AK$23:$AK$748),ROW($AK$23:$AK$748)),""),ROWS($A$23:$A134))),INDEX($AM$23:$AM$58,SMALL(IF((County=$AN$23:$AN$58),MATCH(ROW($AN$23:$AN$58),ROW($AN$23:$AN$58)),""),ROWS($A$23:$A134)))),"") ->  | AU134: =IFERROR(IF($Q$21="Yes",INDEX($AP$23:$AP$2323,SMALL(IF((County=$AQ$23:$AQ$2323),MATCH(ROW($AQ$23:$AQ$2323),ROW($AQ$23:$AQ$2323)),""),ROWS($A$23:$A134))),""),"") ->  | AW134: 33131 | AX134: Miami-Dade | AZ134: 8.06 | BA134: Miami-Dade | BJ134: Not 109 | BK134: Units, Set-Asides, Bldgs | BL134: L37
A135: 34711 | B135: Lake | F135: 29.01 | G135: Duval | L135: 713.38 | M135: Brevard | O135: =IFERROR(IF($O$21="Metro",INDEX($F$23:$F$748,SMALL(IF((County=$G$23:$G$748),MATCH(ROW($G$23:$G$748),ROW($G$23:$G$748)),""),ROWS($A$23:A135))),INDEX($I$23:$I$52,SMALL(IF((County=$J$23:$J$52),MATCH(ROW($J$23:$J$52),ROW($J$23:$J$52)),""),ROWS($A$23:A135)))),"") ->  | Q135: =IFERROR(IF($Q$21="Yes",INDEX($L$23:$L$2323,SMALL(IF((County=$M$23:$M$2323),MATCH(ROW($M$23:$M$2323),ROW($M$23:$M$2323)),""),ROWS($A$23:A135))),""),"") ->  | S135: 33141 | T135: Miami-Dade | V135: 11.02 | W135: Lee | AB135: 8.02 | AC135: Palm Beach | AE135: 34714 | AF135: Lake | AJ135: 13 | AK135: Duval | AS135: =IFERROR(IF($O$21="Metro",INDEX($AJ$23:$AJ$748,SMALL(IF((County=$AK$23:$AK$748),MATCH(ROW($AK$23:$AK$748),ROW($AK$23:$AK$748)),""),ROWS($A$23:$A135))),INDEX($AM$23:$AM$58,SMALL(IF((County=$AN$23:$AN$58),MATCH(ROW($AN$23:$AN$58),ROW($AN$23:$AN$58)),""),ROWS($A$23:$A135)))),"") ->  | AU135: =IFERROR(IF($Q$21="Yes",INDEX($AP$23:$AP$2323,SMALL(IF((County=$AQ$23:$AQ$2323),MATCH(ROW($AQ$23:$AQ$2323),ROW($AQ$23:$AQ$2323)),""),ROWS($A$23:$A135))),""),"") ->  | AW135: 33132 | AX135: Miami-Dade | AZ135: 8.07 | BA135: Miami-Dade | BJ135: Not 109 | BK135: Units, Set-Asides, Bldgs | BL135: F38:F44 | BM135: Minimum SA Commitment
A136: 34714 | B136: Lake | F136: 29.02 | G136: Duval | L136: 713.39 | M136: Brevard | O136: =IFERROR(IF($O$21="Metro",INDEX($F$23:$F$748,SMALL(IF((County=$G$23:$G$748),MATCH(ROW($G$23:$G$748),ROW($G$23:$G$748)),""),ROWS($A$23:A136))),INDEX($I$23:$I$52,SMALL(IF((County=$J$23:$J$52),MATCH(ROW($J$23:$J$52),ROW($J$23:$J$52)),""),ROWS($A$23:A136)))),"") ->  | Q136: =IFERROR(IF($Q$21="Yes",INDEX($L$23:$L$2323,SMALL(IF((County=$M$23:$M$2323),MATCH(ROW($M$23:$M$2323),ROW($M$23:$M$2323)),""),ROWS($A$23:A136))),""),"") ->  | S136: 33143 | T136: Miami-Dade | V136: 11.02 | W136: Sarasota | AB136: 8.02 | AC136: Sarasota | AE136: 34715 | AF136: Lake | AJ136: 14.01 | AK136: Duval | AS136: =IFERROR(IF($O$21="Metro",INDEX($AJ$23:$AJ$748,SMALL(IF((County=$AK$23:$AK$748),MATCH(ROW($AK$23:$AK$748),ROW($AK$23:$AK$748)),""),ROWS($A$23:$A136))),INDEX($AM$23:$AM$58,SMALL(IF((County=$AN$23:$AN$58),MATCH(ROW($AN$23:$AN$58),ROW($AN$23:$AN$58)),""),ROWS($A$23:$A136)))),"") ->  | AU136: =IFERROR(IF($Q$21="Yes",INDEX($AP$23:$AP$2323,SMALL(IF((County=$AQ$23:$AQ$2323),MATCH(ROW($AQ$23:$AQ$2323),ROW($AQ$23:$AQ$2323)),""),ROWS($A$23:$A136))),""),"") ->  | AW136: 33133 | AX136: Miami-Dade | AZ136: 8.08 | BA136: Alachua | BJ136: Not 109 | BK136: Units, Set-Asides, Bldgs | BL136: L38 | BM136: Total Units,…
A137: 34715 | B137: Lake | F137: 104.02 | G137: Duval | L137: 713.4 | M137: Brevard | O137: =IFERROR(IF($O$21="Metro",INDEX($F$23:$F$748,SMALL(IF((County=$G$23:$G$748),MATCH(ROW($G$23:$G$748),ROW($G$23:$G$748)),""),ROWS($A$23:A137))),INDEX($I$23:$I$52,SMALL(IF((County=$J$23:$J$52),MATCH(ROW($J$23:$J$52),ROW($J$23:$J$52)),""),ROWS($A$23:A137)))),"") ->  | Q137: =IFERROR(IF($Q$21="Yes",INDEX($L$23:$L$2323,SMALL(IF((County=$M$23:$M$2323),MATCH(ROW($M$23:$M$2323),ROW($M$23:$M$2323)),""),ROWS($A$23:A137))),""),"") ->  | S137: 33145 | T137: Miami-Dade | V137: 11.03 | W137: Miami-Dade | AB137: 8.03 | AC137: Palm Beach | AE137: 34736 | AF137: Lake | AJ137: 14.02 | AK137: Duval | AS137: =IFERROR(IF($O$21="Metro",INDEX($AJ$23:$AJ$748,SMALL(IF((County=$AK$23:$AK$748),MATCH(ROW($AK$23:$AK$748),ROW($AK$23:$AK$748)),""),ROWS($A$23:$A137))),INDEX($AM$23:$AM$58,SMALL(IF((County=$AN$23:$AN$58),MATCH(ROW($AN$23:$AN$58),ROW($AN$23:$AN$58)),""),ROWS($A$23:$A137)))),"") ->  | AU137: =IFERROR(IF($Q$21="Yes",INDEX($AP$23:$AP$2323,SMALL(IF((County=$AQ$23:$AQ$2323),MATCH(ROW($AQ$23:$AQ$2323),ROW($AQ$23:$AQ$2323)),""),ROWS($A$23:$A137))),""),"") ->  | AW137: 33134 | AX137: Miami-Dade | AZ137: 8.08 | BA137: Miami-Dade | BJ137: Not 109 | BK137: Units, Set-Asides, Bldgs | BL137: F47 | BM137: Total Unit, Minimum SA Commitment
A138: 34736 | B138: Lake | F138: 108 | G138: Duval | L138: 715 | M138: Brevard | O138: =IFERROR(IF($O$21="Metro",INDEX($F$23:$F$748,SMALL(IF((County=$G$23:$G$748),MATCH(ROW($G$23:$G$748),ROW($G$23:$G$748)),""),ROWS($A$23:A138))),INDEX($I$23:$I$52,SMALL(IF((County=$J$23:$J$52),MATCH(ROW($J$23:$J$52),ROW($J$23:$J$52)),""),ROWS($A$23:A138)))),"") ->  | Q138: =IFERROR(IF($Q$21="Yes",INDEX($L$23:$L$2323,SMALL(IF((County=$M$23:$M$2323),MATCH(ROW($M$23:$M$2323),ROW($M$23:$M$2323)),""),ROWS($A$23:A138))),""),"") ->  | S138: 33146 | T138: Miami-Dade | V138: 12 | W138: Duval | AB138: 8.04 | AC138: Bay | AE138: 34737 | AF138: Lake | AJ138: 15 | AK138: Duval | AS138: =IFERROR(IF($O$21="Metro",INDEX($AJ$23:$AJ$748,SMALL(IF((County=$AK$23:$AK$748),MATCH(ROW($AK$23:$AK$748),ROW($AK$23:$AK$748)),""),ROWS($A$23:$A138))),INDEX($AM$23:$AM$58,SMALL(IF((County=$AN$23:$AN$58),MATCH(ROW($AN$23:$AN$58),ROW($AN$23:$AN$58)),""),ROWS($A$23:$A138)))),"") ->  | AU138: =IFERROR(IF($Q$21="Yes",INDEX($AP$23:$AP$2323,SMALL(IF((County=$AQ$23:$AQ$2323),MATCH(ROW($AQ$23:$AQ$2323),ROW($AQ$23:$AQ$2323)),""),ROWS($A$23:$A138))),""),"") ->  | AW138: 33137 | AX138: Miami-Dade | AZ138: 9.01 | BA138: Alachua | BJ138: Not 109 | BK138: Units, Set-Asides, Bldgs | BL138: I48 | BM138: Minimum SA Commitment
A139: 33908 | B139: Lee | F139: 110 | G139: Duval | L139: 101.02 | M139: Broward | O139: =IFERROR(IF($O$21="Metro",INDEX($F$23:$F$748,SMALL(IF((County=$G$23:$G$748),MATCH(ROW($G$23:$G$748),ROW($G$23:$G$748)),""),ROWS($A$23:A139))),INDEX($I$23:$I$52,SMALL(IF((County=$J$23:$J$52),MATCH(ROW($J$23:$J$52),ROW($J$23:$J$52)),""),ROWS($A$23:A139)))),"") ->  | Q139: =IFERROR(IF($Q$21="Yes",INDEX($L$23:$L$2323,SMALL(IF((County=$M$23:$M$2323),MATCH(ROW($M$23:$M$2323),ROW($M$23:$M$2323)),""),ROWS($A$23:A139))),""),"") ->  | S139: 33149 | T139: Miami-Dade | V139: 12 | W139: Hillsborough | AB139: 8.04 | AC139: Manatee | AE139: 33908 | AF139: Lee | AJ139: 16 | AK139: Duval | AS139: =IFERROR(IF($O$21="Metro",INDEX($AJ$23:$AJ$748,SMALL(IF((County=$AK$23:$AK$748),MATCH(ROW($AK$23:$AK$748),ROW($AK$23:$AK$748)),""),ROWS($A$23:$A139))),INDEX($AM$23:$AM$58,SMALL(IF((County=$AN$23:$AN$58),MATCH(ROW($AN$23:$AN$58),ROW($AN$23:$AN$58)),""),ROWS($A$23:$A139)))),"") ->  | AU139: =IFERROR(IF($Q$21="Yes",INDEX($AP$23:$AP$2323,SMALL(IF((County=$AQ$23:$AQ$2323),MATCH(ROW($AQ$23:$AQ$2323),ROW($AQ$23:$AQ$2323)),""),ROWS($A$23:$A139))),""),"") ->  | AW139: 33139 | AX139: Miami-Dade | AZ139: 9.01 | BA139: Hillsborough | BJ139: Not 109 | BK139: Units, Set-Asides, Bldgs | BL139: L48 | BM139: Minimum SA Commitment, Total Units
A140: 33909 | B140: Lee | F140: 111 | G140: Duval | L140: 101.03 | M140: Broward | O140: =IFERROR(IF($O$21="Metro",INDEX($F$23:$F$748,SMALL(IF((County=$G$23:$G$748),MATCH(ROW($G$23:$G$748),ROW($G$23:$G$748)),""),ROWS($A$23:A140))),INDEX($I$23:$I$52,SMALL(IF((County=$J$23:$J$52),MATCH(ROW($J$23:$J$52),ROW($J$23:$J$52)),""),ROWS($A$23:A140)))),"") ->  | Q140: =IFERROR(IF($Q$21="Yes",INDEX($L$23:$L$2323,SMALL(IF((County=$M$23:$M$2323),MATCH(ROW($M$23:$M$2323),ROW($M$23:$M$2323)),""),ROWS($A$23:A140))),""),"") ->  | S140: 33154 | T140: Miami-Dade | V140: 12 | W140: Leon | AB140: 8.04 | AC140: Palm Beach | AE140: 33912 | AF140: Lee | AJ140: 25.01 | AK140: Duval | AS140: =IFERROR(IF($O$21="Metro",INDEX($AJ$23:$AJ$748,SMALL(IF((County=$AK$23:$AK$748),MATCH(ROW($AK$23:$AK$748),ROW($AK$23:$AK$748)),""),ROWS($A$23:$A140))),INDEX($AM$23:$AM$58,SMALL(IF((County=$AN$23:$AN$58),MATCH(ROW($AN$23:$AN$58),ROW($AN$23:$AN$58)),""),ROWS($A$23:$A140)))),"") ->  | AU140: =IFERROR(IF($Q$21="Yes",INDEX($AP$23:$AP$2323,SMALL(IF((County=$AQ$23:$AQ$2323),MATCH(ROW($AQ$23:$AQ$2323),ROW($AQ$23:$AQ$2323)),""),ROWS($A$23:$A140))),""),"") ->  | AW140: 33140 | AX140: Miami-Dade | AZ140: 9.02 | BA140: Hillsborough | BJ140: Not 109 | BK140: Units, Set-Asides, Bldgs | BL140: L68
A141: 33912 | B141: Lee | F141: 112 | G141: Duval | L141: 101.04 | M141: Broward | O141: =IFERROR(IF($O$21="Metro",INDEX($F$23:$F$748,SMALL(IF((County=$G$23:$G$748),MATCH(ROW($G$23:$G$748),ROW($G$23:$G$748)),""),ROWS($A$23:A141))),INDEX($I$23:$I$52,SMALL(IF((County=$J$23:$J$52),MATCH(ROW($J$23:$J$52),ROW($J$23:$J$52)),""),ROWS($A$23:A141)))),"") ->  | Q141: =IFERROR(IF($Q$21="Yes",INDEX($L$23:$L$2323,SMALL(IF((County=$M$23:$M$2323),MATCH(ROW($M$23:$M$2323),ROW($M$23:$M$2323)),""),ROWS($A$23:A141))),""),"") ->  | S141: 33155 | T141: Miami-Dade | V141: 12 | W141: Martin | AB141: 8.05 | AC141: Manatee | AE141: 33913 | AF141: Lee | AJ141: 26 | AK141: Duval | AS141: =IFERROR(IF($O$21="Metro",INDEX($AJ$23:$AJ$748,SMALL(IF((County=$AK$23:$AK$748),MATCH(ROW($AK$23:$AK$748),ROW($AK$23:$AK$748)),""),ROWS($A$23:$A141))),INDEX($AM$23:$AM$58,SMALL(IF((County=$AN$23:$AN$58),MATCH(ROW($AN$23:$AN$58),ROW($AN$23:$AN$58)),""),ROWS($A$23:$A141)))),"") ->  | AU141: =IFERROR(IF($Q$21="Yes",INDEX($AP$23:$AP$2323,SMALL(IF((County=$AQ$23:$AQ$2323),MATCH(ROW($AQ$23:$AQ$2323),ROW($AQ$23:$AQ$2323)),""),ROWS($A$23:$A141))),""),"") ->  | AW141: 33141 | AX141: Miami-Dade | AZ141: 9.03 | BA141: Miami-Dade | BJ141: Not 109 | BK141: Units, Set-Asides, Bldgs | BL141: G73:G84 | BM141: Minimum SA Commitment
A142: 33913 | B142: Lee | F142: 113 | G142: Duval | L142: 103.08 | M142: Broward | O142: =IFERROR(IF($O$21="Metro",INDEX($F$23:$F$748,SMALL(IF((County=$G$23:$G$748),MATCH(ROW($G$23:$G$748),ROW($G$23:$G$748)),""),ROWS($A$23:A142))),INDEX($I$23:$I$52,SMALL(IF((County=$J$23:$J$52),MATCH(ROW($J$23:$J$52),ROW($J$23:$J$52)),""),ROWS($A$23:A142)))),"") ->  | Q142: =IFERROR(IF($Q$21="Yes",INDEX($L$23:$L$2323,SMALL(IF((County=$M$23:$M$2323),MATCH(ROW($M$23:$M$2323),ROW($M$23:$M$2323)),""),ROWS($A$23:A142))),""),"") ->  | S142: 33156 | T142: Miami-Dade | V142: 12.03 | W142: Miami-Dade | AB142: 8.07 | AC142: Manatee | AE142: 33921 | AF142: Lee | AJ142: 27.01 | AK142: Duval | AS142: =IFERROR(IF($O$21="Metro",INDEX($AJ$23:$AJ$748,SMALL(IF((County=$AK$23:$AK$748),MATCH(ROW($AK$23:$AK$748),ROW($AK$23:$AK$748)),""),ROWS($A$23:$A142))),INDEX($AM$23:$AM$58,SMALL(IF((County=$AN$23:$AN$58),MATCH(ROW($AN$23:$AN$58),ROW($AN$23:$AN$58)),""),ROWS($A$23:$A142)))),"") ->  | AU142: =IFERROR(IF($Q$21="Yes",INDEX($AP$23:$AP$2323,SMALL(IF((County=$AQ$23:$AQ$2323),MATCH(ROW($AQ$23:$AQ$2323),ROW($AQ$23:$AQ$2323)),""),ROWS($A$23:$A142))),""),"") ->  | AW142: 33143 | AX142: Miami-Dade | AZ142: 9.04 | BA142: Miami-Dade
A143: 33914 | B143: Lee | F143: 114 | G143: Duval | L143: 104.01 | M143: Broward | O143: =IFERROR(IF($O$21="Metro",INDEX($F$23:$F$748,SMALL(IF((County=$G$23:$G$748),MATCH(ROW($G$23:$G$748),ROW($G$23:$G$748)),""),ROWS($A$23:A143))),INDEX($I$23:$I$52,SMALL(IF((County=$J$23:$J$52),MATCH(ROW($J$23:$J$52),ROW($J$23:$J$52)),""),ROWS($A$23:A143)))),"") ->  | Q143: =IFERROR(IF($Q$21="Yes",INDEX($L$23:$L$2323,SMALL(IF((County=$M$23:$M$2323),MATCH(ROW($M$23:$M$2323),ROW($M$23:$M$2323)),""),ROWS($A$23:A143))),""),"") ->  | S143: 33158 | T143: Miami-Dade | V143: 13 | W143: Duval | AB143: 8.08 | AC143: Manatee | AE143: 33924 | AF143: Lee | AJ143: 27.02 | AK143: Duval | AS143: =IFERROR(IF($O$21="Metro",INDEX($AJ$23:$AJ$748,SMALL(IF((County=$AK$23:$AK$748),MATCH(ROW($AK$23:$AK$748),ROW($AK$23:$AK$748)),""),ROWS($A$23:$A143))),INDEX($AM$23:$AM$58,SMALL(IF((County=$AN$23:$AN$58),MATCH(ROW($AN$23:$AN$58),ROW($AN$23:$AN$58)),""),ROWS($A$23:$A143)))),"") ->  | AU143: =IFERROR(IF($Q$21="Yes",INDEX($AP$23:$AP$2323,SMALL(IF((County=$AQ$23:$AQ$2323),MATCH(ROW($AQ$23:$AQ$2323),ROW($AQ$23:$AQ$2323)),""),ROWS($A$23:$A143))),""),"") ->  | AW143: 33144 | AX143: Miami-Dade | AZ143: 9.06 | BA143: Miami-Dade
A144: 33919 | B144: Lee | F144: 115 | G144: Duval | L144: 104.06 | M144: Broward | O144: =IFERROR(IF($O$21="Metro",INDEX($F$23:$F$748,SMALL(IF((County=$G$23:$G$748),MATCH(ROW($G$23:$G$748),ROW($G$23:$G$748)),""),ROWS($A$23:A144))),INDEX($I$23:$I$52,SMALL(IF((County=$J$23:$J$52),MATCH(ROW($J$23:$J$52),ROW($J$23:$J$52)),""),ROWS($A$23:A144)))),"") ->  | Q144: =IFERROR(IF($Q$21="Yes",INDEX($L$23:$L$2323,SMALL(IF((County=$M$23:$M$2323),MATCH(ROW($M$23:$M$2323),ROW($M$23:$M$2323)),""),ROWS($A$23:A144))),""),"") ->  | S144: 33160 | T144: Miami-Dade | V144: 13 | W144: Escambia | AB144: 8.09 | AC144: Manatee | AE144: 33928 | AF144: Lee | AJ144: 28.01 | AK144: Duval | AS144: =IFERROR(IF($O$21="Metro",INDEX($AJ$23:$AJ$748,SMALL(IF((County=$AK$23:$AK$748),MATCH(ROW($AK$23:$AK$748),ROW($AK$23:$AK$748)),""),ROWS($A$23:$A144))),INDEX($AM$23:$AM$58,SMALL(IF((County=$AN$23:$AN$58),MATCH(ROW($AN$23:$AN$58),ROW($AN$23:$AN$58)),""),ROWS($A$23:$A144)))),"") ->  | AU144: =IFERROR(IF($Q$21="Yes",INDEX($AP$23:$AP$2323,SMALL(IF((County=$AQ$23:$AQ$2323),MATCH(ROW($AQ$23:$AQ$2323),ROW($AQ$23:$AQ$2323)),""),ROWS($A$23:$A144))),""),"") ->  | AW144: 33145 | AX144: Miami-Dade | AZ144: 9.07 | BA144: Miami-Dade
A145: 33921 | B145: Lee | F145: 116 | G145: Duval | L145: 105.02 | M145: Broward | O145: =IFERROR(IF($O$21="Metro",INDEX($F$23:$F$748,SMALL(IF((County=$G$23:$G$748),MATCH(ROW($G$23:$G$748),ROW($G$23:$G$748)),""),ROWS($A$23:A145))),INDEX($I$23:$I$52,SMALL(IF((County=$J$23:$J$52),MATCH(ROW($J$23:$J$52),ROW($J$23:$J$52)),""),ROWS($A$23:A145)))),"") ->  | Q145: =IFERROR(IF($Q$21="Yes",INDEX($L$23:$L$2323,SMALL(IF((County=$M$23:$M$2323),MATCH(ROW($M$23:$M$2323),ROW($M$23:$M$2323)),""),ROWS($A$23:A145))),""),"") ->  | S145: 33165 | T145: Miami-Dade | V145: 13.01 | W145: Miami-Dade | AB145: 8.1 | AC145: Manatee | AE145: 33957 | AF145: Lee | AJ145: 28.02 | AK145: Duval | AS145: =IFERROR(IF($O$21="Metro",INDEX($AJ$23:$AJ$748,SMALL(IF((County=$AK$23:$AK$748),MATCH(ROW($AK$23:$AK$748),ROW($AK$23:$AK$748)),""),ROWS($A$23:$A145))),INDEX($AM$23:$AM$58,SMALL(IF((County=$AN$23:$AN$58),MATCH(ROW($AN$23:$AN$58),ROW($AN$23:$AN$58)),""),ROWS($A$23:$A145)))),"") ->  | AU145: =IFERROR(IF($Q$21="Yes",INDEX($AP$23:$AP$2323,SMALL(IF((County=$AQ$23:$AQ$2323),MATCH(ROW($AQ$23:$AQ$2323),ROW($AQ$23:$AQ$2323)),""),ROWS($A$23:$A145))),""),"") ->  | AW145: 33146 | AX145: Miami-Dade | AZ145: 9.08 | BA145: Miami-Dade
A146: 33924 | B146: Lee | F146: 118 | G146: Duval | L146: 105.03 | M146: Broward | O146: =IFERROR(IF($O$21="Metro",INDEX($F$23:$F$748,SMALL(IF((County=$G$23:$G$748),MATCH(ROW($G$23:$G$748),ROW($G$23:$G$748)),""),ROWS($A$23:A146))),INDEX($I$23:$I$52,SMALL(IF((County=$J$23:$J$52),MATCH(ROW($J$23:$J$52),ROW($J$23:$J$52)),""),ROWS($A$23:A146)))),"") ->  | Q146: =IFERROR(IF($Q$21="Yes",INDEX($L$23:$L$2323,SMALL(IF((County=$M$23:$M$2323),MATCH(ROW($M$23:$M$2323),ROW($M$23:$M$2323)),""),ROWS($A$23:A146))),""),"") ->  | S146: 33172 | T146: Miami-Dade | V146: 13.01 | W146: Palm Beach | AB146: 9 | AC146: Escambia | AE146: 33965 | AF146: Lee | AJ146: 29.01 | AK146: Duval | AS146: =IFERROR(IF($O$21="Metro",INDEX($AJ$23:$AJ$748,SMALL(IF((County=$AK$23:$AK$748),MATCH(ROW($AK$23:$AK$748),ROW($AK$23:$AK$748)),""),ROWS($A$23:$A146))),INDEX($AM$23:$AM$58,SMALL(IF((County=$AN$23:$AN$58),MATCH(ROW($AN$23:$AN$58),ROW($AN$23:$AN$58)),""),ROWS($A$23:$A146)))),"") ->  | AU146: =IFERROR(IF($Q$21="Yes",INDEX($AP$23:$AP$2323,SMALL(IF((County=$AQ$23:$AQ$2323),MATCH(ROW($AQ$23:$AQ$2323),ROW($AQ$23:$AQ$2323)),""),ROWS($A$23:$A146))),""),"") ->  | AW146: 33149 | AX146: Miami-Dade | AZ146: 10 | BA146: Bay
A147: 33928 | B147: Lee | F147: 121 | G147: Duval | L147: 105.04 | M147: Broward | O147: =IFERROR(IF($O$21="Metro",INDEX($F$23:$F$748,SMALL(IF((County=$G$23:$G$748),MATCH(ROW($G$23:$G$748),ROW($G$23:$G$748)),""),ROWS($A$23:A147))),INDEX($I$23:$I$52,SMALL(IF((County=$J$23:$J$52),MATCH(ROW($J$23:$J$52),ROW($J$23:$J$52)),""),ROWS($A$23:A147)))),"") ->  | Q147: =IFERROR(IF($Q$21="Yes",INDEX($L$23:$L$2323,SMALL(IF((County=$M$23:$M$2323),MATCH(ROW($M$23:$M$2323),ROW($M$23:$M$2323)),""),ROWS($A$23:A147))),""),"") ->  | S147: 33173 | T147: Miami-Dade | V147: 13.02 | W147: Palm Beach | AB147: 9 | AC147: Lee | AE147: 33967 | AF147: Lee | AJ147: 29.02 | AK147: Duval | AS147: =IFERROR(IF($O$21="Metro",INDEX($AJ$23:$AJ$748,SMALL(IF((County=$AK$23:$AK$748),MATCH(ROW($AK$23:$AK$748),ROW($AK$23:$AK$748)),""),ROWS($A$23:$A147))),INDEX($AM$23:$AM$58,SMALL(IF((County=$AN$23:$AN$58),MATCH(ROW($AN$23:$AN$58),ROW($AN$23:$AN$58)),""),ROWS($A$23:$A147)))),"") ->  | AU147: =IFERROR(IF($Q$21="Yes",INDEX($AP$23:$AP$2323,SMALL(IF((County=$AQ$23:$AQ$2323),MATCH(ROW($AQ$23:$AQ$2323),ROW($AQ$23:$AQ$2323)),""),ROWS($A$23:$A147))),""),"") ->  | AW147: 33154 | AX147: Miami-Dade | AZ147: 10 | BA147: Duval
A148: 33957 | B148: Lee | F148: 122 | G148: Duval | L148: 106.01 | M148: Broward | O148: =IFERROR(IF($O$21="Metro",INDEX($F$23:$F$748,SMALL(IF((County=$G$23:$G$748),MATCH(ROW($G$23:$G$748),ROW($G$23:$G$748)),""),ROWS($A$23:A148))),INDEX($I$23:$I$52,SMALL(IF((County=$J$23:$J$52),MATCH(ROW($J$23:$J$52),ROW($J$23:$J$52)),""),ROWS($A$23:A148)))),"") ->  | Q148: =IFERROR(IF($Q$21="Yes",INDEX($L$23:$L$2323,SMALL(IF((County=$M$23:$M$2323),MATCH(ROW($M$23:$M$2323),ROW($M$23:$M$2323)),""),ROWS($A$23:A148))),""),"") ->  | S148: 33175 | T148: Miami-Dade | V148: 14 | W148: Duval | AB148: 9 | AC148: Sarasota | AE148: 33991 | AF148: Lee | AJ148: 104.02 | AK148: Duval | AS148: =IFERROR(IF($O$21="Metro",INDEX($AJ$23:$AJ$748,SMALL(IF((County=$AK$23:$AK$748),MATCH(ROW($AK$23:$AK$748),ROW($AK$23:$AK$748)),""),ROWS($A$23:$A148))),INDEX($AM$23:$AM$58,SMALL(IF((County=$AN$23:$AN$58),MATCH(ROW($AN$23:$AN$58),ROW($AN$23:$AN$58)),""),ROWS($A$23:$A148)))),"") ->  | AU148: =IFERROR(IF($Q$21="Yes",INDEX($AP$23:$AP$2323,SMALL(IF((County=$AQ$23:$AQ$2323),MATCH(ROW($AQ$23:$AQ$2323),ROW($AQ$23:$AQ$2323)),""),ROWS($A$23:$A148))),""),"") ->  | AW148: 33155 | AX148: Miami-Dade | AZ148: 10 | BA148: Sarasota
A149: 33965 | B149: Lee | F149: 125 | G149: Duval | L149: 106.03 | M149: Broward | O149: =IFERROR(IF($O$21="Metro",INDEX($F$23:$F$748,SMALL(IF((County=$G$23:$G$748),MATCH(ROW($G$23:$G$748),ROW($G$23:$G$748)),""),ROWS($A$23:A149))),INDEX($I$23:$I$52,SMALL(IF((County=$J$23:$J$52),MATCH(ROW($J$23:$J$52),ROW($J$23:$J$52)),""),ROWS($A$23:A149)))),"") ->  | Q149: =IFERROR(IF($Q$21="Yes",INDEX($L$23:$L$2323,SMALL(IF((County=$M$23:$M$2323),MATCH(ROW($M$23:$M$2323),ROW($M$23:$M$2323)),""),ROWS($A$23:A149))),""),"") ->  | S149: 33176 | T149: Miami-Dade | V149: 14 | W149: Hillsborough | AB149: 9.01 | AC149: Leon | AE149: 33993 | AF149: Lee | AJ149: 107 | AK149: Duval | AS149: =IFERROR(IF($O$21="Metro",INDEX($AJ$23:$AJ$748,SMALL(IF((County=$AK$23:$AK$748),MATCH(ROW($AK$23:$AK$748),ROW($AK$23:$AK$748)),""),ROWS($A$23:$A149))),INDEX($AM$23:$AM$58,SMALL(IF((County=$AN$23:$AN$58),MATCH(ROW($AN$23:$AN$58),ROW($AN$23:$AN$58)),""),ROWS($A$23:$A149)))),"") ->  | AU149: =IFERROR(IF($Q$21="Yes",INDEX($AP$23:$AP$2323,SMALL(IF((County=$AQ$23:$AQ$2323),MATCH(ROW($AQ$23:$AQ$2323),ROW($AQ$23:$AQ$2323)),""),ROWS($A$23:$A149))),""),"") ->  | AW149: 33156 | AX149: Miami-Dade | AZ149: 10.01 | BA149: Hillsborough
A150: 33967 | B150: Lee | F150: 126.01 | G150: Duval | L150: 106.04 | M150: Broward | O150: =IFERROR(IF($O$21="Metro",INDEX($F$23:$F$748,SMALL(IF((County=$G$23:$G$748),MATCH(ROW($G$23:$G$748),ROW($G$23:$G$748)),""),ROWS($A$23:A150))),INDEX($I$23:$I$52,SMALL(IF((County=$J$23:$J$52),MATCH(ROW($J$23:$J$52),ROW($J$23:$J$52)),""),ROWS($A$23:A150)))),"") ->  | Q150: =IFERROR(IF($Q$21="Yes",INDEX($L$23:$L$2323,SMALL(IF((County=$M$23:$M$2323),MATCH(ROW($M$23:$M$2323),ROW($M$23:$M$2323)),""),ROWS($A$23:A150))),""),"") ->  | S150: 33178 | T150: Miami-Dade | V150: 14.01 | W150: Leon | AB150: 9.01 | AC150: Manatee | AE150: 32312 | AF150: Leon | AJ150: 108 | AK150: Duval | AS150: =IFERROR(IF($O$21="Metro",INDEX($AJ$23:$AJ$748,SMALL(IF((County=$AK$23:$AK$748),MATCH(ROW($AK$23:$AK$748),ROW($AK$23:$AK$748)),""),ROWS($A$23:$A150))),INDEX($AM$23:$AM$58,SMALL(IF((County=$AN$23:$AN$58),MATCH(ROW($AN$23:$AN$58),ROW($AN$23:$AN$58)),""),ROWS($A$23:$A150)))),"") ->  | AU150: =IFERROR(IF($Q$21="Yes",INDEX($AP$23:$AP$2323,SMALL(IF((County=$AQ$23:$AQ$2323),MATCH(ROW($AQ$23:$AQ$2323),ROW($AQ$23:$AQ$2323)),""),ROWS($A$23:$A150))),""),"") ->  | AW150: 33158 | AX150: Miami-Dade | AZ150: 10.01 | BA150: Leon
A151: 33991 | B151: Lee | F151: 134.02 | G151: Duval | L151: 106.05 | M151: Broward | O151: =IFERROR(IF($O$21="Metro",INDEX($F$23:$F$748,SMALL(IF((County=$G$23:$G$748),MATCH(ROW($G$23:$G$748),ROW($G$23:$G$748)),""),ROWS($A$23:A151))),INDEX($I$23:$I$52,SMALL(IF((County=$J$23:$J$52),MATCH(ROW($J$23:$J$52),ROW($J$23:$J$52)),""),ROWS($A$23:A151)))),"") ->  | Q151: =IFERROR(IF($Q$21="Yes",INDEX($L$23:$L$2323,SMALL(IF((County=$M$23:$M$2323),MATCH(ROW($M$23:$M$2323),ROW($M$23:$M$2323)),""),ROWS($A$23:A151))),""),"") ->  | S151: 33180 | T151: Miami-Dade | V151: 14.01 | W151: Marion | AB151: 9.01 | AC151: Martin | AE151: 32317 | AF151: Leon | AJ151: 110 | AK151: Duval | AS151: =IFERROR(IF($O$21="Metro",INDEX($AJ$23:$AJ$748,SMALL(IF((County=$AK$23:$AK$748),MATCH(ROW($AK$23:$AK$748),ROW($AK$23:$AK$748)),""),ROWS($A$23:$A151))),INDEX($AM$23:$AM$58,SMALL(IF((County=$AN$23:$AN$58),MATCH(ROW($AN$23:$AN$58),ROW($AN$23:$AN$58)),""),ROWS($A$23:$A151)))),"") ->  | AU151: =IFERROR(IF($Q$21="Yes",INDEX($AP$23:$AP$2323,SMALL(IF((County=$AQ$23:$AQ$2323),MATCH(ROW($AQ$23:$AQ$2323),ROW($AQ$23:$AQ$2323)),""),ROWS($A$23:$A151))),""),"") ->  | AW151: 33160 | AX151: Miami-Dade | AZ151: 10.02 | BA151: Hillsborough
A152: 33993 | B152: Lee | F152: 148 | G152: Duval | L152: 106.06 | M152: Broward | O152: =IFERROR(IF($O$21="Metro",INDEX($F$23:$F$748,SMALL(IF((County=$G$23:$G$748),MATCH(ROW($G$23:$G$748),ROW($G$23:$G$748)),""),ROWS($A$23:A152))),INDEX($I$23:$I$52,SMALL(IF((County=$J$23:$J$52),MATCH(ROW($J$23:$J$52),ROW($J$23:$J$52)),""),ROWS($A$23:A152)))),"") ->  | Q152: =IFERROR(IF($Q$21="Yes",INDEX($L$23:$L$2323,SMALL(IF((County=$M$23:$M$2323),MATCH(ROW($M$23:$M$2323),ROW($M$23:$M$2323)),""),ROWS($A$23:A152))),""),"") ->  | S152: 33182 | T152: Miami-Dade | V152: 14.01 | W152: Miami-Dade | AB152: 9.02 | AC152: Manatee | AE152: 34201 | AF152: Manatee | AJ152: 111 | AK152: Duval | AS152: =IFERROR(IF($O$21="Metro",INDEX($AJ$23:$AJ$748,SMALL(IF((County=$AK$23:$AK$748),MATCH(ROW($AK$23:$AK$748),ROW($AK$23:$AK$748)),""),ROWS($A$23:$A158))),INDEX($AM$23:$AM$58,SMALL(IF((County=$AN$23:$AN$58),MATCH(ROW($AN$23:$AN$58),ROW($AN$23:$AN$58)),""),ROWS($A$23:$A158)))),"") ->  | AU152: =IFERROR(IF($Q$21="Yes",INDEX($AP$23:$AP$2323,SMALL(IF((County=$AQ$23:$AQ$2323),MATCH(ROW($AQ$23:$AQ$2323),ROW($AQ$23:$AQ$2323)),""),ROWS($A$23:$A152))),""),"") ->  | AW152: 33165 | AX152: Miami-Dade | AZ152: 10.03 | BA152: Miami-Dade
A153: 34134 | B153: Lee | F153: 155.01 | G153: Duval | L153: 106.07 | M153: Broward | O153: =IFERROR(IF($O$21="Metro",INDEX($F$23:$F$748,SMALL(IF((County=$G$23:$G$748),MATCH(ROW($G$23:$G$748),ROW($G$23:$G$748)),""),ROWS($A$23:A153))),INDEX($I$23:$I$52,SMALL(IF((County=$J$23:$J$52),MATCH(ROW($J$23:$J$52),ROW($J$23:$J$52)),""),ROWS($A$23:A153)))),"") ->  | Q153: =IFERROR(IF($Q$21="Yes",INDEX($L$23:$L$2323,SMALL(IF((County=$M$23:$M$2323),MATCH(ROW($M$23:$M$2323),ROW($M$23:$M$2323)),""),ROWS($A$23:A153))),""),"") ->  | S153: 33183 | T153: Miami-Dade | V153: 14.02 | W153: Leon | AB153: 9.02 | AC153: Marion | AE153: 34202 | AF153: Manatee | AJ153: 112 | AK153: Duval | AS153: =IFERROR(IF($O$21="Metro",INDEX($AJ$23:$AJ$748,SMALL(IF((County=$AK$23:$AK$748),MATCH(ROW($AK$23:$AK$748),ROW($AK$23:$AK$748)),""),ROWS($A$23:$A153))),INDEX($AM$23:$AM$58,SMALL(IF((County=$AN$23:$AN$58),MATCH(ROW($AN$23:$AN$58),ROW($AN$23:$AN$58)),""),ROWS($A$23:$A153)))),"") ->  | AU153: =IFERROR(IF($Q$21="Yes",INDEX($AP$23:$AP$2323,SMALL(IF((County=$AQ$23:$AQ$2323),MATCH(ROW($AQ$23:$AQ$2323),ROW($AQ$23:$AQ$2323)),""),ROWS($A$23:$A153))),""),"") ->  | AW153: 33168 | AX153: Miami-Dade | AZ153: 10.04 | BA153: Miami-Dade
A154: 34135 | B154: Lee | F154: 155.02 | G154: Duval | L154: 106.09 | M154: Broward | O154: =IFERROR(IF($O$21="Metro",INDEX($F$23:$F$748,SMALL(IF((County=$G$23:$G$748),MATCH(ROW($G$23:$G$748),ROW($G$23:$G$748)),""),ROWS($A$23:A154))),INDEX($I$23:$I$52,SMALL(IF((County=$J$23:$J$52),MATCH(ROW($J$23:$J$52),ROW($J$23:$J$52)),""),ROWS($A$23:A154)))),"") ->  | Q154: =IFERROR(IF($Q$21="Yes",INDEX($L$23:$L$2323,SMALL(IF((County=$M$23:$M$2323),MATCH(ROW($M$23:$M$2323),ROW($M$23:$M$2323)),""),ROWS($A$23:A154))),""),"") ->  | S154: 33184 | T154: Miami-Dade | V154: 14.02 | W154: Miami-Dade | AB154: 9.02 | AC154: Palm Beach | AE154: 34211 | AF154: Manatee | AJ154: 113 | AK154: Duval | AS154: =IFERROR(IF($O$21="Metro",INDEX($AJ$23:$AJ$748,SMALL(IF((County=$AK$23:$AK$748),MATCH(ROW($AK$23:$AK$748),ROW($AK$23:$AK$748)),""),ROWS($A$23:$A154))),INDEX($AM$23:$AM$58,SMALL(IF((County=$AN$23:$AN$58),MATCH(ROW($AN$23:$AN$58),ROW($AN$23:$AN$58)),""),ROWS($A$23:$A154)))),"") ->  | AU154: =IFERROR(IF($Q$21="Yes",INDEX($AP$23:$AP$2323,SMALL(IF((County=$AQ$23:$AQ$2323),MATCH(ROW($AQ$23:$AQ$2323),ROW($AQ$23:$AQ$2323)),""),ROWS($A$23:$A154))),""),"") ->  | AW154: 33172 | AX154: Miami-Dade | AZ154: 10.05 | BA154: Miami-Dade
A155: 32317 | B155: Leon | F155: 159.25 | G155: Duval | L155: 106.1 | M155: Broward | O155: =IFERROR(IF($O$21="Metro",INDEX($F$23:$F$748,SMALL(IF((County=$G$23:$G$748),MATCH(ROW($G$23:$G$748),ROW($G$23:$G$748)),""),ROWS($A$23:A155))),INDEX($I$23:$I$52,SMALL(IF((County=$J$23:$J$52),MATCH(ROW($J$23:$J$52),ROW($J$23:$J$52)),""),ROWS($A$23:A155)))),"") ->  | Q155: =IFERROR(IF($Q$21="Yes",INDEX($L$23:$L$2323,SMALL(IF((County=$M$23:$M$2323),MATCH(ROW($M$23:$M$2323),ROW($M$23:$M$2323)),""),ROWS($A$23:A155))),""),"") ->  | S155: 33185 | T155: Miami-Dade | V155: 14.02 | W155: Palm Beach | AB155: 9.03 | AC155: Leon | AE155: 34212 | AF155: Manatee | AJ155: 114 | AK155: Duval | AS155: =IFERROR(IF($O$21="Metro",INDEX($AJ$23:$AJ$748,SMALL(IF((County=$AK$23:$AK$748),MATCH(ROW($AK$23:$AK$748),ROW($AK$23:$AK$748)),""),ROWS($A$23:$A155))),INDEX($AM$23:$AM$58,SMALL(IF((County=$AN$23:$AN$58),MATCH(ROW($AN$23:$AN$58),ROW($AN$23:$AN$58)),""),ROWS($A$23:$A155)))),"") ->  | AU155: =IFERROR(IF($Q$21="Yes",INDEX($AP$23:$AP$2323,SMALL(IF((County=$AQ$23:$AQ$2323),MATCH(ROW($AQ$23:$AQ$2323),ROW($AQ$23:$AQ$2323)),""),ROWS($A$23:$A155))),""),"") ->  | AW155: 33173 | AX155: Miami-Dade | AZ155: 10.06 | BA155: Miami-Dade
A156: 34201 | B156: Manatee | F156: 160 | G156: Duval | L156: 106.11 | M156: Broward | O156: =IFERROR(IF($O$21="Metro",INDEX($F$23:$F$748,SMALL(IF((County=$G$23:$G$748),MATCH(ROW($G$23:$G$748),ROW($G$23:$G$748)),""),ROWS($A$23:A156))),INDEX($I$23:$I$52,SMALL(IF((County=$J$23:$J$52),MATCH(ROW($J$23:$J$52),ROW($J$23:$J$52)),""),ROWS($A$23:A156)))),"") ->  | Q156: =IFERROR(IF($Q$21="Yes",INDEX($L$23:$L$2323,SMALL(IF((County=$M$23:$M$2323),MATCH(ROW($M$23:$M$2323),ROW($M$23:$M$2323)),""),ROWS($A$23:A156))),""),"") ->  | S156: 33186 | T156: Miami-Dade | V156: 14.03 | W156: Palm Beach | AB156: 9.03 | AC156: Palm Beach | AE156: 34216 | AF156: Manatee | AJ156: 115 | AK156: Duval | AS156: =IFERROR(IF($O$21="Metro",INDEX($AJ$23:$AJ$748,SMALL(IF((County=$AK$23:$AK$748),MATCH(ROW($AK$23:$AK$748),ROW($AK$23:$AK$748)),""),ROWS($A$23:$A156))),INDEX($AM$23:$AM$58,SMALL(IF((County=$AN$23:$AN$58),MATCH(ROW($AN$23:$AN$58),ROW($AN$23:$AN$58)),""),ROWS($A$23:$A156)))),"") ->  | AU156: =IFERROR(IF($Q$21="Yes",INDEX($AP$23:$AP$2323,SMALL(IF((County=$AQ$23:$AQ$2323),MATCH(ROW($AQ$23:$AQ$2323),ROW($AQ$23:$AQ$2323)),""),ROWS($A$23:$A156))),""),"") ->  | AW156: 33174 | AX156: Miami-Dade | AZ156: 10.07 | BA156: Miami-Dade
A157: 34202 | B157: Manatee | F157: 163 | G157: Duval | L157: 106.12 | M157: Broward | O157: =IFERROR(IF($O$21="Metro",INDEX($F$23:$F$748,SMALL(IF((County=$G$23:$G$748),MATCH(ROW($G$23:$G$748),ROW($G$23:$G$748)),""),ROWS($A$23:A157))),INDEX($I$23:$I$52,SMALL(IF((County=$J$23:$J$52),MATCH(ROW($J$23:$J$52),ROW($J$23:$J$52)),""),ROWS($A$23:A157)))),"") ->  | Q157: =IFERROR(IF($Q$21="Yes",INDEX($L$23:$L$2323,SMALL(IF((County=$M$23:$M$2323),MATCH(ROW($M$23:$M$2323),ROW($M$23:$M$2323)),""),ROWS($A$23:A157))),""),"") ->  | S157: 33187 | T157: Miami-Dade | V157: 14.04 | W157: Palm Beach | AB157: 9.04 | AC157: Leon | AE157: 34217 | AF157: Manatee | AJ157: 116 | AK157: Duval | AS157: =IFERROR(IF($O$21="Metro",INDEX($AJ$23:$AJ$748,SMALL(IF((County=$AK$23:$AK$748),MATCH(ROW($AK$23:$AK$748),ROW($AK$23:$AK$748)),""),ROWS($A$23:$A157))),INDEX($AM$23:$AM$58,SMALL(IF((County=$AN$23:$AN$58),MATCH(ROW($AN$23:$AN$58),ROW($AN$23:$AN$58)),""),ROWS($A$23:$A157)))),"") ->  | AU157: =IFERROR(IF($Q$21="Yes",INDEX($AP$23:$AP$2323,SMALL(IF((County=$AQ$23:$AQ$2323),MATCH(ROW($AQ$23:$AQ$2323),ROW($AQ$23:$AQ$2323)),""),ROWS($A$23:$A157))),""),"") ->  | AW157: 33175 | AX157: Miami-Dade | AZ157: 10.08 | BA157: Miami-Dade
A158: 34211 | B158: Manatee | F158: 166.01 | G158: Duval | L158: 109.01 | M158: Broward | O158: =IFERROR(IF($O$21="Metro",INDEX($F$23:$F$748,SMALL(IF((County=$G$23:$G$748),MATCH(ROW($G$23:$G$748),ROW($G$23:$G$748)),""),ROWS($A$23:A158))),INDEX($I$23:$I$52,SMALL(IF((County=$J$23:$J$52),MATCH(ROW($J$23:$J$52),ROW($J$23:$J$52)),""),ROWS($A$23:A158)))),"") ->  | Q158: =IFERROR(IF($Q$21="Yes",INDEX($L$23:$L$2323,SMALL(IF((County=$M$23:$M$2323),MATCH(ROW($M$23:$M$2323),ROW($M$23:$M$2323)),""),ROWS($A$23:A158))),""),"") ->  | S158: 33193 | T158: Miami-Dade | V158: 14.07 | W158: Martin | AB158: 9.04 | AC158: Palm Beach | AE158: 34219 | AF158: Manatee | AJ158: 118 | AK158: Duval | AS158: =IFERROR(IF($O$21="Metro",INDEX($AJ$23:$AJ$748,SMALL(IF((County=$AK$23:$AK$748),MATCH(ROW($AK$23:$AK$748),ROW($AK$23:$AK$748)),""),ROWS($A$23:$A158))),INDEX($AM$23:$AM$58,SMALL(IF((County=$AN$23:$AN$58),MATCH(ROW($AN$23:$AN$58),ROW($AN$23:$AN$58)),""),ROWS($A$23:$A158)))),"") ->  | AU158: =IFERROR(IF($Q$21="Yes",INDEX($AP$23:$AP$2323,SMALL(IF((County=$AQ$23:$AQ$2323),MATCH(ROW($AQ$23:$AQ$2323),ROW($AQ$23:$AQ$2323)),""),ROWS($A$23:$A158))),""),"") ->  | AW158: 33176 | AX158: Miami-Dade | AZ158: 11 | BA158: Bay
A159: 34212 | B159: Manatee | F159: 172 | G159: Duval | L159: 109.02 | M159: Broward | O159: =IFERROR(IF($O$21="Metro",INDEX($F$23:$F$748,SMALL(IF((County=$G$23:$G$748),MATCH(ROW($G$23:$G$748),ROW($G$23:$G$748)),""),ROWS($A$23:A159))),INDEX($I$23:$I$52,SMALL(IF((County=$J$23:$J$52),MATCH(ROW($J$23:$J$52),ROW($J$23:$J$52)),""),ROWS($A$23:A159)))),"") ->  | Q159: =IFERROR(IF($Q$21="Yes",INDEX($L$23:$L$2323,SMALL(IF((County=$M$23:$M$2323),MATCH(ROW($M$23:$M$2323),ROW($M$23:$M$2323)),""),ROWS($A$23:A159))),""),"") ->  | S159: 33194 | T159: Miami-Dade | V159: 15 | W159: Duval | AB159: 9.05 | AC159: Leon | AE159: 34243 | AF159: Manatee | AJ159: 121 | AK159: Duval | AS159: =IFERROR(IF($O$21="Metro",INDEX($AJ$23:$AJ$748,SMALL(IF((County=$AK$23:$AK$748),MATCH(ROW($AK$23:$AK$748),ROW($AK$23:$AK$748)),""),ROWS($A$23:$A159))),INDEX($AM$23:$AM$58,SMALL(IF((County=$AN$23:$AN$58),MATCH(ROW($AN$23:$AN$58),ROW($AN$23:$AN$58)),""),ROWS($A$23:$A159)))),"") ->  | AU159: =IFERROR(IF($Q$21="Yes",INDEX($AP$23:$AP$2323,SMALL(IF((County=$AQ$23:$AQ$2323),MATCH(ROW($AQ$23:$AQ$2323),ROW($AQ$23:$AQ$2323)),""),ROWS($A$23:$A159))),""),"") ->  | AW159: 33178 | AX159: Miami-Dade | AZ159: 11.01 | BA159: Lee
A160: 34216 | B160: Manatee | F160: 174 | G160: Duval | L160: 110 | M160: Broward | O160: =IFERROR(IF($O$21="Metro",INDEX($F$23:$F$748,SMALL(IF((County=$G$23:$G$748),MATCH(ROW($G$23:$G$748),ROW($G$23:$G$748)),""),ROWS($A$23:A160))),INDEX($I$23:$I$52,SMALL(IF((County=$J$23:$J$52),MATCH(ROW($J$23:$J$52),ROW($J$23:$J$52)),""),ROWS($A$23:A160)))),"") ->  | Q160: =IFERROR(IF($Q$21="Yes",INDEX($L$23:$L$2323,SMALL(IF((County=$M$23:$M$2323),MATCH(ROW($M$23:$M$2323),ROW($M$23:$M$2323)),""),ROWS($A$23:A160))),""),"") ->  | S160: 33196 | T160: Miami-Dade | V160: 15 | W160: Escambia | AB160: 9.05 | AC160: Palm Beach | AE160: 34251 | AF160: Manatee | AJ160: 122.01 | AK160: Duval | AS160: =IFERROR(IF($O$21="Metro",INDEX($AJ$23:$AJ$748,SMALL(IF((County=$AK$23:$AK$748),MATCH(ROW($AK$23:$AK$748),ROW($AK$23:$AK$748)),""),ROWS($A$23:$A160))),INDEX($AM$23:$AM$58,SMALL(IF((County=$AN$23:$AN$58),MATCH(ROW($AN$23:$AN$58),ROW($AN$23:$AN$58)),""),ROWS($A$23:$A160)))),"") ->  | AU160: =IFERROR(IF($Q$21="Yes",INDEX($AP$23:$AP$2323,SMALL(IF((County=$AQ$23:$AQ$2323),MATCH(ROW($AQ$23:$AQ$2323),ROW($AQ$23:$AQ$2323)),""),ROWS($A$23:$A160))),""),"") ->  | AW160: 33179 | AX160: Miami-Dade | AZ160: 11.01 | BA160: Leon
A161: 34217 | B161: Manatee | F161: 3 | G161: Escambia | L161: 202.04 | M161: Broward | O161: =IFERROR(IF($O$21="Metro",INDEX($F$23:$F$748,SMALL(IF((County=$G$23:$G$748),MATCH(ROW($G$23:$G$748),ROW($G$23:$G$748)),""),ROWS($A$23:A161))),INDEX($I$23:$I$52,SMALL(IF((County=$J$23:$J$52),MATCH(ROW($J$23:$J$52),ROW($J$23:$J$52)),""),ROWS($A$23:A161)))),"") ->  | Q161: =IFERROR(IF($Q$21="Yes",INDEX($L$23:$L$2323,SMALL(IF((County=$M$23:$M$2323),MATCH(ROW($M$23:$M$2323),ROW($M$23:$M$2323)),""),ROWS($A$23:A161))),""),"") ->  | S161: 33301 | T161: Broward | V161: 15 | W161: Marion | AB161: 10 | AC161: Alachua | AE161: 32133 | AF161: Marion | AJ161: 122.02 | AK161: Duval | AS161: =IFERROR(IF($O$21="Metro",INDEX($AJ$23:$AJ$748,SMALL(IF((County=$AK$23:$AK$748),MATCH(ROW($AK$23:$AK$748),ROW($AK$23:$AK$748)),""),ROWS($A$23:$A161))),INDEX($AM$23:$AM$58,SMALL(IF((County=$AN$23:$AN$58),MATCH(ROW($AN$23:$AN$58),ROW($AN$23:$AN$58)),""),ROWS($A$23:$A161)))),"") ->  | AU161: =IFERROR(IF($Q$21="Yes",INDEX($AP$23:$AP$2323,SMALL(IF((County=$AQ$23:$AQ$2323),MATCH(ROW($AQ$23:$AQ$2323),ROW($AQ$23:$AQ$2323)),""),ROWS($A$23:$A161))),""),"") ->  | AW161: 33180 | AX161: Miami-Dade | AZ161: 11.02 | BA161: Sarasota
A162: 34219 | B162: Manatee | F162: 4 | G162: Escambia | L162: 202.05 | M162: Broward | O162: =IFERROR(IF($O$21="Metro",INDEX($F$23:$F$748,SMALL(IF((County=$G$23:$G$748),MATCH(ROW($G$23:$G$748),ROW($G$23:$G$748)),""),ROWS($A$23:A162))),INDEX($I$23:$I$52,SMALL(IF((County=$J$23:$J$52),MATCH(ROW($J$23:$J$52),ROW($J$23:$J$52)),""),ROWS($A$23:A162)))),"") ->  | Q162: =IFERROR(IF($Q$21="Yes",INDEX($L$23:$L$2323,SMALL(IF((County=$M$23:$M$2323),MATCH(ROW($M$23:$M$2323),ROW($M$23:$M$2323)),""),ROWS($A$23:A162))),""),"") ->  | S162: 33308 | T162: Broward | V162: 15.01 | W162: Miami-Dade | AB162: 10 | AC162: Lee | AE162: 32195 | AF162: Marion | AJ162: 126.01 | AK162: Duval | AS162: =IFERROR(IF($O$21="Metro",INDEX($AJ$23:$AJ$748,SMALL(IF((County=$AK$23:$AK$748),MATCH(ROW($AK$23:$AK$748),ROW($AK$23:$AK$748)),""),ROWS($A$23:$A162))),INDEX($AM$23:$AM$58,SMALL(IF((County=$AN$23:$AN$58),MATCH(ROW($AN$23:$AN$58),ROW($AN$23:$AN$58)),""),ROWS($A$23:$A162)))),"") ->  | AU162: =IFERROR(IF($Q$21="Yes",INDEX($AP$23:$AP$2323,SMALL(IF((County=$AQ$23:$AQ$2323),MATCH(ROW($AQ$23:$AQ$2323),ROW($AQ$23:$AQ$2323)),""),ROWS($A$23:$A162))),""),"") ->  | AW162: 33182 | AX162: Miami-Dade | AZ162: 11.03 | BA162: Lee
A163: 34243 | B163: Manatee | F163: 6 | G163: Escambia | L163: 203.09 | M163: Broward | O163: =IFERROR(IF($O$21="Metro",INDEX($F$23:$F$748,SMALL(IF((County=$G$23:$G$748),MATCH(ROW($G$23:$G$748),ROW($G$23:$G$748)),""),ROWS($A$23:A163))),INDEX($I$23:$I$52,SMALL(IF((County=$J$23:$J$52),MATCH(ROW($J$23:$J$52),ROW($J$23:$J$52)),""),ROWS($A$23:A163)))),"") ->  | Q163: =IFERROR(IF($Q$21="Yes",INDEX($L$23:$L$2323,SMALL(IF((County=$M$23:$M$2323),MATCH(ROW($M$23:$M$2323),ROW($M$23:$M$2323)),""),ROWS($A$23:A163))),""),"") ->  | S163: 33321 | T163: Broward | V163: 15.02 | W163: Lee | AB163: 10.01 | AC163: Escambia | AE163: 34472 | AF163: Marion | AJ163: 134.02 | AK163: Duval | AS163: =IFERROR(IF($O$21="Metro",INDEX($AJ$23:$AJ$748,SMALL(IF((County=$AK$23:$AK$748),MATCH(ROW($AK$23:$AK$748),ROW($AK$23:$AK$748)),""),ROWS($A$23:$A163))),INDEX($AM$23:$AM$58,SMALL(IF((County=$AN$23:$AN$58),MATCH(ROW($AN$23:$AN$58),ROW($AN$23:$AN$58)),""),ROWS($A$23:$A163)))),"") ->  | AU163: =IFERROR(IF($Q$21="Yes",INDEX($AP$23:$AP$2323,SMALL(IF((County=$AQ$23:$AQ$2323),MATCH(ROW($AQ$23:$AQ$2323),ROW($AQ$23:$AQ$2323)),""),ROWS($A$23:$A163))),""),"") ->  | AW163: 33183 | AX163: Miami-Dade | AZ163: 11.03 | BA163: Miami-Dade
A164: 34251 | B164: Manatee | F164: 13 | G164: Escambia | L164: 203.12 | M164: Broward | O164: =IFERROR(IF($O$21="Metro",INDEX($F$23:$F$748,SMALL(IF((County=$G$23:$G$748),MATCH(ROW($G$23:$G$748),ROW($G$23:$G$748)),""),ROWS($A$23:A164))),INDEX($I$23:$I$52,SMALL(IF((County=$J$23:$J$52),MATCH(ROW($J$23:$J$52),ROW($J$23:$J$52)),""),ROWS($A$23:A164)))),"") ->  | Q164: =IFERROR(IF($Q$21="Yes",INDEX($L$23:$L$2323,SMALL(IF((County=$M$23:$M$2323),MATCH(ROW($M$23:$M$2323),ROW($M$23:$M$2323)),""),ROWS($A$23:A164))),""),"") ->  | S164: 33322 | T164: Broward | V164: 15.02 | W164: Manatee | AB164: 10.02 | AC164: Escambia | AE164: 34473 | AF164: Marion | AJ164: 143.11 | AK164: Duval | AS164: =IFERROR(IF($O$21="Metro",INDEX($AJ$23:$AJ$748,SMALL(IF((County=$AK$23:$AK$748),MATCH(ROW($AK$23:$AK$748),ROW($AK$23:$AK$748)),""),ROWS($A$23:$A164))),INDEX($AM$23:$AM$58,SMALL(IF((County=$AN$23:$AN$58),MATCH(ROW($AN$23:$AN$58),ROW($AN$23:$AN$58)),""),ROWS($A$23:$A164)))),"") ->  | AU164: =IFERROR(IF($Q$21="Yes",INDEX($AP$23:$AP$2323,SMALL(IF((County=$AQ$23:$AQ$2323),MATCH(ROW($AQ$23:$AQ$2323),ROW($AQ$23:$AQ$2323)),""),ROWS($A$23:$A164))),""),"") ->  | AW164: 33184 | AX164: Miami-Dade | AZ164: 11.04 | BA164: Lee
A165: 32133 | B165: Marion | F165: 15 | G165: Escambia | L165: 203.13 | M165: Broward | O165: =IFERROR(IF($O$21="Metro",INDEX($F$23:$F$748,SMALL(IF((County=$G$23:$G$748),MATCH(ROW($G$23:$G$748),ROW($G$23:$G$748)),""),ROWS($A$23:A165))),INDEX($I$23:$I$52,SMALL(IF((County=$J$23:$J$52),MATCH(ROW($J$23:$J$52),ROW($J$23:$J$52)),""),ROWS($A$23:A165)))),"") ->  | Q165: =IFERROR(IF($Q$21="Yes",INDEX($L$23:$L$2323,SMALL(IF((County=$M$23:$M$2323),MATCH(ROW($M$23:$M$2323),ROW($M$23:$M$2323)),""),ROWS($A$23:A165))),""),"") ->  | S165: 33323 | T165: Broward | V165: 15.02 | W165: Miami-Dade | AB165: 10.03 | AC165: Palm Beach | AE165: 34474 | AF165: Marion | AJ165: 148 | AK165: Duval | AS165: =IFERROR(IF($O$21="Metro",INDEX($AJ$23:$AJ$748,SMALL(IF((County=$AK$23:$AK$748),MATCH(ROW($AK$23:$AK$748),ROW($AK$23:$AK$748)),""),ROWS($A$23:$A165))),INDEX($AM$23:$AM$58,SMALL(IF((County=$AN$23:$AN$58),MATCH(ROW($AN$23:$AN$58),ROW($AN$23:$AN$58)),""),ROWS($A$23:$A165)))),"") ->  | AU165: =IFERROR(IF($Q$21="Yes",INDEX($AP$23:$AP$2323,SMALL(IF((County=$AQ$23:$AQ$2323),MATCH(ROW($AQ$23:$AQ$2323),ROW($AQ$23:$AQ$2323)),""),ROWS($A$23:$A165))),""),"") ->  | AW165: 33185 | AX165: Miami-Dade | AZ165: 12 | BA165: Duval
A166: 32195 | B166: Marion | F166: 16 | G166: Escambia | L166: 203.15 | M166: Broward | O166: =IFERROR(IF($O$21="Metro",INDEX($F$23:$F$748,SMALL(IF((County=$G$23:$G$748),MATCH(ROW($G$23:$G$748),ROW($G$23:$G$748)),""),ROWS($A$23:A166))),INDEX($I$23:$I$52,SMALL(IF((County=$J$23:$J$52),MATCH(ROW($J$23:$J$52),ROW($J$23:$J$52)),""),ROWS($A$23:A166)))),"") ->  | Q166: =IFERROR(IF($Q$21="Yes",INDEX($L$23:$L$2323,SMALL(IF((County=$M$23:$M$2323),MATCH(ROW($M$23:$M$2323),ROW($M$23:$M$2323)),""),ROWS($A$23:A166))),""),"") ->  | S166: 33324 | T166: Broward | V166: 15.14 | W166: Alachua | AB166: 10.04 | AC166: Marion | AE166: 34990 | AF166: Martin | AJ166: 154 | AK166: Duval | AS166: =IFERROR(IF($O$21="Metro",INDEX($AJ$23:$AJ$748,SMALL(IF((County=$AK$23:$AK$748),MATCH(ROW($AK$23:$AK$748),ROW($AK$23:$AK$748)),""),ROWS($A$23:$A166))),INDEX($AM$23:$AM$58,SMALL(IF((County=$AN$23:$AN$58),MATCH(ROW($AN$23:$AN$58),ROW($AN$23:$AN$58)),""),ROWS($A$23:$A166)))),"") ->  | AU166: =IFERROR(IF($Q$21="Yes",INDEX($AP$23:$AP$2323,SMALL(IF((County=$AQ$23:$AQ$2323),MATCH(ROW($AQ$23:$AQ$2323),ROW($AQ$23:$AQ$2323)),""),ROWS($A$23:$A166))),""),"") ->  | AW166: 33186 | AX166: Miami-Dade | AZ166: 12 | BA166: Hillsborough
A167: 34472 | B167: Marion | F167: 17 | G167: Escambia | L167: 203.16 | M167: Broward | O167: =IFERROR(IF($O$21="Metro",INDEX($F$23:$F$748,SMALL(IF((County=$G$23:$G$748),MATCH(ROW($G$23:$G$748),ROW($G$23:$G$748)),""),ROWS($A$23:A167))),INDEX($I$23:$I$52,SMALL(IF((County=$J$23:$J$52),MATCH(ROW($J$23:$J$52),ROW($J$23:$J$52)),""),ROWS($A$23:A167)))),"") ->  | Q167: =IFERROR(IF($Q$21="Yes",INDEX($L$23:$L$2323,SMALL(IF((County=$M$23:$M$2323),MATCH(ROW($M$23:$M$2323),ROW($M$23:$M$2323)),""),ROWS($A$23:A167))),""),"") ->  | S167: 33325 | T167: Broward | V167: 15.15 | W167: Alachua | AB167: 10.05 | AC167: Marion | AE167: 33014 | AF167: Miami-Dade | AJ167: 155.02 | AK167: Duval | AS167: =IFERROR(IF($O$21="Metro",INDEX($AJ$23:$AJ$748,SMALL(IF((County=$AK$23:$AK$748),MATCH(ROW($AK$23:$AK$748),ROW($AK$23:$AK$748)),""),ROWS($A$23:$A167))),INDEX($AM$23:$AM$58,SMALL(IF((County=$AN$23:$AN$58),MATCH(ROW($AN$23:$AN$58),ROW($AN$23:$AN$58)),""),ROWS($A$23:$A167)))),"") ->  | AU167: =IFERROR(IF($Q$21="Yes",INDEX($AP$23:$AP$2323,SMALL(IF((County=$AQ$23:$AQ$2323),MATCH(ROW($AQ$23:$AQ$2323),ROW($AQ$23:$AQ$2323)),""),ROWS($A$23:$A167))),""),"") ->  | AW167: 33187 | AX167: Miami-Dade | AZ167: 12 | BA167: Leon
A168: 34473 | B168: Marion | F168: 18 | G168: Escambia | L168: 203.17 | M168: Broward | O168: =IFERROR(IF($O$21="Metro",INDEX($F$23:$F$748,SMALL(IF((County=$G$23:$G$748),MATCH(ROW($G$23:$G$748),ROW($G$23:$G$748)),""),ROWS($A$23:A168))),INDEX($I$23:$I$52,SMALL(IF((County=$J$23:$J$52),MATCH(ROW($J$23:$J$52),ROW($J$23:$J$52)),""),ROWS($A$23:A168)))),"") ->  | Q168: =IFERROR(IF($Q$21="Yes",INDEX($L$23:$L$2323,SMALL(IF((County=$M$23:$M$2323),MATCH(ROW($M$23:$M$2323),ROW($M$23:$M$2323)),""),ROWS($A$23:A168))),""),"") ->  | S168: 33326 | T168: Broward | V168: 15.16 | W168: Alachua | AB168: 10.06 | AC168: Marion | AE168: 33015 | AF168: Miami-Dade | AJ168: 160.01 | AK168: Duval | AS168: =IFERROR(IF($O$21="Metro",INDEX($AJ$23:$AJ$748,SMALL(IF((County=$AK$23:$AK$748),MATCH(ROW($AK$23:$AK$748),ROW($AK$23:$AK$748)),""),ROWS($A$23:$A168))),INDEX($AM$23:$AM$58,SMALL(IF((County=$AN$23:$AN$58),MATCH(ROW($AN$23:$AN$58),ROW($AN$23:$AN$58)),""),ROWS($A$23:$A168)))),"") ->  | AU168: =IFERROR(IF($Q$21="Yes",INDEX($AP$23:$AP$2323,SMALL(IF((County=$AQ$23:$AQ$2323),MATCH(ROW($AQ$23:$AQ$2323),ROW($AQ$23:$AQ$2323)),""),ROWS($A$23:$A168))),""),"") ->  | AW168: 33190 | AX168: Miami-Dade | AZ168: 12 | BA168: Martin
A169: 34474 | B169: Marion | F169: 19 | G169: Escambia | L169: 203.18 | M169: Broward | O169: =IFERROR(IF($O$21="Metro",INDEX($F$23:$F$748,SMALL(IF((County=$G$23:$G$748),MATCH(ROW($G$23:$G$748),ROW($G$23:$G$748)),""),ROWS($A$23:A169))),INDEX($I$23:$I$52,SMALL(IF((County=$J$23:$J$52),MATCH(ROW($J$23:$J$52),ROW($J$23:$J$52)),""),ROWS($A$23:A169)))),"") ->  | Q169: =IFERROR(IF($Q$21="Yes",INDEX($L$23:$L$2323,SMALL(IF((County=$M$23:$M$2323),MATCH(ROW($M$23:$M$2323),ROW($M$23:$M$2323)),""),ROWS($A$23:A169))),""),"") ->  | S169: 33327 | T169: Broward | V169: 15.17 | W169: Alachua | AB169: 10.07 | AC169: Marion | AE169: 33016 | AF169: Miami-Dade | AJ169: 160.02 | AK169: Duval | AS169: =IFERROR(IF($O$21="Metro",INDEX($AJ$23:$AJ$748,SMALL(IF((County=$AK$23:$AK$748),MATCH(ROW($AK$23:$AK$748),ROW($AK$23:$AK$748)),""),ROWS($A$23:$A169))),INDEX($AM$23:$AM$58,SMALL(IF((County=$AN$23:$AN$58),MATCH(ROW($AN$23:$AN$58),ROW($AN$23:$AN$58)),""),ROWS($A$23:$A169)))),"") ->  | AU169: =IFERROR(IF($Q$21="Yes",INDEX($AP$23:$AP$2323,SMALL(IF((County=$AQ$23:$AQ$2323),MATCH(ROW($AQ$23:$AQ$2323),ROW($AQ$23:$AQ$2323)),""),ROWS($A$23:$A169))),""),"") ->  | AW169: 33193 | AX169: Miami-Dade | AZ169: 12.07 | BA169: Miami-Dade
A170: 34481 | B170: Marion | F170: 20 | G170: Escambia | L170: 203.19 | M170: Broward | O170: =IFERROR(IF($O$21="Metro",INDEX($F$23:$F$748,SMALL(IF((County=$G$23:$G$748),MATCH(ROW($G$23:$G$748),ROW($G$23:$G$748)),""),ROWS($A$23:A170))),INDEX($I$23:$I$52,SMALL(IF((County=$J$23:$J$52),MATCH(ROW($J$23:$J$52),ROW($J$23:$J$52)),""),ROWS($A$23:A170)))),"") ->  | Q170: =IFERROR(IF($Q$21="Yes",INDEX($L$23:$L$2323,SMALL(IF((County=$M$23:$M$2323),MATCH(ROW($M$23:$M$2323),ROW($M$23:$M$2323)),""),ROWS($A$23:A170))),""),"") ->  | S170: 33328 | T170: Broward | V170: 15.19 | W170: Alachua | AB170: 10.08 | AC170: Marion | AE170: 33018 | AF170: Miami-Dade | AJ170: 163 | AK170: Duval | AS170: =IFERROR(IF($O$21="Metro",INDEX($AJ$23:$AJ$748,SMALL(IF((County=$AK$23:$AK$748),MATCH(ROW($AK$23:$AK$748),ROW($AK$23:$AK$748)),""),ROWS($A$23:$A170))),INDEX($AM$23:$AM$58,SMALL(IF((County=$AN$23:$AN$58),MATCH(ROW($AN$23:$AN$58),ROW($AN$23:$AN$58)),""),ROWS($A$23:$A170)))),"") ->  | AU170: =IFERROR(IF($Q$21="Yes",INDEX($AP$23:$AP$2323,SMALL(IF((County=$AQ$23:$AQ$2323),MATCH(ROW($AQ$23:$AQ$2323),ROW($AQ$23:$AQ$2323)),""),ROWS($A$23:$A170))),""),"") ->  | AW170: 33194 | AX170: Miami-Dade | AZ170: 12.08 | BA170: Miami-Dade
A171: 34491 | B171: Marion | F171: 21 | G171: Escambia | L171: 203.2 | M171: Broward | O171: =IFERROR(IF($O$21="Metro",INDEX($F$23:$F$748,SMALL(IF((County=$G$23:$G$748),MATCH(ROW($G$23:$G$748),ROW($G$23:$G$748)),""),ROWS($A$23:A171))),INDEX($I$23:$I$52,SMALL(IF((County=$J$23:$J$52),MATCH(ROW($J$23:$J$52),ROW($J$23:$J$52)),""),ROWS($A$23:A171)))),"") ->  | Q171: =IFERROR(IF($Q$21="Yes",INDEX($L$23:$L$2323,SMALL(IF((County=$M$23:$M$2323),MATCH(ROW($M$23:$M$2323),ROW($M$23:$M$2323)),""),ROWS($A$23:A171))),""),"") ->  | S171: 33330 | T171: Broward | V171: 15.21 | W171: Alachua | AB171: 11 | AC171: Alachua | AE171: 33035 | AF171: Miami-Dade | AJ171: 166.05 | AK171: Duval | AS171: =IFERROR(IF($O$21="Metro",INDEX($AJ$23:$AJ$748,SMALL(IF((County=$AK$23:$AK$748),MATCH(ROW($AK$23:$AK$748),ROW($AK$23:$AK$748)),""),ROWS($A$23:$A171))),INDEX($AM$23:$AM$58,SMALL(IF((County=$AN$23:$AN$58),MATCH(ROW($AN$23:$AN$58),ROW($AN$23:$AN$58)),""),ROWS($A$23:$A171)))),"") ->  | AU171: =IFERROR(IF($Q$21="Yes",INDEX($AP$23:$AP$2323,SMALL(IF((County=$AQ$23:$AQ$2323),MATCH(ROW($AQ$23:$AQ$2323),ROW($AQ$23:$AQ$2323)),""),ROWS($A$23:$A171))),""),"") ->  | AW171: 33196 | AX171: Miami-Dade | AZ171: 12.09 | BA171: Miami-Dade
A172: 34990 | B172: Martin | F172: 22 | G172: Escambia | L172: 203.21 | M172: Broward | O172: =IFERROR(IF($O$21="Metro",INDEX($F$23:$F$748,SMALL(IF((County=$G$23:$G$748),MATCH(ROW($G$23:$G$748),ROW($G$23:$G$748)),""),ROWS($A$23:A172))),INDEX($I$23:$I$52,SMALL(IF((County=$J$23:$J$52),MATCH(ROW($J$23:$J$52),ROW($J$23:$J$52)),""),ROWS($A$23:A172)))),"") ->  | Q172: =IFERROR(IF($Q$21="Yes",INDEX($L$23:$L$2323,SMALL(IF((County=$M$23:$M$2323),MATCH(ROW($M$23:$M$2323),ROW($M$23:$M$2323)),""),ROWS($A$23:A172))),""),"") ->  | S172: 33331 | T172: Broward | V172: 16 | W172: Bay | AB172: 11 | AC172: Hillsborough | AE172: 33055 | AF172: Miami-Dade | AJ172: 166.06 | AK172: Duval | AS172: =IFERROR(IF($O$21="Metro",INDEX($AJ$23:$AJ$748,SMALL(IF((County=$AK$23:$AK$748),MATCH(ROW($AK$23:$AK$748),ROW($AK$23:$AK$748)),""),ROWS($A$23:$A172))),INDEX($AM$23:$AM$58,SMALL(IF((County=$AN$23:$AN$58),MATCH(ROW($AN$23:$AN$58),ROW($AN$23:$AN$58)),""),ROWS($A$23:$A172)))),"") ->  | AU172: =IFERROR(IF($Q$21="Yes",INDEX($AP$23:$AP$2323,SMALL(IF((County=$AQ$23:$AQ$2323),MATCH(ROW($AQ$23:$AQ$2323),ROW($AQ$23:$AQ$2323)),""),ROWS($A$23:$A172))),""),"") ->  | AW172: 33301 | AX172: Broward | AZ172: 13 | BA172: Duval
A173: 33014 | B173: Miami-Dade | F173: 27.03 | G173: Escambia | L173: 203.22 | M173: Broward | O173: =IFERROR(IF($O$21="Metro",INDEX($F$23:$F$748,SMALL(IF((County=$G$23:$G$748),MATCH(ROW($G$23:$G$748),ROW($G$23:$G$748)),""),ROWS($A$23:A173))),INDEX($I$23:$I$52,SMALL(IF((County=$J$23:$J$52),MATCH(ROW($J$23:$J$52),ROW($J$23:$J$52)),""),ROWS($A$23:A173)))),"") ->  | Q173: =IFERROR(IF($Q$21="Yes",INDEX($L$23:$L$2323,SMALL(IF((County=$M$23:$M$2323),MATCH(ROW($M$23:$M$2323),ROW($M$23:$M$2323)),""),ROWS($A$23:A173))),""),"") ->  | S173: 33332 | T173: Broward | V173: 16 | W173: Duval | AB173: 11.01 | AC173: Escambia | AE173: 33109 | AF173: Miami-Dade | AJ173: 172 | AK173: Duval | AS173: =IFERROR(IF($O$21="Metro",INDEX($AJ$23:$AJ$748,SMALL(IF((County=$AK$23:$AK$748),MATCH(ROW($AK$23:$AK$748),ROW($AK$23:$AK$748)),""),ROWS($A$23:$A173))),INDEX($AM$23:$AM$58,SMALL(IF((County=$AN$23:$AN$58),MATCH(ROW($AN$23:$AN$58),ROW($AN$23:$AN$58)),""),ROWS($A$23:$A173)))),"") ->  | AU173: =IFERROR(IF($Q$21="Yes",INDEX($AP$23:$AP$2323,SMALL(IF((County=$AQ$23:$AQ$2323),MATCH(ROW($AQ$23:$AQ$2323),ROW($AQ$23:$AQ$2323)),""),ROWS($A$23:$A173))),""),"") ->  | AW173: 33304 | AX173: Broward | AZ173: 13.01 | BA173: Miami-Dade
A174: 33015 | B174: Miami-Dade | F174: 29 | G174: Escambia | L174: 203.25 | M174: Broward | O174: =IFERROR(IF($O$21="Metro",INDEX($F$23:$F$748,SMALL(IF((County=$G$23:$G$748),MATCH(ROW($G$23:$G$748),ROW($G$23:$G$748)),""),ROWS($A$23:A174))),INDEX($I$23:$I$52,SMALL(IF((County=$J$23:$J$52),MATCH(ROW($J$23:$J$52),ROW($J$23:$J$52)),""),ROWS($A$23:A174)))),"") ->  | Q174: =IFERROR(IF($Q$21="Yes",INDEX($L$23:$L$2323,SMALL(IF((County=$M$23:$M$2323),MATCH(ROW($M$23:$M$2323),ROW($M$23:$M$2323)),""),ROWS($A$23:A174))),""),"") ->  | S174: 33351 | T174: Broward | V174: 16 | W174: Escambia | AB174: 11.01 | AC174: Palm Beach | AE174: 33126 | AF174: Miami-Dade | AJ174: 174 | AK174: Duval | AS174: =IFERROR(IF($O$21="Metro",INDEX($AJ$23:$AJ$748,SMALL(IF((County=$AK$23:$AK$748),MATCH(ROW($AK$23:$AK$748),ROW($AK$23:$AK$748)),""),ROWS($A$23:$A174))),INDEX($AM$23:$AM$58,SMALL(IF((County=$AN$23:$AN$58),MATCH(ROW($AN$23:$AN$58),ROW($AN$23:$AN$58)),""),ROWS($A$23:$A174)))),"") ->  | AU174: =IFERROR(IF($Q$21="Yes",INDEX($AP$23:$AP$2323,SMALL(IF((County=$AQ$23:$AQ$2323),MATCH(ROW($AQ$23:$AQ$2323),ROW($AQ$23:$AQ$2323)),""),ROWS($A$23:$A174))),""),"") ->  | AW174: 33308 | AX174: Broward | AZ174: 13.01 | BA174: Palm Beach
A175: 33018 | B175: Miami-Dade | F175: 35.06 | G175: Escambia | L175: 203.26 | M175: Broward | O175: =IFERROR(IF($O$21="Metro",INDEX($F$23:$F$748,SMALL(IF((County=$G$23:$G$748),MATCH(ROW($G$23:$G$748),ROW($G$23:$G$748)),""),ROWS($A$23:A175))),INDEX($I$23:$I$52,SMALL(IF((County=$J$23:$J$52),MATCH(ROW($J$23:$J$52),ROW($J$23:$J$52)),""),ROWS($A$23:A175)))),"") ->  | Q175: =IFERROR(IF($Q$21="Yes",INDEX($L$23:$L$2323,SMALL(IF((County=$M$23:$M$2323),MATCH(ROW($M$23:$M$2323),ROW($M$23:$M$2323)),""),ROWS($A$23:A175))),""),"") ->  | S175: 33410 | T175: Palm Beach | V175: 16 | W175: Marion | AB175: 11.02 | AC175: Martin | AE175: 33129 | AF175: Miami-Dade | AJ175: 3 | AK175: Escambia | AS175: =IFERROR(IF($O$21="Metro",INDEX($AJ$23:$AJ$748,SMALL(IF((County=$AK$23:$AK$748),MATCH(ROW($AK$23:$AK$748),ROW($AK$23:$AK$748)),""),ROWS($A$23:$A175))),INDEX($AM$23:$AM$58,SMALL(IF((County=$AN$23:$AN$58),MATCH(ROW($AN$23:$AN$58),ROW($AN$23:$AN$58)),""),ROWS($A$23:$A175)))),"") ->  | AU175: =IFERROR(IF($Q$21="Yes",INDEX($AP$23:$AP$2323,SMALL(IF((County=$AQ$23:$AQ$2323),MATCH(ROW($AQ$23:$AQ$2323),ROW($AQ$23:$AQ$2323)),""),ROWS($A$23:$A175))),""),"") ->  | AW175: 33315 | AX175: Broward | AZ175: 13.02 | BA175: Palm Beach
A176: 33031 | B176: Miami-Dade | F176: 36.07 | G176: Escambia | L176: 204.06 | M176: Broward | O176: =IFERROR(IF($O$21="Metro",INDEX($F$23:$F$748,SMALL(IF((County=$G$23:$G$748),MATCH(ROW($G$23:$G$748),ROW($G$23:$G$748)),""),ROWS($A$23:A176))),INDEX($I$23:$I$52,SMALL(IF((County=$J$23:$J$52),MATCH(ROW($J$23:$J$52),ROW($J$23:$J$52)),""),ROWS($A$23:A176)))),"") ->  | Q176: =IFERROR(IF($Q$21="Yes",INDEX($L$23:$L$2323,SMALL(IF((County=$M$23:$M$2323),MATCH(ROW($M$23:$M$2323),ROW($M$23:$M$2323)),""),ROWS($A$23:A176))),""),"") ->  | S176: 33412 | T176: Palm Beach | V176: 16 | W176: Palm Beach | AB176: 11.02 | AC176: Palm Beach | AE176: 33131 | AF176: Miami-Dade | AJ176: 4 | AK176: Escambia | AS176: =IFERROR(IF($O$21="Metro",INDEX($AJ$23:$AJ$748,SMALL(IF((County=$AK$23:$AK$748),MATCH(ROW($AK$23:$AK$748),ROW($AK$23:$AK$748)),""),ROWS($A$23:$A176))),INDEX($AM$23:$AM$58,SMALL(IF((County=$AN$23:$AN$58),MATCH(ROW($AN$23:$AN$58),ROW($AN$23:$AN$58)),""),ROWS($A$23:$A176)))),"") ->  | AU176: =IFERROR(IF($Q$21="Yes",INDEX($AP$23:$AP$2323,SMALL(IF((County=$AQ$23:$AQ$2323),MATCH(ROW($AQ$23:$AQ$2323),ROW($AQ$23:$AQ$2323)),""),ROWS($A$23:$A176))),""),"") ->  | AW176: 33321 | AX176: Broward | AZ176: 14 | BA176: Hillsborough
A177: 33035 | B177: Miami-Dade | F177: 207.01 | G177: Gadsden | L177: 204.11 | M177: Broward | O177: =IFERROR(IF($O$21="Metro",INDEX($F$23:$F$748,SMALL(IF((County=$G$23:$G$748),MATCH(ROW($G$23:$G$748),ROW($G$23:$G$748)),""),ROWS($A$23:A177))),INDEX($I$23:$I$52,SMALL(IF((County=$J$23:$J$52),MATCH(ROW($J$23:$J$52),ROW($J$23:$J$52)),""),ROWS($A$23:A177)))),"") ->  | Q177: =IFERROR(IF($Q$21="Yes",INDEX($L$23:$L$2323,SMALL(IF((County=$M$23:$M$2323),MATCH(ROW($M$23:$M$2323),ROW($M$23:$M$2323)),""),ROWS($A$23:A177))),""),"") ->  | S177: 33413 | T177: Palm Beach | V177: 16.03 | W177: Alachua | AB177: 11.03 | AC177: Escambia | AE177: 33132 | AF177: Miami-Dade | AJ177: 15 | AK177: Escambia | AS177: =IFERROR(IF($O$21="Metro",INDEX($AJ$23:$AJ$748,SMALL(IF((County=$AK$23:$AK$748),MATCH(ROW($AK$23:$AK$748),ROW($AK$23:$AK$748)),""),ROWS($A$23:$A177))),INDEX($AM$23:$AM$58,SMALL(IF((County=$AN$23:$AN$58),MATCH(ROW($AN$23:$AN$58),ROW($AN$23:$AN$58)),""),ROWS($A$23:$A177)))),"") ->  | AU177: =IFERROR(IF($Q$21="Yes",INDEX($AP$23:$AP$2323,SMALL(IF((County=$AQ$23:$AQ$2323),MATCH(ROW($AQ$23:$AQ$2323),ROW($AQ$23:$AQ$2323)),""),ROWS($A$23:$A177))),""),"") ->  | AW177: 33322 | AX177: Broward | AZ177: 14.01 | BA177: Duval
A178: 33055 | B178: Miami-Dade | F178: 207.02 | G178: Gadsden | L178: 204.14 | M178: Broward | O178: =IFERROR(IF($O$21="Metro",INDEX($F$23:$F$748,SMALL(IF((County=$G$23:$G$748),MATCH(ROW($G$23:$G$748),ROW($G$23:$G$748)),""),ROWS($A$23:A178))),INDEX($I$23:$I$52,SMALL(IF((County=$J$23:$J$52),MATCH(ROW($J$23:$J$52),ROW($J$23:$J$52)),""),ROWS($A$23:A178)))),"") ->  | Q178: =IFERROR(IF($Q$21="Yes",INDEX($L$23:$L$2323,SMALL(IF((County=$M$23:$M$2323),MATCH(ROW($M$23:$M$2323),ROW($M$23:$M$2323)),""),ROWS($A$23:A178))),""),"") ->  | S178: 33414 | T178: Palm Beach | V178: 16.04 | W178: Alachua | AB178: 11.03 | AC178: Marion | AE178: 33133 | AF178: Miami-Dade | AJ178: 16 | AK178: Escambia | AS178: =IFERROR(IF($O$21="Metro",INDEX($AJ$23:$AJ$748,SMALL(IF((County=$AK$23:$AK$748),MATCH(ROW($AK$23:$AK$748),ROW($AK$23:$AK$748)),""),ROWS($A$23:$A178))),INDEX($AM$23:$AM$58,SMALL(IF((County=$AN$23:$AN$58),MATCH(ROW($AN$23:$AN$58),ROW($AN$23:$AN$58)),""),ROWS($A$23:$A178)))),"") ->  | AU178: =IFERROR(IF($Q$21="Yes",INDEX($AP$23:$AP$2323,SMALL(IF((County=$AQ$23:$AQ$2323),MATCH(ROW($AQ$23:$AQ$2323),ROW($AQ$23:$AQ$2323)),""),ROWS($A$23:$A178))),""),"") ->  | AW178: 33323 | AX178: Broward | AZ178: 14.01 | BA178: Leon
A179: 33109 | B179: Miami-Dade | F179: 404 | G179: Hernando | L179: 205.01 | M179: Broward | O179: =IFERROR(IF($O$21="Metro",INDEX($F$23:$F$748,SMALL(IF((County=$G$23:$G$748),MATCH(ROW($G$23:$G$748),ROW($G$23:$G$748)),""),ROWS($A$23:A179))),INDEX($I$23:$I$52,SMALL(IF((County=$J$23:$J$52),MATCH(ROW($J$23:$J$52),ROW($J$23:$J$52)),""),ROWS($A$23:A179)))),"") ->  | Q179: =IFERROR(IF($Q$21="Yes",INDEX($L$23:$L$2323,SMALL(IF((County=$M$23:$M$2323),MATCH(ROW($M$23:$M$2323),ROW($M$23:$M$2323)),""),ROWS($A$23:A179))),""),"") ->  | S179: 33418 | T179: Palm Beach | V179: 16.05 | W179: Miami-Dade | AB179: 11.03 | AC179: Martin | AE179: 33134 | AF179: Miami-Dade | AJ179: 17 | AK179: Escambia | AS179: =IFERROR(IF($O$21="Metro",INDEX($AJ$23:$AJ$748,SMALL(IF((County=$AK$23:$AK$748),MATCH(ROW($AK$23:$AK$748),ROW($AK$23:$AK$748)),""),ROWS($A$23:$A179))),INDEX($AM$23:$AM$58,SMALL(IF((County=$AN$23:$AN$58),MATCH(ROW($AN$23:$AN$58),ROW($AN$23:$AN$58)),""),ROWS($A$23:$A179)))),"") ->  | AU179: =IFERROR(IF($Q$21="Yes",INDEX($AP$23:$AP$2323,SMALL(IF((County=$AQ$23:$AQ$2323),MATCH(ROW($AQ$23:$AQ$2323),ROW($AQ$23:$AQ$2323)),""),ROWS($A$23:$A179))),""),"") ->  | AW179: 33324 | AX179: Broward | AZ179: 14.01 | BA179: Marion
A180: 33126 | B180: Miami-Dade | F180: 405.01 | G180: Hernando | L180: 301 | M180: Broward | O180: =IFERROR(IF($O$21="Metro",INDEX($F$23:$F$748,SMALL(IF((County=$G$23:$G$748),MATCH(ROW($G$23:$G$748),ROW($G$23:$G$748)),""),ROWS($A$23:A180))),INDEX($I$23:$I$52,SMALL(IF((County=$J$23:$J$52),MATCH(ROW($J$23:$J$52),ROW($J$23:$J$52)),""),ROWS($A$23:A180)))),"") ->  | Q180: =IFERROR(IF($Q$21="Yes",INDEX($L$23:$L$2323,SMALL(IF((County=$M$23:$M$2323),MATCH(ROW($M$23:$M$2323),ROW($M$23:$M$2323)),""),ROWS($A$23:A180))),""),"") ->  | S180: 33426 | T180: Palm Beach | V180: 16.06 | W180: Miami-Dade | AB180: 11.04 | AC180: Escambia | AE180: 33137 | AF180: Miami-Dade | AJ180: 18 | AK180: Escambia | AS180: =IFERROR(IF($O$21="Metro",INDEX($AJ$23:$AJ$748,SMALL(IF((County=$AK$23:$AK$748),MATCH(ROW($AK$23:$AK$748),ROW($AK$23:$AK$748)),""),ROWS($A$23:$A180))),INDEX($AM$23:$AM$58,SMALL(IF((County=$AN$23:$AN$58),MATCH(ROW($AN$23:$AN$58),ROW($AN$23:$AN$58)),""),ROWS($A$23:$A180)))),"") ->  | AU180: =IFERROR(IF($Q$21="Yes",INDEX($AP$23:$AP$2323,SMALL(IF((County=$AQ$23:$AQ$2323),MATCH(ROW($AQ$23:$AQ$2323),ROW($AQ$23:$AQ$2323)),""),ROWS($A$23:$A180))),""),"") ->  | AW180: 33325 | AX180: Broward | AZ180: 14.01 | BA180: Miami-Dade
A181: 33129 | B181: Miami-Dade | F181: 405.02 | G181: Hernando | L181: 307.02 | M181: Broward | O181: =IFERROR(IF($O$21="Metro",INDEX($F$23:$F$748,SMALL(IF((County=$G$23:$G$748),MATCH(ROW($G$23:$G$748),ROW($G$23:$G$748)),""),ROWS($A$23:A181))),INDEX($I$23:$I$52,SMALL(IF((County=$J$23:$J$52),MATCH(ROW($J$23:$J$52),ROW($J$23:$J$52)),""),ROWS($A$23:A181)))),"") ->  | Q181: =IFERROR(IF($Q$21="Yes",INDEX($L$23:$L$2323,SMALL(IF((County=$M$23:$M$2323),MATCH(ROW($M$23:$M$2323),ROW($M$23:$M$2323)),""),ROWS($A$23:A181))),""),"") ->  | S181: 33428 | T181: Palm Beach | V181: 17 | W181: Escambia | AB181: 11.04 | AC181: Manatee | AE181: 33139 | AF181: Miami-Dade | AJ181: 19 | AK181: Escambia | AS181: =IFERROR(IF($O$21="Metro",INDEX($AJ$23:$AJ$748,SMALL(IF((County=$AK$23:$AK$748),MATCH(ROW($AK$23:$AK$748),ROW($AK$23:$AK$748)),""),ROWS($A$23:$A181))),INDEX($AM$23:$AM$58,SMALL(IF((County=$AN$23:$AN$58),MATCH(ROW($AN$23:$AN$58),ROW($AN$23:$AN$58)),""),ROWS($A$23:$A181)))),"") ->  | AU181: =IFERROR(IF($Q$21="Yes",INDEX($AP$23:$AP$2323,SMALL(IF((County=$AQ$23:$AQ$2323),MATCH(ROW($AQ$23:$AQ$2323),ROW($AQ$23:$AQ$2323)),""),ROWS($A$23:$A181))),""),"") ->  | AW181: 33326 | AX181: Broward | AZ181: 14.02 | BA181: Duval
A182: 33131 | B182: Miami-Dade | F182: 412.04 | G182: Hernando | L182: 307.04 | M182: Broward | Q182: =IFERROR(IF($Q$21="Yes",INDEX($L$23:$L$2323,SMALL(IF((County=$M$23:$M$2323),MATCH(ROW($M$23:$M$2323),ROW($M$23:$M$2323)),""),ROWS($A$23:A182))),""),"") ->  | S182: 33431 | T182: Palm Beach | V182: 17 | W182: Marion | AB182: 11.04 | AC182: Martin | AE182: 33140 | AF182: Miami-Dade | AJ182: 20 | AK182: Escambia | AU182: =IFERROR(IF($Q$21="Yes",INDEX($AP$23:$AP$2323,SMALL(IF((County=$AQ$23:$AQ$2323),MATCH(ROW($AQ$23:$AQ$2323),ROW($AQ$23:$AQ$2323)),""),ROWS($A$23:$A182))),""),"") ->  | AW182: 33327 | AX182: Broward | AZ182: 14.02 | BA182: Leon
A183: 33132 | B183: Miami-Dade | F183: 414.01 | G183: Hernando | L183: 309.02 | M183: Broward | Q183: =IFERROR(IF($Q$21="Yes",INDEX($L$23:$L$2323,SMALL(IF((County=$M$23:$M$2323),MATCH(ROW($M$23:$M$2323),ROW($M$23:$M$2323)),""),ROWS($A$23:A183))),""),"") ->  | S183: 33432 | T183: Palm Beach | V183: 17.01 | W183: Miami-Dade | AB183: 11.04 | AC183: Miami-Dade | AE183: 33141 | AF183: Miami-Dade | AJ183: 21 | AK183: Escambia | AU183: =IFERROR(IF($Q$21="Yes",INDEX($AP$23:$AP$2323,SMALL(IF((County=$AQ$23:$AQ$2323),MATCH(ROW($AQ$23:$AQ$2323),ROW($AQ$23:$AQ$2323)),""),ROWS($A$23:$A183))),""),"") ->  | AW183: 33328 | AX183: Broward | AZ183: 14.02 | BA183: Miami-Dade
A184: 33133 | B184: Miami-Dade | F184: 9603 | G184: Highlands | L184: 309.04 | M184: Broward | Q184: =IFERROR(IF($Q$21="Yes",INDEX($L$23:$L$2323,SMALL(IF((County=$M$23:$M$2323),MATCH(ROW($M$23:$M$2323),ROW($M$23:$M$2323)),""),ROWS($A$23:A184))),""),"") ->  | S184: 33433 | T184: Palm Beach | V184: 17.02 | W184: Miami-Dade | AB184: 11.05 | AC184: Manatee | AE184: 33143 | AF184: Miami-Dade | AJ184: 27.03 | AK184: Escambia | AU184: =IFERROR(IF($Q$21="Yes",INDEX($AP$23:$AP$2323,SMALL(IF((County=$AQ$23:$AQ$2323),MATCH(ROW($AQ$23:$AQ$2323),ROW($AQ$23:$AQ$2323)),""),ROWS($A$23:$A184))),""),"") ->  | AW184: 33330 | AX184: Broward | AZ184: 14.02 | BA184: Palm Beach
A185: 33134 | B185: Miami-Dade | F185: 9608 | G185: Highlands | L185: 310.02 | M185: Broward | Q185: =IFERROR(IF($Q$21="Yes",INDEX($L$23:$L$2323,SMALL(IF((County=$M$23:$M$2323),MATCH(ROW($M$23:$M$2323),ROW($M$23:$M$2323)),""),ROWS($A$23:A185))),""),"") ->  | S185: 33435 | T185: Palm Beach | V185: 17.03 | W185: Miami-Dade | AB185: 11.08 | AC185: Manatee | AE185: 33144 | AF185: Miami-Dade | AJ185: 29 | AK185: Escambia | AU185: =IFERROR(IF($Q$21="Yes",INDEX($AP$23:$AP$2323,SMALL(IF((County=$AQ$23:$AQ$2323),MATCH(ROW($AQ$23:$AQ$2323),ROW($AQ$23:$AQ$2323)),""),ROWS($A$23:$A185))),""),"") ->  | AW185: 33331 | AX185: Broward | AZ185: 14.03 | BA185: Palm Beach
A186: 33137 | B186: Miami-Dade | F186: 9609 | G186: Highlands | L186: 311.01 | M186: Broward | Q186: =IFERROR(IF($Q$21="Yes",INDEX($L$23:$L$2323,SMALL(IF((County=$M$23:$M$2323),MATCH(ROW($M$23:$M$2323),ROW($M$23:$M$2323)),""),ROWS($A$23:A186))),""),"") ->  | S186: 33436 | T186: Palm Beach | V186: 18 | W186: Bay | AB186: 12.01 | AC186: Alachua | AE186: 33145 | AF186: Miami-Dade | AJ186: 31 | AK186: Escambia | AU186: =IFERROR(IF($Q$21="Yes",INDEX($AP$23:$AP$2323,SMALL(IF((County=$AQ$23:$AQ$2323),MATCH(ROW($AQ$23:$AQ$2323),ROW($AQ$23:$AQ$2323)),""),ROWS($A$23:$A186))),""),"") ->  | AW186: 33332 | AX186: Broward | AZ186: 14.04 | BA186: Palm Beach
A187: 33139 | B187: Miami-Dade | F187: 9611 | G187: Highlands | L187: 311.02 | M187: Broward | Q187: =IFERROR(IF($Q$21="Yes",INDEX($L$23:$L$2323,SMALL(IF((County=$M$23:$M$2323),MATCH(ROW($M$23:$M$2323),ROW($M$23:$M$2323)),""),ROWS($A$23:A187))),""),"") ->  | S187: 33437 | T187: Palm Beach | V187: 18 | W187: Escambia | AB187: 12.01 | AC187: Sarasota | AE187: 33146 | AF187: Miami-Dade | AJ187: 35.06 | AK187: Escambia | AU187: =IFERROR(IF($Q$21="Yes",INDEX($AP$23:$AP$2323,SMALL(IF((County=$AQ$23:$AQ$2323),MATCH(ROW($AQ$23:$AQ$2323),ROW($AQ$23:$AQ$2323)),""),ROWS($A$23:$A187))),""),"") ->  | AW187: 33351 | AX187: Broward | AZ187: 14.07 | BA187: Martin
A188: 33140 | B188: Miami-Dade | F188: 9616.03 | G188: Highlands | L188: 312.02 | M188: Broward | Q188: =IFERROR(IF($Q$21="Yes",INDEX($L$23:$L$2323,SMALL(IF((County=$M$23:$M$2323),MATCH(ROW($M$23:$M$2323),ROW($M$23:$M$2323)),""),ROWS($A$23:A188))),""),"") ->  | S188: 33442 | T188: Broward | V188: 18 | W188: Hillsborough | AB188: 12.02 | AC188: Alachua | AE188: 33149 | AF188: Miami-Dade | AJ188: 36.07 | AK188: Escambia | AU188: =IFERROR(IF($Q$21="Yes",INDEX($AP$23:$AP$2323,SMALL(IF((County=$AQ$23:$AQ$2323),MATCH(ROW($AQ$23:$AQ$2323),ROW($AQ$23:$AQ$2323)),""),ROWS($A$23:$A188))),""),"") ->  | AW188: 33410 | AX188: Palm Beach | AZ188: 15 | BA188: Duval
A189: 33141 | B189: Miami-Dade | F189: 1.01 | G189: Hillsborough | L189: 312.03 | M189: Broward | Q189: =IFERROR(IF($Q$21="Yes",INDEX($L$23:$L$2323,SMALL(IF((County=$M$23:$M$2323),MATCH(ROW($M$23:$M$2323),ROW($M$23:$M$2323)),""),ROWS($A$23:A189))),""),"") ->  | S189: 33445 | T189: Palm Beach | V189: 18 | W189: Marion | AB189: 12.02 | AC189: Lee | AE189: 33154 | AF189: Miami-Dade | AJ189: 207.01 | AK189: Gadsden | AU189: =IFERROR(IF($Q$21="Yes",INDEX($AP$23:$AP$2323,SMALL(IF((County=$AQ$23:$AQ$2323),MATCH(ROW($AQ$23:$AQ$2323),ROW($AQ$23:$AQ$2323)),""),ROWS($A$23:$A189))),""),"") ->  | AW189: 33412 | AX189: Palm Beach | AZ189: 15 | BA189: Escambia
A190: 33143 | B190: Miami-Dade | F190: 1.02 | G190: Hillsborough | L190: 312.05 | M190: Broward | Q190: =IFERROR(IF($Q$21="Yes",INDEX($L$23:$L$2323,SMALL(IF((County=$M$23:$M$2323),MATCH(ROW($M$23:$M$2323),ROW($M$23:$M$2323)),""),ROWS($A$23:A190))),""),"") ->  | S190: 33449 | T190: Palm Beach | V190: 18.01 | W190: Leon | AB190: 12.02 | AC190: Manatee | AE190: 33155 | AF190: Miami-Dade | AJ190: 207.02 | AK190: Gadsden | AU190: =IFERROR(IF($Q$21="Yes",INDEX($AP$23:$AP$2323,SMALL(IF((County=$AQ$23:$AQ$2323),MATCH(ROW($AQ$23:$AQ$2323),ROW($AQ$23:$AQ$2323)),""),ROWS($A$23:$A190))),""),"") ->  | AW190: 33413 | AX190: Palm Beach | AZ190: 15 | BA190: Marion
A191: 33145 | B191: Miami-Dade | F191: 2.01 | G191: Hillsborough | L191: 401.01 | M191: Broward | Q191: =IFERROR(IF($Q$21="Yes",INDEX($L$23:$L$2323,SMALL(IF((County=$M$23:$M$2323),MATCH(ROW($M$23:$M$2323),ROW($M$23:$M$2323)),""),ROWS($A$23:A191))),""),"") ->  | S191: 33458 | T191: Palm Beach | V191: 18.01 | W191: Martin | AB191: 12.03 | AC191: Alachua | AE191: 33156 | AF191: Miami-Dade | AJ191: 404 | AK191: Hernando | AU191: =IFERROR(IF($Q$21="Yes",INDEX($AP$23:$AP$2323,SMALL(IF((County=$AQ$23:$AQ$2323),MATCH(ROW($AQ$23:$AQ$2323),ROW($AQ$23:$AQ$2323)),""),ROWS($A$23:$A191))),""),"") ->  | AW191: 33414 | AX191: Palm Beach | AZ191: 15.01 | BA191: Miami-Dade
A192: 33146 | B192: Miami-Dade | F192: 2.02 | G192: Hillsborough | L192: 401.02 | M192: Broward | Q192: =IFERROR(IF($Q$21="Yes",INDEX($L$23:$L$2323,SMALL(IF((County=$M$23:$M$2323),MATCH(ROW($M$23:$M$2323),ROW($M$23:$M$2323)),""),ROWS($A$23:A192))),""),"") ->  | S192: 33467 | T192: Palm Beach | V192: 18.01 | W192: Miami-Dade | AB192: 12.03 | AC192: Manatee | AE192: 33158 | AF192: Miami-Dade | AJ192: 405.04 | AK192: Hernando | AU192: =IFERROR(IF($Q$21="Yes",INDEX($AP$23:$AP$2323,SMALL(IF((County=$AQ$23:$AQ$2323),MATCH(ROW($AQ$23:$AQ$2323),ROW($AQ$23:$AQ$2323)),""),ROWS($A$23:$A192))),""),"") ->  | AW192: 33418 | AX192: Palm Beach | AZ192: 15.02 | BA192: Lee
